Workbook

Sheet Revision History (hidden)
B2: Revision History
C3: NStf-Fil | D3: =OrgCodeSelection -> RX4
B4: Version | C4: Date | D4: Change
B5: 31 | C5: 2020-07-31 | D5: First UDF Version
B6: 32 | C6: 2020-08-11 | D6: Updated ref data for RAJ (merged in RDD and RQ8, but incomplete as not all sites are ODS-registered to RAJ
B7: 33 | C7: 2020-08-28 | D7: remove UDFs and replace template with formula-based solution. | J7: DM-6913 | K7: SF
B8: 34 | C8: 2020-09-05 | D8: #VALUE! Fix - DM-6980
B9: 35 | C9: 2020-09-29 | D9: Ref data updates DM-6963
B10: 36 | C10: 2020-12-22 | D10: Ref data updates DM-7206
B11: 36.1 | C11: 2021-01-22 | D11: error changed to warning - AB - to be reviewed in April - major version required for next month
B12: 37 | C12: 2021-01-29 | D12: 4 x changes | E12: DM-8002
B13: 37.1 | C13: 2021-02-01 | D13: guidance updated by CO - SF

Sheet Control Panel
A1: X | V1: W = Warnings X = Errors -> | W1: =IF(OR(COUNTBLANK(Warnings!$E$14:$S$213)<>3000,COUNTBLANK(Warnings!$B$7:$K$7)<>10),"There may be issues with these data. Please review the Warnings tab for more information","") -> There may be issues with these data. Please review the Warnings tab for more information | X1: =IF($E$6="","You have not selected an Organistion",IF(COUNTBLANK('Trust - Frontsheet'!E16:AC215)=5000,"You have not entered any data. The submission will FAIL",IF(COUNTBLANK(Errors!$E$7:$K$206)<>1400,"There are errors on this sheet. This submission will FAIL. Please review the Errors tab for more information",""))) -> 
D2: Safe Staffing (Rota Fill Rates and CHPPD) Collection | X2: =IF($D$12="Please enable macros when using this template","Please enable macros when using this template","") -> 
D4: Please check that the data on this upload template is accurate before being submitted to SDCS. You are reminded that these figures will be published, and it is the responsibility of your organisation that these submitted figures are accurate and in line with national guidance. We will undertake basic validation checks on these figures post submission, and may come back to you with any queries we may have.
E6: RX4 | F6: =VLOOKUP(OrgCodeSelection,Orgs,2,FALSE) -> CUMBRIA, NORTHUMBERLAND, TYNE AND WEAR NHS FOUNDATION TRUST
D12: =IF(ISERROR(MacroCheck(NOW())), "Please enable macros when using this template",IF($E$6="","No organisation has been selected. You cannot submit this template.",IF(COUNTBLANK(Errors!$E$7:$K$206)<>1400,"This template contains errors and will FAIL at submission. Please review the Errors tab for more information",IF(COUNTBLANK('Trust - Frontsheet'!E16:AC215)=5000,"You have not entered any data. The submission will FAIL","No errors have been found in this template. It will be accepted by the SDCS portal")))) -> No errors have been found in this template. It will be accepted by the SDCS portal | F12: =IF(OR(COUNTBLANK(Warnings!$E$14:$S$213)<>3000,COUNTBLANK(Warnings!$B$7:$K$7)<>10),"There may be issues with these data. Please review the Warnings tab for more information","") -> There may be issues with these data. Please review the Warnings tab for more information
D15: If you have any issues regarding this template please review the Important Information tab before contacting Data Collections
C25: If you have any further queries please contact
C26: england.patquality@nhs.net

Sheet Important Information

Sheet Trust - Frontsheet
D2: Safe Staffing (Rota Fill Rates and CHPPD) Collection
D5: Organisation: | E5: =IF(ISBLANK(OrgCodeSelection),"",OrgCodeSelection) -> RX4 | F5: =IF(ISBLANK(OrgNameSelection),"",OrgNameSelection) -> CUMBRIA, NORTHUMBERLAND, TYNE AND WEAR NHS FOUNDATION TRUST | AC5: x
AD6: ="" -> 
F7: Please provide the URL to the page on your trust website where your staffing information is available
F8: (Please can you ensure that the URL you attach to the spreadsheet is correct and links to the correct web page and include 'http://' in your URL)
F9: https://www.ntw.nhs.uk/about/progress/safer-staffing/
F10: =IFERROR(IF(COUNTBLANK(E16:AC215)=5000,"You have not entered any data. The submission will FAIL",IF(COUNTBLANK(Errors!$E$7:$K$206)<>1400,"There are errors on this sheet. This submission will FAIL. Please review the Errors tab for more information",IF(OR(COUNTBLANK(Warnings!$E$14:$S$213)<>3000,COUNTBLANK(Warnings!$B$7:$K$7)<>10),"There may be issues with these data. Please review the Warnings tab for more information",""))),"") -> There may be issues with these data. Please review the Warnings tab for more information
F11: Only complete sites your organisation is accountable for | I11: Day | Q11: Night | Y11: Allied Health Professionals | AC11: Cumulative count over the month of patients at 23:59 each day | AD11: Care Hours Per Patient Day (CHPPD) | AK11: Day | AO11: Night | AS11: Allied Health Professionals
D12: Hospital Site Details | F12: Ward name | G12: Main 2 Specialties on each ward With Covid Status | I12: Registered Nurses/Midwives | K12: Non-registered Nurses/Midwives (Care Staff) | M12: Registered Nursing Associates | O12: Non-registered Nursing Associates | Q12: Registered Nurses/Midwives | S12: Non-registered Nurses/Midwives (Care Staff) | U12: Registered Nursing Associates | W12: Non-registered Nursing Associates | Y12: Registered allied health professionals | AA12: Non-registered allied health professionals | AD12: Registered Nurses/Midwives | AE12: Non-registered Nurses/Midwives | AF12: Registered Nursing Associates | AG12: Non-registered Nursing Associates | AH12: Registered allied health professionals | AI12: Non-registered allied health professionals | AJ12: Overall | AK12: Average fill rate - Registered Nurses/Midwives (%) | AL12: Average fill rate - Non-registered Nurses/Midwives (care staff) (%) | AM12: Average fill rate - Registered Nursing Associates (%) | AN12: Average fill rate - Non-Registered Nursing Associates (%) | AO12: Average fill rate - Registered Nurses/Midwives (%) | AP12: Average fill rate - Non-registered Nurses/Midwives (care staff) (%) | AQ12: Average fill rate - Registered Nursing Associates (%) | AR12: Average fill rate - Non-Registered Nursing Associates (%) | AS12: Average fill rate - registered allied health professionals (AHP) (%) | AT12: Average fill rate - non-registered allied health professionals (AHP) (%)
A13: Site-Ward Concat | D13: Site code *The Site code is automatically populated when a Site name is selected | E13: Hospital Site name | G13: Specialty 1 | H13: Specialty 2 | I13: Total monthly planned staff hours | J13: Total monthly actual staff hours | K13: Total monthly planned staff hours | L13: Total monthly actual staff hours | M13: Total monthly planned staff hours | N13: Total monthly actual staff hours | O13: Total monthly planned staff hours | P13: Total monthly actual staff hours | Q13: Total monthly planned staff hours | R13: Total monthly actual staff hours | S13: Total monthly planned staff hours | T13: Total monthly actual staff hours | U13: Total monthly planned staff hours | V13: Total monthly actual staff hours | W13: Total monthly planned staff hours | X13: Total monthly actual staff hours | Y13: Total monthly planned staff hours | Z13: Total monthly actual staff hours | AA13: Total monthly planned staff hours | AB13: Total monthly actual staff hours
D14: SiteCode | E14: SiteName | F14: WardName | G14: Spec1 | H14: Spec2 | I14: RNM_Planned_Day | J14: RNM_Actual_Day | K14: NRNM_Planned_Day | L14: NRNM_Actual_Day | M14: RNA_Planned_Day | N14: RNA_Actual_Day | O14: NRNA_Planned_Day | P14: NRNA_Actual_Day | Q14: RNM_Planned_Night | R14: RNM_Actual_Night | S14: NRNM_Planned_Night | T14: NRNM_Actual_Night | U14: RNA_Planned_Night | V14: RNA_Actual_Night | W14: NRNA_Planned_Night | X14: NRNA_Actual_Night | Y14: RAHP_Planned | Z14: RAHP_Actual | AA14: NRAHP_Planned | AB14: NRAHP_Actual | AC14: PatientCount | AD14: CHPPD_RNM | AE14: CHPPD_NRNM | AF14: CHPPD_RNA | AG14: CHPPD_NRNA | AH14: CHPPD_RAHP | AI14: CHPPD_NRAHP | AJ14: CHPPD_Overall | AK14: AvgFR_RNM_Day | AL14: AvgFR_NRNM_Day | AM14: AvgFR_RNA_Day | AN14: AvgFR_NRNA_Day | AO14: AvgFR_RNM_Night | AP14: AvgFR_NRNM_Night | AQ14: AvgFR_RNA_Night | AR14: AvgFR_NRNA_Night | AS14: AvgFR_RAHP | AT14: AvgFR_NRAHP
F15: Total | I15: =SUM(INDIRECT("I16:I215")) -> 66909 | J15: =SUM(INDIRECT("J16:J215")) -> 54538.72 | K15: =SUM(INDIRECT("K16:K215")) -> 74683 | L15: =SUM(INDIRECT("L16:L215")) -> 132283.06 | M15: =SUM(INDIRECT("M16:M215")) -> 0 | N15: =SUM(INDIRECT("N16:N215")) -> 0 | O15: =SUM(INDIRECT("O16:O215")) -> 0 | P15: =SUM(INDIRECT("P16:P215")) -> 0 | Q15: =SUM(INDIRECT("Q16:Q215")) -> 19146.4 | R15: =SUM(INDIRECT("R16:R215")) -> 20723.11 | S15: =SUM(INDIRECT("S16:S215")) -> 45321.64 | T15: =SUM(INDIRECT("T16:T215")) -> 86688.91 | U15: =SUM(INDIRECT("U16:U215")) -> 0 | V15: =SUM(INDIRECT("V16:V215")) -> 0 | W15: =SUM(INDIRECT("W16:W215")) -> 0 | X15: =SUM(INDIRECT("X16:X215")) -> 0 | Y15: =SUM(INDIRECT("Y16:Y215")) -> 0 | Z15: =SUM(INDIRECT("Z16:Z215")) -> 0 | AA15: =SUM(INDIRECT("AA16:AA215")) -> 0 | AB15: =SUM(INDIRECT("AB16:AB215")) -> 0 | AC15: =SUM(INDIRECT("AC16:AC215")) -> 17407 | AD15: =IFERROR(IF(INDIRECT("$AC" &ROW()) ="","",SUM(INDIRECT("J" &ROW()),INDIRECT("R" & ROW()))/INDIRECT("$AC" &ROW())),"-") -> 4.323653128 | AE15: =IFERROR(IF(INDIRECT("$AC"&ROW())="","",SUM(INDIRECT("L"&ROW()),INDIRECT("T"&ROW()))/INDIRECT("$AC"&ROW())),"-") -> 12.57953524 | AF15: =IFERROR(IF(INDIRECT("$AC" &ROW())="","",SUM(INDIRECT("N" &ROW()),INDIRECT("V" &ROW()))/INDIRECT("$AC" &ROW())),"-") -> 0 | AG15: =IFERROR(IF(INDIRECT("$AC" &ROW())="","",SUM(INDIRECT("P" &ROW()),INDIRECT("X" &ROW()))/INDIRECT("$AC" &ROW())),"-") -> 0 | AH15: =IFERROR(IF(INDIRECT("$AC" &ROW())="","",INDIRECT("Z" &ROW())/INDIRECT("$AC" &ROW())),"-") -> 0 | AI15: =IFERROR(IF(INDIRECT("$AC" &ROW())="","",INDIRECT("AB" &ROW())/INDIRECT("$AC" &ROW())),"-") -> 0 | AJ15: =IFERROR(IF(AC15="","",SUM(J15,L15,N15,P15,R15,T15,V15,X15,Z15,AB15)/AC15),"-") -> 16.90318837 | AK15: =IFERROR(IF(INDIRECT("I" &ROW())="","",INDIRECT("J" &ROW())/INDIRECT("I" &ROW())),"-") -> 0.8151178466 | AL15: =IFERROR(IF(INDIRECT("K" &ROW())="","",INDIRECT("L" &ROW())/INDIRECT("K" &ROW())),"-") -> 1.771260662 | AM15: =IFERROR(IF(INDIRECT("M" &ROW())="","",INDIRECT("N" &ROW())/INDIRECT("M" &ROW())),"-") -> - | AN15: =IFERROR(IF(INDIRECT("O" &ROW())="","",INDIRECT("P" &ROW())/INDIRECT("O" &ROW())),"-") -> - | AO15: =IFERROR(IF(INDIRECT("Q" &ROW())="","",INDIRECT("R" &ROW())/INDIRECT("Q" &ROW())),"-") -> 1.082350207 | AP15: =IFERROR(IF(INDIRECT("S" &ROW())="","",INDIRECT("T" &ROW())/INDIRECT("S" &ROW())),"-") -> 1.912748744 | AQ15: =IFERROR(IF(INDIRECT("U" &ROW())="","",INDIRECT("V" &ROW())/INDIRECT("U" &ROW())),"-") -> - | AR15: =IFERROR(IF(INDIRECT("W" &ROW())="","",INDIRECT("X" &ROW())/INDIRECT("W" &ROW())),"-") -> - | AS15: =IFERROR(IF(INDIRECT("Y" &ROW())="","",INDIRECT("Z" &ROW())/INDIRECT("Y" &ROW())),"-") -> - | AT15: =IFERROR(IF(INDIRECT("AA" &ROW())="","",INDIRECT("AB" &ROW())/INDIRECT("AA" &ROW())),"-") -> -
A16: =INDIRECT("D" & ROW())&INDIRECT("F" & ROW()) -> RX4E4AIDAN | D16: =IFERROR(VLOOKUP($E$5&INDIRECT("E" & ROW()),Sites,4,FALSE),"") -> RX4E4 | E16: ST NICHOLAS HOSPITAL (NEWCASTLE UPON TYNE) | F16: AIDAN | G16: 712 - FORENSIC PSYCHIATRY - STANDARD | I16: 1305 | J16: 965.73 | K16: 1260 | L16: 1509.32 | Q16: 301 | R16: 312.95 | S16: 903 | T16: 1650.46 | AC16: 277 | AD16: =IF(A16="","",IFERROR((VLOOKUP(A16,A16:AC216,10,0)+VLOOKUP(A16,A16:AC216,18,0))/VLOOKUP(A16,A16:AC216,29,0),"-")) -> 4.616173285 | AE16: =IF(A16="","",IFERROR((VLOOKUP(A16,A16:AC216,12,0)+VLOOKUP(A16,A16:AC216,20,0))/VLOOKUP(A16,A16:AC216,29,0),"-")) -> 11.40714801 | AF16: =IF(A16="","",IFERROR((VLOOKUP(A16,A16:AC216,14,0)+VLOOKUP(A16,A16:AC216,22,0))/VLOOKUP(A16,A16:AC216,29,0),"-")) -> 0 | AG16: =IF(A16="","",IFERROR((VLOOKUP(A16,A16:AC216,16,0)+VLOOKUP(A16,A16:AC216,24,0))/VLOOKUP(A16,A16:AC216,29,0),"-")) -> 0 | AH16: =IF(A16="","",IFERROR(VLOOKUP(A16,A16:AC216,26,0)/VLOOKUP(A16,A16:AC216,29,0),"-")) -> 0 | AI16: =IF(A16="","",IFERROR(VLOOKUP(A16,A16:AC216,28,0)/VLOOKUP(A16,A16:AC216,29,0),"-")) -> 0 | AJ16: =IF(A16="","",IFERROR((VLOOKUP(A16,A16:AC216,10,0)+VLOOKUP(A16,A16:AC216,12,0)+VLOOKUP(A16,A16:AC216,14,0)+VLOOKUP(A16,A16:AC216,16,0)+VLOOKUP(A16,A16:AC216,18,0)+VLOOKUP(A16,A16:AC216,20,0)+VLOOKUP(A16,A16:AC216,22,0)+VLOOKUP(A16,A16:AC216,24,0)+VLOOKUP(A16,A16:AC216,26,0)+VLOOKUP(A16,A16:AC216,28,0))/VLOOKUP(A16,A16:AC216,29,0),"-")) -> 16.0233213 | AK16: =IF(A16="","",IFERROR(VLOOKUP(A16,A16:AC216,10,0)/VLOOKUP(A16,A16:AC216,9,0),"-")) -> 0.7400229885 | AL16: =IF(A16="","",IFERROR(VLOOKUP(A16,A16:AC216,12,0)/VLOOKUP(A16,A16:AC216,11,0),"-")) -> 1.197873016 | AM16: =IF(A16="","",IFERROR(VLOOKUP(A16,A16:AC216,14,0)/VLOOKUP(A16,A16:AC216,13,0),"-")) -> - | AN16: =IF(A16="","",IFERROR(VLOOKUP(A16,A16:AC216,16,0)/VLOOKUP(A16,A16:AC216,15,0),"-")) -> - | AO16: =IF(A16="","",IFERROR(VLOOKUP(A16,A16:AC216,18,0)/VLOOKUP(A16,A16:AC216,17,0),"-")) -> 1.039700997 | AP16: =IF(A16="","",IFERROR(VLOOKUP(A16,A16:AC216,20,0)/VLOOKUP(A16,A16:AC216,19,0),"-")) -> 1.827751938 | AQ16: =IF(A16="","",IFERROR(VLOOKUP(A16,A16:AC216,22,0)/VLOOKUP(A16,A16:AC216,21,0),"-")) -> - | AR16: =IF(A16="","",IFERROR(VLOOKUP(A16,A16:AC216,24,0)/VLOOKUP(A16,A16:AC216,23,0),"-")) -> - | AS16: =IF(A16="","",IFERROR(VLOOKUP(A16,A16:AC216,26,0)/VLOOKUP(A16,A16:AC216,25,0),"-")) -> - | AT16: =IF(A16="","",IFERROR(VLOOKUP(A16,A16:AC216,28,0)/VLOOKUP(A16,A16:AC216,27,0),"-")) -> -
A17: =INDIRECT("D" & ROW())&INDIRECT("F" & ROW()) -> RX4FDAKENSIDE | D17: =IFERROR(VLOOKUP($E$5&INDIRECT("E" & ROW()),Sites,4,FALSE),"") -> RX4FD | E17: CAMPUS FOR AGEING & VITALITY | F17: AKENSIDE | G17: 715 - OLD AGE PSYCHIATRY - STANDARD | I17: 990 | J17: 601.92 | K17: 1260 | L17: 1426.95 | Q17: 301 | R17: 305.7 | S17: 602 | T17: 778.45 | AC17: 232 | AD17: =IF(A17="","",IFERROR((VLOOKUP(A17,A17:AC217,10,0)+VLOOKUP(A17,A17:AC217,18,0))/VLOOKUP(A17,A17:AC217,29,0),"-")) -> 3.912155172 | AE17: =IF(A17="","",IFERROR((VLOOKUP(A17,A17:AC217,12,0)+VLOOKUP(A17,A17:AC217,20,0))/VLOOKUP(A17,A17:AC217,29,0),"-")) -> 9.506034483 | AF17: =IF(A17="","",IFERROR((VLOOKUP(A17,A17:AC217,14,0)+VLOOKUP(A17,A17:AC217,22,0))/VLOOKUP(A17,A17:AC217,29,0),"-")) -> 0 | AG17: =IF(A17="","",IFERROR((VLOOKUP(A17,A17:AC217,16,0)+VLOOKUP(A17,A17:AC217,24,0))/VLOOKUP(A17,A17:AC217,29,0),"-")) -> 0 | AH17: =IF(A17="","",IFERROR(VLOOKUP(A17,A17:AC217,26,0)/VLOOKUP(A17,A17:AC217,29,0),"-")) -> 0 | AI17: =IF(A17="","",IFERROR(VLOOKUP(A17,A17:AC217,28,0)/VLOOKUP(A17,A17:AC217,29,0),"-")) -> 0 | AJ17: =IF(A17="","",IFERROR((VLOOKUP(A17,A17:AC217,10,0)+VLOOKUP(A17,A17:AC217,12,0)+VLOOKUP(A17,A17:AC217,14,0)+VLOOKUP(A17,A17:AC217,16,0)+VLOOKUP(A17,A17:AC217,18,0)+VLOOKUP(A17,A17:AC217,20,0)+VLOOKUP(A17,A17:AC217,22,0)+VLOOKUP(A17,A17:AC217,24,0)+VLOOKUP(A17,A17:AC217,26,0)+VLOOKUP(A17,A17:AC217,28,0))/VLOOKUP(A17,A17:AC217,29,0),"-")) -> 13.41818966 | AK17: =IF(A17="","",IFERROR(VLOOKUP(A17,A17:AC217,10,0)/VLOOKUP(A17,A17:AC217,9,0),"-")) -> 0.608 | AL17: =IF(A17="","",IFERROR(VLOOKUP(A17,A17:AC217,12,0)/VLOOKUP(A17,A17:AC217,11,0),"-")) -> 1.1325 | AM17: =IF(A17="","",IFERROR(VLOOKUP(A17,A17:AC217,14,0)/VLOOKUP(A17,A17:AC217,13,0),"-")) -> - | AN17: =IF(A17="","",IFERROR(VLOOKUP(A17,A17:AC217,16,0)/VLOOKUP(A17,A17:AC217,15,0),"-")) -> - | AO17: =IF(A17="","",IFERROR(VLOOKUP(A17,A17:AC217,18,0)/VLOOKUP(A17,A17:AC217,17,0),"-")) -> 1.015614618 | AP17: =IF(A17="","",IFERROR(VLOOKUP(A17,A17:AC217,20,0)/VLOOKUP(A17,A17:AC217,19,0),"-")) -> 1.293106312 | AQ17: =IF(A17="","",IFERROR(VLOOKUP(A17,A17:AC217,22,0)/VLOOKUP(A17,A17:AC217,21,0),"-")) -> - | AR17: =IF(A17="","",IFERROR(VLOOKUP(A17,A17:AC217,24,0)/VLOOKUP(A17,A17:AC217,23,0),"-")) -> - | AS17: =IF(A17="","",IFERROR(VLOOKUP(A17,A17:AC217,26,0)/VLOOKUP(A17,A17:AC217,25,0),"-")) -> - | AT17: =IF(A17="","",IFERROR(VLOOKUP(A17,A17:AC217,28,0)/VLOOKUP(A17,A17:AC217,27,0),"-")) -> -
A18: =INDIRECT("D" & ROW())&INDIRECT("F" & ROW()) -> RX4Z3ALDERVALE - MEADOW VIEW | D18: =IFERROR(VLOOKUP($E$5&INDIRECT("E" & ROW()),Sites,4,FALSE),"") -> RX4Z3 | E18: HOPEWOOD PARK | F18: ALDERVALE - MEADOW VIEW | G18: 710 - ADULT MENTAL ILLNESS - STANDARD | I18: 1200 | J18: 1380 | K18: 840 | L18: 1692 | Q18: 301 | R18: 272 | S18: 602 | T18: 1269.33 | AC18: 460 | AD18: 3.591304348 | AE18: 6.437673913 | AF18: 0 | AG18: 0 | AH18: 0 | AI18: 0 | AJ18: 10.02897826 | AK18: 1.15 | AL18: 2.014285714 | AM18: - | AN18: - | AO18: 0.903654485 | AP18: 2.108521595 | AQ18: - | AR18: - | AS18: - | AT18: -
A19: =INDIRECT("D" & ROW())&INDIRECT("F" & ROW()) -> RX4E2ALNMOUTH | D19: =IFERROR(VLOOKUP($E$5&INDIRECT("E" & ROW()),Sites,4,FALSE),"") -> RX4E2 | E19: ST GEORGES HOSPITAL SITE (MORPETH) | F19: ALNMOUTH | G19: 710 - ADULT MENTAL ILLNESS - STANDARD | I19: 1200 | J19: 894.33 | K19: 630 | L19: 1450.93 | Q19: 301 | R19: 181.04 | S19: 602 | T19: 997.47 | AC19: 419 | AD19: 2.566515513 | AE19: 5.843436754 | AF19: 0 | AG19: 0 | AH19: 0 | AI19: 0 | AJ19: 8.409952267 | AK19: 0.745275 | AL19: 2.303063492 | AM19: - | AN19: - | AO19: 0.601461794 | AP19: 1.65692691 | AQ19: - | AR19: - | AS19: - | AT19: -
A20: =INDIRECT("D" & ROW())&INDIRECT("F" & ROW()) -> RX4E4ASHBY | D20: =IFERROR(VLOOKUP($E$5&INDIRECT("E" & ROW()),Sites,4,FALSE),"") -> RX4E4 | E20: ST NICHOLAS HOSPITAL (NEWCASTLE UPON TYNE) | F20: ASHBY | G20: 711 - CHILD AND ADOLESCENT PSYCHIATRY - STANDARD | I20: 1200 | J20: 875.33 | K20: 1680 | L20: 4312.75 | Q20: 301 | R20: 263.34 | S20: 1204 | T20: 2985.5 | AC20: 112 | AD20: 10.16669643 | AE20: 65.16294643 | AF20: 0 | AG20: 0 | AH20: 0 | AI20: 0 | AJ20: 75.32964286 | AK20: 0.7294416667 | AL20: 2.567113095 | AM20: - | AN20: - | AO20: 0.8748837209 | AP20: 2.479651163 | AQ20: - | AR20: - | AS20: - | AT20: -
A21: =INDIRECT("D" & ROW())&INDIRECT("F" & ROW()) -> RX4E2BEADNELL | D21: =IFERROR(VLOOKUP($E$5&INDIRECT("E" & ROW()),Sites,4,FALSE),"") -> RX4E2 | E21: ST GEORGES HOSPITAL SITE (MORPETH) | F21: BEADNELL | G21: 710 - ADULT MENTAL ILLNESS - STANDARD | I21: 780 | J21: 814.63 | K21: 840 | L21: 1022.5 | Q21: 301 | R21: 313.27 | S21: 301 | T21: 951.3 | AC21: 118 | AD21: 9.558474576 | AE21: 16.72711864 | AF21: 0 | AG21: 0 | AH21: 0 | AI21: 0 | AJ21: 26.28559322 | AK21: 1.044397436 | AL21: 1.217261905 | AM21: - | AN21: - | AO21: 1.04076412 | AP21: 3.160465116 | AQ21: - | AR21: - | AS21: - | AT21: -
A22: =INDIRECT("D" & ROW())&INDIRECT("F" & ROW()) -> RX4Z3BECKFIELD - DENE | D22: =IFERROR(VLOOKUP($E$5&INDIRECT("E" & ROW()),Sites,4,FALSE),"") -> RX4Z3 | E22: HOPEWOOD PARK | F22: BECKFIELD - DENE | G22: 996 - PSYCHIATRIC INTENSIVE CARE UNIT - STANDARD | I22: 1410 | J22: 858 | K22: 1680 | L22: 3653.5 | Q22: 301 | R22: 284.33 | S22: 1505 | T22: 2823 | AC22: 306 | AD22: 3.733104575 | AE22: 21.16503268 | AF22: 0 | AG22: 0 | AH22: 0 | AI22: 0 | AJ22: 24.89813725 | AK22: 0.6085106383 | AL22: 2.174702381 | AM22: - | AN22: - | AO22: 0.9446179402 | AP22: 1.875747508 | AQ22: - | AR22: - | AS22: - | AT22: -
A23: =INDIRECT("D" & ROW())&INDIRECT("F" & ROW()) -> RX4E4BEDE - COLLINGWOOD COURT | D23: =IFERROR(VLOOKUP($E$5&INDIRECT("E" & ROW()),Sites,4,FALSE),"") -> RX4E4 | E23: ST NICHOLAS HOSPITAL (NEWCASTLE UPON TYNE) | F23: BEDE - COLLINGWOOD COURT | G23: 710 - ADULT MENTAL ILLNESS - STANDARD | I23: 1200 | J23: 929.62 | K23: 630 | L23: 2598.77 | Q23: 301 | R23: 361.72 | S23: 602 | T23: 1827.14 | AC23: 327 | AD23: 3.949051988 | AE23: 13.53489297 | AF23: 0 | AG23: 0 | AH23: 0 | AI23: 0 | AJ23: 17.48394495 | AK23: 0.7746833333 | AL23: 4.125031746 | AM23: - | AN23: - | AO23: 1.201727575 | AP23: 3.035116279 | AQ23: - | AR23: - | AS23: - | AT23: -
A24: =INDIRECT("D" & ROW())&INDIRECT("F" & ROW()) -> RX4Z3BRIDGEWELL - MILL COTTAGE | D24: =IFERROR(VLOOKUP($E$5&INDIRECT("E" & ROW()),Sites,4,FALSE),"") -> RX4Z3 | E24: HOPEWOOD PARK | F24: BRIDGEWELL - MILL COTTAGE | G24: 710 - ADULT MENTAL ILLNESS - STANDARD | I24: 990 | J24: 814.42 | K24: 1050 | L24: 2493.5 | Q24: 301 | R24: 317.33 | S24: 602 | T24: 1813.33 | AC24: 476 | AD24: 2.37762605 | AE24: 9.047962185 | AF24: 0 | AG24: 0 | AH24: 0 | AI24: 0 | AJ24: 11.42558824 | AK24: 0.8226464646 | AL24: 2.374761905 | AM24: - | AN24: - | AO24: 1.054252492 | AP24: 3.01217608 | AQ24: - | AR24: - | AS24: - | AT24: -
A25: =INDIRECT("D" & ROW())&INDIRECT("F" & ROW()) -> RX438 BROOKE HOUSE | D25: =IFERROR(VLOOKUP($E$5&INDIRECT("E" & ROW()),Sites,4,FALSE),"") -> RX438 | E25: BROOKE HOUSE | F25: BROOKE HOUSE | G25: 710 - ADULT MENTAL ILLNESS - STANDARD | I25: 990 | J25: 641.25 | K25: 1155 | L25: 967.52 | Q25: 301 | R25: 228.5 | S25: 301 | T25: 306.98 | AC25: 244 | AD25: 3.56454918 | AE25: 5.223360656 | AF25: 0 | AG25: 0 | AH25: 0 | AI25: 0 | AJ25: 8.787909836 | AK25: 0.6477272727 | AL25: 0.8376796537 | AM25: - | AN25: - | AO25: 0.7591362126 | AP25: 1.01986711 | AQ25: - | AR25: - | AS25: - | AT25: -
A26: =INDIRECT("D" & ROW())&INDIRECT("F" & ROW()) -> RX4FDCASTLESIDE | D26: =IFERROR(VLOOKUP($E$5&INDIRECT("E" & ROW()),Sites,4,FALSE),"") -> RX4FD | E26: CAMPUS FOR AGEING & VITALITY | F26: CASTLESIDE | G26: 715 - OLD AGE PSYCHIATRY - STANDARD | I26: 990 | J26: 721.18 | K26: 1470 | L26: 3141.57 | Q26: 301 | R26: 347.84 | S26: 903 | T26: 2555.99 | AC26: 267 | AD26: 4.003820225 | AE26: 21.33917603 | AF26: 0 | AG26: 0 | AH26: 0 | AI26: 0 | AJ26: 25.34299625 | AK26: 0.7284646465 | AL26: 2.137122449 | AM26: - | AN26: - | AO26: 1.155614618 | AP26: 2.83055371 | AQ26: - | AR26: - | AS26: - | AT26: -
A27: =INDIRECT("D" & ROW())&INDIRECT("F" & ROW()) -> RX4K2CLEADON - ROSEWOOD | D27: =IFERROR(VLOOKUP($E$5&INDIRECT("E" & ROW()),Sites,4,FALSE),"") -> RX4K2 | E27: MONKWEARMOUTH HOSPITAL | F27: CLEADON - ROSEWOOD | G27: 710 - ADULT MENTAL ILLNESS - STANDARD | I27: 1200 | J27: 1300.5 | K27: 1260 | L27: 1540 | Q27: 301 | R27: 305.67 | S27: 602 | T27: 1008.67 | AC27: 433 | AD27: 3.709399538 | AE27: 5.886073903 | AF27: 0 | AG27: 0 | AH27: 0 | AI27: 0 | AJ27: 9.595473441 | AK27: 1.08375 | AL27: 1.222222222 | AM27: - | AN27: - | AO27: 1.01551495 | AP27: 1.675531561 | AQ27: - | AR27: - | AS27: - | AT27: -
A28: =INDIRECT("D" & ROW())&INDIRECT("F" & ROW()) -> RX4Z3CLEARBROOK - LOWER WILLOWS | D28: =IFERROR(VLOOKUP($E$5&INDIRECT("E" & ROW()),Sites,4,FALSE),"") -> RX4Z3 | E28: HOPEWOOD PARK | F28: CLEARBROOK - LOWER WILLOWS | G28: 710 - ADULT MENTAL ILLNESS - STANDARD | I28: 1200 | J28: 1025.27 | K28: 840 | L28: 2410.63 | Q28: 301 | R28: 160.97 | S28: 602 | T28: 1134.84 | AC28: 420 | AD28: 2.824380952 | AE28: 8.441595238 | AF28: 0 | AG28: 0 | AH28: 0 | AI28: 0 | AJ28: 11.26597619 | AK28: 0.8543916667 | AL28: 2.869797619 | AM28: - | AN28: - | AO28: 0.5347840532 | AP28: 1.885116279 | AQ28: - | AR28: - | AS28: - | AT28: -
A29: =INDIRECT("D" & ROW())&INDIRECT("F" & ROW()) -> RX4E4CUTHBERT | D29: =IFERROR(VLOOKUP($E$5&INDIRECT("E" & ROW()),Sites,4,FALSE),"") -> RX4E4 | E29: ST NICHOLAS HOSPITAL (NEWCASTLE UPON TYNE) | F29: CUTHBERT | G29: 712 - FORENSIC PSYCHIATRY - STANDARD | I29: 1305 | J29: 624.4 | K29: 840 | L29: 1183.62 | Q29: 301 | R29: 312.56 | S29: 602 | T29: 909.95 | AC29: 335 | AD29: 2.796895522 | AE29: 6.249462687 | AF29: 0 | AG29: 0 | AH29: 0 | AI29: 0 | AJ29: 9.046358209 | AK29: 0.478467433 | AL29: 1.409071429 | AM29: - | AN29: - | AO29: 1.038405316 | AP29: 1.51154485 | AQ29: - | AR29: - | AS29: - | AT29: -
A30: =INDIRECT("D" & ROW())&INDIRECT("F" & ROW()) -> RX461 ELM HOUSE | D30: =IFERROR(VLOOKUP($E$5&INDIRECT("E" & ROW()),Sites,4,FALSE),"") -> RX461 | E30: ELM HOUSE | F30: ELM HOUSE | G30: 710 - ADULT MENTAL ILLNESS - STANDARD | I30: 990 | J30: 668.28 | K30: 1260 | L30: 1219.05 | Q30: 301 | R30: 309.83 | S30: 301 | T30: 340.49 | AC30: 302 | AD30: 3.238774834 | AE30: 5.164039735 | AF30: 0 | AG30: 0 | AH30: 0 | AI30: 0 | AJ30: 8.40281457 | AK30: 0.675030303 | AL30: 0.9675 | AM30: - | AN30: - | AO30: 1.029335548 | AP30: 1.131196013 | AQ30: - | AR30: - | AS30: - | AT30: -
A31: =INDIRECT("D" & ROW())&INDIRECT("F" & ROW()) -> RX4E2EMBLETON | D31: =IFERROR(VLOOKUP($E$5&INDIRECT("E" & ROW()),Sites,4,FALSE),"") -> RX4E2 | E31: ST GEORGES HOSPITAL SITE (MORPETH) | F31: EMBLETON | G31: 710 - ADULT MENTAL ILLNESS - STANDARD | I31: 1200 | J31: 800.27 | K31: 630 | L31: 1432.95 | Q31: 301 | R31: 306.33 | S31: 602 | T31: 975.67 | AC31: 547 | AD31: 2.023034735 | AE31: 4.403327239 | AF31: 0 | AG31: 0 | AH31: 0 | AI31: 0 | AJ31: 6.426361974 | AK31: 0.6668916667 | AL31: 2.27452381 | AM31: - | AN31: - | AO31: 1.017707641 | AP31: 1.620714286 | AQ31: - | AR31: - | AS31: - | AT31: -
A32: =INDIRECT("D" & ROW())&INDIRECT("F" & ROW()) -> RX4FDFELLSIDE | D32: =IFERROR(VLOOKUP($E$5&INDIRECT("E" & ROW()),Sites,4,FALSE),"") -> RX4FD | E32: CAMPUS FOR AGEING & VITALITY | F32: FELLSIDE | G32: 710 - ADULT MENTAL ILLNESS - STANDARD | I32: 1200 | J32: 745.82 | K32: 630 | L32: 1826.57 | Q32: 301 | R32: 215.57 | S32: 602 | T32: 1069.08 | AC32: 344 | AD32: 2.794738372 | AE32: 8.417587209 | AF32: 0 | AG32: 0 | AH32: 0 | AI32: 0 | AJ32: 11.21232558 | AK32: 0.6215166667 | AL32: 2.89931746 | AM32: - | AN32: - | AO32: 0.716179402 | AP32: 1.775880399 | AQ32: - | AR32: - | AS32: - | AT32: -
A33: =INDIRECT("D" & ROW())&INDIRECT("F" & ROW()) -> RX4CAFRASER HOUSE | D33: =IFERROR(VLOOKUP($E$5&INDIRECT("E" & ROW()),Sites,4,FALSE),"") -> RX4CA | E33: FERNDENE | F33: FRASER HOUSE | G33: 711 - CHILD AND ADOLESCENT PSYCHIATRY - STANDARD | I33: 1200 | J33: 654.67 | K33: 1890 | L33: 3169.08 | Q33: 301 | R33: 301 | S33: 602 | T33: 1584 | AC33: 119 | AD33: 8.030840336 | AE33: 39.94184874 | AF33: 0 | AG33: 0 | AH33: 0 | AI33: 0 | AJ33: 47.97268908 | AK33: 0.5455583333 | AL33: 1.676761905 | AM33: - | AN33: - | AO33: 1 | AP33: 2.631229236 | AQ33: - | AR33: - | AS33: - | AT33: -
A34: =INDIRECT("D" & ROW())&INDIRECT("F" & ROW()) -> RX4E2HAUXLEY | D34: =IFERROR(VLOOKUP($E$5&INDIRECT("E" & ROW()),Sites,4,FALSE),"") -> RX4E2 | E34: ST GEORGES HOSPITAL SITE (MORPETH) | F34: HAUXLEY | G34: 715 - OLD AGE PSYCHIATRY - STANDARD | I34: 990 | J34: 629.2 | K34: 1260 | L34: 1653.92 | Q34: 301 | R34: 221.21 | S34: 602 | T34: 1372.92 | AC34: 219 | AD34: 3.883150685 | AE34: 13.82118721 | AF34: 0 | AG34: 0 | AH34: 0 | AI34: 0 | AJ34: 17.7043379 | AK34: 0.6355555556 | AL34: 1.312634921 | AM34: - | AN34: - | AO34: 0.7349169435 | AP34: 2.280598007 | AQ34: - | AR34: - | AS34: - | AT34: -
A35: =INDIRECT("D" & ROW())&INDIRECT("F" & ROW()) -> RX4E2KINNERSLEY | D35: =IFERROR(VLOOKUP($E$5&INDIRECT("E" & ROW()),Sites,4,FALSE),"") -> RX4E2 | E35: ST GEORGES HOSPITAL SITE (MORPETH) | F35: KINNERSLEY | G35: 710 - ADULT MENTAL ILLNESS - STANDARD | I35: 1200 | J35: 2025.49 | K35: 1050 | L35: 2990.52 | Q35: 301 | R35: 841.75 | S35: 602 | T35: 1459.97 | AC35: 527 | AD35: 5.440683112 | AE35: 8.444952562 | AF35: 0 | AG35: 0 | AH35: 0 | AI35: 0 | AJ35: 13.88563567 | AK35: 1.687908333 | AL35: 2.848114286 | AM35: - | AN35: - | AO35: 2.796511628 | AP35: 2.425199336 | AQ35: - | AR35: - | AS35: - | AT35: -
A36: =INDIRECT("D" & ROW())&INDIRECT("F" & ROW()) -> RX4FDLAMESLEY | D36: =IFERROR(VLOOKUP($E$5&INDIRECT("E" & ROW()),Sites,4,FALSE),"") -> RX4FD | E36: CAMPUS FOR AGEING & VITALITY | F36: LAMESLEY | G36: 710 - ADULT MENTAL ILLNESS - STANDARD | I36: 1200 | J36: 577.92 | K36: 630 | L36: 1641.92 | Q36: 301 | R36: 309.8 | S36: 602 | T36: 1081.4 | AC36: 415 | AD36: 2.139084337 | AE36: 6.562216867 | AF36: 0 | AG36: 0 | AH36: 0 | AI36: 0 | AJ36: 8.701301205 | AK36: 0.4816 | AL36: 2.606222222 | AM36: - | AN36: - | AO36: 1.02923588 | AP36: 1.796345515 | AQ36: - | AR36: - | AS36: - | AT36: -
A37: =INDIRECT("D" & ROW())&INDIRECT("F" & ROW()) -> RX4E4LENNOX | D37: =IFERROR(VLOOKUP($E$5&INDIRECT("E" & ROW()),Sites,4,FALSE),"") -> RX4E4 | E37: ST NICHOLAS HOSPITAL (NEWCASTLE UPON TYNE) | F37: LENNOX | G37: 711 - CHILD AND ADOLESCENT PSYCHIATRY - STANDARD | I37: 1116 | J37: 855.13 | K37: 1610 | L37: 3845.55 | Q37: 301 | R37: 379.53 | S37: 602 | T37: 2398.02 | AC37: 112 | AD37: 11.02375 | AE37: 55.74616071 | AF37: 0 | AG37: 0 | AH37: 0 | AI37: 0 | AJ37: 66.76991071 | AK37: 0.7662455197 | AL37: 2.388540373 | AM37: - | AN37: - | AO37: 1.26089701 | AP37: 3.983421927 | AQ37: - | AR37: - | AS37: - | AT37: -
A38: =INDIRECT("D" & ROW())&INDIRECT("F" & ROW()) -> RX4Z3LONGVIEW - EAST WILLOWS | D38: =IFERROR(VLOOKUP($E$5&INDIRECT("E" & ROW()),Sites,4,FALSE),"") -> RX4Z3 | E38: HOPEWOOD PARK | F38: LONGVIEW - EAST WILLOWS | G38: 710 - ADULT MENTAL ILLNESS - STANDARD | I38: 1350 | J38: 1312.25 | K38: 630 | L38: 1643 | Q38: 301 | R38: 306 | S38: 602 | T38: 1008.67 | AC38: 471 | AD38: 3.435774947 | AE38: 5.629872611 | AF38: 0 | AG38: 0 | AH38: 0 | AI38: 0 | AJ38: 9.065647558 | AK38: 0.972037037 | AL38: 2.607936508 | AM38: - | AN38: - | AO38: 1.016611296 | AP38: 1.675531561 | AQ38: - | AR38: - | AS38: - | AT38: -
A39: =INDIRECT("D" & ROW())&INDIRECT("F" & ROW()) -> RX4E6LOWRY | D39: =IFERROR(VLOOKUP($E$5&INDIRECT("E" & ROW()),Sites,4,FALSE),"") -> RX4E6 | E39: NEWCASTLE GENERAL HOSPITAL | F39: LOWRY | G39: 710 - ADULT MENTAL ILLNESS - STANDARD | I39: 1200 | J39: 1063.55 | K39: 630 | L39: 2066.98 | Q39: 301 | R39: 324.46 | S39: 602 | T39: 1613.75 | AC39: 390 | AD39: 3.559 | AE39: 9.437769231 | AF39: 0 | AG39: 0 | AH39: 0 | AI39: 0 | AJ39: 12.99676923 | AK39: 0.8862916667 | AL39: 3.280920635 | AM39: - | AN39: - | AO39: 1.077940199 | AP39: 2.680647841 | AQ39: - | AR39: - | AS39: - | AT39: -
A40: =INDIRECT("D" & ROW())&INDIRECT("F" & ROW()) -> RX4K2MOWBRAY | D40: =IFERROR(VLOOKUP($E$5&INDIRECT("E" & ROW()),Sites,4,FALSE),"") -> RX4K2 | E40: MONKWEARMOUTH HOSPITAL | F40: MOWBRAY | G40: 715 - OLD AGE PSYCHIATRY - STANDARD | I40: 1140 | J40: 859.78 | K40: 1260 | L40: 2168.15 | Q40: 301 | R40: 242.47 | S40: 602 | T40: 1549.35 | AC40: 317 | AD40: 3.477129338 | AE40: 11.72712934 | AF40: 0 | AG40: 0 | AH40: 0 | AI40: 0 | AJ40: 15.20425868 | AK40: 0.7541929825 | AL40: 1.720753968 | AM40: - | AN40: - | AO40: 0.8055481728 | AP40: 2.573671096 | AQ40: - | AR40: - | AS40: - | AT40: -
A41: =INDIRECT("D" & ROW())&INDIRECT("F" & ROW()) -> RX4E2NEWTON | D41: =IFERROR(VLOOKUP($E$5&INDIRECT("E" & ROW()),Sites,4,FALSE),"") -> RX4E2 | E41: ST GEORGES HOSPITAL SITE (MORPETH) | F41: NEWTON | G41: 710 - ADULT MENTAL ILLNESS - STANDARD | I41: 1200 | J41: 953.65 | K41: 945 | L41: 1808.72 | Q41: 301 | R41: 314.48 | S41: 602 | T41: 1254.91 | AC41: 405 | AD41: 3.131185185 | AE41: 7.564518519 | AF41: 0 | AG41: 0 | AH41: 0 | AI41: 0 | AJ41: 10.6957037 | AK41: 0.7947083333 | AL41: 1.913989418 | AM41: - | AN41: - | AO41: 1.044784053 | AP41: 2.084568106 | AQ41: - | AR41: - | AS41: - | AT41: -
A42: =INDIRECT("D" & ROW())&INDIRECT("F" & ROW()) -> RX4E4OSWIN | D42: =IFERROR(VLOOKUP($E$5&INDIRECT("E" & ROW()),Sites,4,FALSE),"") -> RX4E4 | E42: ST NICHOLAS HOSPITAL (NEWCASTLE UPON TYNE) | F42: OSWIN | G42: 712 - FORENSIC PSYCHIATRY - STANDARD | I42: 1305 | J42: 1116.37 | K42: 840 | L42: 1200.85 | Q42: 301 | R42: 344.34 | S42: 602 | T42: 443.37 | AC42: 245 | AD42: 5.962081633 | AE42: 6.711102041 | AF42: 0 | AG42: 0 | AH42: 0 | AI42: 0 | AJ42: 12.67318367 | AK42: 0.8554559387 | AL42: 1.429583333 | AM42: - | AN42: - | AO42: 1.143986711 | AP42: 0.7364950166 | AQ42: - | AR42: - | AS42: - | AT42: -
A43: =INDIRECT("D" & ROW())&INDIRECT("F" & ROW()) -> RX4E4RADS AT GIBSIDE | D43: =IFERROR(VLOOKUP($E$5&INDIRECT("E" & ROW()),Sites,4,FALSE),"") -> RX4E4 | E43: ST NICHOLAS HOSPITAL (NEWCASTLE UPON TYNE) | F43: RADS AT GIBSIDE | G43: 710 - ADULT MENTAL ILLNESS - STANDARD | I43: 1200 | J43: 907.25 | K43: 420 | L43: 1925.1 | Q43: 301 | R43: 295.63 | S43: 301 | T43: 1433.83 | AC43: 177 | AD43: 6.795932203 | AE43: 18.97700565 | AF43: 0 | AG43: 0 | AH43: 0 | AI43: 0 | AJ43: 25.77293785 | AK43: 0.7560416667 | AL43: 4.583571429 | AM43: - | AN43: - | AO43: 0.9821594684 | AP43: 4.763554817 | AQ43: - | AR43: - | AS43: - | AT43: -
A44: =INDIRECT("D" & ROW())&INDIRECT("F" & ROW()) -> RX4CAREDBURN YPU | D44: =IFERROR(VLOOKUP($E$5&INDIRECT("E" & ROW()),Sites,4,FALSE),"") -> RX4CA | E44: FERNDENE | F44: REDBURN YPU | G44: 711 - CHILD AND ADOLESCENT PSYCHIATRY - STANDARD | I44: 2220 | J44: 1952.18 | K44: 1890 | L44: 3750.78 | Q44: 602 | R44: 807.5 | S44: 1204 | T44: 2585.28 | AC44: 215 | AD44: 12.83572093 | AE44: 29.47004651 | AF44: 0 | AG44: 0 | AH44: 0 | AI44: 0 | AJ44: 42.30576744 | AK44: 0.8793603604 | AL44: 1.984539683 | AM44: - | AN44: - | AO44: 1.341362126 | AP44: 2.147242525 | AQ44: - | AR44: - | AS44: - | AT44: -
A45: =INDIRECT("D" & ROW())&INDIRECT("F" & ROW()) -> RX4K2ROKER | D45: =IFERROR(VLOOKUP($E$5&INDIRECT("E" & ROW()),Sites,4,FALSE),"") -> RX4K2 | E45: MONKWEARMOUTH HOSPITAL | F45: ROKER | G45: 715 - OLD AGE PSYCHIATRY - STANDARD | I45: 990 | J45: 1047.68 | K45: 1260 | L45: 1888.5 | Q45: 301 | R45: 266.94 | S45: 602 | T45: 1218.41 | AC45: 334 | AD45: 3.935988024 | AE45: 9.302125749 | AF45: 0 | AG45: 0 | AH45: 0 | AI45: 0 | AJ45: 13.23811377 | AK45: 1.058262626 | AL45: 1.498809524 | AM45: - | AN45: - | AO45: 0.8868438538 | AP45: 2.023936877 | AQ45: - | AR45: - | AS45: - | AT45: -
A46: =INDIRECT("D" & ROW())&INDIRECT("F" & ROW()) -> RX4Y0 ROSE LODGE | D46: =IFERROR(VLOOKUP($E$5&INDIRECT("E" & ROW()),Sites,4,FALSE),"") -> RX4Y0 | E46: ROSE LODGE | F46: ROSE LODGE | G46: 700 - LEARNING DISABILITY - STANDARD | I46: 1830 | J46: 1712.53 | K46: 1680 | L46: 4412.47 | Q46: 301 | R46: 653.25 | S46: 903 | T46: 3025.94 | AC46: 283 | AD46: 8.359646643 | AE46: 26.28413428 | AF46: 0 | AG46: 0 | AH46: 0 | AI46: 0 | AJ46: 34.64378092 | AK46: 0.9358087432 | AL46: 2.626470238 | AM46: - | AN46: - | AO46: 2.170265781 | AP46: 3.350985604 | AQ46: - | AR46: - | AS46: - | AT46: -
A47: =INDIRECT("D" & ROW())&INDIRECT("F" & ROW()) -> RX4Z3SHOREDRIFT - BEDE 1 | D47: =IFERROR(VLOOKUP($E$5&INDIRECT("E" & ROW()),Sites,4,FALSE),"") -> RX4Z3 | E47: HOPEWOOD PARK | F47: SHOREDRIFT - BEDE 1 | G47: 710 - ADULT MENTAL ILLNESS - STANDARD | I47: 1500 | J47: 1344.67 | K47: 630 | L47: 2921.07 | Q47: 301 | R47: 306.3 | S47: 602 | T47: 2096.67 | AC47: 462 | AD47: 3.573528139 | AE47: 10.86090909 | AF47: 0 | AG47: 0 | AH47: 0 | AI47: 0 | AJ47: 14.43443723 | AK47: 0.8964466667 | AL47: 4.636619048 | AM47: - | AN47: - | AO47: 1.017607973 | AP47: 3.482840532 | AQ47: - | AR47: - | AS47: - | AT47: -
A48: =INDIRECT("D" & ROW())&INDIRECT("F" & ROW()) -> RX4Z3SPRINGRISE - WEST WILLOWS | D48: =IFERROR(VLOOKUP($E$5&INDIRECT("E" & ROW()),Sites,4,FALSE),"") -> RX4Z3 | E48: HOPEWOOD PARK | F48: SPRINGRISE - WEST WILLOWS | G48: 710 - ADULT MENTAL ILLNESS - STANDARD | I48: 1350 | J48: 1085.6 | K48: 630 | L48: 2188.27 | Q48: 301 | R48: 309.48 | S48: 602 | T48: 1620.9 | AC48: 468 | AD48: 2.980940171 | AE48: 8.139252137 | AF48: 0 | AG48: 0 | AH48: 0 | AI48: 0 | AJ48: 11.12019231 | AK48: 0.8041481481 | AL48: 3.473444444 | AM48: - | AN48: - | AO48: 1.028172757 | AP48: 2.692524917 | AQ48: - | AR48: - | AS48: - | AT48: -
A49: =INDIRECT("D" & ROW())&INDIRECT("F" & ROW()) -> RX4CASTEPHENSON HOUSE | D49: =IFERROR(VLOOKUP($E$5&INDIRECT("E" & ROW()),Sites,4,FALSE),"") -> RX4CA | E49: FERNDENE | F49: STEPHENSON HOUSE | G49: 711 - CHILD AND ADOLESCENT PSYCHIATRY - STANDARD | I49: 990 | J49: 1072.7 | K49: 2100 | L49: 3537.68 | Q49: 301 | R49: 442.02 | S49: 903 | T49: 1486.62 | AC49: 116 | AD49: 13.05793103 | AE49: 43.31293103 | AF49: 0 | AG49: 0 | AH49: 0 | AI49: 0 | AJ49: 56.37086207 | AK49: 1.083535354 | AL49: 1.684609524 | AM49: - | AN49: - | AO49: 1.468504983 | AP49: 1.646312292 | AQ49: - | AR49: - | AS49: - | AT49: -
A50: =INDIRECT("D" & ROW())&INDIRECT("F" & ROW()) -> RX4W4WALKERGATE WARD 1 | D50: =IFERROR(VLOOKUP($E$5&INDIRECT("E" & ROW()),Sites,4,FALSE),"") -> RX4W4 | E50: WALKERGATE PARK HOSPITAL | F50: WALKERGATE WARD 1 | G50: 314 - REHABILITATION - STANDARD | I50: 1410 | J50: 1190.58 | K50: 2940 | L50: 2229.42 | Q50: 301 | R50: 312.55 | S50: 1806 | T50: 1588.02 | AC50: 269 | AD50: 5.587843866 | AE50: 14.19122677 | AF50: 0 | AG50: 0 | AH50: 0 | AI50: 0 | AJ50: 19.77907063 | AK50: 0.8443829787 | AL50: 0.7583061224 | AM50: - | AN50: - | AO50: 1.038372093 | AP50: 0.8793023256 | AQ50: - | AR50: - | AS50: - | AT50: -
A51: =INDIRECT("D" & ROW())&INDIRECT("F" & ROW()) -> RX4W4WALKERGATE WARD 2 | D51: =IFERROR(VLOOKUP($E$5&INDIRECT("E" & ROW()),Sites,4,FALSE),"") -> RX4W4 | E51: WALKERGATE PARK HOSPITAL | F51: WALKERGATE WARD 2 | G51: 710 - ADULT MENTAL ILLNESS - STANDARD | I51: 1410 | J51: 1140.98 | K51: 2100 | L51: 2003.55 | Q51: 301 | R51: 320.08 | S51: 903 | T51: 1287.47 | AC51: 362 | AD51: 4.036077348 | AE51: 9.09121547 | AF51: 0 | AG51: 0 | AH51: 0 | AI51: 0 | AJ51: 13.12729282 | AK51: 0.8092056738 | AL51: 0.9540714286 | AM51: - | AN51: - | AO51: 1.063388704 | AP51: 1.425769657 | AQ51: - | AR51: - | AS51: - | AT51: -
A52: =INDIRECT("D" & ROW())&INDIRECT("F" & ROW()) -> RX4W4WALKERGATE WARD 3 | D52: =IFERROR(VLOOKUP($E$5&INDIRECT("E" & ROW()),Sites,4,FALSE),"") -> RX4W4 | E52: WALKERGATE PARK HOSPITAL | F52: WALKERGATE WARD 3 | G52: 314 - REHABILITATION - STANDARD | I52: 1410 | J52: 1349.55 | K52: 2520 | L52: 1887.28 | Q52: 602 | R52: 642.68 | S52: 602 | T52: 892.43 | AC52: 392 | AD52: 5.082219388 | AE52: 7.091096939 | AF52: 0 | AG52: 0 | AH52: 0 | AI52: 0 | AJ52: 12.17331633 | AK52: 0.9571276596 | AL52: 0.7489206349 | AM52: - | AN52: - | AO52: 1.067574751 | AP52: 1.48244186 | AQ52: - | AR52: - | AS52: - | AT52: -
A53: =INDIRECT("D" & ROW())&INDIRECT("F" & ROW()) -> RX4W4WALKERGATE WARD 4 | D53: =IFERROR(VLOOKUP($E$5&INDIRECT("E" & ROW()),Sites,4,FALSE),"") -> RX4W4 | E53: WALKERGATE PARK HOSPITAL | F53: WALKERGATE WARD 4 | G53: 314 - REHABILITATION - STANDARD | I53: 1620 | J53: 1263.23 | K53: 2520 | L53: 2786.82 | Q53: 602 | R53: 553.42 | S53: 602 | T53: 1317.28 | AC53: 491 | AD53: 3.699898167 | AE53: 8.358655804 | AF53: 0 | AG53: 0 | AH53: 0 | AI53: 0 | AJ53: 12.05855397 | AK53: 0.7797716049 | AL53: 1.105880952 | AM53: - | AN53: - | AO53: 0.9193023256 | AP53: 2.188172757 | AQ53: - | AR53: - | AS53: - | AT53: -
A54: =INDIRECT("D" & ROW())&INDIRECT("F" & ROW()) -> RX41MWARD 31A | D54: =IFERROR(VLOOKUP($E$5&INDIRECT("E" & ROW()),Sites,4,FALSE),"") -> RX41M | E54: REGIONAL EATING DISORDERS | F54: WARD 31A | G54: 710 - ADULT MENTAL ILLNESS - STANDARD | I54: 990 | J54: 891.02 | K54: 1050 | L54: 906.02 | Q54: 301 | R54: 299.43 | S54: 301 | T54: 313.18 | AC54: 131 | AD54: 9.08740458 | AE54: 9.306870229 | AF54: 0 | AG54: 0 | AH54: 0 | AI54: 0 | AJ54: 18.39427481 | AK54: 0.900020202 | AL54: 0.8628761905 | AM54: - | AN54: - | AO54: 0.9947840532 | AP54: 1.040465116 | AQ54: - | AR54: - | AS54: - | AT54: -
A55: =INDIRECT("D" & ROW())&INDIRECT("F" & ROW()) -> RX4E2WARKWORTH | D55: =IFERROR(VLOOKUP($E$5&INDIRECT("E" & ROW()),Sites,4,FALSE),"") -> RX4E2 | E55: ST GEORGES HOSPITAL SITE (MORPETH) | F55: WARKWORTH | G55: 710 - ADULT MENTAL ILLNESS - STANDARD | I55: 1200 | J55: 890.58 | K55: 630 | L55: 1498.15 | Q55: 301 | R55: 317.95 | S55: 602 | T55: 1145.79 | AC55: 509 | AD55: 2.3743222 | AE55: 5.194381139 | AF55: 0 | AG55: 0 | AH55: 0 | AI55: 0 | AJ55: 7.56870334 | AK55: 0.74215 | AL55: 2.378015873 | AM55: - | AN55: - | AO55: 1.056312292 | AP55: 1.903305648 | AQ55: - | AR55: - | AS55: - | AT55: -
A56: =INDIRECT("D" & ROW())&INDIRECT("F" & ROW()) -> RX4E4WILLOW VIEW | D56: =IFERROR(VLOOKUP($E$5&INDIRECT("E" & ROW()),Sites,4,FALSE),"") -> RX4E4 | E56: ST NICHOLAS HOSPITAL (NEWCASTLE UPON TYNE) | F56: WILLOW VIEW | G56: 710 - ADULT MENTAL ILLNESS - STANDARD | I56: 990 | J56: 742.65 | K56: 840 | L56: 1493.12 | Q56: 301 | R56: 328.78 | S56: 602 | T56: 962.67 | AC56: 350 | AD56: 3.061228571 | AE56: 7.016542857 | AF56: 0 | AG56: 0 | AH56: 0 | AI56: 0 | AJ56: 10.07777143 | AK56: 0.7501515152 | AL56: 1.77752381 | AM56: - | AN56: - | AO56: 1.092292359 | AP56: 1.599119601 | AQ56: - | AR56: - | AS56: - | AT56: -
A57: =INDIRECT("D" & ROW())&INDIRECT("F" & ROW()) -> RX4E2WOODHORN | D57: =IFERROR(VLOOKUP($E$5&INDIRECT("E" & ROW()),Sites,4,FALSE),"") -> RX4E2 | E57: ST GEORGES HOSPITAL SITE (MORPETH) | F57: WOODHORN | G57: 715 - OLD AGE PSYCHIATRY - STANDARD | I57: 1200 | J57: 773.38 | K57: 1050 | L57: 2482.53 | Q57: 301 | R57: 195.67 | S57: 1204 | T57: 1904.7 | AC57: 266 | AD57: 3.643045113 | AE57: 16.49334586 | AF57: 0 | AG57: 0 | AH57: 0 | AI57: 0 | AJ57: 20.13639098 | AK57: 0.6444833333 | AL57: 2.364314286 | AM57: - | AN57: - | AO57: 0.6500664452 | AP57: 1.581976744 | AQ57: - | AR57: - | AS57: - | AT57: -
A58: =INDIRECT("D" & ROW())&INDIRECT("F" & ROW()) -> RX467KDU CHEVIOT | D58: =IFERROR(VLOOKUP($E$5&INDIRECT("E" & ROW()),Sites,4,FALSE),"") -> RX467 | E58: NORTHGATE HOSPITAL SITE | F58: KDU CHEVIOT | G58: 700 - LEARNING DISABILITY - STANDARD | I58: 1116 | J58: 841.1 | K58: 966 | L58: 1775.28 | Q58: 301 | R58: 322.92 | S58: 602 | T58: 1026.31 | AC58: 140 | AD58: 8.314428571 | AE58: 20.01135714 | AF58: 0 | AG58: 0 | AH58: 0 | AI58: 0 | AJ58: 28.32578571 | AK58: 0.7536738351 | AL58: 1.837763975 | AM58: - | AN58: - | AO58: 1.07282392 | AP58: 1.704833887 | AQ58: - | AR58: - | AS58: - | AT58: -
A59: =INDIRECT("D" & ROW())&INDIRECT("F" & ROW()) -> RX467KDU LINDISFARNE | D59: =IFERROR(VLOOKUP($E$5&INDIRECT("E" & ROW()),Sites,4,FALSE),"") -> RX467 | E59: NORTHGATE HOSPITAL SITE | F59: KDU LINDISFARNE | G59: 700 - LEARNING DISABILITY - STANDARD | I59: 1116 | J59: 836.37 | K59: 1288 | L59: 2684.43 | Q59: 301 | R59: 327.47 | S59: 602 | T59: 1314.73 | AC59: 196 | AD59: 5.937959184 | AE59: 20.40387755 | AF59: 0 | AG59: 0 | AH59: 0 | AI59: 0 | AJ59: 26.34183673 | AK59: 0.7494354839 | AL59: 2.084184783 | AM59: - | AN59: - | AO59: 1.087940199 | AP59: 2.183936877 | AQ59: - | AR59: - | AS59: - | AT59: -
A60: =INDIRECT("D" & ROW())&INDIRECT("F" & ROW()) -> RX467KDU WANSBECK | D60: =IFERROR(VLOOKUP($E$5&INDIRECT("E" & ROW()),Sites,4,FALSE),"") -> RX467 | E60: NORTHGATE HOSPITAL SITE | F60: KDU WANSBECK | G60: 700 - LEARNING DISABILITY - STANDARD | I60: 1116 | J60: 877.7 | K60: 644 | L60: 1158.48 | Q60: 301 | R60: 343.8 | S60: 602 | T60: 999.12 | AC60: 140 | AD60: 8.725 | AE60: 15.41142857 | AF60: 0 | AG60: 0 | AH60: 0 | AI60: 0 | AJ60: 24.13642857 | AK60: 0.7864695341 | AL60: 1.798881988 | AM60: - | AN60: - | AO60: 1.142192691 | AP60: 1.659667774 | AQ60: - | AR60: - | AS60: - | AT60: -
A61: =INDIRECT("D" & ROW())&INDIRECT("F" & ROW()) -> RX4DGMITFORD | D61: =IFERROR(VLOOKUP($E$5&INDIRECT("E" & ROW()),Sites,4,FALSE),"") -> RX4DG | E61: NORTHGATE HOSPITAL | F61: MITFORD | G61: 700 - LEARNING DISABILITY - STANDARD | I61: 1760 | J61: 1818.12 | K61: 9982 | L61: 17134.3 | Q61: 903 | R61: 957.62 | S61: 8428 | T61: 12553.33 | AC61: 503 | AD61: 5.518369781 | AE61: 59.0211332 | AF61: 0 | AG61: 0 | AH61: 0 | AI61: 0 | AJ61: 64.53950298 | AK61: 1.033022727 | AL61: 1.716519736 | AM61: - | AN61: - | AO61: 1.060487265 | AP61: 1.489479117 | AQ61: - | AR61: - | AS61: - | AT61: -
A62: =INDIRECT("D" & ROW())&INDIRECT("F" & ROW()) -> RX467TWEED UNIT | D62: =IFERROR(VLOOKUP($E$5&INDIRECT("E" & ROW()),Sites,4,FALSE),"") -> RX467 | E62: NORTHGATE HOSPITAL SITE | F62: TWEED UNIT | G62: 700 - LEARNING DISABILITY - STANDARD | I62: 1116 | J62: 1151.42 | K62: 1449 | L62: 3236.62 | Q62: 301 | R62: 326.75 | S62: 903 | T62: 2612.61 | AC62: 281 | AD62: 5.260391459 | AE62: 20.81576512 | AF62: 0 | AG62: 0 | AH62: 0 | AI62: 0 | AJ62: 26.07615658 | AK62: 1.031738351 | AL62: 2.233692202 | AM62: - | AN62: - | AO62: 1.085548173 | AP62: 2.893255814 | AQ62: - | AR62: - | AS62: - | AT62: -
A63: =INDIRECT("D" & ROW())&INDIRECT("F" & ROW()) -> RX467TYNE - LD HOSPITAL BASED REHAB | D63: =IFERROR(VLOOKUP($E$5&INDIRECT("E" & ROW()),Sites,4,FALSE),"") -> RX467 | E63: NORTHGATE HOSPITAL SITE | F63: TYNE - LD HOSPITAL BASED REHAB | G63: 700 - LEARNING DISABILITY - STANDARD | I63: 1760 | J63: 979.57 | K63: 644 | L63: 2146.07 | Q63: 301 | R63: 335.3 | S63: 301 | T63: 1330.53 | AC63: 280 | AD63: 4.695964286 | AE63: 12.41642857 | AF63: 0 | AG63: 0 | AH63: 0 | AI63: 0 | AJ63: 17.11239286 | AK63: 0.5565738636 | AL63: 3.332406832 | AM63: - | AN63: - | AO63: 1.113953488 | AP63: 4.420365449 | AQ63: - | AR63: - | AS63: - | AT63: -
A64: =INDIRECT("D" & ROW())&INDIRECT("F" & ROW()) -> RX467TYNE MH LOW SECURE | D64: =IFERROR(VLOOKUP($E$5&INDIRECT("E" & ROW()),Sites,4,FALSE),"") -> RX467 | E64: NORTHGATE HOSPITAL SITE | F64: TYNE MH LOW SECURE | G64: 712 - FORENSIC PSYCHIATRY - STANDARD | I64: 794 | J64: 586 | K64: 1610 | L64: 1084 | Q64: 301 | R64: 311.58 | S64: 1204 | T64: 479.33 | AC64: 314 | AD64: 2.858535032 | AE64: 4.978757962 | AF64: 0 | AG64: 0 | AH64: 0 | AI64: 0 | AJ64: 7.837292994 | AK64: 0.7380352645 | AL64: 0.6732919255 | AM64: - | AN64: - | AO64: 1.035149502 | AP64: 0.3981146179 | AQ64: - | AR64: - | AS64: - | AT64: -
A65: =INDIRECT("D" & ROW())&INDIRECT("F" & ROW()) -> RX40BEDENWOOD UNIT | D65: =IFERROR(VLOOKUP($E$5&INDIRECT("E" & ROW()),Sites,4,FALSE),"") -> RX40B | E65: CARLETON CLINIC | F65: EDENWOOD UNIT | G65: 700 - LEARNING DISABILITY - STANDARD | I65: 570 | J65: 637.5 | K65: 630 | L65: 1450 | Q65: 578.48 | R65: 575 | S65: 578.48 | T65: 1237.5 | AC65: 56 | AD65: 21.65178571 | AE65: 47.99107143 | AF65: 0 | AG65: 0 | AH65: 0 | AI65: 0 | AJ65: 69.64285714 | AK65: 1.118421053 | AL65: 2.301587302 | AM65: - | AN65: - | AO65: 0.9939842345 | AP65: 2.13922694 | AQ65: - | AR65: - | AS65: - | AT65: -
A66: =INDIRECT("D" & ROW())&INDIRECT("F" & ROW()) -> RX40BHADRIAN WARD | D66: =IFERROR(VLOOKUP($E$5&INDIRECT("E" & ROW()),Sites,4,FALSE),"") -> RX40B | E66: CARLETON CLINIC | F66: HADRIAN WARD | G66: 710 - ADULT MENTAL ILLNESS - STANDARD | I66: 1200 | J66: 1033.4 | K66: 1260 | L66: 2096.3 | Q66: 578.48 | R66: 693 | S66: 578.48 | T66: 1221 | AC66: 572 | AD66: 3.018181818 | AE66: 5.799475524 | AF66: 0 | AG66: 0 | AH66: 0 | AI66: 0 | AJ66: 8.817657343 | AK66: 0.8611666667 | AL66: 1.663730159 | AM66: - | AN66: - | AO66: 1.197967086 | AP66: 2.110703914 | AQ66: - | AR66: - | AS66: - | AT66: -
A67: =INDIRECT("D" & ROW())&INDIRECT("F" & ROW()) -> RX40BOAKWOOD WARD | D67: =IFERROR(VLOOKUP($E$5&INDIRECT("E" & ROW()),Sites,4,FALSE),"") -> RX40B | E67: CARLETON CLINIC | F67: OAKWOOD WARD | G67: 710 - ADULT MENTAL ILLNESS - STANDARD | I67: 1200 | J67: 952 | K67: 840 | L67: 1512 | Q67: 289.24 | R67: 396 | S67: 578.48 | T67: 946 | AC67: 206 | AD67: 6.54368932 | AE67: 11.93203883 | AF67: 0 | AG67: 0 | AH67: 0 | AI67: 0 | AJ67: 18.47572816 | AK67: 0.7933333333 | AL67: 1.8 | AM67: - | AN67: - | AO67: 1.369105241 | AP67: 1.635320149 | AQ67: - | AR67: - | AS67: - | AT67: -
A68: =INDIRECT("D" & ROW())&INDIRECT("F" & ROW()) -> RX40BROWANWOOD | D68: =IFERROR(VLOOKUP($E$5&INDIRECT("E" & ROW()),Sites,4,FALSE),"") -> RX40B | E68: CARLETON CLINIC | F68: ROWANWOOD | G68: 996 - PSYCHIATRIC INTENSIVE CARE UNIT - STANDARD | I68: 1200 | J68: 864 | K68: 1680 | L68: 2456 | Q68: 578.48 | R68: 602 | S68: 578.48 | T68: 1171.75 | AC68: 219 | AD68: 6.694063927 | AE68: 16.56506849 | AF68: 0 | AG68: 0 | AH68: 0 | AI68: 0 | AJ68: 23.25913242 | AK68: 0.72 | AL68: 1.461904762 | AM68: - | AN68: - | AO68: 1.040658277 | AP68: 2.025567003 | AQ68: - | AR68: - | AS68: - | AT68: -
A69: =INDIRECT("D" & ROW())&INDIRECT("F" & ROW()) -> RX40BRUSKIN UNIT | D69: =IFERROR(VLOOKUP($E$5&INDIRECT("E" & ROW()),Sites,4,FALSE),"") -> RX40B | E69: CARLETON CLINIC | F69: RUSKIN UNIT | G69: 715 - OLD AGE PSYCHIATRY - STANDARD | I69: 1200 | J69: 952 | K69: 1680 | L69: 2304 | Q69: 289.24 | R69: 550 | S69: 867.72 | T69: 1050 | AC69: 417 | AD69: 3.601918465 | AE69: 8.043165468 | AF69: 0 | AG69: 0 | AH69: 0 | AI69: 0 | AJ69: 11.64508393 | AK69: 0.7933333333 | AL69: 1.371428571 | AM69: - | AN69: - | AO69: 1.901535057 | AP69: 1.210067764 | AQ69: - | AR69: - | AS69: - | AT69: -
A70: =INDIRECT("D" & ROW())&INDIRECT("F" & ROW()) -> RX40BYEWDALE WARD | D70: =IFERROR(VLOOKUP($E$5&INDIRECT("E" & ROW()),Sites,4,FALSE),"") -> RX40B | E70: YEWDALE WARD | F70: YEWDALE WARD | G70: 710 - ADULT MENTAL ILLNESS - STANDARD | I70: 1200 | J70: 936 | K70: 1050 | L70: 1264 | Q70: 578.48 | R70: 546 | S70: 301 | T70: 703.5 | AC70: 419 | AD70: 3.53699284 | AE70: 4.695704057 | AF70: 0 | AG70: 0 | AH70: 0 | AI70: 0 | AJ70: 8.232696897 | AK70: 0.78 | AL70: 1.203809524 | AM70: - | AN70: - | AO70: 0.9438528558 | AP70: 2.337209302 | AQ70: - | AR70: - | AS70: - | AT70: -
A71: =INDIRECT("D" & ROW())&INDIRECT("F" & ROW()) ->  | D71: =IFERROR(VLOOKUP($E$5&INDIRECT("E" & ROW()),Sites,4,FALSE),"") -> 
A72: =INDIRECT("D" & ROW())&INDIRECT("F" & ROW()) ->  | D72: =IFERROR(VLOOKUP($E$5&INDIRECT("E" & ROW()),Sites,4,FALSE),"") -> 
A73: =INDIRECT("D" & ROW())&INDIRECT("F" & ROW()) ->  | D73: =IFERROR(VLOOKUP($E$5&INDIRECT("E" & ROW()),Sites,4,FALSE),"") -> 
A74: =INDIRECT("D" & ROW())&INDIRECT("F" & ROW()) ->  | D74: =IFERROR(VLOOKUP($E$5&INDIRECT("E" & ROW()),Sites,4,FALSE),"") -> 
A75: =INDIRECT("D" & ROW())&INDIRECT("F" & ROW()) ->  | D75: =IFERROR(VLOOKUP($E$5&INDIRECT("E" & ROW()),Sites,4,FALSE),"") -> 
A76: =INDIRECT("D" & ROW())&INDIRECT("F" & ROW()) ->  | D76: =IFERROR(VLOOKUP($E$5&INDIRECT("E" & ROW()),Sites,4,FALSE),"") -> 
A77: =INDIRECT("D" & ROW())&INDIRECT("F" & ROW()) ->  | D77: =IFERROR(VLOOKUP($E$5&INDIRECT("E" & ROW()),Sites,4,FALSE),"") -> 
A78: =INDIRECT("D" & ROW())&INDIRECT("F" & ROW()) ->  | D78: =IFERROR(VLOOKUP($E$5&INDIRECT("E" & ROW()),Sites,4,FALSE),"") -> 
A79: =INDIRECT("D" & ROW())&INDIRECT("F" & ROW()) ->  | D79: =IFERROR(VLOOKUP($E$5&INDIRECT("E" & ROW()),Sites,4,FALSE),"") -> 
A80: =INDIRECT("D" & ROW())&INDIRECT("F" & ROW()) ->  | D80: =IFERROR(VLOOKUP($E$5&INDIRECT("E" & ROW()),Sites,4,FALSE),"") -> 
A81: =INDIRECT("D" & ROW())&INDIRECT("F" & ROW()) ->  | D81: =IFERROR(VLOOKUP($E$5&INDIRECT("E" & ROW()),Sites,4,FALSE),"") ->  | AD81: =IF(A81="","",IFERROR((VLOOKUP(A81,A81:AC281,10,0)+VLOOKUP(A81,A81:AC281,18,0))/VLOOKUP(A81,A81:AC281,29,0),"-")) ->  | AE81: =IF(A81="","",IFERROR((VLOOKUP(A81,A81:AC281,12,0)+VLOOKUP(A81,A81:AC281,20,0))/VLOOKUP(A81,A81:AC281,29,0),"-")) ->  | AF81: =IF(A81="","",IFERROR((VLOOKUP(A81,A81:AC281,14,0)+VLOOKUP(A81,A81:AC281,22,0))/VLOOKUP(A81,A81:AC281,29,0),"-")) ->  | AG81: =IF(A81="","",IFERROR((VLOOKUP(A81,A81:AC281,16,0)+VLOOKUP(A81,A81:AC281,24,0))/VLOOKUP(A81,A81:AC281,29,0),"-")) ->  | AH81: =IF(A81="","",IFERROR(VLOOKUP(A81,A81:AC281,26,0)/VLOOKUP(A81,A81:AC281,29,0),"-")) ->  | AI81: =IF(A81="","",IFERROR(VLOOKUP(A81,A81:AC281,28,0)/VLOOKUP(A81,A81:AC281,29,0),"-")) ->  | AJ81: =IF(A81="","",IFERROR((VLOOKUP(A81,A81:AC281,10,0)+VLOOKUP(A81,A81:AC281,12,0)+VLOOKUP(A81,A81:AC281,14,0)+VLOOKUP(A81,A81:AC281,16,0)+VLOOKUP(A81,A81:AC281,18,0)+VLOOKUP(A81,A81:AC281,20,0)+VLOOKUP(A81,A81:AC281,22,0)+VLOOKUP(A81,A81:AC281,24,0)+VLOOKUP(A81,A81:AC281,26,0)+VLOOKUP(A81,A81:AC281,28,0))/VLOOKUP(A81,A81:AC281,29,0),"-")) ->  | AK81: =IF(A81="","",IFERROR(VLOOKUP(A81,A81:AC281,10,0)/VLOOKUP(A81,A81:AC281,9,0),"-")) ->  | AL81: =IF(A81="","",IFERROR(VLOOKUP(A81,A81:AC281,12,0)/VLOOKUP(A81,A81:AC281,11,0),"-")) ->  | AM81: =IF(A81="","",IFERROR(VLOOKUP(A81,A81:AC281,14,0)/VLOOKUP(A81,A81:AC281,13,0),"-")) ->  | AN81: =IF(A81="","",IFERROR(VLOOKUP(A81,A81:AC281,16,0)/VLOOKUP(A81,A81:AC281,15,0),"-")) ->  | AO81: =IF(A81="","",IFERROR(VLOOKUP(A81,A81:AC281,18,0)/VLOOKUP(A81,A81:AC281,17,0),"-")) ->  | AP81: =IF(A81="","",IFERROR(VLOOKUP(A81,A81:AC281,20,0)/VLOOKUP(A81,A81:AC281,19,0),"-")) ->  | AQ81: =IF(A81="","",IFERROR(VLOOKUP(A81,A81:AC281,22,0)/VLOOKUP(A81,A81:AC281,21,0),"-")) ->  | AR81: =IF(A81="","",IFERROR(VLOOKUP(A81,A81:AC281,24,0)/VLOOKUP(A81,A81:AC281,23,0),"-")) ->  | AS81: =IF(A81="","",IFERROR(VLOOKUP(A81,A81:AC281,26,0)/VLOOKUP(A81,A81:AC281,25,0),"-")) ->  | AT81: =IF(A81="","",IFERROR(VLOOKUP(A81,A81:AC281,28,0)/VLOOKUP(A81,A81:AC281,27,0),"-")) -> 
A82: =INDIRECT("D" & ROW())&INDIRECT("F" & ROW()) ->  | D82: =IFERROR(VLOOKUP($E$5&INDIRECT("E" & ROW()),Sites,4,FALSE),"") -> 
A83: =INDIRECT("D" & ROW())&INDIRECT("F" & ROW()) ->  | D83: =IFERROR(VLOOKUP($E$5&INDIRECT("E" & ROW()),Sites,4,FALSE),"") -> 
A84: =INDIRECT("D" & ROW())&INDIRECT("F" & ROW()) ->  | D84: =IFERROR(VLOOKUP($E$5&INDIRECT("E" & ROW()),Sites,4,FALSE),"") -> 
A85: =INDIRECT("D" & ROW())&INDIRECT("F" & ROW()) ->  | D85: =IFERROR(VLOOKUP($E$5&INDIRECT("E" & ROW()),Sites,4,FALSE),"") -> 
A86: =INDIRECT("D" & ROW())&INDIRECT("F" & ROW()) ->  | D86: =IFERROR(VLOOKUP($E$5&INDIRECT("E" & ROW()),Sites,4,FALSE),"") -> 
A87: =INDIRECT("D" & ROW())&INDIRECT("F" & ROW()) ->  | D87: =IFERROR(VLOOKUP($E$5&INDIRECT("E" & ROW()),Sites,4,FALSE),"") -> 
A88: =INDIRECT("D" & ROW())&INDIRECT("F" & ROW()) ->  | D88: =IFERROR(VLOOKUP($E$5&INDIRECT("E" & ROW()),Sites,4,FALSE),"") -> 
A89: =INDIRECT("D" & ROW())&INDIRECT("F" & ROW()) ->  | D89: =IFERROR(VLOOKUP($E$5&INDIRECT("E" & ROW()),Sites,4,FALSE),"") -> 
A90: =INDIRECT("D" & ROW())&INDIRECT("F" & ROW()) ->  | D90: =IFERROR(VLOOKUP($E$5&INDIRECT("E" & ROW()),Sites,4,FALSE),"") -> 
A91: =INDIRECT("D" & ROW())&INDIRECT("F" & ROW()) ->  | D91: =IFERROR(VLOOKUP($E$5&INDIRECT("E" & ROW()),Sites,4,FALSE),"") -> 
A92: =INDIRECT("D" & ROW())&INDIRECT("F" & ROW()) ->  | D92: =IFERROR(VLOOKUP($E$5&INDIRECT("E" & ROW()),Sites,4,FALSE),"") -> 
A93: =INDIRECT("D" & ROW())&INDIRECT("F" & ROW()) ->  | D93: =IFERROR(VLOOKUP($E$5&INDIRECT("E" & ROW()),Sites,4,FALSE),"") -> 
A94: =INDIRECT("D" & ROW())&INDIRECT("F" & ROW()) ->  | D94: =IFERROR(VLOOKUP($E$5&INDIRECT("E" & ROW()),Sites,4,FALSE),"") -> 
A95: =INDIRECT("D" & ROW())&INDIRECT("F" & ROW()) ->  | D95: =IFERROR(VLOOKUP($E$5&INDIRECT("E" & ROW()),Sites,4,FALSE),"") -> 
A96: =INDIRECT("D" & ROW())&INDIRECT("F" & ROW()) ->  | D96: =IFERROR(VLOOKUP($E$5&INDIRECT("E" & ROW()),Sites,4,FALSE),"") -> 
A97: =INDIRECT("D" & ROW())&INDIRECT("F" & ROW()) ->  | D97: =IFERROR(VLOOKUP($E$5&INDIRECT("E" & ROW()),Sites,4,FALSE),"") -> 
A98: =INDIRECT("D" & ROW())&INDIRECT("F" & ROW()) ->  | D98: =IFERROR(VLOOKUP($E$5&INDIRECT("E" & ROW()),Sites,4,FALSE),"") -> 
A99: =INDIRECT("D" & ROW())&INDIRECT("F" & ROW()) ->  | D99: =IFERROR(VLOOKUP($E$5&INDIRECT("E" & ROW()),Sites,4,FALSE),"") -> 
A100: =INDIRECT("D" & ROW())&INDIRECT("F" & ROW()) ->  | D100: =IFERROR(VLOOKUP($E$5&INDIRECT("E" & ROW()),Sites,4,FALSE),"") -> 
A101: =INDIRECT("D" & ROW())&INDIRECT("F" & ROW()) ->  | D101: =IFERROR(VLOOKUP($E$5&INDIRECT("E" & ROW()),Sites,4,FALSE),"") -> 
A102: =INDIRECT("D" & ROW())&INDIRECT("F" & ROW()) ->  | D102: =IFERROR(VLOOKUP($E$5&INDIRECT("E" & ROW()),Sites,4,FALSE),"") -> 
A103: =INDIRECT("D" & ROW())&INDIRECT("F" & ROW()) ->  | D103: =IFERROR(VLOOKUP($E$5&INDIRECT("E" & ROW()),Sites,4,FALSE),"") -> 
A104: =INDIRECT("D" & ROW())&INDIRECT("F" & ROW()) ->  | D104: =IFERROR(VLOOKUP($E$5&INDIRECT("E" & ROW()),Sites,4,FALSE),"") -> 
A105: =INDIRECT("D" & ROW())&INDIRECT("F" & ROW()) ->  | D105: =IFERROR(VLOOKUP($E$5&INDIRECT("E" & ROW()),Sites,4,FALSE),"") -> 
A106: =INDIRECT("D" & ROW())&INDIRECT("F" & ROW()) ->  | D106: =IFERROR(VLOOKUP($E$5&INDIRECT("E" & ROW()),Sites,4,FALSE),"") -> 
A107: =INDIRECT("D" & ROW())&INDIRECT("F" & ROW()) ->  | D107: =IFERROR(VLOOKUP($E$5&INDIRECT("E" & ROW()),Sites,4,FALSE),"") -> 
A108: =INDIRECT("D" & ROW())&INDIRECT("F" & ROW()) ->  | D108: =IFERROR(VLOOKUP($E$5&INDIRECT("E" & ROW()),Sites,4,FALSE),"") -> 
A109: =INDIRECT("D" & ROW())&INDIRECT("F" & ROW()) ->  | D109: =IFERROR(VLOOKUP($E$5&INDIRECT("E" & ROW()),Sites,4,FALSE),"") -> 
A110: =INDIRECT("D" & ROW())&INDIRECT("F" & ROW()) ->  | D110: =IFERROR(VLOOKUP($E$5&INDIRECT("E" & ROW()),Sites,4,FALSE),"") -> 
A111: =INDIRECT("D" & ROW())&INDIRECT("F" & ROW()) ->  | D111: =IFERROR(VLOOKUP($E$5&INDIRECT("E" & ROW()),Sites,4,FALSE),"") -> 
A112: =INDIRECT("D" & ROW())&INDIRECT("F" & ROW()) ->  | D112: =IFERROR(VLOOKUP($E$5&INDIRECT("E" & ROW()),Sites,4,FALSE),"") -> 
A113: =INDIRECT("D" & ROW())&INDIRECT("F" & ROW()) ->  | D113: =IFERROR(VLOOKUP($E$5&INDIRECT("E" & ROW()),Sites,4,FALSE),"") -> 
A114: =INDIRECT("D" & ROW())&INDIRECT("F" & ROW()) ->  | D114: =IFERROR(VLOOKUP($E$5&INDIRECT("E" & ROW()),Sites,4,FALSE),"") -> 
A115: =INDIRECT("D" & ROW())&INDIRECT("F" & ROW()) ->  | D115: =IFERROR(VLOOKUP($E$5&INDIRECT("E" & ROW()),Sites,4,FALSE),"") -> 
A116: =INDIRECT("D" & ROW())&INDIRECT("F" & ROW()) ->  | D116: =IFERROR(VLOOKUP($E$5&INDIRECT("E" & ROW()),Sites,4,FALSE),"") -> 
A117: =INDIRECT("D" & ROW())&INDIRECT("F" & ROW()) ->  | D117: =IFERROR(VLOOKUP($E$5&INDIRECT("E" & ROW()),Sites,4,FALSE),"") -> 
A118: =INDIRECT("D" & ROW())&INDIRECT("F" & ROW()) ->  | D118: =IFERROR(VLOOKUP($E$5&INDIRECT("E" & ROW()),Sites,4,FALSE),"") -> 
A119: =INDIRECT("D" & ROW())&INDIRECT("F" & ROW()) ->  | D119: =IFERROR(VLOOKUP($E$5&INDIRECT("E" & ROW()),Sites,4,FALSE),"") -> 
A120: =INDIRECT("D" & ROW())&INDIRECT("F" & ROW()) ->  | D120: =IFERROR(VLOOKUP($E$5&INDIRECT("E" & ROW()),Sites,4,FALSE),"") -> 
A121: =INDIRECT("D" & ROW())&INDIRECT("F" & ROW()) ->  | D121: =IFERROR(VLOOKUP($E$5&INDIRECT("E" & ROW()),Sites,4,FALSE),"") -> 
A122: =INDIRECT("D" & ROW())&INDIRECT("F" & ROW()) ->  | D122: =IFERROR(VLOOKUP($E$5&INDIRECT("E" & ROW()),Sites,4,FALSE),"") -> 
A123: =INDIRECT("D" & ROW())&INDIRECT("F" & ROW()) ->  | D123: =IFERROR(VLOOKUP($E$5&INDIRECT("E" & ROW()),Sites,4,FALSE),"") -> 
A124: =INDIRECT("D" & ROW())&INDIRECT("F" & ROW()) ->  | D124: =IFERROR(VLOOKUP($E$5&INDIRECT("E" & ROW()),Sites,4,FALSE),"") -> 
A125: =INDIRECT("D" & ROW())&INDIRECT("F" & ROW()) ->  | D125: =IFERROR(VLOOKUP($E$5&INDIRECT("E" & ROW()),Sites,4,FALSE),"") -> 
A126: =INDIRECT("D" & ROW())&INDIRECT("F" & ROW()) ->  | D126: =IFERROR(VLOOKUP($E$5&INDIRECT("E" & ROW()),Sites,4,FALSE),"") -> 
A127: =INDIRECT("D" & ROW())&INDIRECT("F" & ROW()) ->  | D127: =IFERROR(VLOOKUP($E$5&INDIRECT("E" & ROW()),Sites,4,FALSE),"") -> 
A128: =INDIRECT("D" & ROW())&INDIRECT("F" & ROW()) ->  | D128: =IFERROR(VLOOKUP($E$5&INDIRECT("E" & ROW()),Sites,4,FALSE),"") -> 
A129: =INDIRECT("D" & ROW())&INDIRECT("F" & ROW()) ->  | D129: =IFERROR(VLOOKUP($E$5&INDIRECT("E" & ROW()),Sites,4,FALSE),"") -> 
A130: =INDIRECT("D" & ROW())&INDIRECT("F" & ROW()) ->  | D130: =IFERROR(VLOOKUP($E$5&INDIRECT("E" & ROW()),Sites,4,FALSE),"") -> 
A131: =INDIRECT("D" & ROW())&INDIRECT("F" & ROW()) ->  | D131: =IFERROR(VLOOKUP($E$5&INDIRECT("E" & ROW()),Sites,4,FALSE),"") -> 
A132: =INDIRECT("D" & ROW())&INDIRECT("F" & ROW()) ->  | D132: =IFERROR(VLOOKUP($E$5&INDIRECT("E" & ROW()),Sites,4,FALSE),"") -> 
A133: =INDIRECT("D" & ROW())&INDIRECT("F" & ROW()) ->  | D133: =IFERROR(VLOOKUP($E$5&INDIRECT("E" & ROW()),Sites,4,FALSE),"") -> 
A134: =INDIRECT("D" & ROW())&INDIRECT("F" & ROW()) ->  | D134: =IFERROR(VLOOKUP($E$5&INDIRECT("E" & ROW()),Sites,4,FALSE),"") -> 
A135: =INDIRECT("D" & ROW())&INDIRECT("F" & ROW()) ->  | D135: =IFERROR(VLOOKUP($E$5&INDIRECT("E" & ROW()),Sites,4,FALSE),"") -> 
A136: =INDIRECT("D" & ROW())&INDIRECT("F" & ROW()) ->  | D136: =IFERROR(VLOOKUP($E$5&INDIRECT("E" & ROW()),Sites,4,FALSE),"") -> 
A137: =INDIRECT("D" & ROW())&INDIRECT("F" & ROW()) ->  | D137: =IFERROR(VLOOKUP($E$5&INDIRECT("E" & ROW()),Sites,4,FALSE),"") -> 
A138: =INDIRECT("D" & ROW())&INDIRECT("F" & ROW()) ->  | D138: =IFERROR(VLOOKUP($E$5&INDIRECT("E" & ROW()),Sites,4,FALSE),"") -> 
A139: =INDIRECT("D" & ROW())&INDIRECT("F" & ROW()) ->  | D139: =IFERROR(VLOOKUP($E$5&INDIRECT("E" & ROW()),Sites,4,FALSE),"") -> 
A140: =INDIRECT("D" & ROW())&INDIRECT("F" & ROW()) ->  | D140: =IFERROR(VLOOKUP($E$5&INDIRECT("E" & ROW()),Sites,4,FALSE),"") -> 
A141: =INDIRECT("D" & ROW())&INDIRECT("F" & ROW()) ->  | D141: =IFERROR(VLOOKUP($E$5&INDIRECT("E" & ROW()),Sites,4,FALSE),"") -> 
A142: =INDIRECT("D" & ROW())&INDIRECT("F" & ROW()) ->  | D142: =IFERROR(VLOOKUP($E$5&INDIRECT("E" & ROW()),Sites,4,FALSE),"") -> 
A143: =INDIRECT("D" & ROW())&INDIRECT("F" & ROW()) ->  | D143: =IFERROR(VLOOKUP($E$5&INDIRECT("E" & ROW()),Sites,4,FALSE),"") -> 
A144: =INDIRECT("D" & ROW())&INDIRECT("F" & ROW()) ->  | D144: =IFERROR(VLOOKUP($E$5&INDIRECT("E" & ROW()),Sites,4,FALSE),"") -> 
A145: =INDIRECT("D" & ROW())&INDIRECT("F" & ROW()) ->  | D145: =IFERROR(VLOOKUP($E$5&INDIRECT("E" & ROW()),Sites,4,FALSE),"") ->  | AD145: =IF(A145="","",IFERROR((VLOOKUP(A145,A145:AC345,10,0)+VLOOKUP(A145,A145:AC345,18,0))/VLOOKUP(A145,A145:AC345,29,0),"-")) ->  | AE145: =IF(A145="","",IFERROR((VLOOKUP(A145,A145:AC345,12,0)+VLOOKUP(A145,A145:AC345,20,0))/VLOOKUP(A145,A145:AC345,29,0),"-")) ->  | AF145: =IF(A145="","",IFERROR((VLOOKUP(A145,A145:AC345,14,0)+VLOOKUP(A145,A145:AC345,22,0))/VLOOKUP(A145,A145:AC345,29,0),"-")) ->  | AG145: =IF(A145="","",IFERROR((VLOOKUP(A145,A145:AC345,16,0)+VLOOKUP(A145,A145:AC345,24,0))/VLOOKUP(A145,A145:AC345,29,0),"-")) ->  | AH145: =IF(A145="","",IFERROR(VLOOKUP(A145,A145:AC345,26,0)/VLOOKUP(A145,A145:AC345,29,0),"-")) ->  | AI145: =IF(A145="","",IFERROR(VLOOKUP(A145,A145:AC345,28,0)/VLOOKUP(A145,A145:AC345,29,0),"-")) ->  | AJ145: =IF(A145="","",IFERROR((VLOOKUP(A145,A145:AC345,10,0)+VLOOKUP(A145,A145:AC345,12,0)+VLOOKUP(A145,A145:AC345,14,0)+VLOOKUP(A145,A145:AC345,16,0)+VLOOKUP(A145,A145:AC345,18,0)+VLOOKUP(A145,A145:AC345,20,0)+VLOOKUP(A145,A145:AC345,22,0)+VLOOKUP(A145,A145:AC345,24,0)+VLOOKUP(A145,A145:AC345,26,0)+VLOOKUP(A145,A145:AC345,28,0))/VLOOKUP(A145,A145:AC345,29,0),"-")) ->  | AK145: =IF(A145="","",IFERROR(VLOOKUP(A145,A145:AC345,10,0)/VLOOKUP(A145,A145:AC345,9,0),"-")) ->  | AL145: =IF(A145="","",IFERROR(VLOOKUP(A145,A145:AC345,12,0)/VLOOKUP(A145,A145:AC345,11,0),"-")) ->  | AM145: =IF(A145="","",IFERROR(VLOOKUP(A145,A145:AC345,14,0)/VLOOKUP(A145,A145:AC345,13,0),"-")) ->  | AN145: =IF(A145="","",IFERROR(VLOOKUP(A145,A145:AC345,16,0)/VLOOKUP(A145,A145:AC345,15,0),"-")) ->  | AO145: =IF(A145="","",IFERROR(VLOOKUP(A145,A145:AC345,18,0)/VLOOKUP(A145,A145:AC345,17,0),"-")) ->  | AP145: =IF(A145="","",IFERROR(VLOOKUP(A145,A145:AC345,20,0)/VLOOKUP(A145,A145:AC345,19,0),"-")) ->  | AQ145: =IF(A145="","",IFERROR(VLOOKUP(A145,A145:AC345,22,0)/VLOOKUP(A145,A145:AC345,21,0),"-")) ->  | AR145: =IF(A145="","",IFERROR(VLOOKUP(A145,A145:AC345,24,0)/VLOOKUP(A145,A145:AC345,23,0),"-")) ->  | AS145: =IF(A145="","",IFERROR(VLOOKUP(A145,A145:AC345,26,0)/VLOOKUP(A145,A145:AC345,25,0),"-")) ->  | AT145: =IF(A145="","",IFERROR(VLOOKUP(A145,A145:AC345,28,0)/VLOOKUP(A145,A145:AC345,27,0),"-")) -> 
A146: =INDIRECT("D" & ROW())&INDIRECT("F" & ROW()) ->  | D146: =IFERROR(VLOOKUP($E$5&INDIRECT("E" & ROW()),Sites,4,FALSE),"") -> 
A147: =INDIRECT("D" & ROW())&INDIRECT("F" & ROW()) ->  | D147: =IFERROR(VLOOKUP($E$5&INDIRECT("E" & ROW()),Sites,4,FALSE),"") -> 
A148: =INDIRECT("D" & ROW())&INDIRECT("F" & ROW()) ->  | D148: =IFERROR(VLOOKUP($E$5&INDIRECT("E" & ROW()),Sites,4,FALSE),"") -> 
A149: =INDIRECT("D" & ROW())&INDIRECT("F" & ROW()) ->  | D149: =IFERROR(VLOOKUP($E$5&INDIRECT("E" & ROW()),Sites,4,FALSE),"") -> 
A150: =INDIRECT("D" & ROW())&INDIRECT("F" & ROW()) ->  | D150: =IFERROR(VLOOKUP($E$5&INDIRECT("E" & ROW()),Sites,4,FALSE),"") -> 
A151: =INDIRECT("D" & ROW())&INDIRECT("F" & ROW()) ->  | D151: =IFERROR(VLOOKUP($E$5&INDIRECT("E" & ROW()),Sites,4,FALSE),"") -> 
A152: =INDIRECT("D" & ROW())&INDIRECT("F" & ROW()) ->  | D152: =IFERROR(VLOOKUP($E$5&INDIRECT("E" & ROW()),Sites,4,FALSE),"") -> 
A153: =INDIRECT("D" & ROW())&INDIRECT("F" & ROW()) ->  | D153: =IFERROR(VLOOKUP($E$5&INDIRECT("E" & ROW()),Sites,4,FALSE),"") -> 
A154: =INDIRECT("D" & ROW())&INDIRECT("F" & ROW()) ->  | D154: =IFERROR(VLOOKUP($E$5&INDIRECT("E" & ROW()),Sites,4,FALSE),"") -> 
A155: =INDIRECT("D" & ROW())&INDIRECT("F" & ROW()) ->  | D155: =IFERROR(VLOOKUP($E$5&INDIRECT("E" & ROW()),Sites,4,FALSE),"") -> 
A156: =INDIRECT("D" & ROW())&INDIRECT("F" & ROW()) ->  | D156: =IFERROR(VLOOKUP($E$5&INDIRECT("E" & ROW()),Sites,4,FALSE),"") -> 
A157: =INDIRECT("D" & ROW())&INDIRECT("F" & ROW()) ->  | D157: =IFERROR(VLOOKUP($E$5&INDIRECT("E" & ROW()),Sites,4,FALSE),"") -> 
A158: =INDIRECT("D" & ROW())&INDIRECT("F" & ROW()) ->  | D158: =IFERROR(VLOOKUP($E$5&INDIRECT("E" & ROW()),Sites,4,FALSE),"") -> 
A159: =INDIRECT("D" & ROW())&INDIRECT("F" & ROW()) ->  | D159: =IFERROR(VLOOKUP($E$5&INDIRECT("E" & ROW()),Sites,4,FALSE),"") -> 
A160: =INDIRECT("D" & ROW())&INDIRECT("F" & ROW()) ->  | D160: =IFERROR(VLOOKUP($E$5&INDIRECT("E" & ROW()),Sites,4,FALSE),"") -> 
A161: =INDIRECT("D" & ROW())&INDIRECT("F" & ROW()) ->  | D161: =IFERROR(VLOOKUP($E$5&INDIRECT("E" & ROW()),Sites,4,FALSE),"") -> 
A162: =INDIRECT("D" & ROW())&INDIRECT("F" & ROW()) ->  | D162: =IFERROR(VLOOKUP($E$5&INDIRECT("E" & ROW()),Sites,4,FALSE),"") -> 
A163: =INDIRECT("D" & ROW())&INDIRECT("F" & ROW()) ->  | D163: =IFERROR(VLOOKUP($E$5&INDIRECT("E" & ROW()),Sites,4,FALSE),"") -> 
A164: =INDIRECT("D" & ROW())&INDIRECT("F" & ROW()) ->  | D164: =IFERROR(VLOOKUP($E$5&INDIRECT("E" & ROW()),Sites,4,FALSE),"") -> 
A165: =INDIRECT("D" & ROW())&INDIRECT("F" & ROW()) ->  | D165: =IFERROR(VLOOKUP($E$5&INDIRECT("E" & ROW()),Sites,4,FALSE),"") -> 
A166: =INDIRECT("D" & ROW())&INDIRECT("F" & ROW()) ->  | D166: =IFERROR(VLOOKUP($E$5&INDIRECT("E" & ROW()),Sites,4,FALSE),"") -> 
A167: =INDIRECT("D" & ROW())&INDIRECT("F" & ROW()) ->  | D167: =IFERROR(VLOOKUP($E$5&INDIRECT("E" & ROW()),Sites,4,FALSE),"") -> 
A168: =INDIRECT("D" & ROW())&INDIRECT("F" & ROW()) ->  | D168: =IFERROR(VLOOKUP($E$5&INDIRECT("E" & ROW()),Sites,4,FALSE),"") -> 
A169: =INDIRECT("D" & ROW())&INDIRECT("F" & ROW()) ->  | D169: =IFERROR(VLOOKUP($E$5&INDIRECT("E" & ROW()),Sites,4,FALSE),"") -> 
A170: =INDIRECT("D" & ROW())&INDIRECT("F" & ROW()) ->  | D170: =IFERROR(VLOOKUP($E$5&INDIRECT("E" & ROW()),Sites,4,FALSE),"") -> 
A171: =INDIRECT("D" & ROW())&INDIRECT("F" & ROW()) ->  | D171: =IFERROR(VLOOKUP($E$5&INDIRECT("E" & ROW()),Sites,4,FALSE),"") -> 
A172: =INDIRECT("D" & ROW())&INDIRECT("F" & ROW()) ->  | D172: =IFERROR(VLOOKUP($E$5&INDIRECT("E" & ROW()),Sites,4,FALSE),"") -> 
A173: =INDIRECT("D" & ROW())&INDIRECT("F" & ROW()) ->  | D173: =IFERROR(VLOOKUP($E$5&INDIRECT("E" & ROW()),Sites,4,FALSE),"") -> 
A174: =INDIRECT("D" & ROW())&INDIRECT("F" & ROW()) ->  | D174: =IFERROR(VLOOKUP($E$5&INDIRECT("E" & ROW()),Sites,4,FALSE),"") -> 
A175: =INDIRECT("D" & ROW())&INDIRECT("F" & ROW()) ->  | D175: =IFERROR(VLOOKUP($E$5&INDIRECT("E" & ROW()),Sites,4,FALSE),"") -> 
A176: =INDIRECT("D" & ROW())&INDIRECT("F" & ROW()) ->  | D176: =IFERROR(VLOOKUP($E$5&INDIRECT("E" & ROW()),Sites,4,FALSE),"") -> 
A177: =INDIRECT("D" & ROW())&INDIRECT("F" & ROW()) ->  | D177: =IFERROR(VLOOKUP($E$5&INDIRECT("E" & ROW()),Sites,4,FALSE),"") -> 
A178: =INDIRECT("D" & ROW())&INDIRECT("F" & ROW()) ->  | D178: =IFERROR(VLOOKUP($E$5&INDIRECT("E" & ROW()),Sites,4,FALSE),"") -> 
A179: =INDIRECT("D" & ROW())&INDIRECT("F" & ROW()) ->  | D179: =IFERROR(VLOOKUP($E$5&INDIRECT("E" & ROW()),Sites,4,FALSE),"") -> 
A180: =INDIRECT("D" & ROW())&INDIRECT("F" & ROW()) ->  | D180: =IFERROR(VLOOKUP($E$5&INDIRECT("E" & ROW()),Sites,4,FALSE),"") -> 
A181: =INDIRECT("D" & ROW())&INDIRECT("F" & ROW()) ->  | D181: =IFERROR(VLOOKUP($E$5&INDIRECT("E" & ROW()),Sites,4,FALSE),"") -> 
A182: =INDIRECT("D" & ROW())&INDIRECT("F" & ROW()) ->  | D182: =IFERROR(VLOOKUP($E$5&INDIRECT("E" & ROW()),Sites,4,FALSE),"") -> 
A183: =INDIRECT("D" & ROW())&INDIRECT("F" & ROW()) ->  | D183: =IFERROR(VLOOKUP($E$5&INDIRECT("E" & ROW()),Sites,4,FALSE),"") -> 
A184: =INDIRECT("D" & ROW())&INDIRECT("F" & ROW()) ->  | D184: =IFERROR(VLOOKUP($E$5&INDIRECT("E" & ROW()),Sites,4,FALSE),"") -> 
A185: =INDIRECT("D" & ROW())&INDIRECT("F" & ROW()) ->  | D185: =IFERROR(VLOOKUP($E$5&INDIRECT("E" & ROW()),Sites,4,FALSE),"") -> 
A186: =INDIRECT("D" & ROW())&INDIRECT("F" & ROW()) ->  | D186: =IFERROR(VLOOKUP($E$5&INDIRECT("E" & ROW()),Sites,4,FALSE),"") -> 
A187: =INDIRECT("D" & ROW())&INDIRECT("F" & ROW()) ->  | D187: =IFERROR(VLOOKUP($E$5&INDIRECT("E" & ROW()),Sites,4,FALSE),"") -> 
A188: =INDIRECT("D" & ROW())&INDIRECT("F" & ROW()) ->  | D188: =IFERROR(VLOOKUP($E$5&INDIRECT("E" & ROW()),Sites,4,FALSE),"") -> 
A189: =INDIRECT("D" & ROW())&INDIRECT("F" & ROW()) ->  | D189: =IFERROR(VLOOKUP($E$5&INDIRECT("E" & ROW()),Sites,4,FALSE),"") -> 
A190: =INDIRECT("D" & ROW())&INDIRECT("F" & ROW()) ->  | D190: =IFERROR(VLOOKUP($E$5&INDIRECT("E" & ROW()),Sites,4,FALSE),"") -> 
A191: =INDIRECT("D" & ROW())&INDIRECT("F" & ROW()) ->  | D191: =IFERROR(VLOOKUP($E$5&INDIRECT("E" & ROW()),Sites,4,FALSE),"") -> 
A192: =INDIRECT("D" & ROW())&INDIRECT("F" & ROW()) ->  | D192: =IFERROR(VLOOKUP($E$5&INDIRECT("E" & ROW()),Sites,4,FALSE),"") -> 
A193: =INDIRECT("D" & ROW())&INDIRECT("F" & ROW()) ->  | D193: =IFERROR(VLOOKUP($E$5&INDIRECT("E" & ROW()),Sites,4,FALSE),"") -> 
A194: =INDIRECT("D" & ROW())&INDIRECT("F" & ROW()) ->  | D194: =IFERROR(VLOOKUP($E$5&INDIRECT("E" & ROW()),Sites,4,FALSE),"") -> 
A195: =INDIRECT("D" & ROW())&INDIRECT("F" & ROW()) ->  | D195: =IFERROR(VLOOKUP($E$5&INDIRECT("E" & ROW()),Sites,4,FALSE),"") -> 
A196: =INDIRECT("D" & ROW())&INDIRECT("F" & ROW()) ->  | D196: =IFERROR(VLOOKUP($E$5&INDIRECT("E" & ROW()),Sites,4,FALSE),"") -> 
A197: =INDIRECT("D" & ROW())&INDIRECT("F" & ROW()) ->  | D197: =IFERROR(VLOOKUP($E$5&INDIRECT("E" & ROW()),Sites,4,FALSE),"") -> 
A198: =INDIRECT("D" & ROW())&INDIRECT("F" & ROW()) ->  | D198: =IFERROR(VLOOKUP($E$5&INDIRECT("E" & ROW()),Sites,4,FALSE),"") -> 
A199: =INDIRECT("D" & ROW())&INDIRECT("F" & ROW()) ->  | D199: =IFERROR(VLOOKUP($E$5&INDIRECT("E" & ROW()),Sites,4,FALSE),"") -> 
A200: =INDIRECT("D" & ROW())&INDIRECT("F" & ROW()) ->  | D200: =IFERROR(VLOOKUP($E$5&INDIRECT("E" & ROW()),Sites,4,FALSE),"") -> 
A201: =INDIRECT("D" & ROW())&INDIRECT("F" & ROW()) ->  | D201: =IFERROR(VLOOKUP($E$5&INDIRECT("E" & ROW()),Sites,4,FALSE),"") -> 
A202: =INDIRECT("D" & ROW())&INDIRECT("F" & ROW()) ->  | D202: =IFERROR(VLOOKUP($E$5&INDIRECT("E" & ROW()),Sites,4,FALSE),"") -> 
A203: =INDIRECT("D" & ROW())&INDIRECT("F" & ROW()) ->  | D203: =IFERROR(VLOOKUP($E$5&INDIRECT("E" & ROW()),Sites,4,FALSE),"") -> 
... 12 more rows

Sheet Errors
A4: Total Errors per column
E5: =SUM(--(LEN(E7:E206)>0)) -> 0 | F5: =SUM(--(LEN(F7:F206)>0)) -> 0 | G5: =SUM(--(LEN(G7:G206)>0)) -> 0 | H5: =SUM(--(LEN(H7:H206)>0)) -> 0 | I5: =SUM(--(LEN(I7:I206)>0)) -> 0 | J5: =SUM(--(LEN(J7:J206)>0)) -> 0 | K5: =SUM(--(LEN(K7:K206)>0)) -> 0 | L5: =SUM(--(LEN(L7:L206)>0)) -> 145
A6: Site-Ward Pair | B6: SiteCode | C6: Hospital Site Name | D6: Ward Name | E6: Format Checks | F6: Site Code Present? | G6: Ward Name present? | H6: At least 1 Specialty? | I6: Specialties in List? | J6: Matching Covid Statuses? | K6: Duplicate Site-Ward | L6: Blank Row?
A7: =IF('Trust - Frontsheet'!A16="","",'Trust - Frontsheet'!A16) -> RX4E4AIDAN | B7: =IF('Trust - Frontsheet'!A16="","",'Trust - Frontsheet'!D16) -> RX4E4 | C7: =IF(VLOOKUP(A7,'Trust - Frontsheet'!$A$16:$AC$215,5,0)="","",VLOOKUP(A7,'Trust - Frontsheet'!$A$16:$AC$216,5,0)) -> ST NICHOLAS HOSPITAL (NEWCASTLE UPON TYNE) | D7: =IF(VLOOKUP(A7,'Trust - Frontsheet'!$A$16:$AC$215,6,0)="","",VLOOKUP(A7,'Trust - Frontsheet'!$A$16:$AC$216,6,0)) -> AIDAN | E7: =IF(OR(SUMPRODUCT(--(ISTEXT('Trust - Frontsheet'!I16:AC16)))>0,SUMPRODUCT(--(ISERROR('Trust - Frontsheet'!AD16:AT16)))>0),"There is invalid data on this row",IF(SUMPRODUCT(--('Trust - Frontsheet'!I16:AC16<0))>0,"This row contains negative values",IF(AND(L7="This is a blank Row",COUNTBLANK(INDIRECT("L" & ROW() + 1 & ":L" & 206))>0),"No blank rows in the data",""))) ->  | F7: =IF(A7 = "","",IF('Trust - Frontsheet'!D16="", "Site code not present.","")) ->  | G7: =IF('Trust - Frontsheet'!D16="","",IF(VLOOKUP(A7,'Trust - Frontsheet'!$A$16:$AC$215,6,0)="","Ward name not present","")) ->  | H7: =IF(A7="","",IF(VLOOKUP(A7,'Trust - Frontsheet'!$A$16:$AC$215,7,0)="","Specialty 1 has not been selected","")) ->  | I7: =IF(A7="","",IF(OR(COUNTIF(Specialties,VLOOKUP(A7,'Trust - Frontsheet'!$A$16:$AC$215,7,0))=0, AND(COUNTIF(Specialties,VLOOKUP(A7,'Trust - Frontsheet'!$A$16:$AC$215,8,0))=0,VLOOKUP(A7,'Trust - Frontsheet'!$A$16:$AC$215,8,0)<>"")),"You have entered unacceptable specialties.","")) ->  | J7: =IF(A7="","",IF(AND(RIGHT(VLOOKUP(A7,'Trust - Frontsheet'!$A$16:$AC$215,7,0),3)<>RIGHT(VLOOKUP(A7,'Trust - Frontsheet'!$A$16:$AC$215,8,0),3),VLOOKUP(A7,'Trust - Frontsheet'!$A$16:$AC$215,8,0)<>""),"Covid statuses do not match","")) ->  | K7: =IF(A7="","",IF(COUNTIF($A$7:$A$206,A7)>1,"You have entered a duplicate site-ward pair","")) ->  | L7: =IF(SUMPRODUCT(--('Trust - Frontsheet'!$D16:$AC16=""))<>26,"","This is a blank row") -> 
A8: =IF('Trust - Frontsheet'!A17="","",'Trust - Frontsheet'!A17) -> RX4FDAKENSIDE | B8: =IF('Trust - Frontsheet'!A17="","",'Trust - Frontsheet'!D17) -> RX4FD | C8: =IF(VLOOKUP(A8,'Trust - Frontsheet'!$A$16:$AC$215,5,0)="","",VLOOKUP(A8,'Trust - Frontsheet'!$A$16:$AC$216,5,0)) -> CAMPUS FOR AGEING & VITALITY | D8: =IF(VLOOKUP(A8,'Trust - Frontsheet'!$A$16:$AC$215,6,0)="","",VLOOKUP(A8,'Trust - Frontsheet'!$A$16:$AC$216,6,0)) -> AKENSIDE | E8: =IF(OR(SUMPRODUCT(--(ISTEXT('Trust - Frontsheet'!I17:AC17)))>0,SUMPRODUCT(--(ISERROR('Trust - Frontsheet'!AD17:AT17)))>0),"There is invalid data on this row",IF(SUMPRODUCT(--('Trust - Frontsheet'!I17:AC17<0))>0,"This row contains negative values",IF(AND(L8="This is a blank Row",COUNTBLANK(INDIRECT("L" & ROW() + 1 & ":L" & 206))>0),"No blank rows in the data",""))) ->  | F8: =IF(A8 = "","",IF('Trust - Frontsheet'!D17="", "Site code not present","")) ->  | G8: =IF('Trust - Frontsheet'!D17="","",IF(VLOOKUP(A8,'Trust - Frontsheet'!$A$16:$AC$215,6,0)="","Ward name not present","")) ->  | H8: =IF(A8="","",IF(VLOOKUP(A8,'Trust - Frontsheet'!$A$16:$AC$215,7,0)="","Specialty 1 has not been selected","")) ->  | I8: =IF(A8="","",IF(OR(COUNTIF(Specialties,VLOOKUP(A8,'Trust - Frontsheet'!$A$16:$AC$215,7,0))=0, AND(COUNTIF(Specialties,VLOOKUP(A8,'Trust - Frontsheet'!$A$16:$AC$215,8,0))=0,VLOOKUP(A8,'Trust - Frontsheet'!$A$16:$AC$215,8,0)<>"")),"You have entered unacceptable specialties.","")) ->  | J8: =IF(A8="","",IF(AND(RIGHT(VLOOKUP(A8,'Trust - Frontsheet'!$A$16:$AC$215,7,0),3)<>RIGHT(VLOOKUP(A8,'Trust - Frontsheet'!$A$16:$AC$215,8,0),3),VLOOKUP(A8,'Trust - Frontsheet'!$A$16:$AC$215,8,0)<>""),"Covid statuses do not match","")) ->  | K8: =IF(A8="","",IF(COUNTIF($A$7:$A$206,A8)>1,"You have entered a duplicate site-ward pair","")) ->  | L8: =IF(SUMPRODUCT(--('Trust - Frontsheet'!$D17:$AC17=""))<>26,"","This is a blank row") -> 
A9: =IF('Trust - Frontsheet'!A18="","",'Trust - Frontsheet'!A18) -> RX4Z3ALDERVALE - MEADOW VIEW | B9: =IF('Trust - Frontsheet'!A18="","",'Trust - Frontsheet'!D18) -> RX4Z3 | C9: =IF(VLOOKUP(A9,'Trust - Frontsheet'!$A$16:$AC$215,5,0)="","",VLOOKUP(A9,'Trust - Frontsheet'!$A$16:$AC$216,5,0)) -> HOPEWOOD PARK | D9: =IF(VLOOKUP(A9,'Trust - Frontsheet'!$A$16:$AC$215,6,0)="","",VLOOKUP(A9,'Trust - Frontsheet'!$A$16:$AC$216,6,0)) -> ALDERVALE - MEADOW VIEW | E9: =IF(OR(SUMPRODUCT(--(ISTEXT('Trust - Frontsheet'!I18:AC18)))>0,SUMPRODUCT(--(ISERROR('Trust - Frontsheet'!AD18:AT18)))>0),"There is invalid data on this row",IF(SUMPRODUCT(--('Trust - Frontsheet'!I18:AC18<0))>0,"This row contains negative values",IF(AND(L9="This is a blank Row",COUNTBLANK(INDIRECT("L" & ROW() + 1 & ":L" & 206))>0),"No blank rows in the data",""))) ->  | F9: =IF(A9 = "","",IF('Trust - Frontsheet'!D18="", "Site code not present","")) ->  | G9: =IF('Trust - Frontsheet'!D18="","",IF(VLOOKUP(A9,'Trust - Frontsheet'!$A$16:$AC$215,6,0)="","Ward name not present","")) ->  | H9: =IF(A9="","",IF(VLOOKUP(A9,'Trust - Frontsheet'!$A$16:$AC$215,7,0)="","Specialty 1 has not been selected","")) ->  | I9: =IF(A9="","",IF(OR(COUNTIF(Specialties,VLOOKUP(A9,'Trust - Frontsheet'!$A$16:$AC$215,7,0))=0, AND(COUNTIF(Specialties,VLOOKUP(A9,'Trust - Frontsheet'!$A$16:$AC$215,8,0))=0,VLOOKUP(A9,'Trust - Frontsheet'!$A$16:$AC$215,8,0)<>"")),"You have entered unacceptable specialties.","")) ->  | J9: =IF(A9="","",IF(AND(RIGHT(VLOOKUP(A9,'Trust - Frontsheet'!$A$16:$AC$215,7,0),3)<>RIGHT(VLOOKUP(A9,'Trust - Frontsheet'!$A$16:$AC$215,8,0),3),VLOOKUP(A9,'Trust - Frontsheet'!$A$16:$AC$215,8,0)<>""),"Covid statuses do not match","")) ->  | L9: =IF(SUMPRODUCT(--('Trust - Frontsheet'!$D18:$AC18=""))<>26,"","This is a blank row") -> 
A10: =IF('Trust - Frontsheet'!A19="","",'Trust - Frontsheet'!A19) -> RX4E2ALNMOUTH | B10: =IF('Trust - Frontsheet'!A19="","",'Trust - Frontsheet'!D19) -> RX4E2 | C10: =IF(VLOOKUP(A10,'Trust - Frontsheet'!$A$16:$AC$215,5,0)="","",VLOOKUP(A10,'Trust - Frontsheet'!$A$16:$AC$216,5,0)) -> ST GEORGES HOSPITAL SITE (MORPETH) | D10: =IF(VLOOKUP(A10,'Trust - Frontsheet'!$A$16:$AC$215,6,0)="","",VLOOKUP(A10,'Trust - Frontsheet'!$A$16:$AC$216,6,0)) -> ALNMOUTH | E10: =IF(OR(SUMPRODUCT(--(ISTEXT('Trust - Frontsheet'!I19:AC19)))>0,SUMPRODUCT(--(ISERROR('Trust - Frontsheet'!AD19:AT19)))>0),"There is invalid data on this row",IF(SUMPRODUCT(--('Trust - Frontsheet'!I19:AC19<0))>0,"This row contains negative values",IF(AND(L10="This is a blank Row",COUNTBLANK(INDIRECT("L" & ROW() + 1 & ":L" & 206))>0),"No blank rows in the data",""))) ->  | F10: =IF(A10 = "","",IF('Trust - Frontsheet'!D19="", "Site code not present","")) ->  | G10: =IF('Trust - Frontsheet'!D19="","",IF(VLOOKUP(A10,'Trust - Frontsheet'!$A$16:$AC$215,6,0)="","Ward name not present","")) ->  | H10: =IF(A10="","",IF(VLOOKUP(A10,'Trust - Frontsheet'!$A$16:$AC$215,7,0)="","Specialty 1 has not been selected","")) ->  | I10: =IF(A10="","",IF(OR(COUNTIF(Specialties,VLOOKUP(A10,'Trust - Frontsheet'!$A$16:$AC$215,7,0))=0, AND(COUNTIF(Specialties,VLOOKUP(A10,'Trust - Frontsheet'!$A$16:$AC$215,8,0))=0,VLOOKUP(A10,'Trust - Frontsheet'!$A$16:$AC$215,8,0)<>"")),"You have entered unacceptable specialties.","")) ->  | J10: =IF(A10="","",IF(AND(RIGHT(VLOOKUP(A10,'Trust - Frontsheet'!$A$16:$AC$215,7,0),3)<>RIGHT(VLOOKUP(A10,'Trust - Frontsheet'!$A$16:$AC$215,8,0),3),VLOOKUP(A10,'Trust - Frontsheet'!$A$16:$AC$215,8,0)<>""),"Covid statuses do not match","")) ->  | L10: =IF(SUMPRODUCT(--('Trust - Frontsheet'!$D19:$AC19=""))<>26,"","This is a blank row") -> 
A11: =IF('Trust - Frontsheet'!A20="","",'Trust - Frontsheet'!A20) -> RX4E4ASHBY | B11: =IF('Trust - Frontsheet'!A20="","",'Trust - Frontsheet'!D20) -> RX4E4 | C11: =IF(VLOOKUP(A11,'Trust - Frontsheet'!$A$16:$AC$215,5,0)="","",VLOOKUP(A11,'Trust - Frontsheet'!$A$16:$AC$216,5,0)) -> ST NICHOLAS HOSPITAL (NEWCASTLE UPON TYNE) | D11: =IF(VLOOKUP(A11,'Trust - Frontsheet'!$A$16:$AC$215,6,0)="","",VLOOKUP(A11,'Trust - Frontsheet'!$A$16:$AC$216,6,0)) -> ASHBY | E11: =IF(OR(SUMPRODUCT(--(ISTEXT('Trust - Frontsheet'!I20:AC20)))>0,SUMPRODUCT(--(ISERROR('Trust - Frontsheet'!AD20:AT20)))>0),"There is invalid data on this row",IF(SUMPRODUCT(--('Trust - Frontsheet'!I20:AC20<0))>0,"This row contains negative values",IF(AND(L11="This is a blank Row",COUNTBLANK(INDIRECT("L" & ROW() + 1 & ":L" & 206))>0),"No blank rows in the data",""))) ->  | F11: =IF(A11 = "","",IF('Trust - Frontsheet'!D20="", "Site code not present","")) ->  | G11: =IF('Trust - Frontsheet'!D20="","",IF(VLOOKUP(A11,'Trust - Frontsheet'!$A$16:$AC$215,6,0)="","Ward name not present","")) ->  | H11: =IF(A11="","",IF(VLOOKUP(A11,'Trust - Frontsheet'!$A$16:$AC$215,7,0)="","Specialty 1 has not been selected","")) ->  | I11: =IF(A11="","",IF(OR(COUNTIF(Specialties,VLOOKUP(A11,'Trust - Frontsheet'!$A$16:$AC$215,7,0))=0, AND(COUNTIF(Specialties,VLOOKUP(A11,'Trust - Frontsheet'!$A$16:$AC$215,8,0))=0,VLOOKUP(A11,'Trust - Frontsheet'!$A$16:$AC$215,8,0)<>"")),"You have entered unacceptable specialties.","")) ->  | J11: =IF(A11="","",IF(AND(RIGHT(VLOOKUP(A11,'Trust - Frontsheet'!$A$16:$AC$215,7,0),3)<>RIGHT(VLOOKUP(A11,'Trust - Frontsheet'!$A$16:$AC$215,8,0),3),VLOOKUP(A11,'Trust - Frontsheet'!$A$16:$AC$215,8,0)<>""),"Covid statuses do not match","")) ->  | L11: =IF(SUMPRODUCT(--('Trust - Frontsheet'!$D20:$AC20=""))<>26,"","This is a blank row") -> 
A12: =IF('Trust - Frontsheet'!A21="","",'Trust - Frontsheet'!A21) -> RX4E2BEADNELL | B12: =IF('Trust - Frontsheet'!A21="","",'Trust - Frontsheet'!D21) -> RX4E2 | C12: =IF(VLOOKUP(A12,'Trust - Frontsheet'!$A$16:$AC$215,5,0)="","",VLOOKUP(A12,'Trust - Frontsheet'!$A$16:$AC$216,5,0)) -> ST GEORGES HOSPITAL SITE (MORPETH) | D12: =IF(VLOOKUP(A12,'Trust - Frontsheet'!$A$16:$AC$215,6,0)="","",VLOOKUP(A12,'Trust - Frontsheet'!$A$16:$AC$216,6,0)) -> BEADNELL | E12: =IF(OR(SUMPRODUCT(--(ISTEXT('Trust - Frontsheet'!I21:AC21)))>0,SUMPRODUCT(--(ISERROR('Trust - Frontsheet'!AD21:AT21)))>0),"There is invalid data on this row",IF(SUMPRODUCT(--('Trust - Frontsheet'!I21:AC21<0))>0,"This row contains negative values",IF(AND(L12="This is a blank Row",COUNTBLANK(INDIRECT("L" & ROW() + 1 & ":L" & 206))>0),"No blank rows in the data",""))) ->  | F12: =IF(A12 = "","",IF('Trust - Frontsheet'!D21="", "Site code not present","")) ->  | G12: =IF('Trust - Frontsheet'!D21="","",IF(VLOOKUP(A12,'Trust - Frontsheet'!$A$16:$AC$215,6,0)="","Ward name not present","")) ->  | H12: =IF(A12="","",IF(VLOOKUP(A12,'Trust - Frontsheet'!$A$16:$AC$215,7,0)="","Specialty 1 has not been selected","")) ->  | I12: =IF(A12="","",IF(OR(COUNTIF(Specialties,VLOOKUP(A12,'Trust - Frontsheet'!$A$16:$AC$215,7,0))=0, AND(COUNTIF(Specialties,VLOOKUP(A12,'Trust - Frontsheet'!$A$16:$AC$215,8,0))=0,VLOOKUP(A12,'Trust - Frontsheet'!$A$16:$AC$215,8,0)<>"")),"You have entered unacceptable specialties.","")) ->  | J12: =IF(A12="","",IF(AND(RIGHT(VLOOKUP(A12,'Trust - Frontsheet'!$A$16:$AC$215,7,0),3)<>RIGHT(VLOOKUP(A12,'Trust - Frontsheet'!$A$16:$AC$215,8,0),3),VLOOKUP(A12,'Trust - Frontsheet'!$A$16:$AC$215,8,0)<>""),"Covid statuses do not match","")) ->  | L12: =IF(SUMPRODUCT(--('Trust - Frontsheet'!$D21:$AC21=""))<>26,"","This is a blank row") -> 
A13: =IF('Trust - Frontsheet'!A22="","",'Trust - Frontsheet'!A22) -> RX4Z3BECKFIELD - DENE | B13: =IF('Trust - Frontsheet'!A22="","",'Trust - Frontsheet'!D22) -> RX4Z3 | C13: =IF(VLOOKUP(A13,'Trust - Frontsheet'!$A$16:$AC$215,5,0)="","",VLOOKUP(A13,'Trust - Frontsheet'!$A$16:$AC$216,5,0)) -> HOPEWOOD PARK | D13: =IF(VLOOKUP(A13,'Trust - Frontsheet'!$A$16:$AC$215,6,0)="","",VLOOKUP(A13,'Trust - Frontsheet'!$A$16:$AC$216,6,0)) -> BECKFIELD - DENE | E13: =IF(OR(SUMPRODUCT(--(ISTEXT('Trust - Frontsheet'!I22:AC22)))>0,SUMPRODUCT(--(ISERROR('Trust - Frontsheet'!AD22:AT22)))>0),"There is invalid data on this row",IF(SUMPRODUCT(--('Trust - Frontsheet'!I22:AC22<0))>0,"This row contains negative values",IF(AND(L13="This is a blank Row",COUNTBLANK(INDIRECT("L" & ROW() + 1 & ":L" & 206))>0),"No blank rows in the data",""))) ->  | F13: =IF(A13 = "","",IF('Trust - Frontsheet'!D22="", "Site code not present","")) ->  | G13: =IF('Trust - Frontsheet'!D22="","",IF(VLOOKUP(A13,'Trust - Frontsheet'!$A$16:$AC$215,6,0)="","Ward name not present","")) ->  | H13: =IF(A13="","",IF(VLOOKUP(A13,'Trust - Frontsheet'!$A$16:$AC$215,7,0)="","Specialty 1 has not been selected","")) ->  | I13: =IF(A13="","",IF(OR(COUNTIF(Specialties,VLOOKUP(A13,'Trust - Frontsheet'!$A$16:$AC$215,7,0))=0, AND(COUNTIF(Specialties,VLOOKUP(A13,'Trust - Frontsheet'!$A$16:$AC$215,8,0))=0,VLOOKUP(A13,'Trust - Frontsheet'!$A$16:$AC$215,8,0)<>"")),"You have entered unacceptable specialties.","")) ->  | J13: =IF(A13="","",IF(AND(RIGHT(VLOOKUP(A13,'Trust - Frontsheet'!$A$16:$AC$215,7,0),3)<>RIGHT(VLOOKUP(A13,'Trust - Frontsheet'!$A$16:$AC$215,8,0),3),VLOOKUP(A13,'Trust - Frontsheet'!$A$16:$AC$215,8,0)<>""),"Covid statuses do not match","")) ->  | L13: =IF(SUMPRODUCT(--('Trust - Frontsheet'!$D22:$AC22=""))<>26,"","This is a blank row") -> 
A14: =IF('Trust - Frontsheet'!A23="","",'Trust - Frontsheet'!A23) -> RX4E4BEDE - COLLINGWOOD COURT | B14: =IF('Trust - Frontsheet'!A23="","",'Trust - Frontsheet'!D23) -> RX4E4 | C14: =IF(VLOOKUP(A14,'Trust - Frontsheet'!$A$16:$AC$215,5,0)="","",VLOOKUP(A14,'Trust - Frontsheet'!$A$16:$AC$216,5,0)) -> ST NICHOLAS HOSPITAL (NEWCASTLE UPON TYNE) | D14: =IF(VLOOKUP(A14,'Trust - Frontsheet'!$A$16:$AC$215,6,0)="","",VLOOKUP(A14,'Trust - Frontsheet'!$A$16:$AC$216,6,0)) -> BEDE - COLLINGWOOD COURT | E14: =IF(OR(SUMPRODUCT(--(ISTEXT('Trust - Frontsheet'!I23:AC23)))>0,SUMPRODUCT(--(ISERROR('Trust - Frontsheet'!AD23:AT23)))>0),"There is invalid data on this row",IF(SUMPRODUCT(--('Trust - Frontsheet'!I23:AC23<0))>0,"This row contains negative values",IF(AND(L14="This is a blank Row",COUNTBLANK(INDIRECT("L" & ROW() + 1 & ":L" & 206))>0),"No blank rows in the data",""))) ->  | F14: =IF(A14 = "","",IF('Trust - Frontsheet'!D23="", "Site code not present","")) ->  | G14: =IF('Trust - Frontsheet'!D23="","",IF(VLOOKUP(A14,'Trust - Frontsheet'!$A$16:$AC$215,6,0)="","Ward name not present","")) ->  | H14: =IF(A14="","",IF(VLOOKUP(A14,'Trust - Frontsheet'!$A$16:$AC$215,7,0)="","Specialty 1 has not been selected","")) ->  | I14: =IF(A14="","",IF(OR(COUNTIF(Specialties,VLOOKUP(A14,'Trust - Frontsheet'!$A$16:$AC$215,7,0))=0, AND(COUNTIF(Specialties,VLOOKUP(A14,'Trust - Frontsheet'!$A$16:$AC$215,8,0))=0,VLOOKUP(A14,'Trust - Frontsheet'!$A$16:$AC$215,8,0)<>"")),"You have entered unacceptable specialties.","")) ->  | J14: =IF(A14="","",IF(AND(RIGHT(VLOOKUP(A14,'Trust - Frontsheet'!$A$16:$AC$215,7,0),3)<>RIGHT(VLOOKUP(A14,'Trust - Frontsheet'!$A$16:$AC$215,8,0),3),VLOOKUP(A14,'Trust - Frontsheet'!$A$16:$AC$215,8,0)<>""),"Covid statuses do not match","")) ->  | L14: =IF(SUMPRODUCT(--('Trust - Frontsheet'!$D23:$AC23=""))<>26,"","This is a blank row") -> 
A15: =IF('Trust - Frontsheet'!A24="","",'Trust - Frontsheet'!A24) -> RX4Z3BRIDGEWELL - MILL COTTAGE | B15: =IF('Trust - Frontsheet'!A24="","",'Trust - Frontsheet'!D24) -> RX4Z3 | C15: =IF(VLOOKUP(A15,'Trust - Frontsheet'!$A$16:$AC$215,5,0)="","",VLOOKUP(A15,'Trust - Frontsheet'!$A$16:$AC$216,5,0)) -> HOPEWOOD PARK | D15: =IF(VLOOKUP(A15,'Trust - Frontsheet'!$A$16:$AC$215,6,0)="","",VLOOKUP(A15,'Trust - Frontsheet'!$A$16:$AC$216,6,0)) -> BRIDGEWELL - MILL COTTAGE | E15: =IF(OR(SUMPRODUCT(--(ISTEXT('Trust - Frontsheet'!I24:AC24)))>0,SUMPRODUCT(--(ISERROR('Trust - Frontsheet'!AD24:AT24)))>0),"There is invalid data on this row",IF(SUMPRODUCT(--('Trust - Frontsheet'!I24:AC24<0))>0,"This row contains negative values",IF(AND(L15="This is a blank Row",COUNTBLANK(INDIRECT("L" & ROW() + 1 & ":L" & 206))>0),"No blank rows in the data",""))) ->  | F15: =IF(A15 = "","",IF('Trust - Frontsheet'!D24="", "Site code not present","")) ->  | G15: =IF('Trust - Frontsheet'!D24="","",IF(VLOOKUP(A15,'Trust - Frontsheet'!$A$16:$AC$215,6,0)="","Ward name not present","")) ->  | H15: =IF(A15="","",IF(VLOOKUP(A15,'Trust - Frontsheet'!$A$16:$AC$215,7,0)="","Specialty 1 has not been selected","")) ->  | I15: =IF(A15="","",IF(OR(COUNTIF(Specialties,VLOOKUP(A15,'Trust - Frontsheet'!$A$16:$AC$215,7,0))=0, AND(COUNTIF(Specialties,VLOOKUP(A15,'Trust - Frontsheet'!$A$16:$AC$215,8,0))=0,VLOOKUP(A15,'Trust - Frontsheet'!$A$16:$AC$215,8,0)<>"")),"You have entered unacceptable specialties.","")) ->  | J15: =IF(A15="","",IF(AND(RIGHT(VLOOKUP(A15,'Trust - Frontsheet'!$A$16:$AC$215,7,0),3)<>RIGHT(VLOOKUP(A15,'Trust - Frontsheet'!$A$16:$AC$215,8,0),3),VLOOKUP(A15,'Trust - Frontsheet'!$A$16:$AC$215,8,0)<>""),"Covid statuses do not match","")) ->  | L15: =IF(SUMPRODUCT(--('Trust - Frontsheet'!$D24:$AC24=""))<>26,"","This is a blank row") -> 
A16: =IF('Trust - Frontsheet'!A25="","",'Trust - Frontsheet'!A25) -> RX438 BROOKE HOUSE | B16: =IF('Trust - Frontsheet'!A25="","",'Trust - Frontsheet'!D25) -> RX438 | C16: =IF(VLOOKUP(A16,'Trust - Frontsheet'!$A$16:$AC$215,5,0)="","",VLOOKUP(A16,'Trust - Frontsheet'!$A$16:$AC$216,5,0)) -> BROOKE HOUSE | D16: =IF(VLOOKUP(A16,'Trust - Frontsheet'!$A$16:$AC$215,6,0)="","",VLOOKUP(A16,'Trust - Frontsheet'!$A$16:$AC$216,6,0)) -> BROOKE HOUSE | E16: =IF(OR(SUMPRODUCT(--(ISTEXT('Trust - Frontsheet'!I25:AC25)))>0,SUMPRODUCT(--(ISERROR('Trust - Frontsheet'!AD25:AT25)))>0),"There is invalid data on this row",IF(SUMPRODUCT(--('Trust - Frontsheet'!I25:AC25<0))>0,"This row contains negative values",IF(AND(L16="This is a blank Row",COUNTBLANK(INDIRECT("L" & ROW() + 1 & ":L" & 206))>0),"No blank rows in the data",""))) ->  | F16: =IF(A16 = "","",IF('Trust - Frontsheet'!D25="", "Site code not present","")) ->  | G16: =IF('Trust - Frontsheet'!D25="","",IF(VLOOKUP(A16,'Trust - Frontsheet'!$A$16:$AC$215,6,0)="","Ward name not present","")) ->  | H16: =IF(A16="","",IF(VLOOKUP(A16,'Trust - Frontsheet'!$A$16:$AC$215,7,0)="","Specialty 1 has not been selected","")) ->  | I16: =IF(A16="","",IF(OR(COUNTIF(Specialties,VLOOKUP(A16,'Trust - Frontsheet'!$A$16:$AC$215,7,0))=0, AND(COUNTIF(Specialties,VLOOKUP(A16,'Trust - Frontsheet'!$A$16:$AC$215,8,0))=0,VLOOKUP(A16,'Trust - Frontsheet'!$A$16:$AC$215,8,0)<>"")),"You have entered unacceptable specialties.","")) ->  | J16: =IF(A16="","",IF(AND(RIGHT(VLOOKUP(A16,'Trust - Frontsheet'!$A$16:$AC$215,7,0),3)<>RIGHT(VLOOKUP(A16,'Trust - Frontsheet'!$A$16:$AC$215,8,0),3),VLOOKUP(A16,'Trust - Frontsheet'!$A$16:$AC$215,8,0)<>""),"Covid statuses do not match","")) ->  | L16: =IF(SUMPRODUCT(--('Trust - Frontsheet'!$D25:$AC25=""))<>26,"","This is a blank row") -> 
A17: =IF('Trust - Frontsheet'!A26="","",'Trust - Frontsheet'!A26) -> RX4FDCASTLESIDE | B17: =IF('Trust - Frontsheet'!A26="","",'Trust - Frontsheet'!D26) -> RX4FD | C17: =IF(VLOOKUP(A17,'Trust - Frontsheet'!$A$16:$AC$215,5,0)="","",VLOOKUP(A17,'Trust - Frontsheet'!$A$16:$AC$216,5,0)) -> CAMPUS FOR AGEING & VITALITY | D17: =IF(VLOOKUP(A17,'Trust - Frontsheet'!$A$16:$AC$215,6,0)="","",VLOOKUP(A17,'Trust - Frontsheet'!$A$16:$AC$216,6,0)) -> CASTLESIDE | E17: =IF(OR(SUMPRODUCT(--(ISTEXT('Trust - Frontsheet'!I26:AC26)))>0,SUMPRODUCT(--(ISERROR('Trust - Frontsheet'!AD26:AT26)))>0),"There is invalid data on this row",IF(SUMPRODUCT(--('Trust - Frontsheet'!I26:AC26<0))>0,"This row contains negative values",IF(AND(L17="This is a blank Row",COUNTBLANK(INDIRECT("L" & ROW() + 1 & ":L" & 206))>0),"No blank rows in the data",""))) ->  | F17: =IF(A17 = "","",IF('Trust - Frontsheet'!D26="", "Site code not present","")) ->  | G17: =IF('Trust - Frontsheet'!D26="","",IF(VLOOKUP(A17,'Trust - Frontsheet'!$A$16:$AC$215,6,0)="","Ward name not present","")) ->  | H17: =IF(A17="","",IF(VLOOKUP(A17,'Trust - Frontsheet'!$A$16:$AC$215,7,0)="","Specialty 1 has not been selected","")) ->  | I17: =IF(A17="","",IF(OR(COUNTIF(Specialties,VLOOKUP(A17,'Trust - Frontsheet'!$A$16:$AC$215,7,0))=0, AND(COUNTIF(Specialties,VLOOKUP(A17,'Trust - Frontsheet'!$A$16:$AC$215,8,0))=0,VLOOKUP(A17,'Trust - Frontsheet'!$A$16:$AC$215,8,0)<>"")),"You have entered unacceptable specialties.","")) ->  | J17: =IF(A17="","",IF(AND(RIGHT(VLOOKUP(A17,'Trust - Frontsheet'!$A$16:$AC$215,7,0),3)<>RIGHT(VLOOKUP(A17,'Trust - Frontsheet'!$A$16:$AC$215,8,0),3),VLOOKUP(A17,'Trust - Frontsheet'!$A$16:$AC$215,8,0)<>""),"Covid statuses do not match","")) ->  | L17: =IF(SUMPRODUCT(--('Trust - Frontsheet'!$D26:$AC26=""))<>26,"","This is a blank row") -> 
A18: =IF('Trust - Frontsheet'!A27="","",'Trust - Frontsheet'!A27) -> RX4K2CLEADON - ROSEWOOD | B18: =IF('Trust - Frontsheet'!A27="","",'Trust - Frontsheet'!D27) -> RX4K2 | C18: =IF(VLOOKUP(A18,'Trust - Frontsheet'!$A$16:$AC$215,5,0)="","",VLOOKUP(A18,'Trust - Frontsheet'!$A$16:$AC$216,5,0)) -> MONKWEARMOUTH HOSPITAL | D18: =IF(VLOOKUP(A18,'Trust - Frontsheet'!$A$16:$AC$215,6,0)="","",VLOOKUP(A18,'Trust - Frontsheet'!$A$16:$AC$216,6,0)) -> CLEADON - ROSEWOOD | E18: =IF(OR(SUMPRODUCT(--(ISTEXT('Trust - Frontsheet'!I27:AC27)))>0,SUMPRODUCT(--(ISERROR('Trust - Frontsheet'!AD27:AT27)))>0),"There is invalid data on this row",IF(SUMPRODUCT(--('Trust - Frontsheet'!I27:AC27<0))>0,"This row contains negative values",IF(AND(L18="This is a blank Row",COUNTBLANK(INDIRECT("L" & ROW() + 1 & ":L" & 206))>0),"No blank rows in the data",""))) ->  | F18: =IF(A18 = "","",IF('Trust - Frontsheet'!D27="", "Site code not present","")) ->  | G18: =IF('Trust - Frontsheet'!D27="","",IF(VLOOKUP(A18,'Trust - Frontsheet'!$A$16:$AC$215,6,0)="","Ward name not present","")) ->  | H18: =IF(A18="","",IF(VLOOKUP(A18,'Trust - Frontsheet'!$A$16:$AC$215,7,0)="","Specialty 1 has not been selected","")) ->  | I18: =IF(A18="","",IF(OR(COUNTIF(Specialties,VLOOKUP(A18,'Trust - Frontsheet'!$A$16:$AC$215,7,0))=0, AND(COUNTIF(Specialties,VLOOKUP(A18,'Trust - Frontsheet'!$A$16:$AC$215,8,0))=0,VLOOKUP(A18,'Trust - Frontsheet'!$A$16:$AC$215,8,0)<>"")),"You have entered unacceptable specialties.","")) ->  | J18: =IF(A18="","",IF(AND(RIGHT(VLOOKUP(A18,'Trust - Frontsheet'!$A$16:$AC$215,7,0),3)<>RIGHT(VLOOKUP(A18,'Trust - Frontsheet'!$A$16:$AC$215,8,0),3),VLOOKUP(A18,'Trust - Frontsheet'!$A$16:$AC$215,8,0)<>""),"Covid statuses do not match","")) ->  | L18: =IF(SUMPRODUCT(--('Trust - Frontsheet'!$D27:$AC27=""))<>26,"","This is a blank row") -> 
A19: =IF('Trust - Frontsheet'!A28="","",'Trust - Frontsheet'!A28) -> RX4Z3CLEARBROOK - LOWER WILLOWS | B19: =IF('Trust - Frontsheet'!A28="","",'Trust - Frontsheet'!D28) -> RX4Z3 | C19: =IF(VLOOKUP(A19,'Trust - Frontsheet'!$A$16:$AC$215,5,0)="","",VLOOKUP(A19,'Trust - Frontsheet'!$A$16:$AC$216,5,0)) -> HOPEWOOD PARK | D19: =IF(VLOOKUP(A19,'Trust - Frontsheet'!$A$16:$AC$215,6,0)="","",VLOOKUP(A19,'Trust - Frontsheet'!$A$16:$AC$216,6,0)) -> CLEARBROOK - LOWER WILLOWS | E19: =IF(OR(SUMPRODUCT(--(ISTEXT('Trust - Frontsheet'!I28:AC28)))>0,SUMPRODUCT(--(ISERROR('Trust - Frontsheet'!AD28:AT28)))>0),"There is invalid data on this row",IF(SUMPRODUCT(--('Trust - Frontsheet'!I28:AC28<0))>0,"This row contains negative values",IF(AND(L19="This is a blank Row",COUNTBLANK(INDIRECT("L" & ROW() + 1 & ":L" & 206))>0),"No blank rows in the data",""))) ->  | F19: =IF(A19 = "","",IF('Trust - Frontsheet'!D28="", "Site code not present","")) ->  | G19: =IF('Trust - Frontsheet'!D28="","",IF(VLOOKUP(A19,'Trust - Frontsheet'!$A$16:$AC$215,6,0)="","Ward name not present","")) ->  | H19: =IF(A19="","",IF(VLOOKUP(A19,'Trust - Frontsheet'!$A$16:$AC$215,7,0)="","Specialty 1 has not been selected","")) ->  | I19: =IF(A19="","",IF(OR(COUNTIF(Specialties,VLOOKUP(A19,'Trust - Frontsheet'!$A$16:$AC$215,7,0))=0, AND(COUNTIF(Specialties,VLOOKUP(A19,'Trust - Frontsheet'!$A$16:$AC$215,8,0))=0,VLOOKUP(A19,'Trust - Frontsheet'!$A$16:$AC$215,8,0)<>"")),"You have entered unacceptable specialties.","")) ->  | J19: =IF(A19="","",IF(AND(RIGHT(VLOOKUP(A19,'Trust - Frontsheet'!$A$16:$AC$215,7,0),3)<>RIGHT(VLOOKUP(A19,'Trust - Frontsheet'!$A$16:$AC$215,8,0),3),VLOOKUP(A19,'Trust - Frontsheet'!$A$16:$AC$215,8,0)<>""),"Covid statuses do not match","")) ->  | L19: =IF(SUMPRODUCT(--('Trust - Frontsheet'!$D28:$AC28=""))<>26,"","This is a blank row") -> 
A20: =IF('Trust - Frontsheet'!A29="","",'Trust - Frontsheet'!A29) -> RX4E4CUTHBERT | B20: =IF('Trust - Frontsheet'!A29="","",'Trust - Frontsheet'!D29) -> RX4E4 | C20: =IF(VLOOKUP(A20,'Trust - Frontsheet'!$A$16:$AC$215,5,0)="","",VLOOKUP(A20,'Trust - Frontsheet'!$A$16:$AC$216,5,0)) -> ST NICHOLAS HOSPITAL (NEWCASTLE UPON TYNE) | D20: =IF(VLOOKUP(A20,'Trust - Frontsheet'!$A$16:$AC$215,6,0)="","",VLOOKUP(A20,'Trust - Frontsheet'!$A$16:$AC$216,6,0)) -> CUTHBERT | E20: =IF(OR(SUMPRODUCT(--(ISTEXT('Trust - Frontsheet'!I29:AC29)))>0,SUMPRODUCT(--(ISERROR('Trust - Frontsheet'!AD29:AT29)))>0),"There is invalid data on this row",IF(SUMPRODUCT(--('Trust - Frontsheet'!I29:AC29<0))>0,"This row contains negative values",IF(AND(L20="This is a blank Row",COUNTBLANK(INDIRECT("L" & ROW() + 1 & ":L" & 206))>0),"No blank rows in the data",""))) ->  | F20: =IF(A20 = "","",IF('Trust - Frontsheet'!D29="", "Site code not present","")) ->  | G20: =IF('Trust - Frontsheet'!D29="","",IF(VLOOKUP(A20,'Trust - Frontsheet'!$A$16:$AC$215,6,0)="","Ward name not present","")) ->  | H20: =IF(A20="","",IF(VLOOKUP(A20,'Trust - Frontsheet'!$A$16:$AC$215,7,0)="","Specialty 1 has not been selected","")) ->  | I20: =IF(A20="","",IF(OR(COUNTIF(Specialties,VLOOKUP(A20,'Trust - Frontsheet'!$A$16:$AC$215,7,0))=0, AND(COUNTIF(Specialties,VLOOKUP(A20,'Trust - Frontsheet'!$A$16:$AC$215,8,0))=0,VLOOKUP(A20,'Trust - Frontsheet'!$A$16:$AC$215,8,0)<>"")),"You have entered unacceptable specialties.","")) ->  | J20: =IF(A20="","",IF(AND(RIGHT(VLOOKUP(A20,'Trust - Frontsheet'!$A$16:$AC$215,7,0),3)<>RIGHT(VLOOKUP(A20,'Trust - Frontsheet'!$A$16:$AC$215,8,0),3),VLOOKUP(A20,'Trust - Frontsheet'!$A$16:$AC$215,8,0)<>""),"Covid statuses do not match","")) ->  | L20: =IF(SUMPRODUCT(--('Trust - Frontsheet'!$D29:$AC29=""))<>26,"","This is a blank row") -> 
A21: =IF('Trust - Frontsheet'!A30="","",'Trust - Frontsheet'!A30) -> RX461 ELM HOUSE | B21: =IF('Trust - Frontsheet'!A30="","",'Trust - Frontsheet'!D30) -> RX461 | C21: =IF(VLOOKUP(A21,'Trust - Frontsheet'!$A$16:$AC$215,5,0)="","",VLOOKUP(A21,'Trust - Frontsheet'!$A$16:$AC$216,5,0)) -> ELM HOUSE | D21: =IF(VLOOKUP(A21,'Trust - Frontsheet'!$A$16:$AC$215,6,0)="","",VLOOKUP(A21,'Trust - Frontsheet'!$A$16:$AC$216,6,0)) -> ELM HOUSE | E21: =IF(OR(SUMPRODUCT(--(ISTEXT('Trust - Frontsheet'!I30:AC30)))>0,SUMPRODUCT(--(ISERROR('Trust - Frontsheet'!AD30:AT30)))>0),"There is invalid data on this row",IF(SUMPRODUCT(--('Trust - Frontsheet'!I30:AC30<0))>0,"This row contains negative values",IF(AND(L21="This is a blank Row",COUNTBLANK(INDIRECT("L" & ROW() + 1 & ":L" & 206))>0),"No blank rows in the data",""))) ->  | F21: =IF(A21 = "","",IF('Trust - Frontsheet'!D30="", "Site code not present","")) ->  | G21: =IF('Trust - Frontsheet'!D30="","",IF(VLOOKUP(A21,'Trust - Frontsheet'!$A$16:$AC$215,6,0)="","Ward name not present","")) ->  | H21: =IF(A21="","",IF(VLOOKUP(A21,'Trust - Frontsheet'!$A$16:$AC$215,7,0)="","Specialty 1 has not been selected","")) ->  | I21: =IF(A21="","",IF(OR(COUNTIF(Specialties,VLOOKUP(A21,'Trust - Frontsheet'!$A$16:$AC$215,7,0))=0, AND(COUNTIF(Specialties,VLOOKUP(A21,'Trust - Frontsheet'!$A$16:$AC$215,8,0))=0,VLOOKUP(A21,'Trust - Frontsheet'!$A$16:$AC$215,8,0)<>"")),"You have entered unacceptable specialties.","")) ->  | J21: =IF(A21="","",IF(AND(RIGHT(VLOOKUP(A21,'Trust - Frontsheet'!$A$16:$AC$215,7,0),3)<>RIGHT(VLOOKUP(A21,'Trust - Frontsheet'!$A$16:$AC$215,8,0),3),VLOOKUP(A21,'Trust - Frontsheet'!$A$16:$AC$215,8,0)<>""),"Covid statuses do not match","")) ->  | L21: =IF(SUMPRODUCT(--('Trust - Frontsheet'!$D30:$AC30=""))<>26,"","This is a blank row") -> 
A22: =IF('Trust - Frontsheet'!A31="","",'Trust - Frontsheet'!A31) -> RX4E2EMBLETON | B22: =IF('Trust - Frontsheet'!A31="","",'Trust - Frontsheet'!D31) -> RX4E2 | C22: =IF(VLOOKUP(A22,'Trust - Frontsheet'!$A$16:$AC$215,5,0)="","",VLOOKUP(A22,'Trust - Frontsheet'!$A$16:$AC$216,5,0)) -> ST GEORGES HOSPITAL SITE (MORPETH) | D22: =IF(VLOOKUP(A22,'Trust - Frontsheet'!$A$16:$AC$215,6,0)="","",VLOOKUP(A22,'Trust - Frontsheet'!$A$16:$AC$216,6,0)) -> EMBLETON | E22: =IF(OR(SUMPRODUCT(--(ISTEXT('Trust - Frontsheet'!I31:AC31)))>0,SUMPRODUCT(--(ISERROR('Trust - Frontsheet'!AD31:AT31)))>0),"There is invalid data on this row",IF(SUMPRODUCT(--('Trust - Frontsheet'!I31:AC31<0))>0,"This row contains negative values",IF(AND(L22="This is a blank Row",COUNTBLANK(INDIRECT("L" & ROW() + 1 & ":L" & 206))>0),"No blank rows in the data",""))) ->  | F22: =IF(A22 = "","",IF('Trust - Frontsheet'!D31="", "Site code not present","")) ->  | G22: =IF('Trust - Frontsheet'!D31="","",IF(VLOOKUP(A22,'Trust - Frontsheet'!$A$16:$AC$215,6,0)="","Ward name not present","")) ->  | H22: =IF(A22="","",IF(VLOOKUP(A22,'Trust - Frontsheet'!$A$16:$AC$215,7,0)="","Specialty 1 has not been selected","")) ->  | I22: =IF(A22="","",IF(OR(COUNTIF(Specialties,VLOOKUP(A22,'Trust - Frontsheet'!$A$16:$AC$215,7,0))=0, AND(COUNTIF(Specialties,VLOOKUP(A22,'Trust - Frontsheet'!$A$16:$AC$215,8,0))=0,VLOOKUP(A22,'Trust - Frontsheet'!$A$16:$AC$215,8,0)<>"")),"You have entered unacceptable specialties.","")) ->  | J22: =IF(A22="","",IF(AND(RIGHT(VLOOKUP(A22,'Trust - Frontsheet'!$A$16:$AC$215,7,0),3)<>RIGHT(VLOOKUP(A22,'Trust - Frontsheet'!$A$16:$AC$215,8,0),3),VLOOKUP(A22,'Trust - Frontsheet'!$A$16:$AC$215,8,0)<>""),"Covid statuses do not match","")) ->  | L22: =IF(SUMPRODUCT(--('Trust - Frontsheet'!$D31:$AC31=""))<>26,"","This is a blank row") -> 
A23: =IF('Trust - Frontsheet'!A32="","",'Trust - Frontsheet'!A32) -> RX4FDFELLSIDE | B23: =IF('Trust - Frontsheet'!A32="","",'Trust - Frontsheet'!D32) -> RX4FD | C23: =IF(VLOOKUP(A23,'Trust - Frontsheet'!$A$16:$AC$215,5,0)="","",VLOOKUP(A23,'Trust - Frontsheet'!$A$16:$AC$216,5,0)) -> CAMPUS FOR AGEING & VITALITY | D23: =IF(VLOOKUP(A23,'Trust - Frontsheet'!$A$16:$AC$215,6,0)="","",VLOOKUP(A23,'Trust - Frontsheet'!$A$16:$AC$216,6,0)) -> FELLSIDE | E23: =IF(OR(SUMPRODUCT(--(ISTEXT('Trust - Frontsheet'!I32:AC32)))>0,SUMPRODUCT(--(ISERROR('Trust - Frontsheet'!AD32:AT32)))>0),"There is invalid data on this row",IF(SUMPRODUCT(--('Trust - Frontsheet'!I32:AC32<0))>0,"This row contains negative values",IF(AND(L23="This is a blank Row",COUNTBLANK(INDIRECT("L" & ROW() + 1 & ":L" & 206))>0),"No blank rows in the data",""))) ->  | F23: =IF(A23 = "","",IF('Trust - Frontsheet'!D32="", "Site code not present","")) ->  | G23: =IF('Trust - Frontsheet'!D32="","",IF(VLOOKUP(A23,'Trust - Frontsheet'!$A$16:$AC$215,6,0)="","Ward name not present","")) ->  | H23: =IF(A23="","",IF(VLOOKUP(A23,'Trust - Frontsheet'!$A$16:$AC$215,7,0)="","Specialty 1 has not been selected","")) ->  | I23: =IF(A23="","",IF(OR(COUNTIF(Specialties,VLOOKUP(A23,'Trust - Frontsheet'!$A$16:$AC$215,7,0))=0, AND(COUNTIF(Specialties,VLOOKUP(A23,'Trust - Frontsheet'!$A$16:$AC$215,8,0))=0,VLOOKUP(A23,'Trust - Frontsheet'!$A$16:$AC$215,8,0)<>"")),"You have entered unacceptable specialties.","")) ->  | J23: =IF(A23="","",IF(AND(RIGHT(VLOOKUP(A23,'Trust - Frontsheet'!$A$16:$AC$215,7,0),3)<>RIGHT(VLOOKUP(A23,'Trust - Frontsheet'!$A$16:$AC$215,8,0),3),VLOOKUP(A23,'Trust - Frontsheet'!$A$16:$AC$215,8,0)<>""),"Covid statuses do not match","")) ->  | L23: =IF(SUMPRODUCT(--('Trust - Frontsheet'!$D32:$AC32=""))<>26,"","This is a blank row") -> 
A24: =IF('Trust - Frontsheet'!A33="","",'Trust - Frontsheet'!A33) -> RX4CAFRASER HOUSE | B24: =IF('Trust - Frontsheet'!A33="","",'Trust - Frontsheet'!D33) -> RX4CA | C24: =IF(VLOOKUP(A24,'Trust - Frontsheet'!$A$16:$AC$215,5,0)="","",VLOOKUP(A24,'Trust - Frontsheet'!$A$16:$AC$216,5,0)) -> FERNDENE | D24: =IF(VLOOKUP(A24,'Trust - Frontsheet'!$A$16:$AC$215,6,0)="","",VLOOKUP(A24,'Trust - Frontsheet'!$A$16:$AC$216,6,0)) -> FRASER HOUSE | E24: =IF(OR(SUMPRODUCT(--(ISTEXT('Trust - Frontsheet'!I33:AC33)))>0,SUMPRODUCT(--(ISERROR('Trust - Frontsheet'!AD33:AT33)))>0),"There is invalid data on this row",IF(SUMPRODUCT(--('Trust - Frontsheet'!I33:AC33<0))>0,"This row contains negative values",IF(AND(L24="This is a blank Row",COUNTBLANK(INDIRECT("L" & ROW() + 1 & ":L" & 206))>0),"No blank rows in the data",""))) ->  | F24: =IF(A24 = "","",IF('Trust - Frontsheet'!D33="", "Site code not present","")) ->  | G24: =IF('Trust - Frontsheet'!D33="","",IF(VLOOKUP(A24,'Trust - Frontsheet'!$A$16:$AC$215,6,0)="","Ward name not present","")) ->  | H24: =IF(A24="","",IF(VLOOKUP(A24,'Trust - Frontsheet'!$A$16:$AC$215,7,0)="","Specialty 1 has not been selected","")) ->  | I24: =IF(A24="","",IF(OR(COUNTIF(Specialties,VLOOKUP(A24,'Trust - Frontsheet'!$A$16:$AC$215,7,0))=0, AND(COUNTIF(Specialties,VLOOKUP(A24,'Trust - Frontsheet'!$A$16:$AC$215,8,0))=0,VLOOKUP(A24,'Trust - Frontsheet'!$A$16:$AC$215,8,0)<>"")),"You have entered unacceptable specialties.","")) ->  | J24: =IF(A24="","",IF(AND(RIGHT(VLOOKUP(A24,'Trust - Frontsheet'!$A$16:$AC$215,7,0),3)<>RIGHT(VLOOKUP(A24,'Trust - Frontsheet'!$A$16:$AC$215,8,0),3),VLOOKUP(A24,'Trust - Frontsheet'!$A$16:$AC$215,8,0)<>""),"Covid statuses do not match","")) ->  | L24: =IF(SUMPRODUCT(--('Trust - Frontsheet'!$D33:$AC33=""))<>26,"","This is a blank row") -> 
A25: =IF('Trust - Frontsheet'!A34="","",'Trust - Frontsheet'!A34) -> RX4E2HAUXLEY | B25: =IF('Trust - Frontsheet'!A34="","",'Trust - Frontsheet'!D34) -> RX4E2 | C25: =IF(VLOOKUP(A25,'Trust - Frontsheet'!$A$16:$AC$215,5,0)="","",VLOOKUP(A25,'Trust - Frontsheet'!$A$16:$AC$216,5,0)) -> ST GEORGES HOSPITAL SITE (MORPETH) | D25: =IF(VLOOKUP(A25,'Trust - Frontsheet'!$A$16:$AC$215,6,0)="","",VLOOKUP(A25,'Trust - Frontsheet'!$A$16:$AC$216,6,0)) -> HAUXLEY | E25: =IF(OR(SUMPRODUCT(--(ISTEXT('Trust - Frontsheet'!I34:AC34)))>0,SUMPRODUCT(--(ISERROR('Trust - Frontsheet'!AD34:AT34)))>0),"There is invalid data on this row",IF(SUMPRODUCT(--('Trust - Frontsheet'!I34:AC34<0))>0,"This row contains negative values",IF(AND(L25="This is a blank Row",COUNTBLANK(INDIRECT("L" & ROW() + 1 & ":L" & 206))>0),"No blank rows in the data",""))) ->  | F25: =IF(A25 = "","",IF('Trust - Frontsheet'!D34="", "Site code not present","")) ->  | G25: =IF('Trust - Frontsheet'!D34="","",IF(VLOOKUP(A25,'Trust - Frontsheet'!$A$16:$AC$215,6,0)="","Ward name not present","")) ->  | H25: =IF(A25="","",IF(VLOOKUP(A25,'Trust - Frontsheet'!$A$16:$AC$215,7,0)="","Specialty 1 has not been selected","")) ->  | I25: =IF(A25="","",IF(OR(COUNTIF(Specialties,VLOOKUP(A25,'Trust - Frontsheet'!$A$16:$AC$215,7,0))=0, AND(COUNTIF(Specialties,VLOOKUP(A25,'Trust - Frontsheet'!$A$16:$AC$215,8,0))=0,VLOOKUP(A25,'Trust - Frontsheet'!$A$16:$AC$215,8,0)<>"")),"You have entered unacceptable specialties.","")) ->  | J25: =IF(A25="","",IF(AND(RIGHT(VLOOKUP(A25,'Trust - Frontsheet'!$A$16:$AC$215,7,0),3)<>RIGHT(VLOOKUP(A25,'Trust - Frontsheet'!$A$16:$AC$215,8,0),3),VLOOKUP(A25,'Trust - Frontsheet'!$A$16:$AC$215,8,0)<>""),"Covid statuses do not match","")) ->  | L25: =IF(SUMPRODUCT(--('Trust - Frontsheet'!$D34:$AC34=""))<>26,"","This is a blank row") -> 
A26: =IF('Trust - Frontsheet'!A35="","",'Trust - Frontsheet'!A35) -> RX4E2KINNERSLEY | B26: =IF('Trust - Frontsheet'!A35="","",'Trust - Frontsheet'!D35) -> RX4E2 | C26: =IF(VLOOKUP(A26,'Trust - Frontsheet'!$A$16:$AC$215,5,0)="","",VLOOKUP(A26,'Trust - Frontsheet'!$A$16:$AC$216,5,0)) -> ST GEORGES HOSPITAL SITE (MORPETH) | D26: =IF(VLOOKUP(A26,'Trust - Frontsheet'!$A$16:$AC$215,6,0)="","",VLOOKUP(A26,'Trust - Frontsheet'!$A$16:$AC$216,6,0)) -> KINNERSLEY | E26: =IF(OR(SUMPRODUCT(--(ISTEXT('Trust - Frontsheet'!I35:AC35)))>0,SUMPRODUCT(--(ISERROR('Trust - Frontsheet'!AD35:AT35)))>0),"There is invalid data on this row",IF(SUMPRODUCT(--('Trust - Frontsheet'!I35:AC35<0))>0,"This row contains negative values",IF(AND(L26="This is a blank Row",COUNTBLANK(INDIRECT("L" & ROW() + 1 & ":L" & 206))>0),"No blank rows in the data",""))) ->  | F26: =IF(A26 = "","",IF('Trust - Frontsheet'!D35="", "Site code not present","")) ->  | G26: =IF('Trust - Frontsheet'!D35="","",IF(VLOOKUP(A26,'Trust - Frontsheet'!$A$16:$AC$215,6,0)="","Ward name not present","")) ->  | H26: =IF(A26="","",IF(VLOOKUP(A26,'Trust - Frontsheet'!$A$16:$AC$215,7,0)="","Specialty 1 has not been selected","")) ->  | I26: =IF(A26="","",IF(OR(COUNTIF(Specialties,VLOOKUP(A26,'Trust - Frontsheet'!$A$16:$AC$215,7,0))=0, AND(COUNTIF(Specialties,VLOOKUP(A26,'Trust - Frontsheet'!$A$16:$AC$215,8,0))=0,VLOOKUP(A26,'Trust - Frontsheet'!$A$16:$AC$215,8,0)<>"")),"You have entered unacceptable specialties.","")) ->  | J26: =IF(A26="","",IF(AND(RIGHT(VLOOKUP(A26,'Trust - Frontsheet'!$A$16:$AC$215,7,0),3)<>RIGHT(VLOOKUP(A26,'Trust - Frontsheet'!$A$16:$AC$215,8,0),3),VLOOKUP(A26,'Trust - Frontsheet'!$A$16:$AC$215,8,0)<>""),"Covid statuses do not match","")) ->  | L26: =IF(SUMPRODUCT(--('Trust - Frontsheet'!$D35:$AC35=""))<>26,"","This is a blank row") -> 
A27: =IF('Trust - Frontsheet'!A36="","",'Trust - Frontsheet'!A36) -> RX4FDLAMESLEY | B27: =IF('Trust - Frontsheet'!A36="","",'Trust - Frontsheet'!D36) -> RX4FD | C27: =IF(VLOOKUP(A27,'Trust - Frontsheet'!$A$16:$AC$215,5,0)="","",VLOOKUP(A27,'Trust - Frontsheet'!$A$16:$AC$216,5,0)) -> CAMPUS FOR AGEING & VITALITY | D27: =IF(VLOOKUP(A27,'Trust - Frontsheet'!$A$16:$AC$215,6,0)="","",VLOOKUP(A27,'Trust - Frontsheet'!$A$16:$AC$216,6,0)) -> LAMESLEY | E27: =IF(OR(SUMPRODUCT(--(ISTEXT('Trust - Frontsheet'!I36:AC36)))>0,SUMPRODUCT(--(ISERROR('Trust - Frontsheet'!AD36:AT36)))>0),"There is invalid data on this row",IF(SUMPRODUCT(--('Trust - Frontsheet'!I36:AC36<0))>0,"This row contains negative values",IF(AND(L27="This is a blank Row",COUNTBLANK(INDIRECT("L" & ROW() + 1 & ":L" & 206))>0),"No blank rows in the data",""))) ->  | F27: =IF(A27 = "","",IF('Trust - Frontsheet'!D36="", "Site code not present","")) ->  | G27: =IF('Trust - Frontsheet'!D36="","",IF(VLOOKUP(A27,'Trust - Frontsheet'!$A$16:$AC$215,6,0)="","Ward name not present","")) ->  | H27: =IF(A27="","",IF(VLOOKUP(A27,'Trust - Frontsheet'!$A$16:$AC$215,7,0)="","Specialty 1 has not been selected","")) ->  | I27: =IF(A27="","",IF(OR(COUNTIF(Specialties,VLOOKUP(A27,'Trust - Frontsheet'!$A$16:$AC$215,7,0))=0, AND(COUNTIF(Specialties,VLOOKUP(A27,'Trust - Frontsheet'!$A$16:$AC$215,8,0))=0,VLOOKUP(A27,'Trust - Frontsheet'!$A$16:$AC$215,8,0)<>"")),"You have entered unacceptable specialties.","")) ->  | J27: =IF(A27="","",IF(AND(RIGHT(VLOOKUP(A27,'Trust - Frontsheet'!$A$16:$AC$215,7,0),3)<>RIGHT(VLOOKUP(A27,'Trust - Frontsheet'!$A$16:$AC$215,8,0),3),VLOOKUP(A27,'Trust - Frontsheet'!$A$16:$AC$215,8,0)<>""),"Covid statuses do not match","")) ->  | L27: =IF(SUMPRODUCT(--('Trust - Frontsheet'!$D36:$AC36=""))<>26,"","This is a blank row") -> 
A28: =IF('Trust - Frontsheet'!A37="","",'Trust - Frontsheet'!A37) -> RX4E4LENNOX | B28: =IF('Trust - Frontsheet'!A37="","",'Trust - Frontsheet'!D37) -> RX4E4 | C28: =IF(VLOOKUP(A28,'Trust - Frontsheet'!$A$16:$AC$215,5,0)="","",VLOOKUP(A28,'Trust - Frontsheet'!$A$16:$AC$216,5,0)) -> ST NICHOLAS HOSPITAL (NEWCASTLE UPON TYNE) | D28: =IF(VLOOKUP(A28,'Trust - Frontsheet'!$A$16:$AC$215,6,0)="","",VLOOKUP(A28,'Trust - Frontsheet'!$A$16:$AC$216,6,0)) -> LENNOX | E28: =IF(OR(SUMPRODUCT(--(ISTEXT('Trust - Frontsheet'!I37:AC37)))>0,SUMPRODUCT(--(ISERROR('Trust - Frontsheet'!AD37:AT37)))>0),"There is invalid data on this row",IF(SUMPRODUCT(--('Trust - Frontsheet'!I37:AC37<0))>0,"This row contains negative values",IF(AND(L28="This is a blank Row",COUNTBLANK(INDIRECT("L" & ROW() + 1 & ":L" & 206))>0),"No blank rows in the data",""))) ->  | F28: =IF(A28 = "","",IF('Trust - Frontsheet'!D37="", "Site code not present","")) ->  | G28: =IF('Trust - Frontsheet'!D37="","",IF(VLOOKUP(A28,'Trust - Frontsheet'!$A$16:$AC$215,6,0)="","Ward name not present","")) ->  | H28: =IF(A28="","",IF(VLOOKUP(A28,'Trust - Frontsheet'!$A$16:$AC$215,7,0)="","Specialty 1 has not been selected","")) ->  | I28: =IF(A28="","",IF(OR(COUNTIF(Specialties,VLOOKUP(A28,'Trust - Frontsheet'!$A$16:$AC$215,7,0))=0, AND(COUNTIF(Specialties,VLOOKUP(A28,'Trust - Frontsheet'!$A$16:$AC$215,8,0))=0,VLOOKUP(A28,'Trust - Frontsheet'!$A$16:$AC$215,8,0)<>"")),"You have entered unacceptable specialties.","")) ->  | J28: =IF(A28="","",IF(AND(RIGHT(VLOOKUP(A28,'Trust - Frontsheet'!$A$16:$AC$215,7,0),3)<>RIGHT(VLOOKUP(A28,'Trust - Frontsheet'!$A$16:$AC$215,8,0),3),VLOOKUP(A28,'Trust - Frontsheet'!$A$16:$AC$215,8,0)<>""),"Covid statuses do not match","")) ->  | L28: =IF(SUMPRODUCT(--('Trust - Frontsheet'!$D37:$AC37=""))<>26,"","This is a blank row") -> 
A29: =IF('Trust - Frontsheet'!A38="","",'Trust - Frontsheet'!A38) -> RX4Z3LONGVIEW - EAST WILLOWS | B29: =IF('Trust - Frontsheet'!A38="","",'Trust - Frontsheet'!D38) -> RX4Z3 | C29: =IF(VLOOKUP(A29,'Trust - Frontsheet'!$A$16:$AC$215,5,0)="","",VLOOKUP(A29,'Trust - Frontsheet'!$A$16:$AC$216,5,0)) -> HOPEWOOD PARK | D29: =IF(VLOOKUP(A29,'Trust - Frontsheet'!$A$16:$AC$215,6,0)="","",VLOOKUP(A29,'Trust - Frontsheet'!$A$16:$AC$216,6,0)) -> LONGVIEW - EAST WILLOWS | E29: =IF(OR(SUMPRODUCT(--(ISTEXT('Trust - Frontsheet'!I38:AC38)))>0,SUMPRODUCT(--(ISERROR('Trust - Frontsheet'!AD38:AT38)))>0),"There is invalid data on this row",IF(SUMPRODUCT(--('Trust - Frontsheet'!I38:AC38<0))>0,"This row contains negative values",IF(AND(L29="This is a blank Row",COUNTBLANK(INDIRECT("L" & ROW() + 1 & ":L" & 206))>0),"No blank rows in the data",""))) ->  | F29: =IF(A29 = "","",IF('Trust - Frontsheet'!D38="", "Site code not present","")) ->  | G29: =IF('Trust - Frontsheet'!D38="","",IF(VLOOKUP(A29,'Trust - Frontsheet'!$A$16:$AC$215,6,0)="","Ward name not present","")) ->  | H29: =IF(A29="","",IF(VLOOKUP(A29,'Trust - Frontsheet'!$A$16:$AC$215,7,0)="","Specialty 1 has not been selected","")) ->  | I29: =IF(A29="","",IF(OR(COUNTIF(Specialties,VLOOKUP(A29,'Trust - Frontsheet'!$A$16:$AC$215,7,0))=0, AND(COUNTIF(Specialties,VLOOKUP(A29,'Trust - Frontsheet'!$A$16:$AC$215,8,0))=0,VLOOKUP(A29,'Trust - Frontsheet'!$A$16:$AC$215,8,0)<>"")),"You have entered unacceptable specialties.","")) ->  | J29: =IF(A29="","",IF(AND(RIGHT(VLOOKUP(A29,'Trust - Frontsheet'!$A$16:$AC$215,7,0),3)<>RIGHT(VLOOKUP(A29,'Trust - Frontsheet'!$A$16:$AC$215,8,0),3),VLOOKUP(A29,'Trust - Frontsheet'!$A$16:$AC$215,8,0)<>""),"Covid statuses do not match","")) ->  | L29: =IF(SUMPRODUCT(--('Trust - Frontsheet'!$D38:$AC38=""))<>26,"","This is a blank row") -> 
A30: =IF('Trust - Frontsheet'!A39="","",'Trust - Frontsheet'!A39) -> RX4E6LOWRY | B30: =IF('Trust - Frontsheet'!A39="","",'Trust - Frontsheet'!D39) -> RX4E6 | C30: =IF(VLOOKUP(A30,'Trust - Frontsheet'!$A$16:$AC$215,5,0)="","",VLOOKUP(A30,'Trust - Frontsheet'!$A$16:$AC$216,5,0)) -> NEWCASTLE GENERAL HOSPITAL | D30: =IF(VLOOKUP(A30,'Trust - Frontsheet'!$A$16:$AC$215,6,0)="","",VLOOKUP(A30,'Trust - Frontsheet'!$A$16:$AC$216,6,0)) -> LOWRY | E30: =IF(OR(SUMPRODUCT(--(ISTEXT('Trust - Frontsheet'!I39:AC39)))>0,SUMPRODUCT(--(ISERROR('Trust - Frontsheet'!AD39:AT39)))>0),"There is invalid data on this row",IF(SUMPRODUCT(--('Trust - Frontsheet'!I39:AC39<0))>0,"This row contains negative values",IF(AND(L30="This is a blank Row",COUNTBLANK(INDIRECT("L" & ROW() + 1 & ":L" & 206))>0),"No blank rows in the data",""))) ->  | F30: =IF(A30 = "","",IF('Trust - Frontsheet'!D39="", "Site code not present","")) ->  | G30: =IF('Trust - Frontsheet'!D39="","",IF(VLOOKUP(A30,'Trust - Frontsheet'!$A$16:$AC$215,6,0)="","Ward name not present","")) ->  | H30: =IF(A30="","",IF(VLOOKUP(A30,'Trust - Frontsheet'!$A$16:$AC$215,7,0)="","Specialty 1 has not been selected","")) ->  | I30: =IF(A30="","",IF(OR(COUNTIF(Specialties,VLOOKUP(A30,'Trust - Frontsheet'!$A$16:$AC$215,7,0))=0, AND(COUNTIF(Specialties,VLOOKUP(A30,'Trust - Frontsheet'!$A$16:$AC$215,8,0))=0,VLOOKUP(A30,'Trust - Frontsheet'!$A$16:$AC$215,8,0)<>"")),"You have entered unacceptable specialties.","")) ->  | J30: =IF(A30="","",IF(AND(RIGHT(VLOOKUP(A30,'Trust - Frontsheet'!$A$16:$AC$215,7,0),3)<>RIGHT(VLOOKUP(A30,'Trust - Frontsheet'!$A$16:$AC$215,8,0),3),VLOOKUP(A30,'Trust - Frontsheet'!$A$16:$AC$215,8,0)<>""),"Covid statuses do not match","")) ->  | L30: =IF(SUMPRODUCT(--('Trust - Frontsheet'!$D39:$AC39=""))<>26,"","This is a blank row") -> 
A31: =IF('Trust - Frontsheet'!A40="","",'Trust - Frontsheet'!A40) -> RX4K2MOWBRAY | B31: =IF('Trust - Frontsheet'!A40="","",'Trust - Frontsheet'!D40) -> RX4K2 | C31: =IF(VLOOKUP(A31,'Trust - Frontsheet'!$A$16:$AC$215,5,0)="","",VLOOKUP(A31,'Trust - Frontsheet'!$A$16:$AC$216,5,0)) -> MONKWEARMOUTH HOSPITAL | D31: =IF(VLOOKUP(A31,'Trust - Frontsheet'!$A$16:$AC$215,6,0)="","",VLOOKUP(A31,'Trust - Frontsheet'!$A$16:$AC$216,6,0)) -> MOWBRAY | E31: =IF(OR(SUMPRODUCT(--(ISTEXT('Trust - Frontsheet'!I40:AC40)))>0,SUMPRODUCT(--(ISERROR('Trust - Frontsheet'!AD40:AT40)))>0),"There is invalid data on this row",IF(SUMPRODUCT(--('Trust - Frontsheet'!I40:AC40<0))>0,"This row contains negative values",IF(AND(L31="This is a blank Row",COUNTBLANK(INDIRECT("L" & ROW() + 1 & ":L" & 206))>0),"No blank rows in the data",""))) ->  | F31: =IF(A31 = "","",IF('Trust - Frontsheet'!D40="", "Site code not present","")) ->  | G31: =IF('Trust - Frontsheet'!D40="","",IF(VLOOKUP(A31,'Trust - Frontsheet'!$A$16:$AC$215,6,0)="","Ward name not present","")) ->  | H31: =IF(A31="","",IF(VLOOKUP(A31,'Trust - Frontsheet'!$A$16:$AC$215,7,0)="","Specialty 1 has not been selected","")) ->  | I31: =IF(A31="","",IF(OR(COUNTIF(Specialties,VLOOKUP(A31,'Trust - Frontsheet'!$A$16:$AC$215,7,0))=0, AND(COUNTIF(Specialties,VLOOKUP(A31,'Trust - Frontsheet'!$A$16:$AC$215,8,0))=0,VLOOKUP(A31,'Trust - Frontsheet'!$A$16:$AC$215,8,0)<>"")),"You have entered unacceptable specialties.","")) ->  | J31: =IF(A31="","",IF(AND(RIGHT(VLOOKUP(A31,'Trust - Frontsheet'!$A$16:$AC$215,7,0),3)<>RIGHT(VLOOKUP(A31,'Trust - Frontsheet'!$A$16:$AC$215,8,0),3),VLOOKUP(A31,'Trust - Frontsheet'!$A$16:$AC$215,8,0)<>""),"Covid statuses do not match","")) ->  | L31: =IF(SUMPRODUCT(--('Trust - Frontsheet'!$D40:$AC40=""))<>26,"","This is a blank row") -> 
A32: =IF('Trust - Frontsheet'!A41="","",'Trust - Frontsheet'!A41) -> RX4E2NEWTON | B32: =IF('Trust - Frontsheet'!A41="","",'Trust - Frontsheet'!D41) -> RX4E2 | C32: =IF(VLOOKUP(A32,'Trust - Frontsheet'!$A$16:$AC$215,5,0)="","",VLOOKUP(A32,'Trust - Frontsheet'!$A$16:$AC$216,5,0)) -> ST GEORGES HOSPITAL SITE (MORPETH) | D32: =IF(VLOOKUP(A32,'Trust - Frontsheet'!$A$16:$AC$215,6,0)="","",VLOOKUP(A32,'Trust - Frontsheet'!$A$16:$AC$216,6,0)) -> NEWTON | E32: =IF(OR(SUMPRODUCT(--(ISTEXT('Trust - Frontsheet'!I41:AC41)))>0,SUMPRODUCT(--(ISERROR('Trust - Frontsheet'!AD41:AT41)))>0),"There is invalid data on this row",IF(SUMPRODUCT(--('Trust - Frontsheet'!I41:AC41<0))>0,"This row contains negative values",IF(AND(L32="This is a blank Row",COUNTBLANK(INDIRECT("L" & ROW() + 1 & ":L" & 206))>0),"No blank rows in the data",""))) ->  | F32: =IF(A32 = "","",IF('Trust - Frontsheet'!D41="", "Site code not present","")) ->  | G32: =IF('Trust - Frontsheet'!D41="","",IF(VLOOKUP(A32,'Trust - Frontsheet'!$A$16:$AC$215,6,0)="","Ward name not present","")) ->  | H32: =IF(A32="","",IF(VLOOKUP(A32,'Trust - Frontsheet'!$A$16:$AC$215,7,0)="","Specialty 1 has not been selected","")) ->  | I32: =IF(A32="","",IF(OR(COUNTIF(Specialties,VLOOKUP(A32,'Trust - Frontsheet'!$A$16:$AC$215,7,0))=0, AND(COUNTIF(Specialties,VLOOKUP(A32,'Trust - Frontsheet'!$A$16:$AC$215,8,0))=0,VLOOKUP(A32,'Trust - Frontsheet'!$A$16:$AC$215,8,0)<>"")),"You have entered unacceptable specialties.","")) ->  | J32: =IF(A32="","",IF(AND(RIGHT(VLOOKUP(A32,'Trust - Frontsheet'!$A$16:$AC$215,7,0),3)<>RIGHT(VLOOKUP(A32,'Trust - Frontsheet'!$A$16:$AC$215,8,0),3),VLOOKUP(A32,'Trust - Frontsheet'!$A$16:$AC$215,8,0)<>""),"Covid statuses do not match","")) ->  | L32: =IF(SUMPRODUCT(--('Trust - Frontsheet'!$D41:$AC41=""))<>26,"","This is a blank row") -> 
A33: =IF('Trust - Frontsheet'!A42="","",'Trust - Frontsheet'!A42) -> RX4E4OSWIN | B33: =IF('Trust - Frontsheet'!A42="","",'Trust - Frontsheet'!D42) -> RX4E4 | C33: =IF(VLOOKUP(A33,'Trust - Frontsheet'!$A$16:$AC$215,5,0)="","",VLOOKUP(A33,'Trust - Frontsheet'!$A$16:$AC$216,5,0)) -> ST NICHOLAS HOSPITAL (NEWCASTLE UPON TYNE) | D33: =IF(VLOOKUP(A33,'Trust - Frontsheet'!$A$16:$AC$215,6,0)="","",VLOOKUP(A33,'Trust - Frontsheet'!$A$16:$AC$216,6,0)) -> OSWIN | E33: =IF(OR(SUMPRODUCT(--(ISTEXT('Trust - Frontsheet'!I42:AC42)))>0,SUMPRODUCT(--(ISERROR('Trust - Frontsheet'!AD42:AT42)))>0),"There is invalid data on this row",IF(SUMPRODUCT(--('Trust - Frontsheet'!I42:AC42<0))>0,"This row contains negative values",IF(AND(L33="This is a blank Row",COUNTBLANK(INDIRECT("L" & ROW() + 1 & ":L" & 206))>0),"No blank rows in the data",""))) ->  | F33: =IF(A33 = "","",IF('Trust - Frontsheet'!D42="", "Site code not present","")) ->  | G33: =IF('Trust - Frontsheet'!D42="","",IF(VLOOKUP(A33,'Trust - Frontsheet'!$A$16:$AC$215,6,0)="","Ward name not present","")) ->  | H33: =IF(A33="","",IF(VLOOKUP(A33,'Trust - Frontsheet'!$A$16:$AC$215,7,0)="","Specialty 1 has not been selected","")) ->  | I33: =IF(A33="","",IF(OR(COUNTIF(Specialties,VLOOKUP(A33,'Trust - Frontsheet'!$A$16:$AC$215,7,0))=0, AND(COUNTIF(Specialties,VLOOKUP(A33,'Trust - Frontsheet'!$A$16:$AC$215,8,0))=0,VLOOKUP(A33,'Trust - Frontsheet'!$A$16:$AC$215,8,0)<>"")),"You have entered unacceptable specialties.","")) ->  | J33: =IF(A33="","",IF(AND(RIGHT(VLOOKUP(A33,'Trust - Frontsheet'!$A$16:$AC$215,7,0),3)<>RIGHT(VLOOKUP(A33,'Trust - Frontsheet'!$A$16:$AC$215,8,0),3),VLOOKUP(A33,'Trust - Frontsheet'!$A$16:$AC$215,8,0)<>""),"Covid statuses do not match","")) ->  | L33: =IF(SUMPRODUCT(--('Trust - Frontsheet'!$D42:$AC42=""))<>26,"","This is a blank row") -> 
A34: =IF('Trust - Frontsheet'!A43="","",'Trust - Frontsheet'!A43) -> RX4E4RADS AT GIBSIDE | B34: =IF('Trust - Frontsheet'!A43="","",'Trust - Frontsheet'!D43) -> RX4E4 | C34: =IF(VLOOKUP(A34,'Trust - Frontsheet'!$A$16:$AC$215,5,0)="","",VLOOKUP(A34,'Trust - Frontsheet'!$A$16:$AC$216,5,0)) -> ST NICHOLAS HOSPITAL (NEWCASTLE UPON TYNE) | D34: =IF(VLOOKUP(A34,'Trust - Frontsheet'!$A$16:$AC$215,6,0)="","",VLOOKUP(A34,'Trust - Frontsheet'!$A$16:$AC$216,6,0)) -> RADS AT GIBSIDE | E34: =IF(OR(SUMPRODUCT(--(ISTEXT('Trust - Frontsheet'!I43:AC43)))>0,SUMPRODUCT(--(ISERROR('Trust - Frontsheet'!AD43:AT43)))>0),"There is invalid data on this row",IF(SUMPRODUCT(--('Trust - Frontsheet'!I43:AC43<0))>0,"This row contains negative values",IF(AND(L34="This is a blank Row",COUNTBLANK(INDIRECT("L" & ROW() + 1 & ":L" & 206))>0),"No blank rows in the data",""))) ->  | F34: =IF(A34 = "","",IF('Trust - Frontsheet'!D43="", "Site code not present","")) ->  | G34: =IF('Trust - Frontsheet'!D43="","",IF(VLOOKUP(A34,'Trust - Frontsheet'!$A$16:$AC$215,6,0)="","Ward name not present","")) ->  | H34: =IF(A34="","",IF(VLOOKUP(A34,'Trust - Frontsheet'!$A$16:$AC$215,7,0)="","Specialty 1 has not been selected","")) ->  | I34: =IF(A34="","",IF(OR(COUNTIF(Specialties,VLOOKUP(A34,'Trust - Frontsheet'!$A$16:$AC$215,7,0))=0, AND(COUNTIF(Specialties,VLOOKUP(A34,'Trust - Frontsheet'!$A$16:$AC$215,8,0))=0,VLOOKUP(A34,'Trust - Frontsheet'!$A$16:$AC$215,8,0)<>"")),"You have entered unacceptable specialties.","")) ->  | J34: =IF(A34="","",IF(AND(RIGHT(VLOOKUP(A34,'Trust - Frontsheet'!$A$16:$AC$215,7,0),3)<>RIGHT(VLOOKUP(A34,'Trust - Frontsheet'!$A$16:$AC$215,8,0),3),VLOOKUP(A34,'Trust - Frontsheet'!$A$16:$AC$215,8,0)<>""),"Covid statuses do not match","")) ->  | L34: =IF(SUMPRODUCT(--('Trust - Frontsheet'!$D43:$AC43=""))<>26,"","This is a blank row") -> 
A35: =IF('Trust - Frontsheet'!A44="","",'Trust - Frontsheet'!A44) -> RX4CAREDBURN YPU | B35: =IF('Trust - Frontsheet'!A44="","",'Trust - Frontsheet'!D44) -> RX4CA | C35: =IF(VLOOKUP(A35,'Trust - Frontsheet'!$A$16:$AC$215,5,0)="","",VLOOKUP(A35,'Trust - Frontsheet'!$A$16:$AC$216,5,0)) -> FERNDENE | D35: =IF(VLOOKUP(A35,'Trust - Frontsheet'!$A$16:$AC$215,6,0)="","",VLOOKUP(A35,'Trust - Frontsheet'!$A$16:$AC$216,6,0)) -> REDBURN YPU | E35: =IF(OR(SUMPRODUCT(--(ISTEXT('Trust - Frontsheet'!I44:AC44)))>0,SUMPRODUCT(--(ISERROR('Trust - Frontsheet'!AD44:AT44)))>0),"There is invalid data on this row",IF(SUMPRODUCT(--('Trust - Frontsheet'!I44:AC44<0))>0,"This row contains negative values",IF(AND(L35="This is a blank Row",COUNTBLANK(INDIRECT("L" & ROW() + 1 & ":L" & 206))>0),"No blank rows in the data",""))) ->  | F35: =IF(A35 = "","",IF('Trust - Frontsheet'!D44="", "Site code not present","")) ->  | G35: =IF('Trust - Frontsheet'!D44="","",IF(VLOOKUP(A35,'Trust - Frontsheet'!$A$16:$AC$215,6,0)="","Ward name not present","")) ->  | H35: =IF(A35="","",IF(VLOOKUP(A35,'Trust - Frontsheet'!$A$16:$AC$215,7,0)="","Specialty 1 has not been selected","")) ->  | I35: =IF(A35="","",IF(OR(COUNTIF(Specialties,VLOOKUP(A35,'Trust - Frontsheet'!$A$16:$AC$215,7,0))=0, AND(COUNTIF(Specialties,VLOOKUP(A35,'Trust - Frontsheet'!$A$16:$AC$215,8,0))=0,VLOOKUP(A35,'Trust - Frontsheet'!$A$16:$AC$215,8,0)<>"")),"You have entered unacceptable specialties.","")) ->  | J35: =IF(A35="","",IF(AND(RIGHT(VLOOKUP(A35,'Trust - Frontsheet'!$A$16:$AC$215,7,0),3)<>RIGHT(VLOOKUP(A35,'Trust - Frontsheet'!$A$16:$AC$215,8,0),3),VLOOKUP(A35,'Trust - Frontsheet'!$A$16:$AC$215,8,0)<>""),"Covid statuses do not match","")) ->  | L35: =IF(SUMPRODUCT(--('Trust - Frontsheet'!$D44:$AC44=""))<>26,"","This is a blank row") -> 
A36: =IF('Trust - Frontsheet'!A45="","",'Trust - Frontsheet'!A45) -> RX4K2ROKER | B36: =IF('Trust - Frontsheet'!A45="","",'Trust - Frontsheet'!D45) -> RX4K2 | C36: =IF(VLOOKUP(A36,'Trust - Frontsheet'!$A$16:$AC$215,5,0)="","",VLOOKUP(A36,'Trust - Frontsheet'!$A$16:$AC$216,5,0)) -> MONKWEARMOUTH HOSPITAL | D36: =IF(VLOOKUP(A36,'Trust - Frontsheet'!$A$16:$AC$215,6,0)="","",VLOOKUP(A36,'Trust - Frontsheet'!$A$16:$AC$216,6,0)) -> ROKER | E36: =IF(OR(SUMPRODUCT(--(ISTEXT('Trust - Frontsheet'!I45:AC45)))>0,SUMPRODUCT(--(ISERROR('Trust - Frontsheet'!AD45:AT45)))>0),"There is invalid data on this row",IF(SUMPRODUCT(--('Trust - Frontsheet'!I45:AC45<0))>0,"This row contains negative values",IF(AND(L36="This is a blank Row",COUNTBLANK(INDIRECT("L" & ROW() + 1 & ":L" & 206))>0),"No blank rows in the data",""))) ->  | F36: =IF(A36 = "","",IF('Trust - Frontsheet'!D45="", "Site code not present","")) ->  | G36: =IF('Trust - Frontsheet'!D45="","",IF(VLOOKUP(A36,'Trust - Frontsheet'!$A$16:$AC$215,6,0)="","Ward name not present","")) ->  | H36: =IF(A36="","",IF(VLOOKUP(A36,'Trust - Frontsheet'!$A$16:$AC$215,7,0)="","Specialty 1 has not been selected","")) ->  | I36: =IF(A36="","",IF(OR(COUNTIF(Specialties,VLOOKUP(A36,'Trust - Frontsheet'!$A$16:$AC$215,7,0))=0, AND(COUNTIF(Specialties,VLOOKUP(A36,'Trust - Frontsheet'!$A$16:$AC$215,8,0))=0,VLOOKUP(A36,'Trust - Frontsheet'!$A$16:$AC$215,8,0)<>"")),"You have entered unacceptable specialties.","")) ->  | J36: =IF(A36="","",IF(AND(RIGHT(VLOOKUP(A36,'Trust - Frontsheet'!$A$16:$AC$215,7,0),3)<>RIGHT(VLOOKUP(A36,'Trust - Frontsheet'!$A$16:$AC$215,8,0),3),VLOOKUP(A36,'Trust - Frontsheet'!$A$16:$AC$215,8,0)<>""),"Covid statuses do not match","")) ->  | L36: =IF(SUMPRODUCT(--('Trust - Frontsheet'!$D45:$AC45=""))<>26,"","This is a blank row") -> 
A37: =IF('Trust - Frontsheet'!A46="","",'Trust - Frontsheet'!A46) -> RX4Y0 ROSE LODGE | B37: =IF('Trust - Frontsheet'!A46="","",'Trust - Frontsheet'!D46) -> RX4Y0 | C37: =IF(VLOOKUP(A37,'Trust - Frontsheet'!$A$16:$AC$215,5,0)="","",VLOOKUP(A37,'Trust - Frontsheet'!$A$16:$AC$216,5,0)) -> ROSE LODGE | D37: =IF(VLOOKUP(A37,'Trust - Frontsheet'!$A$16:$AC$215,6,0)="","",VLOOKUP(A37,'Trust - Frontsheet'!$A$16:$AC$216,6,0)) -> ROSE LODGE | E37: =IF(OR(SUMPRODUCT(--(ISTEXT('Trust - Frontsheet'!I46:AC46)))>0,SUMPRODUCT(--(ISERROR('Trust - Frontsheet'!AD46:AT46)))>0),"There is invalid data on this row",IF(SUMPRODUCT(--('Trust - Frontsheet'!I46:AC46<0))>0,"This row contains negative values",IF(AND(L37="This is a blank Row",COUNTBLANK(INDIRECT("L" & ROW() + 1 & ":L" & 206))>0),"No blank rows in the data",""))) ->  | F37: =IF(A37 = "","",IF('Trust - Frontsheet'!D46="", "Site code not present","")) ->  | G37: =IF('Trust - Frontsheet'!D46="","",IF(VLOOKUP(A37,'Trust - Frontsheet'!$A$16:$AC$215,6,0)="","Ward name not present","")) ->  | H37: =IF(A37="","",IF(VLOOKUP(A37,'Trust - Frontsheet'!$A$16:$AC$215,7,0)="","Specialty 1 has not been selected","")) ->  | I37: =IF(A37="","",IF(OR(COUNTIF(Specialties,VLOOKUP(A37,'Trust - Frontsheet'!$A$16:$AC$215,7,0))=0, AND(COUNTIF(Specialties,VLOOKUP(A37,'Trust - Frontsheet'!$A$16:$AC$215,8,0))=0,VLOOKUP(A37,'Trust - Frontsheet'!$A$16:$AC$215,8,0)<>"")),"You have entered unacceptable specialties.","")) ->  | J37: =IF(A37="","",IF(AND(RIGHT(VLOOKUP(A37,'Trust - Frontsheet'!$A$16:$AC$215,7,0),3)<>RIGHT(VLOOKUP(A37,'Trust - Frontsheet'!$A$16:$AC$215,8,0),3),VLOOKUP(A37,'Trust - Frontsheet'!$A$16:$AC$215,8,0)<>""),"Covid statuses do not match","")) ->  | L37: =IF(SUMPRODUCT(--('Trust - Frontsheet'!$D46:$AC46=""))<>26,"","This is a blank row") -> 
A38: =IF('Trust - Frontsheet'!A47="","",'Trust - Frontsheet'!A47) -> RX4Z3SHOREDRIFT - BEDE 1 | B38: =IF('Trust - Frontsheet'!A47="","",'Trust - Frontsheet'!D47) -> RX4Z3 | C38: =IF(VLOOKUP(A38,'Trust - Frontsheet'!$A$16:$AC$215,5,0)="","",VLOOKUP(A38,'Trust - Frontsheet'!$A$16:$AC$216,5,0)) -> HOPEWOOD PARK | D38: =IF(VLOOKUP(A38,'Trust - Frontsheet'!$A$16:$AC$215,6,0)="","",VLOOKUP(A38,'Trust - Frontsheet'!$A$16:$AC$216,6,0)) -> SHOREDRIFT - BEDE 1 | E38: =IF(OR(SUMPRODUCT(--(ISTEXT('Trust - Frontsheet'!I47:AC47)))>0,SUMPRODUCT(--(ISERROR('Trust - Frontsheet'!AD47:AT47)))>0),"There is invalid data on this row",IF(SUMPRODUCT(--('Trust - Frontsheet'!I47:AC47<0))>0,"This row contains negative values",IF(AND(L38="This is a blank Row",COUNTBLANK(INDIRECT("L" & ROW() + 1 & ":L" & 206))>0),"No blank rows in the data",""))) ->  | F38: =IF(A38 = "","",IF('Trust - Frontsheet'!D47="", "Site code not present","")) ->  | G38: =IF('Trust - Frontsheet'!D47="","",IF(VLOOKUP(A38,'Trust - Frontsheet'!$A$16:$AC$215,6,0)="","Ward name not present","")) ->  | H38: =IF(A38="","",IF(VLOOKUP(A38,'Trust - Frontsheet'!$A$16:$AC$215,7,0)="","Specialty 1 has not been selected","")) ->  | I38: =IF(A38="","",IF(OR(COUNTIF(Specialties,VLOOKUP(A38,'Trust - Frontsheet'!$A$16:$AC$215,7,0))=0, AND(COUNTIF(Specialties,VLOOKUP(A38,'Trust - Frontsheet'!$A$16:$AC$215,8,0))=0,VLOOKUP(A38,'Trust - Frontsheet'!$A$16:$AC$215,8,0)<>"")),"You have entered unacceptable specialties.","")) ->  | J38: =IF(A38="","",IF(AND(RIGHT(VLOOKUP(A38,'Trust - Frontsheet'!$A$16:$AC$215,7,0),3)<>RIGHT(VLOOKUP(A38,'Trust - Frontsheet'!$A$16:$AC$215,8,0),3),VLOOKUP(A38,'Trust - Frontsheet'!$A$16:$AC$215,8,0)<>""),"Covid statuses do not match","")) ->  | L38: =IF(SUMPRODUCT(--('Trust - Frontsheet'!$D47:$AC47=""))<>26,"","This is a blank row") -> 
A39: =IF('Trust - Frontsheet'!A48="","",'Trust - Frontsheet'!A48) -> RX4Z3SPRINGRISE - WEST WILLOWS | B39: =IF('Trust - Frontsheet'!A48="","",'Trust - Frontsheet'!D48) -> RX4Z3 | C39: =IF(VLOOKUP(A39,'Trust - Frontsheet'!$A$16:$AC$215,5,0)="","",VLOOKUP(A39,'Trust - Frontsheet'!$A$16:$AC$216,5,0)) -> HOPEWOOD PARK | D39: =IF(VLOOKUP(A39,'Trust - Frontsheet'!$A$16:$AC$215,6,0)="","",VLOOKUP(A39,'Trust - Frontsheet'!$A$16:$AC$216,6,0)) -> SPRINGRISE - WEST WILLOWS | E39: =IF(OR(SUMPRODUCT(--(ISTEXT('Trust - Frontsheet'!I48:AC48)))>0,SUMPRODUCT(--(ISERROR('Trust - Frontsheet'!AD48:AT48)))>0),"There is invalid data on this row",IF(SUMPRODUCT(--('Trust - Frontsheet'!I48:AC48<0))>0,"This row contains negative values",IF(AND(L39="This is a blank Row",COUNTBLANK(INDIRECT("L" & ROW() + 1 & ":L" & 206))>0),"No blank rows in the data",""))) ->  | F39: =IF(A39 = "","",IF('Trust - Frontsheet'!D48="", "Site code not present","")) ->  | G39: =IF('Trust - Frontsheet'!D48="","",IF(VLOOKUP(A39,'Trust - Frontsheet'!$A$16:$AC$215,6,0)="","Ward name not present","")) ->  | H39: =IF(A39="","",IF(VLOOKUP(A39,'Trust - Frontsheet'!$A$16:$AC$215,7,0)="","Specialty 1 has not been selected","")) ->  | I39: =IF(A39="","",IF(OR(COUNTIF(Specialties,VLOOKUP(A39,'Trust - Frontsheet'!$A$16:$AC$215,7,0))=0, AND(COUNTIF(Specialties,VLOOKUP(A39,'Trust - Frontsheet'!$A$16:$AC$215,8,0))=0,VLOOKUP(A39,'Trust - Frontsheet'!$A$16:$AC$215,8,0)<>"")),"You have entered unacceptable specialties.","")) ->  | J39: =IF(A39="","",IF(AND(RIGHT(VLOOKUP(A39,'Trust - Frontsheet'!$A$16:$AC$215,7,0),3)<>RIGHT(VLOOKUP(A39,'Trust - Frontsheet'!$A$16:$AC$215,8,0),3),VLOOKUP(A39,'Trust - Frontsheet'!$A$16:$AC$215,8,0)<>""),"Covid statuses do not match","")) ->  | L39: =IF(SUMPRODUCT(--('Trust - Frontsheet'!$D48:$AC48=""))<>26,"","This is a blank row") -> 
A40: =IF('Trust - Frontsheet'!A49="","",'Trust - Frontsheet'!A49) -> RX4CASTEPHENSON HOUSE | B40: =IF('Trust - Frontsheet'!A49="","",'Trust - Frontsheet'!D49) -> RX4CA | C40: =IF(VLOOKUP(A40,'Trust - Frontsheet'!$A$16:$AC$215,5,0)="","",VLOOKUP(A40,'Trust - Frontsheet'!$A$16:$AC$216,5,0)) -> FERNDENE | D40: =IF(VLOOKUP(A40,'Trust - Frontsheet'!$A$16:$AC$215,6,0)="","",VLOOKUP(A40,'Trust - Frontsheet'!$A$16:$AC$216,6,0)) -> STEPHENSON HOUSE | E40: =IF(OR(SUMPRODUCT(--(ISTEXT('Trust - Frontsheet'!I49:AC49)))>0,SUMPRODUCT(--(ISERROR('Trust - Frontsheet'!AD49:AT49)))>0),"There is invalid data on this row",IF(SUMPRODUCT(--('Trust - Frontsheet'!I49:AC49<0))>0,"This row contains negative values",IF(AND(L40="This is a blank Row",COUNTBLANK(INDIRECT("L" & ROW() + 1 & ":L" & 206))>0),"No blank rows in the data",""))) ->  | F40: =IF(A40 = "","",IF('Trust - Frontsheet'!D49="", "Site code not present","")) ->  | G40: =IF('Trust - Frontsheet'!D49="","",IF(VLOOKUP(A40,'Trust - Frontsheet'!$A$16:$AC$215,6,0)="","Ward name not present","")) ->  | H40: =IF(A40="","",IF(VLOOKUP(A40,'Trust - Frontsheet'!$A$16:$AC$215,7,0)="","Specialty 1 has not been selected","")) ->  | I40: =IF(A40="","",IF(OR(COUNTIF(Specialties,VLOOKUP(A40,'Trust - Frontsheet'!$A$16:$AC$215,7,0))=0, AND(COUNTIF(Specialties,VLOOKUP(A40,'Trust - Frontsheet'!$A$16:$AC$215,8,0))=0,VLOOKUP(A40,'Trust - Frontsheet'!$A$16:$AC$215,8,0)<>"")),"You have entered unacceptable specialties.","")) ->  | J40: =IF(A40="","",IF(AND(RIGHT(VLOOKUP(A40,'Trust - Frontsheet'!$A$16:$AC$215,7,0),3)<>RIGHT(VLOOKUP(A40,'Trust - Frontsheet'!$A$16:$AC$215,8,0),3),VLOOKUP(A40,'Trust - Frontsheet'!$A$16:$AC$215,8,0)<>""),"Covid statuses do not match","")) ->  | L40: =IF(SUMPRODUCT(--('Trust - Frontsheet'!$D49:$AC49=""))<>26,"","This is a blank row") -> 
A41: =IF('Trust - Frontsheet'!A50="","",'Trust - Frontsheet'!A50) -> RX4W4WALKERGATE WARD 1 | B41: =IF('Trust - Frontsheet'!A50="","",'Trust - Frontsheet'!D50) -> RX4W4 | C41: =IF(VLOOKUP(A41,'Trust - Frontsheet'!$A$16:$AC$215,5,0)="","",VLOOKUP(A41,'Trust - Frontsheet'!$A$16:$AC$216,5,0)) -> WALKERGATE PARK HOSPITAL | D41: =IF(VLOOKUP(A41,'Trust - Frontsheet'!$A$16:$AC$215,6,0)="","",VLOOKUP(A41,'Trust - Frontsheet'!$A$16:$AC$216,6,0)) -> WALKERGATE WARD 1 | E41: =IF(OR(SUMPRODUCT(--(ISTEXT('Trust - Frontsheet'!I50:AC50)))>0,SUMPRODUCT(--(ISERROR('Trust - Frontsheet'!AD50:AT50)))>0),"There is invalid data on this row",IF(SUMPRODUCT(--('Trust - Frontsheet'!I50:AC50<0))>0,"This row contains negative values",IF(AND(L41="This is a blank Row",COUNTBLANK(INDIRECT("L" & ROW() + 1 & ":L" & 206))>0),"No blank rows in the data",""))) ->  | F41: =IF(A41 = "","",IF('Trust - Frontsheet'!D50="", "Site code not present","")) ->  | G41: =IF('Trust - Frontsheet'!D50="","",IF(VLOOKUP(A41,'Trust - Frontsheet'!$A$16:$AC$215,6,0)="","Ward name not present","")) ->  | H41: =IF(A41="","",IF(VLOOKUP(A41,'Trust - Frontsheet'!$A$16:$AC$215,7,0)="","Specialty 1 has not been selected","")) ->  | I41: =IF(A41="","",IF(OR(COUNTIF(Specialties,VLOOKUP(A41,'Trust - Frontsheet'!$A$16:$AC$215,7,0))=0, AND(COUNTIF(Specialties,VLOOKUP(A41,'Trust - Frontsheet'!$A$16:$AC$215,8,0))=0,VLOOKUP(A41,'Trust - Frontsheet'!$A$16:$AC$215,8,0)<>"")),"You have entered unacceptable specialties.","")) ->  | J41: =IF(A41="","",IF(AND(RIGHT(VLOOKUP(A41,'Trust - Frontsheet'!$A$16:$AC$215,7,0),3)<>RIGHT(VLOOKUP(A41,'Trust - Frontsheet'!$A$16:$AC$215,8,0),3),VLOOKUP(A41,'Trust - Frontsheet'!$A$16:$AC$215,8,0)<>""),"Covid statuses do not match","")) ->  | L41: =IF(SUMPRODUCT(--('Trust - Frontsheet'!$D50:$AC50=""))<>26,"","This is a blank row") -> 
A42: =IF('Trust - Frontsheet'!A51="","",'Trust - Frontsheet'!A51) -> RX4W4WALKERGATE WARD 2 | B42: =IF('Trust - Frontsheet'!A51="","",'Trust - Frontsheet'!D51) -> RX4W4 | C42: =IF(VLOOKUP(A42,'Trust - Frontsheet'!$A$16:$AC$215,5,0)="","",VLOOKUP(A42,'Trust - Frontsheet'!$A$16:$AC$216,5,0)) -> WALKERGATE PARK HOSPITAL | D42: =IF(VLOOKUP(A42,'Trust - Frontsheet'!$A$16:$AC$215,6,0)="","",VLOOKUP(A42,'Trust - Frontsheet'!$A$16:$AC$216,6,0)) -> WALKERGATE WARD 2 | E42: =IF(OR(SUMPRODUCT(--(ISTEXT('Trust - Frontsheet'!I51:AC51)))>0,SUMPRODUCT(--(ISERROR('Trust - Frontsheet'!AD51:AT51)))>0),"There is invalid data on this row",IF(SUMPRODUCT(--('Trust - Frontsheet'!I51:AC51<0))>0,"This row contains negative values",IF(AND(L42="This is a blank Row",COUNTBLANK(INDIRECT("L" & ROW() + 1 & ":L" & 206))>0),"No blank rows in the data",""))) ->  | F42: =IF(A42 = "","",IF('Trust - Frontsheet'!D51="", "Site code not present","")) ->  | G42: =IF('Trust - Frontsheet'!D51="","",IF(VLOOKUP(A42,'Trust - Frontsheet'!$A$16:$AC$215,6,0)="","Ward name not present","")) ->  | H42: =IF(A42="","",IF(VLOOKUP(A42,'Trust - Frontsheet'!$A$16:$AC$215,7,0)="","Specialty 1 has not been selected","")) ->  | I42: =IF(A42="","",IF(OR(COUNTIF(Specialties,VLOOKUP(A42,'Trust - Frontsheet'!$A$16:$AC$215,7,0))=0, AND(COUNTIF(Specialties,VLOOKUP(A42,'Trust - Frontsheet'!$A$16:$AC$215,8,0))=0,VLOOKUP(A42,'Trust - Frontsheet'!$A$16:$AC$215,8,0)<>"")),"You have entered unacceptable specialties.","")) ->  | J42: =IF(A42="","",IF(AND(RIGHT(VLOOKUP(A42,'Trust - Frontsheet'!$A$16:$AC$215,7,0),3)<>RIGHT(VLOOKUP(A42,'Trust - Frontsheet'!$A$16:$AC$215,8,0),3),VLOOKUP(A42,'Trust - Frontsheet'!$A$16:$AC$215,8,0)<>""),"Covid statuses do not match","")) ->  | L42: =IF(SUMPRODUCT(--('Trust - Frontsheet'!$D51:$AC51=""))<>26,"","This is a blank row") -> 
A43: =IF('Trust - Frontsheet'!A52="","",'Trust - Frontsheet'!A52) -> RX4W4WALKERGATE WARD 3 | B43: =IF('Trust - Frontsheet'!A52="","",'Trust - Frontsheet'!D52) -> RX4W4 | C43: =IF(VLOOKUP(A43,'Trust - Frontsheet'!$A$16:$AC$215,5,0)="","",VLOOKUP(A43,'Trust - Frontsheet'!$A$16:$AC$216,5,0)) -> WALKERGATE PARK HOSPITAL | D43: =IF(VLOOKUP(A43,'Trust - Frontsheet'!$A$16:$AC$215,6,0)="","",VLOOKUP(A43,'Trust - Frontsheet'!$A$16:$AC$216,6,0)) -> WALKERGATE WARD 3 | E43: =IF(OR(SUMPRODUCT(--(ISTEXT('Trust - Frontsheet'!I52:AC52)))>0,SUMPRODUCT(--(ISERROR('Trust - Frontsheet'!AD52:AT52)))>0),"There is invalid data on this row",IF(SUMPRODUCT(--('Trust - Frontsheet'!I52:AC52<0))>0,"This row contains negative values",IF(AND(L43="This is a blank Row",COUNTBLANK(INDIRECT("L" & ROW() + 1 & ":L" & 206))>0),"No blank rows in the data",""))) ->  | F43: =IF(A43 = "","",IF('Trust - Frontsheet'!D52="", "Site code not present","")) ->  | G43: =IF('Trust - Frontsheet'!D52="","",IF(VLOOKUP(A43,'Trust - Frontsheet'!$A$16:$AC$215,6,0)="","Ward name not present","")) ->  | H43: =IF(A43="","",IF(VLOOKUP(A43,'Trust - Frontsheet'!$A$16:$AC$215,7,0)="","Specialty 1 has not been selected","")) ->  | I43: =IF(A43="","",IF(OR(COUNTIF(Specialties,VLOOKUP(A43,'Trust - Frontsheet'!$A$16:$AC$215,7,0))=0, AND(COUNTIF(Specialties,VLOOKUP(A43,'Trust - Frontsheet'!$A$16:$AC$215,8,0))=0,VLOOKUP(A43,'Trust - Frontsheet'!$A$16:$AC$215,8,0)<>"")),"You have entered unacceptable specialties.","")) ->  | J43: =IF(A43="","",IF(AND(RIGHT(VLOOKUP(A43,'Trust - Frontsheet'!$A$16:$AC$215,7,0),3)<>RIGHT(VLOOKUP(A43,'Trust - Frontsheet'!$A$16:$AC$215,8,0),3),VLOOKUP(A43,'Trust - Frontsheet'!$A$16:$AC$215,8,0)<>""),"Covid statuses do not match","")) ->  | L43: =IF(SUMPRODUCT(--('Trust - Frontsheet'!$D52:$AC52=""))<>26,"","This is a blank row") -> 
A44: =IF('Trust - Frontsheet'!A53="","",'Trust - Frontsheet'!A53) -> RX4W4WALKERGATE WARD 4 | B44: =IF('Trust - Frontsheet'!A53="","",'Trust - Frontsheet'!D53) -> RX4W4 | C44: =IF(VLOOKUP(A44,'Trust - Frontsheet'!$A$16:$AC$215,5,0)="","",VLOOKUP(A44,'Trust - Frontsheet'!$A$16:$AC$216,5,0)) -> WALKERGATE PARK HOSPITAL | D44: =IF(VLOOKUP(A44,'Trust - Frontsheet'!$A$16:$AC$215,6,0)="","",VLOOKUP(A44,'Trust - Frontsheet'!$A$16:$AC$216,6,0)) -> WALKERGATE WARD 4 | E44: =IF(OR(SUMPRODUCT(--(ISTEXT('Trust - Frontsheet'!I53:AC53)))>0,SUMPRODUCT(--(ISERROR('Trust - Frontsheet'!AD53:AT53)))>0),"There is invalid data on this row",IF(SUMPRODUCT(--('Trust - Frontsheet'!I53:AC53<0))>0,"This row contains negative values",IF(AND(L44="This is a blank Row",COUNTBLANK(INDIRECT("L" & ROW() + 1 & ":L" & 206))>0),"No blank rows in the data",""))) ->  | F44: =IF(A44 = "","",IF('Trust - Frontsheet'!D53="", "Site code not present","")) ->  | G44: =IF('Trust - Frontsheet'!D53="","",IF(VLOOKUP(A44,'Trust - Frontsheet'!$A$16:$AC$215,6,0)="","Ward name not present","")) ->  | H44: =IF(A44="","",IF(VLOOKUP(A44,'Trust - Frontsheet'!$A$16:$AC$215,7,0)="","Specialty 1 has not been selected","")) ->  | I44: =IF(A44="","",IF(OR(COUNTIF(Specialties,VLOOKUP(A44,'Trust - Frontsheet'!$A$16:$AC$215,7,0))=0, AND(COUNTIF(Specialties,VLOOKUP(A44,'Trust - Frontsheet'!$A$16:$AC$215,8,0))=0,VLOOKUP(A44,'Trust - Frontsheet'!$A$16:$AC$215,8,0)<>"")),"You have entered unacceptable specialties.","")) ->  | J44: =IF(A44="","",IF(AND(RIGHT(VLOOKUP(A44,'Trust - Frontsheet'!$A$16:$AC$215,7,0),3)<>RIGHT(VLOOKUP(A44,'Trust - Frontsheet'!$A$16:$AC$215,8,0),3),VLOOKUP(A44,'Trust - Frontsheet'!$A$16:$AC$215,8,0)<>""),"Covid statuses do not match","")) ->  | L44: =IF(SUMPRODUCT(--('Trust - Frontsheet'!$D53:$AC53=""))<>26,"","This is a blank row") -> 
A45: =IF('Trust - Frontsheet'!A54="","",'Trust - Frontsheet'!A54) -> RX41MWARD 31A | B45: =IF('Trust - Frontsheet'!A54="","",'Trust - Frontsheet'!D54) -> RX41M | C45: =IF(VLOOKUP(A45,'Trust - Frontsheet'!$A$16:$AC$215,5,0)="","",VLOOKUP(A45,'Trust - Frontsheet'!$A$16:$AC$216,5,0)) -> REGIONAL EATING DISORDERS | D45: =IF(VLOOKUP(A45,'Trust - Frontsheet'!$A$16:$AC$215,6,0)="","",VLOOKUP(A45,'Trust - Frontsheet'!$A$16:$AC$216,6,0)) -> WARD 31A | E45: =IF(OR(SUMPRODUCT(--(ISTEXT('Trust - Frontsheet'!I54:AC54)))>0,SUMPRODUCT(--(ISERROR('Trust - Frontsheet'!AD54:AT54)))>0),"There is invalid data on this row",IF(SUMPRODUCT(--('Trust - Frontsheet'!I54:AC54<0))>0,"This row contains negative values",IF(AND(L45="This is a blank Row",COUNTBLANK(INDIRECT("L" & ROW() + 1 & ":L" & 206))>0),"No blank rows in the data",""))) ->  | F45: =IF(A45 = "","",IF('Trust - Frontsheet'!D54="", "Site code not present","")) ->  | G45: =IF('Trust - Frontsheet'!D54="","",IF(VLOOKUP(A45,'Trust - Frontsheet'!$A$16:$AC$215,6,0)="","Ward name not present","")) ->  | H45: =IF(A45="","",IF(VLOOKUP(A45,'Trust - Frontsheet'!$A$16:$AC$215,7,0)="","Specialty 1 has not been selected","")) ->  | I45: =IF(A45="","",IF(OR(COUNTIF(Specialties,VLOOKUP(A45,'Trust - Frontsheet'!$A$16:$AC$215,7,0))=0, AND(COUNTIF(Specialties,VLOOKUP(A45,'Trust - Frontsheet'!$A$16:$AC$215,8,0))=0,VLOOKUP(A45,'Trust - Frontsheet'!$A$16:$AC$215,8,0)<>"")),"You have entered unacceptable specialties.","")) ->  | J45: =IF(A45="","",IF(AND(RIGHT(VLOOKUP(A45,'Trust - Frontsheet'!$A$16:$AC$215,7,0),3)<>RIGHT(VLOOKUP(A45,'Trust - Frontsheet'!$A$16:$AC$215,8,0),3),VLOOKUP(A45,'Trust - Frontsheet'!$A$16:$AC$215,8,0)<>""),"Covid statuses do not match","")) ->  | L45: =IF(SUMPRODUCT(--('Trust - Frontsheet'!$D54:$AC54=""))<>26,"","This is a blank row") -> 
A46: =IF('Trust - Frontsheet'!A55="","",'Trust - Frontsheet'!A55) -> RX4E2WARKWORTH | B46: =IF('Trust - Frontsheet'!A55="","",'Trust - Frontsheet'!D55) -> RX4E2 | C46: =IF(VLOOKUP(A46,'Trust - Frontsheet'!$A$16:$AC$215,5,0)="","",VLOOKUP(A46,'Trust - Frontsheet'!$A$16:$AC$216,5,0)) -> ST GEORGES HOSPITAL SITE (MORPETH) | D46: =IF(VLOOKUP(A46,'Trust - Frontsheet'!$A$16:$AC$215,6,0)="","",VLOOKUP(A46,'Trust - Frontsheet'!$A$16:$AC$216,6,0)) -> WARKWORTH | E46: =IF(OR(SUMPRODUCT(--(ISTEXT('Trust - Frontsheet'!I55:AC55)))>0,SUMPRODUCT(--(ISERROR('Trust - Frontsheet'!AD55:AT55)))>0),"There is invalid data on this row",IF(SUMPRODUCT(--('Trust - Frontsheet'!I55:AC55<0))>0,"This row contains negative values",IF(AND(L46="This is a blank Row",COUNTBLANK(INDIRECT("L" & ROW() + 1 & ":L" & 206))>0),"No blank rows in the data",""))) ->  | F46: =IF(A46 = "","",IF('Trust - Frontsheet'!D55="", "Site code not present","")) ->  | G46: =IF('Trust - Frontsheet'!D55="","",IF(VLOOKUP(A46,'Trust - Frontsheet'!$A$16:$AC$215,6,0)="","Ward name not present","")) ->  | H46: =IF(A46="","",IF(VLOOKUP(A46,'Trust - Frontsheet'!$A$16:$AC$215,7,0)="","Specialty 1 has not been selected","")) ->  | I46: =IF(A46="","",IF(OR(COUNTIF(Specialties,VLOOKUP(A46,'Trust - Frontsheet'!$A$16:$AC$215,7,0))=0, AND(COUNTIF(Specialties,VLOOKUP(A46,'Trust - Frontsheet'!$A$16:$AC$215,8,0))=0,VLOOKUP(A46,'Trust - Frontsheet'!$A$16:$AC$215,8,0)<>"")),"You have entered unacceptable specialties.","")) ->  | J46: =IF(A46="","",IF(AND(RIGHT(VLOOKUP(A46,'Trust - Frontsheet'!$A$16:$AC$215,7,0),3)<>RIGHT(VLOOKUP(A46,'Trust - Frontsheet'!$A$16:$AC$215,8,0),3),VLOOKUP(A46,'Trust - Frontsheet'!$A$16:$AC$215,8,0)<>""),"Covid statuses do not match","")) ->  | L46: =IF(SUMPRODUCT(--('Trust - Frontsheet'!$D55:$AC55=""))<>26,"","This is a blank row") -> 
A47: =IF('Trust - Frontsheet'!A56="","",'Trust - Frontsheet'!A56) -> RX4E4WILLOW VIEW | B47: =IF('Trust - Frontsheet'!A56="","",'Trust - Frontsheet'!D56) -> RX4E4 | C47: =IF(VLOOKUP(A47,'Trust - Frontsheet'!$A$16:$AC$215,5,0)="","",VLOOKUP(A47,'Trust - Frontsheet'!$A$16:$AC$216,5,0)) -> ST NICHOLAS HOSPITAL (NEWCASTLE UPON TYNE) | D47: =IF(VLOOKUP(A47,'Trust - Frontsheet'!$A$16:$AC$215,6,0)="","",VLOOKUP(A47,'Trust - Frontsheet'!$A$16:$AC$216,6,0)) -> WILLOW VIEW | E47: =IF(OR(SUMPRODUCT(--(ISTEXT('Trust - Frontsheet'!I56:AC56)))>0,SUMPRODUCT(--(ISERROR('Trust - Frontsheet'!AD56:AT56)))>0),"There is invalid data on this row",IF(SUMPRODUCT(--('Trust - Frontsheet'!I56:AC56<0))>0,"This row contains negative values",IF(AND(L47="This is a blank Row",COUNTBLANK(INDIRECT("L" & ROW() + 1 & ":L" & 206))>0),"No blank rows in the data",""))) ->  | F47: =IF(A47 = "","",IF('Trust - Frontsheet'!D56="", "Site code not present","")) ->  | G47: =IF('Trust - Frontsheet'!D56="","",IF(VLOOKUP(A47,'Trust - Frontsheet'!$A$16:$AC$215,6,0)="","Ward name not present","")) ->  | H47: =IF(A47="","",IF(VLOOKUP(A47,'Trust - Frontsheet'!$A$16:$AC$215,7,0)="","Specialty 1 has not been selected","")) ->  | I47: =IF(A47="","",IF(OR(COUNTIF(Specialties,VLOOKUP(A47,'Trust - Frontsheet'!$A$16:$AC$215,7,0))=0, AND(COUNTIF(Specialties,VLOOKUP(A47,'Trust - Frontsheet'!$A$16:$AC$215,8,0))=0,VLOOKUP(A47,'Trust - Frontsheet'!$A$16:$AC$215,8,0)<>"")),"You have entered unacceptable specialties.","")) ->  | J47: =IF(A47="","",IF(AND(RIGHT(VLOOKUP(A47,'Trust - Frontsheet'!$A$16:$AC$215,7,0),3)<>RIGHT(VLOOKUP(A47,'Trust - Frontsheet'!$A$16:$AC$215,8,0),3),VLOOKUP(A47,'Trust - Frontsheet'!$A$16:$AC$215,8,0)<>""),"Covid statuses do not match","")) ->  | L47: =IF(SUMPRODUCT(--('Trust - Frontsheet'!$D56:$AC56=""))<>26,"","This is a blank row") -> 
A48: =IF('Trust - Frontsheet'!A57="","",'Trust - Frontsheet'!A57) -> RX4E2WOODHORN | B48: =IF('Trust - Frontsheet'!A57="","",'Trust - Frontsheet'!D57) -> RX4E2 | C48: =IF(VLOOKUP(A48,'Trust - Frontsheet'!$A$16:$AC$215,5,0)="","",VLOOKUP(A48,'Trust - Frontsheet'!$A$16:$AC$216,5,0)) -> ST GEORGES HOSPITAL SITE (MORPETH) | D48: =IF(VLOOKUP(A48,'Trust - Frontsheet'!$A$16:$AC$215,6,0)="","",VLOOKUP(A48,'Trust - Frontsheet'!$A$16:$AC$216,6,0)) -> WOODHORN | E48: =IF(OR(SUMPRODUCT(--(ISTEXT('Trust - Frontsheet'!I57:AC57)))>0,SUMPRODUCT(--(ISERROR('Trust - Frontsheet'!AD57:AT57)))>0),"There is invalid data on this row",IF(SUMPRODUCT(--('Trust - Frontsheet'!I57:AC57<0))>0,"This row contains negative values",IF(AND(L48="This is a blank Row",COUNTBLANK(INDIRECT("L" & ROW() + 1 & ":L" & 206))>0),"No blank rows in the data",""))) ->  | F48: =IF(A48 = "","",IF('Trust - Frontsheet'!D57="", "Site code not present","")) ->  | G48: =IF('Trust - Frontsheet'!D57="","",IF(VLOOKUP(A48,'Trust - Frontsheet'!$A$16:$AC$215,6,0)="","Ward name not present","")) ->  | H48: =IF(A48="","",IF(VLOOKUP(A48,'Trust - Frontsheet'!$A$16:$AC$215,7,0)="","Specialty 1 has not been selected","")) ->  | I48: =IF(A48="","",IF(OR(COUNTIF(Specialties,VLOOKUP(A48,'Trust - Frontsheet'!$A$16:$AC$215,7,0))=0, AND(COUNTIF(Specialties,VLOOKUP(A48,'Trust - Frontsheet'!$A$16:$AC$215,8,0))=0,VLOOKUP(A48,'Trust - Frontsheet'!$A$16:$AC$215,8,0)<>"")),"You have entered unacceptable specialties.","")) ->  | J48: =IF(A48="","",IF(AND(RIGHT(VLOOKUP(A48,'Trust - Frontsheet'!$A$16:$AC$215,7,0),3)<>RIGHT(VLOOKUP(A48,'Trust - Frontsheet'!$A$16:$AC$215,8,0),3),VLOOKUP(A48,'Trust - Frontsheet'!$A$16:$AC$215,8,0)<>""),"Covid statuses do not match","")) ->  | L48: =IF(SUMPRODUCT(--('Trust - Frontsheet'!$D57:$AC57=""))<>26,"","This is a blank row") -> 
A49: =IF('Trust - Frontsheet'!A58="","",'Trust - Frontsheet'!A58) -> RX467KDU CHEVIOT | B49: =IF('Trust - Frontsheet'!A58="","",'Trust - Frontsheet'!D58) -> RX467 | C49: =IF(VLOOKUP(A49,'Trust - Frontsheet'!$A$16:$AC$215,5,0)="","",VLOOKUP(A49,'Trust - Frontsheet'!$A$16:$AC$216,5,0)) -> NORTHGATE HOSPITAL SITE | D49: =IF(VLOOKUP(A49,'Trust - Frontsheet'!$A$16:$AC$215,6,0)="","",VLOOKUP(A49,'Trust - Frontsheet'!$A$16:$AC$216,6,0)) -> KDU CHEVIOT | E49: =IF(OR(SUMPRODUCT(--(ISTEXT('Trust - Frontsheet'!I58:AC58)))>0,SUMPRODUCT(--(ISERROR('Trust - Frontsheet'!AD58:AT58)))>0),"There is invalid data on this row",IF(SUMPRODUCT(--('Trust - Frontsheet'!I58:AC58<0))>0,"This row contains negative values",IF(AND(L49="This is a blank Row",COUNTBLANK(INDIRECT("L" & ROW() + 1 & ":L" & 206))>0),"No blank rows in the data",""))) ->  | F49: =IF(A49 = "","",IF('Trust - Frontsheet'!D58="", "Site code not present","")) ->  | G49: =IF('Trust - Frontsheet'!D58="","",IF(VLOOKUP(A49,'Trust - Frontsheet'!$A$16:$AC$215,6,0)="","Ward name not present","")) ->  | H49: =IF(A49="","",IF(VLOOKUP(A49,'Trust - Frontsheet'!$A$16:$AC$215,7,0)="","Specialty 1 has not been selected","")) ->  | I49: =IF(A49="","",IF(OR(COUNTIF(Specialties,VLOOKUP(A49,'Trust - Frontsheet'!$A$16:$AC$215,7,0))=0, AND(COUNTIF(Specialties,VLOOKUP(A49,'Trust - Frontsheet'!$A$16:$AC$215,8,0))=0,VLOOKUP(A49,'Trust - Frontsheet'!$A$16:$AC$215,8,0)<>"")),"You have entered unacceptable specialties.","")) ->  | J49: =IF(A49="","",IF(AND(RIGHT(VLOOKUP(A49,'Trust - Frontsheet'!$A$16:$AC$215,7,0),3)<>RIGHT(VLOOKUP(A49,'Trust - Frontsheet'!$A$16:$AC$215,8,0),3),VLOOKUP(A49,'Trust - Frontsheet'!$A$16:$AC$215,8,0)<>""),"Covid statuses do not match","")) ->  | L49: =IF(SUMPRODUCT(--('Trust - Frontsheet'!$D58:$AC58=""))<>26,"","This is a blank row") -> 
A50: =IF('Trust - Frontsheet'!A59="","",'Trust - Frontsheet'!A59) -> RX467KDU LINDISFARNE | B50: =IF('Trust - Frontsheet'!A59="","",'Trust - Frontsheet'!D59) -> RX467 | C50: =IF(VLOOKUP(A50,'Trust - Frontsheet'!$A$16:$AC$215,5,0)="","",VLOOKUP(A50,'Trust - Frontsheet'!$A$16:$AC$216,5,0)) -> NORTHGATE HOSPITAL SITE | D50: =IF(VLOOKUP(A50,'Trust - Frontsheet'!$A$16:$AC$215,6,0)="","",VLOOKUP(A50,'Trust - Frontsheet'!$A$16:$AC$216,6,0)) -> KDU LINDISFARNE | E50: =IF(OR(SUMPRODUCT(--(ISTEXT('Trust - Frontsheet'!I59:AC59)))>0,SUMPRODUCT(--(ISERROR('Trust - Frontsheet'!AD59:AT59)))>0),"There is invalid data on this row",IF(SUMPRODUCT(--('Trust - Frontsheet'!I59:AC59<0))>0,"This row contains negative values",IF(AND(L50="This is a blank Row",COUNTBLANK(INDIRECT("L" & ROW() + 1 & ":L" & 206))>0),"No blank rows in the data",""))) ->  | F50: =IF(A50 = "","",IF('Trust - Frontsheet'!D59="", "Site code not present","")) ->  | G50: =IF('Trust - Frontsheet'!D59="","",IF(VLOOKUP(A50,'Trust - Frontsheet'!$A$16:$AC$215,6,0)="","Ward name not present","")) ->  | H50: =IF(A50="","",IF(VLOOKUP(A50,'Trust - Frontsheet'!$A$16:$AC$215,7,0)="","Specialty 1 has not been selected","")) ->  | I50: =IF(A50="","",IF(OR(COUNTIF(Specialties,VLOOKUP(A50,'Trust - Frontsheet'!$A$16:$AC$215,7,0))=0, AND(COUNTIF(Specialties,VLOOKUP(A50,'Trust - Frontsheet'!$A$16:$AC$215,8,0))=0,VLOOKUP(A50,'Trust - Frontsheet'!$A$16:$AC$215,8,0)<>"")),"You have entered unacceptable specialties.","")) ->  | J50: =IF(A50="","",IF(AND(RIGHT(VLOOKUP(A50,'Trust - Frontsheet'!$A$16:$AC$215,7,0),3)<>RIGHT(VLOOKUP(A50,'Trust - Frontsheet'!$A$16:$AC$215,8,0),3),VLOOKUP(A50,'Trust - Frontsheet'!$A$16:$AC$215,8,0)<>""),"Covid statuses do not match","")) ->  | L50: =IF(SUMPRODUCT(--('Trust - Frontsheet'!$D59:$AC59=""))<>26,"","This is a blank row") -> 
A51: =IF('Trust - Frontsheet'!A60="","",'Trust - Frontsheet'!A60) -> RX467KDU WANSBECK | B51: =IF('Trust - Frontsheet'!A60="","",'Trust - Frontsheet'!D60) -> RX467 | C51: =IF(VLOOKUP(A51,'Trust - Frontsheet'!$A$16:$AC$215,5,0)="","",VLOOKUP(A51,'Trust - Frontsheet'!$A$16:$AC$216,5,0)) -> NORTHGATE HOSPITAL SITE | D51: =IF(VLOOKUP(A51,'Trust - Frontsheet'!$A$16:$AC$215,6,0)="","",VLOOKUP(A51,'Trust - Frontsheet'!$A$16:$AC$216,6,0)) -> KDU WANSBECK | E51: =IF(OR(SUMPRODUCT(--(ISTEXT('Trust - Frontsheet'!I60:AC60)))>0,SUMPRODUCT(--(ISERROR('Trust - Frontsheet'!AD60:AT60)))>0),"There is invalid data on this row",IF(SUMPRODUCT(--('Trust - Frontsheet'!I60:AC60<0))>0,"This row contains negative values",IF(AND(L51="This is a blank Row",COUNTBLANK(INDIRECT("L" & ROW() + 1 & ":L" & 206))>0),"No blank rows in the data",""))) ->  | F51: =IF(A51 = "","",IF('Trust - Frontsheet'!D60="", "Site code not present","")) ->  | G51: =IF('Trust - Frontsheet'!D60="","",IF(VLOOKUP(A51,'Trust - Frontsheet'!$A$16:$AC$215,6,0)="","Ward name not present","")) ->  | H51: =IF(A51="","",IF(VLOOKUP(A51,'Trust - Frontsheet'!$A$16:$AC$215,7,0)="","Specialty 1 has not been selected","")) ->  | I51: =IF(A51="","",IF(OR(COUNTIF(Specialties,VLOOKUP(A51,'Trust - Frontsheet'!$A$16:$AC$215,7,0))=0, AND(COUNTIF(Specialties,VLOOKUP(A51,'Trust - Frontsheet'!$A$16:$AC$215,8,0))=0,VLOOKUP(A51,'Trust - Frontsheet'!$A$16:$AC$215,8,0)<>"")),"You have entered unacceptable specialties.","")) ->  | J51: =IF(A51="","",IF(AND(RIGHT(VLOOKUP(A51,'Trust - Frontsheet'!$A$16:$AC$215,7,0),3)<>RIGHT(VLOOKUP(A51,'Trust - Frontsheet'!$A$16:$AC$215,8,0),3),VLOOKUP(A51,'Trust - Frontsheet'!$A$16:$AC$215,8,0)<>""),"Covid statuses do not match","")) ->  | L51: =IF(SUMPRODUCT(--('Trust - Frontsheet'!$D60:$AC60=""))<>26,"","This is a blank row") -> 
A52: =IF('Trust - Frontsheet'!A61="","",'Trust - Frontsheet'!A61) -> RX4DGMITFORD | B52: =IF('Trust - Frontsheet'!A61="","",'Trust - Frontsheet'!D61) -> RX4DG | C52: =IF(VLOOKUP(A52,'Trust - Frontsheet'!$A$16:$AC$215,5,0)="","",VLOOKUP(A52,'Trust - Frontsheet'!$A$16:$AC$216,5,0)) -> NORTHGATE HOSPITAL | D52: =IF(VLOOKUP(A52,'Trust - Frontsheet'!$A$16:$AC$215,6,0)="","",VLOOKUP(A52,'Trust - Frontsheet'!$A$16:$AC$216,6,0)) -> MITFORD | E52: =IF(OR(SUMPRODUCT(--(ISTEXT('Trust - Frontsheet'!I61:AC61)))>0,SUMPRODUCT(--(ISERROR('Trust - Frontsheet'!AD61:AT61)))>0),"There is invalid data on this row",IF(SUMPRODUCT(--('Trust - Frontsheet'!I61:AC61<0))>0,"This row contains negative values",IF(AND(L52="This is a blank Row",COUNTBLANK(INDIRECT("L" & ROW() + 1 & ":L" & 206))>0),"No blank rows in the data",""))) ->  | F52: =IF(A52 = "","",IF('Trust - Frontsheet'!D61="", "Site code not present","")) ->  | G52: =IF('Trust - Frontsheet'!D61="","",IF(VLOOKUP(A52,'Trust - Frontsheet'!$A$16:$AC$215,6,0)="","Ward name not present","")) ->  | H52: =IF(A52="","",IF(VLOOKUP(A52,'Trust - Frontsheet'!$A$16:$AC$215,7,0)="","Specialty 1 has not been selected","")) ->  | I52: =IF(A52="","",IF(OR(COUNTIF(Specialties,VLOOKUP(A52,'Trust - Frontsheet'!$A$16:$AC$215,7,0))=0, AND(COUNTIF(Specialties,VLOOKUP(A52,'Trust - Frontsheet'!$A$16:$AC$215,8,0))=0,VLOOKUP(A52,'Trust - Frontsheet'!$A$16:$AC$215,8,0)<>"")),"You have entered unacceptable specialties.","")) ->  | J52: =IF(A52="","",IF(AND(RIGHT(VLOOKUP(A52,'Trust - Frontsheet'!$A$16:$AC$215,7,0),3)<>RIGHT(VLOOKUP(A52,'Trust - Frontsheet'!$A$16:$AC$215,8,0),3),VLOOKUP(A52,'Trust - Frontsheet'!$A$16:$AC$215,8,0)<>""),"Covid statuses do not match","")) ->  | L52: =IF(SUMPRODUCT(--('Trust - Frontsheet'!$D61:$AC61=""))<>26,"","This is a blank row") -> 
A53: =IF('Trust - Frontsheet'!A62="","",'Trust - Frontsheet'!A62) -> RX467TWEED UNIT | B53: =IF('Trust - Frontsheet'!A62="","",'Trust - Frontsheet'!D62) -> RX467 | C53: =IF(VLOOKUP(A53,'Trust - Frontsheet'!$A$16:$AC$215,5,0)="","",VLOOKUP(A53,'Trust - Frontsheet'!$A$16:$AC$216,5,0)) -> NORTHGATE HOSPITAL SITE | D53: =IF(VLOOKUP(A53,'Trust - Frontsheet'!$A$16:$AC$215,6,0)="","",VLOOKUP(A53,'Trust - Frontsheet'!$A$16:$AC$216,6,0)) -> TWEED UNIT | E53: =IF(OR(SUMPRODUCT(--(ISTEXT('Trust - Frontsheet'!I62:AC62)))>0,SUMPRODUCT(--(ISERROR('Trust - Frontsheet'!AD62:AT62)))>0),"There is invalid data on this row",IF(SUMPRODUCT(--('Trust - Frontsheet'!I62:AC62<0))>0,"This row contains negative values",IF(AND(L53="This is a blank Row",COUNTBLANK(INDIRECT("L" & ROW() + 1 & ":L" & 206))>0),"No blank rows in the data",""))) ->  | F53: =IF(A53 = "","",IF('Trust - Frontsheet'!D62="", "Site code not present","")) ->  | G53: =IF('Trust - Frontsheet'!D62="","",IF(VLOOKUP(A53,'Trust - Frontsheet'!$A$16:$AC$215,6,0)="","Ward name not present","")) ->  | H53: =IF(A53="","",IF(VLOOKUP(A53,'Trust - Frontsheet'!$A$16:$AC$215,7,0)="","Specialty 1 has not been selected","")) ->  | I53: =IF(A53="","",IF(OR(COUNTIF(Specialties,VLOOKUP(A53,'Trust - Frontsheet'!$A$16:$AC$215,7,0))=0, AND(COUNTIF(Specialties,VLOOKUP(A53,'Trust - Frontsheet'!$A$16:$AC$215,8,0))=0,VLOOKUP(A53,'Trust - Frontsheet'!$A$16:$AC$215,8,0)<>"")),"You have entered unacceptable specialties.","")) ->  | J53: =IF(A53="","",IF(AND(RIGHT(VLOOKUP(A53,'Trust - Frontsheet'!$A$16:$AC$215,7,0),3)<>RIGHT(VLOOKUP(A53,'Trust - Frontsheet'!$A$16:$AC$215,8,0),3),VLOOKUP(A53,'Trust - Frontsheet'!$A$16:$AC$215,8,0)<>""),"Covid statuses do not match","")) ->  | L53: =IF(SUMPRODUCT(--('Trust - Frontsheet'!$D62:$AC62=""))<>26,"","This is a blank row") -> 
A54: =IF('Trust - Frontsheet'!A63="","",'Trust - Frontsheet'!A63) -> RX467TYNE - LD HOSPITAL BASED REHAB | B54: =IF('Trust - Frontsheet'!A63="","",'Trust - Frontsheet'!D63) -> RX467 | C54: =IF(VLOOKUP(A54,'Trust - Frontsheet'!$A$16:$AC$215,5,0)="","",VLOOKUP(A54,'Trust - Frontsheet'!$A$16:$AC$216,5,0)) -> NORTHGATE HOSPITAL SITE | D54: =IF(VLOOKUP(A54,'Trust - Frontsheet'!$A$16:$AC$215,6,0)="","",VLOOKUP(A54,'Trust - Frontsheet'!$A$16:$AC$216,6,0)) -> TYNE - LD HOSPITAL BASED REHAB | E54: =IF(OR(SUMPRODUCT(--(ISTEXT('Trust - Frontsheet'!I63:AC63)))>0,SUMPRODUCT(--(ISERROR('Trust - Frontsheet'!AD63:AT63)))>0),"There is invalid data on this row",IF(SUMPRODUCT(--('Trust - Frontsheet'!I63:AC63<0))>0,"This row contains negative values",IF(AND(L54="This is a blank Row",COUNTBLANK(INDIRECT("L" & ROW() + 1 & ":L" & 206))>0),"No blank rows in the data",""))) ->  | F54: =IF(A54 = "","",IF('Trust - Frontsheet'!D63="", "Site code not present","")) ->  | G54: =IF('Trust - Frontsheet'!D63="","",IF(VLOOKUP(A54,'Trust - Frontsheet'!$A$16:$AC$215,6,0)="","Ward name not present","")) ->  | H54: =IF(A54="","",IF(VLOOKUP(A54,'Trust - Frontsheet'!$A$16:$AC$215,7,0)="","Specialty 1 has not been selected","")) ->  | I54: =IF(A54="","",IF(OR(COUNTIF(Specialties,VLOOKUP(A54,'Trust - Frontsheet'!$A$16:$AC$215,7,0))=0, AND(COUNTIF(Specialties,VLOOKUP(A54,'Trust - Frontsheet'!$A$16:$AC$215,8,0))=0,VLOOKUP(A54,'Trust - Frontsheet'!$A$16:$AC$215,8,0)<>"")),"You have entered unacceptable specialties.","")) ->  | J54: =IF(A54="","",IF(AND(RIGHT(VLOOKUP(A54,'Trust - Frontsheet'!$A$16:$AC$215,7,0),3)<>RIGHT(VLOOKUP(A54,'Trust - Frontsheet'!$A$16:$AC$215,8,0),3),VLOOKUP(A54,'Trust - Frontsheet'!$A$16:$AC$215,8,0)<>""),"Covid statuses do not match","")) ->  | L54: =IF(SUMPRODUCT(--('Trust - Frontsheet'!$D63:$AC63=""))<>26,"","This is a blank row") -> 
A55: =IF('Trust - Frontsheet'!A64="","",'Trust - Frontsheet'!A64) -> RX467TYNE MH LOW SECURE | B55: =IF('Trust - Frontsheet'!A64="","",'Trust - Frontsheet'!D64) -> RX467 | C55: =IF(VLOOKUP(A55,'Trust - Frontsheet'!$A$16:$AC$215,5,0)="","",VLOOKUP(A55,'Trust - Frontsheet'!$A$16:$AC$216,5,0)) -> NORTHGATE HOSPITAL SITE | D55: =IF(VLOOKUP(A55,'Trust - Frontsheet'!$A$16:$AC$215,6,0)="","",VLOOKUP(A55,'Trust - Frontsheet'!$A$16:$AC$216,6,0)) -> TYNE MH LOW SECURE | E55: =IF(OR(SUMPRODUCT(--(ISTEXT('Trust - Frontsheet'!I64:AC64)))>0,SUMPRODUCT(--(ISERROR('Trust - Frontsheet'!AD64:AT64)))>0),"There is invalid data on this row",IF(SUMPRODUCT(--('Trust - Frontsheet'!I64:AC64<0))>0,"This row contains negative values",IF(AND(L55="This is a blank Row",COUNTBLANK(INDIRECT("L" & ROW() + 1 & ":L" & 206))>0),"No blank rows in the data",""))) ->  | F55: =IF(A55 = "","",IF('Trust - Frontsheet'!D64="", "Site code not present","")) ->  | G55: =IF('Trust - Frontsheet'!D64="","",IF(VLOOKUP(A55,'Trust - Frontsheet'!$A$16:$AC$215,6,0)="","Ward name not present","")) ->  | H55: =IF(A55="","",IF(VLOOKUP(A55,'Trust - Frontsheet'!$A$16:$AC$215,7,0)="","Specialty 1 has not been selected","")) ->  | I55: =IF(A55="","",IF(OR(COUNTIF(Specialties,VLOOKUP(A55,'Trust - Frontsheet'!$A$16:$AC$215,7,0))=0, AND(COUNTIF(Specialties,VLOOKUP(A55,'Trust - Frontsheet'!$A$16:$AC$215,8,0))=0,VLOOKUP(A55,'Trust - Frontsheet'!$A$16:$AC$215,8,0)<>"")),"You have entered unacceptable specialties.","")) ->  | J55: =IF(A55="","",IF(AND(RIGHT(VLOOKUP(A55,'Trust - Frontsheet'!$A$16:$AC$215,7,0),3)<>RIGHT(VLOOKUP(A55,'Trust - Frontsheet'!$A$16:$AC$215,8,0),3),VLOOKUP(A55,'Trust - Frontsheet'!$A$16:$AC$215,8,0)<>""),"Covid statuses do not match","")) ->  | L55: =IF(SUMPRODUCT(--('Trust - Frontsheet'!$D64:$AC64=""))<>26,"","This is a blank row") -> 
A56: =IF('Trust - Frontsheet'!A65="","",'Trust - Frontsheet'!A65) -> RX40BEDENWOOD UNIT | B56: =IF('Trust - Frontsheet'!A65="","",'Trust - Frontsheet'!D65) -> RX40B | C56: =IF(VLOOKUP(A56,'Trust - Frontsheet'!$A$16:$AC$215,5,0)="","",VLOOKUP(A56,'Trust - Frontsheet'!$A$16:$AC$216,5,0)) -> CARLETON CLINIC | D56: =IF(VLOOKUP(A56,'Trust - Frontsheet'!$A$16:$AC$215,6,0)="","",VLOOKUP(A56,'Trust - Frontsheet'!$A$16:$AC$216,6,0)) -> EDENWOOD UNIT | E56: =IF(OR(SUMPRODUCT(--(ISTEXT('Trust - Frontsheet'!I65:AC65)))>0,SUMPRODUCT(--(ISERROR('Trust - Frontsheet'!AD65:AT65)))>0),"There is invalid data on this row",IF(SUMPRODUCT(--('Trust - Frontsheet'!I65:AC65<0))>0,"This row contains negative values",IF(AND(L56="This is a blank Row",COUNTBLANK(INDIRECT("L" & ROW() + 1 & ":L" & 206))>0),"No blank rows in the data",""))) ->  | F56: =IF(A56 = "","",IF('Trust - Frontsheet'!D65="", "Site code not present","")) ->  | G56: =IF('Trust - Frontsheet'!D65="","",IF(VLOOKUP(A56,'Trust - Frontsheet'!$A$16:$AC$215,6,0)="","Ward name not present","")) ->  | H56: =IF(A56="","",IF(VLOOKUP(A56,'Trust - Frontsheet'!$A$16:$AC$215,7,0)="","Specialty 1 has not been selected","")) ->  | I56: =IF(A56="","",IF(OR(COUNTIF(Specialties,VLOOKUP(A56,'Trust - Frontsheet'!$A$16:$AC$215,7,0))=0, AND(COUNTIF(Specialties,VLOOKUP(A56,'Trust - Frontsheet'!$A$16:$AC$215,8,0))=0,VLOOKUP(A56,'Trust - Frontsheet'!$A$16:$AC$215,8,0)<>"")),"You have entered unacceptable specialties.","")) ->  | J56: =IF(A56="","",IF(AND(RIGHT(VLOOKUP(A56,'Trust - Frontsheet'!$A$16:$AC$215,7,0),3)<>RIGHT(VLOOKUP(A56,'Trust - Frontsheet'!$A$16:$AC$215,8,0),3),VLOOKUP(A56,'Trust - Frontsheet'!$A$16:$AC$215,8,0)<>""),"Covid statuses do not match","")) ->  | L56: =IF(SUMPRODUCT(--('Trust - Frontsheet'!$D65:$AC65=""))<>26,"","This is a blank row") -> 
A57: =IF('Trust - Frontsheet'!A66="","",'Trust - Frontsheet'!A66) -> RX40BHADRIAN WARD | B57: =IF('Trust - Frontsheet'!A66="","",'Trust - Frontsheet'!D66) -> RX40B | C57: =IF(VLOOKUP(A57,'Trust - Frontsheet'!$A$16:$AC$215,5,0)="","",VLOOKUP(A57,'Trust - Frontsheet'!$A$16:$AC$216,5,0)) -> CARLETON CLINIC | D57: =IF(VLOOKUP(A57,'Trust - Frontsheet'!$A$16:$AC$215,6,0)="","",VLOOKUP(A57,'Trust - Frontsheet'!$A$16:$AC$216,6,0)) -> HADRIAN WARD | E57: =IF(OR(SUMPRODUCT(--(ISTEXT('Trust - Frontsheet'!I66:AC66)))>0,SUMPRODUCT(--(ISERROR('Trust - Frontsheet'!AD66:AT66)))>0),"There is invalid data on this row",IF(SUMPRODUCT(--('Trust - Frontsheet'!I66:AC66<0))>0,"This row contains negative values",IF(AND(L57="This is a blank Row",COUNTBLANK(INDIRECT("L" & ROW() + 1 & ":L" & 206))>0),"No blank rows in the data",""))) ->  | F57: =IF(A57 = "","",IF('Trust - Frontsheet'!D66="", "Site code not present","")) ->  | G57: =IF('Trust - Frontsheet'!D66="","",IF(VLOOKUP(A57,'Trust - Frontsheet'!$A$16:$AC$215,6,0)="","Ward name not present","")) ->  | H57: =IF(A57="","",IF(VLOOKUP(A57,'Trust - Frontsheet'!$A$16:$AC$215,7,0)="","Specialty 1 has not been selected","")) ->  | I57: =IF(A57="","",IF(OR(COUNTIF(Specialties,VLOOKUP(A57,'Trust - Frontsheet'!$A$16:$AC$215,7,0))=0, AND(COUNTIF(Specialties,VLOOKUP(A57,'Trust - Frontsheet'!$A$16:$AC$215,8,0))=0,VLOOKUP(A57,'Trust - Frontsheet'!$A$16:$AC$215,8,0)<>"")),"You have entered unacceptable specialties.","")) ->  | J57: =IF(A57="","",IF(AND(RIGHT(VLOOKUP(A57,'Trust - Frontsheet'!$A$16:$AC$215,7,0),3)<>RIGHT(VLOOKUP(A57,'Trust - Frontsheet'!$A$16:$AC$215,8,0),3),VLOOKUP(A57,'Trust - Frontsheet'!$A$16:$AC$215,8,0)<>""),"Covid statuses do not match","")) ->  | L57: =IF(SUMPRODUCT(--('Trust - Frontsheet'!$D66:$AC66=""))<>26,"","This is a blank row") -> 
A58: =IF('Trust - Frontsheet'!A67="","",'Trust - Frontsheet'!A67) -> RX40BOAKWOOD WARD | B58: =IF('Trust - Frontsheet'!A67="","",'Trust - Frontsheet'!D67) -> RX40B | C58: =IF(VLOOKUP(A58,'Trust - Frontsheet'!$A$16:$AC$215,5,0)="","",VLOOKUP(A58,'Trust - Frontsheet'!$A$16:$AC$216,5,0)) -> CARLETON CLINIC | D58: =IF(VLOOKUP(A58,'Trust - Frontsheet'!$A$16:$AC$215,6,0)="","",VLOOKUP(A58,'Trust - Frontsheet'!$A$16:$AC$216,6,0)) -> OAKWOOD WARD | E58: =IF(OR(SUMPRODUCT(--(ISTEXT('Trust - Frontsheet'!I67:AC67)))>0,SUMPRODUCT(--(ISERROR('Trust - Frontsheet'!AD67:AT67)))>0),"There is invalid data on this row",IF(SUMPRODUCT(--('Trust - Frontsheet'!I67:AC67<0))>0,"This row contains negative values",IF(AND(L58="This is a blank Row",COUNTBLANK(INDIRECT("L" & ROW() + 1 & ":L" & 206))>0),"No blank rows in the data",""))) ->  | F58: =IF(A58 = "","",IF('Trust - Frontsheet'!D67="", "Site code not present","")) ->  | G58: =IF('Trust - Frontsheet'!D67="","",IF(VLOOKUP(A58,'Trust - Frontsheet'!$A$16:$AC$215,6,0)="","Ward name not present","")) ->  | H58: =IF(A58="","",IF(VLOOKUP(A58,'Trust - Frontsheet'!$A$16:$AC$215,7,0)="","Specialty 1 has not been selected","")) ->  | I58: =IF(A58="","",IF(OR(COUNTIF(Specialties,VLOOKUP(A58,'Trust - Frontsheet'!$A$16:$AC$215,7,0))=0, AND(COUNTIF(Specialties,VLOOKUP(A58,'Trust - Frontsheet'!$A$16:$AC$215,8,0))=0,VLOOKUP(A58,'Trust - Frontsheet'!$A$16:$AC$215,8,0)<>"")),"You have entered unacceptable specialties.","")) ->  | J58: =IF(A58="","",IF(AND(RIGHT(VLOOKUP(A58,'Trust - Frontsheet'!$A$16:$AC$215,7,0),3)<>RIGHT(VLOOKUP(A58,'Trust - Frontsheet'!$A$16:$AC$215,8,0),3),VLOOKUP(A58,'Trust - Frontsheet'!$A$16:$AC$215,8,0)<>""),"Covid statuses do not match","")) ->  | L58: =IF(SUMPRODUCT(--('Trust - Frontsheet'!$D67:$AC67=""))<>26,"","This is a blank row") -> 
A59: =IF('Trust - Frontsheet'!A68="","",'Trust - Frontsheet'!A68) -> RX40BROWANWOOD | B59: =IF('Trust - Frontsheet'!A68="","",'Trust - Frontsheet'!D68) -> RX40B | C59: =IF(VLOOKUP(A59,'Trust - Frontsheet'!$A$16:$AC$215,5,0)="","",VLOOKUP(A59,'Trust - Frontsheet'!$A$16:$AC$216,5,0)) -> CARLETON CLINIC | D59: =IF(VLOOKUP(A59,'Trust - Frontsheet'!$A$16:$AC$215,6,0)="","",VLOOKUP(A59,'Trust - Frontsheet'!$A$16:$AC$216,6,0)) -> ROWANWOOD | E59: =IF(OR(SUMPRODUCT(--(ISTEXT('Trust - Frontsheet'!I68:AC68)))>0,SUMPRODUCT(--(ISERROR('Trust - Frontsheet'!AD68:AT68)))>0),"There is invalid data on this row",IF(SUMPRODUCT(--('Trust - Frontsheet'!I68:AC68<0))>0,"This row contains negative values",IF(AND(L59="This is a blank Row",COUNTBLANK(INDIRECT("L" & ROW() + 1 & ":L" & 206))>0),"No blank rows in the data",""))) ->  | F59: =IF(A59 = "","",IF('Trust - Frontsheet'!D68="", "Site code not present","")) ->  | G59: =IF('Trust - Frontsheet'!D68="","",IF(VLOOKUP(A59,'Trust - Frontsheet'!$A$16:$AC$215,6,0)="","Ward name not present","")) ->  | H59: =IF(A59="","",IF(VLOOKUP(A59,'Trust - Frontsheet'!$A$16:$AC$215,7,0)="","Specialty 1 has not been selected","")) ->  | I59: =IF(A59="","",IF(OR(COUNTIF(Specialties,VLOOKUP(A59,'Trust - Frontsheet'!$A$16:$AC$215,7,0))=0, AND(COUNTIF(Specialties,VLOOKUP(A59,'Trust - Frontsheet'!$A$16:$AC$215,8,0))=0,VLOOKUP(A59,'Trust - Frontsheet'!$A$16:$AC$215,8,0)<>"")),"You have entered unacceptable specialties.","")) ->  | J59: =IF(A59="","",IF(AND(RIGHT(VLOOKUP(A59,'Trust - Frontsheet'!$A$16:$AC$215,7,0),3)<>RIGHT(VLOOKUP(A59,'Trust - Frontsheet'!$A$16:$AC$215,8,0),3),VLOOKUP(A59,'Trust - Frontsheet'!$A$16:$AC$215,8,0)<>""),"Covid statuses do not match","")) ->  | L59: =IF(SUMPRODUCT(--('Trust - Frontsheet'!$D68:$AC68=""))<>26,"","This is a blank row") -> 
A60: =IF('Trust - Frontsheet'!A69="","",'Trust - Frontsheet'!A69) -> RX40BRUSKIN UNIT | B60: =IF('Trust - Frontsheet'!A69="","",'Trust - Frontsheet'!D69) -> RX40B | C60: =IF(VLOOKUP(A60,'Trust - Frontsheet'!$A$16:$AC$215,5,0)="","",VLOOKUP(A60,'Trust - Frontsheet'!$A$16:$AC$216,5,0)) -> CARLETON CLINIC | D60: =IF(VLOOKUP(A60,'Trust - Frontsheet'!$A$16:$AC$215,6,0)="","",VLOOKUP(A60,'Trust - Frontsheet'!$A$16:$AC$216,6,0)) -> RUSKIN UNIT | E60: =IF(OR(SUMPRODUCT(--(ISTEXT('Trust - Frontsheet'!I69:AC69)))>0,SUMPRODUCT(--(ISERROR('Trust - Frontsheet'!AD69:AT69)))>0),"There is invalid data on this row",IF(SUMPRODUCT(--('Trust - Frontsheet'!I69:AC69<0))>0,"This row contains negative values",IF(AND(L60="This is a blank Row",COUNTBLANK(INDIRECT("L" & ROW() + 1 & ":L" & 206))>0),"No blank rows in the data",""))) ->  | F60: =IF(A60 = "","",IF('Trust - Frontsheet'!D69="", "Site code not present","")) ->  | G60: =IF('Trust - Frontsheet'!D69="","",IF(VLOOKUP(A60,'Trust - Frontsheet'!$A$16:$AC$215,6,0)="","Ward name not present","")) ->  | H60: =IF(A60="","",IF(VLOOKUP(A60,'Trust - Frontsheet'!$A$16:$AC$215,7,0)="","Specialty 1 has not been selected","")) ->  | I60: =IF(A60="","",IF(OR(COUNTIF(Specialties,VLOOKUP(A60,'Trust - Frontsheet'!$A$16:$AC$215,7,0))=0, AND(COUNTIF(Specialties,VLOOKUP(A60,'Trust - Frontsheet'!$A$16:$AC$215,8,0))=0,VLOOKUP(A60,'Trust - Frontsheet'!$A$16:$AC$215,8,0)<>"")),"You have entered unacceptable specialties.","")) ->  | J60: =IF(A60="","",IF(AND(RIGHT(VLOOKUP(A60,'Trust - Frontsheet'!$A$16:$AC$215,7,0),3)<>RIGHT(VLOOKUP(A60,'Trust - Frontsheet'!$A$16:$AC$215,8,0),3),VLOOKUP(A60,'Trust - Frontsheet'!$A$16:$AC$215,8,0)<>""),"Covid statuses do not match","")) ->  | L60: =IF(SUMPRODUCT(--('Trust - Frontsheet'!$D69:$AC69=""))<>26,"","This is a blank row") -> 
A61: =IF('Trust - Frontsheet'!A70="","",'Trust - Frontsheet'!A70) -> RX40BYEWDALE WARD | B61: =IF('Trust - Frontsheet'!A70="","",'Trust - Frontsheet'!D70) -> RX40B | C61: =IF(VLOOKUP(A61,'Trust - Frontsheet'!$A$16:$AC$215,5,0)="","",VLOOKUP(A61,'Trust - Frontsheet'!$A$16:$AC$216,5,0)) -> YEWDALE WARD | D61: =IF(VLOOKUP(A61,'Trust - Frontsheet'!$A$16:$AC$215,6,0)="","",VLOOKUP(A61,'Trust - Frontsheet'!$A$16:$AC$216,6,0)) -> YEWDALE WARD | E61: =IF(OR(SUMPRODUCT(--(ISTEXT('Trust - Frontsheet'!I70:AC70)))>0,SUMPRODUCT(--(ISERROR('Trust - Frontsheet'!AD70:AT70)))>0),"There is invalid data on this row",IF(SUMPRODUCT(--('Trust - Frontsheet'!I70:AC70<0))>0,"This row contains negative values",IF(AND(L61="This is a blank Row",COUNTBLANK(INDIRECT("L" & ROW() + 1 & ":L" & 206))>0),"No blank rows in the data",""))) ->  | F61: =IF(A61 = "","",IF('Trust - Frontsheet'!D70="", "Site code not present","")) ->  | G61: =IF('Trust - Frontsheet'!D70="","",IF(VLOOKUP(A61,'Trust - Frontsheet'!$A$16:$AC$215,6,0)="","Ward name not present","")) ->  | H61: =IF(A61="","",IF(VLOOKUP(A61,'Trust - Frontsheet'!$A$16:$AC$215,7,0)="","Specialty 1 has not been selected","")) ->  | I61: =IF(A61="","",IF(OR(COUNTIF(Specialties,VLOOKUP(A61,'Trust - Frontsheet'!$A$16:$AC$215,7,0))=0, AND(COUNTIF(Specialties,VLOOKUP(A61,'Trust - Frontsheet'!$A$16:$AC$215,8,0))=0,VLOOKUP(A61,'Trust - Frontsheet'!$A$16:$AC$215,8,0)<>"")),"You have entered unacceptable specialties.","")) ->  | J61: =IF(A61="","",IF(AND(RIGHT(VLOOKUP(A61,'Trust - Frontsheet'!$A$16:$AC$215,7,0),3)<>RIGHT(VLOOKUP(A61,'Trust - Frontsheet'!$A$16:$AC$215,8,0),3),VLOOKUP(A61,'Trust - Frontsheet'!$A$16:$AC$215,8,0)<>""),"Covid statuses do not match","")) ->  | L61: =IF(SUMPRODUCT(--('Trust - Frontsheet'!$D70:$AC70=""))<>26,"","This is a blank row") -> 
A62: =IF('Trust - Frontsheet'!A71="","",'Trust - Frontsheet'!A71) ->  | B62: =IF('Trust - Frontsheet'!A71="","",'Trust - Frontsheet'!D71) ->  | C62: =IF(VLOOKUP(A62,'Trust - Frontsheet'!$A$16:$AC$215,5,0)="","",VLOOKUP(A62,'Trust - Frontsheet'!$A$16:$AC$216,5,0)) ->  | D62: =IF(VLOOKUP(A62,'Trust - Frontsheet'!$A$16:$AC$215,6,0)="","",VLOOKUP(A62,'Trust - Frontsheet'!$A$16:$AC$216,6,0)) ->  | E62: =IF(OR(SUMPRODUCT(--(ISTEXT('Trust - Frontsheet'!I71:AC71)))>0,SUMPRODUCT(--(ISERROR('Trust - Frontsheet'!AD71:AT71)))>0),"There is invalid data on this row",IF(SUMPRODUCT(--('Trust - Frontsheet'!I71:AC71<0))>0,"This row contains negative values",IF(AND(L62="This is a blank Row",COUNTBLANK(INDIRECT("L" & ROW() + 1 & ":L" & 206))>0),"No blank rows in the data",""))) ->  | F62: =IF(A62 = "","",IF('Trust - Frontsheet'!D71="", "Site code not present","")) ->  | G62: =IF('Trust - Frontsheet'!D71="","",IF(VLOOKUP(A62,'Trust - Frontsheet'!$A$16:$AC$215,6,0)="","Ward name not present","")) ->  | H62: =IF(A62="","",IF(VLOOKUP(A62,'Trust - Frontsheet'!$A$16:$AC$215,7,0)="","Specialty 1 has not been selected","")) ->  | I62: =IF(A62="","",IF(OR(COUNTIF(Specialties,VLOOKUP(A62,'Trust - Frontsheet'!$A$16:$AC$215,7,0))=0, AND(COUNTIF(Specialties,VLOOKUP(A62,'Trust - Frontsheet'!$A$16:$AC$215,8,0))=0,VLOOKUP(A62,'Trust - Frontsheet'!$A$16:$AC$215,8,0)<>"")),"You have entered unacceptable specialties.","")) ->  | J62: =IF(A62="","",IF(AND(RIGHT(VLOOKUP(A62,'Trust - Frontsheet'!$A$16:$AC$215,7,0),3)<>RIGHT(VLOOKUP(A62,'Trust - Frontsheet'!$A$16:$AC$215,8,0),3),VLOOKUP(A62,'Trust - Frontsheet'!$A$16:$AC$215,8,0)<>""),"Covid statuses do not match","")) ->  | L62: =IF(SUMPRODUCT(--('Trust - Frontsheet'!$D71:$AC71=""))<>26,"","This is a blank row") -> This is a blank row
A63: =IF('Trust - Frontsheet'!A72="","",'Trust - Frontsheet'!A72) ->  | B63: =IF('Trust - Frontsheet'!A72="","",'Trust - Frontsheet'!D72) ->  | C63: =IF(VLOOKUP(A63,'Trust - Frontsheet'!$A$16:$AC$215,5,0)="","",VLOOKUP(A63,'Trust - Frontsheet'!$A$16:$AC$216,5,0)) ->  | D63: =IF(VLOOKUP(A63,'Trust - Frontsheet'!$A$16:$AC$215,6,0)="","",VLOOKUP(A63,'Trust - Frontsheet'!$A$16:$AC$216,6,0)) ->  | E63: =IF(OR(SUMPRODUCT(--(ISTEXT('Trust - Frontsheet'!I72:AC72)))>0,SUMPRODUCT(--(ISERROR('Trust - Frontsheet'!AD72:AT72)))>0),"There is invalid data on this row",IF(SUMPRODUCT(--('Trust - Frontsheet'!I72:AC72<0))>0,"This row contains negative values",IF(AND(L63="This is a blank Row",COUNTBLANK(INDIRECT("L" & ROW() + 1 & ":L" & 206))>0),"No blank rows in the data",""))) ->  | F63: =IF(A63 = "","",IF('Trust - Frontsheet'!D72="", "Site code not present","")) ->  | G63: =IF('Trust - Frontsheet'!D72="","",IF(VLOOKUP(A63,'Trust - Frontsheet'!$A$16:$AC$215,6,0)="","Ward name not present","")) ->  | H63: =IF(A63="","",IF(VLOOKUP(A63,'Trust - Frontsheet'!$A$16:$AC$215,7,0)="","Specialty 1 has not been selected","")) ->  | I63: =IF(A63="","",IF(OR(COUNTIF(Specialties,VLOOKUP(A63,'Trust - Frontsheet'!$A$16:$AC$215,7,0))=0, AND(COUNTIF(Specialties,VLOOKUP(A63,'Trust - Frontsheet'!$A$16:$AC$215,8,0))=0,VLOOKUP(A63,'Trust - Frontsheet'!$A$16:$AC$215,8,0)<>"")),"You have entered unacceptable specialties.","")) ->  | J63: =IF(A63="","",IF(AND(RIGHT(VLOOKUP(A63,'Trust - Frontsheet'!$A$16:$AC$215,7,0),3)<>RIGHT(VLOOKUP(A63,'Trust - Frontsheet'!$A$16:$AC$215,8,0),3),VLOOKUP(A63,'Trust - Frontsheet'!$A$16:$AC$215,8,0)<>""),"Covid statuses do not match","")) ->  | L63: =IF(SUMPRODUCT(--('Trust - Frontsheet'!$D72:$AC72=""))<>26,"","This is a blank row") -> This is a blank row
A64: =IF('Trust - Frontsheet'!A73="","",'Trust - Frontsheet'!A73) ->  | B64: =IF('Trust - Frontsheet'!A73="","",'Trust - Frontsheet'!D73) ->  | C64: =IF(VLOOKUP(A64,'Trust - Frontsheet'!$A$16:$AC$215,5,0)="","",VLOOKUP(A64,'Trust - Frontsheet'!$A$16:$AC$216,5,0)) ->  | D64: =IF(VLOOKUP(A64,'Trust - Frontsheet'!$A$16:$AC$215,6,0)="","",VLOOKUP(A64,'Trust - Frontsheet'!$A$16:$AC$216,6,0)) ->  | E64: =IF(OR(SUMPRODUCT(--(ISTEXT('Trust - Frontsheet'!I73:AC73)))>0,SUMPRODUCT(--(ISERROR('Trust - Frontsheet'!AD73:AT73)))>0),"There is invalid data on this row",IF(SUMPRODUCT(--('Trust - Frontsheet'!I73:AC73<0))>0,"This row contains negative values",IF(AND(L64="This is a blank Row",COUNTBLANK(INDIRECT("L" & ROW() + 1 & ":L" & 206))>0),"No blank rows in the data",""))) ->  | F64: =IF(A64 = "","",IF('Trust - Frontsheet'!D73="", "Site code not present","")) ->  | G64: =IF('Trust - Frontsheet'!D73="","",IF(VLOOKUP(A64,'Trust - Frontsheet'!$A$16:$AC$215,6,0)="","Ward name not present","")) ->  | H64: =IF(A64="","",IF(VLOOKUP(A64,'Trust - Frontsheet'!$A$16:$AC$215,7,0)="","Specialty 1 has not been selected","")) ->  | I64: =IF(A64="","",IF(OR(COUNTIF(Specialties,VLOOKUP(A64,'Trust - Frontsheet'!$A$16:$AC$215,7,0))=0, AND(COUNTIF(Specialties,VLOOKUP(A64,'Trust - Frontsheet'!$A$16:$AC$215,8,0))=0,VLOOKUP(A64,'Trust - Frontsheet'!$A$16:$AC$215,8,0)<>"")),"You have entered unacceptable specialties.","")) ->  | J64: =IF(A64="","",IF(AND(RIGHT(VLOOKUP(A64,'Trust - Frontsheet'!$A$16:$AC$215,7,0),3)<>RIGHT(VLOOKUP(A64,'Trust - Frontsheet'!$A$16:$AC$215,8,0),3),VLOOKUP(A64,'Trust - Frontsheet'!$A$16:$AC$215,8,0)<>""),"Covid statuses do not match","")) ->  | L64: =IF(SUMPRODUCT(--('Trust - Frontsheet'!$D73:$AC73=""))<>26,"","This is a blank row") -> This is a blank row
A65: =IF('Trust - Frontsheet'!A74="","",'Trust - Frontsheet'!A74) ->  | B65: =IF('Trust - Frontsheet'!A74="","",'Trust - Frontsheet'!D74) ->  | C65: =IF(VLOOKUP(A65,'Trust - Frontsheet'!$A$16:$AC$215,5,0)="","",VLOOKUP(A65,'Trust - Frontsheet'!$A$16:$AC$216,5,0)) ->  | D65: =IF(VLOOKUP(A65,'Trust - Frontsheet'!$A$16:$AC$215,6,0)="","",VLOOKUP(A65,'Trust - Frontsheet'!$A$16:$AC$216,6,0)) ->  | E65: =IF(OR(SUMPRODUCT(--(ISTEXT('Trust - Frontsheet'!I74:AC74)))>0,SUMPRODUCT(--(ISERROR('Trust - Frontsheet'!AD74:AT74)))>0),"There is invalid data on this row",IF(SUMPRODUCT(--('Trust - Frontsheet'!I74:AC74<0))>0,"This row contains negative values",IF(AND(L65="This is a blank Row",COUNTBLANK(INDIRECT("L" & ROW() + 1 & ":L" & 206))>0),"No blank rows in the data",""))) ->  | F65: =IF(A65 = "","",IF('Trust - Frontsheet'!D74="", "Site code not present","")) ->  | G65: =IF('Trust - Frontsheet'!D74="","",IF(VLOOKUP(A65,'Trust - Frontsheet'!$A$16:$AC$215,6,0)="","Ward name not present","")) ->  | H65: =IF(A65="","",IF(VLOOKUP(A65,'Trust - Frontsheet'!$A$16:$AC$215,7,0)="","Specialty 1 has not been selected","")) ->  | I65: =IF(A65="","",IF(OR(COUNTIF(Specialties,VLOOKUP(A65,'Trust - Frontsheet'!$A$16:$AC$215,7,0))=0, AND(COUNTIF(Specialties,VLOOKUP(A65,'Trust - Frontsheet'!$A$16:$AC$215,8,0))=0,VLOOKUP(A65,'Trust - Frontsheet'!$A$16:$AC$215,8,0)<>"")),"You have entered unacceptable specialties.","")) ->  | J65: =IF(A65="","",IF(AND(RIGHT(VLOOKUP(A65,'Trust - Frontsheet'!$A$16:$AC$215,7,0),3)<>RIGHT(VLOOKUP(A65,'Trust - Frontsheet'!$A$16:$AC$215,8,0),3),VLOOKUP(A65,'Trust - Frontsheet'!$A$16:$AC$215,8,0)<>""),"Covid statuses do not match","")) ->  | L65: =IF(SUMPRODUCT(--('Trust - Frontsheet'!$D74:$AC74=""))<>26,"","This is a blank row") -> This is a blank row
A66: =IF('Trust - Frontsheet'!A75="","",'Trust - Frontsheet'!A75) ->  | B66: =IF('Trust - Frontsheet'!A75="","",'Trust - Frontsheet'!D75) ->  | C66: =IF(VLOOKUP(A66,'Trust - Frontsheet'!$A$16:$AC$215,5,0)="","",VLOOKUP(A66,'Trust - Frontsheet'!$A$16:$AC$216,5,0)) ->  | D66: =IF(VLOOKUP(A66,'Trust - Frontsheet'!$A$16:$AC$215,6,0)="","",VLOOKUP(A66,'Trust - Frontsheet'!$A$16:$AC$216,6,0)) ->  | E66: =IF(OR(SUMPRODUCT(--(ISTEXT('Trust - Frontsheet'!I75:AC75)))>0,SUMPRODUCT(--(ISERROR('Trust - Frontsheet'!AD75:AT75)))>0),"There is invalid data on this row",IF(SUMPRODUCT(--('Trust - Frontsheet'!I75:AC75<0))>0,"This row contains negative values",IF(AND(L66="This is a blank Row",COUNTBLANK(INDIRECT("L" & ROW() + 1 & ":L" & 206))>0),"No blank rows in the data",""))) ->  | F66: =IF(A66 = "","",IF('Trust - Frontsheet'!D75="", "Site code not present","")) ->  | G66: =IF('Trust - Frontsheet'!D75="","",IF(VLOOKUP(A66,'Trust - Frontsheet'!$A$16:$AC$215,6,0)="","Ward name not present","")) ->  | H66: =IF(A66="","",IF(VLOOKUP(A66,'Trust - Frontsheet'!$A$16:$AC$215,7,0)="","Specialty 1 has not been selected","")) ->  | I66: =IF(A66="","",IF(OR(COUNTIF(Specialties,VLOOKUP(A66,'Trust - Frontsheet'!$A$16:$AC$215,7,0))=0, AND(COUNTIF(Specialties,VLOOKUP(A66,'Trust - Frontsheet'!$A$16:$AC$215,8,0))=0,VLOOKUP(A66,'Trust - Frontsheet'!$A$16:$AC$215,8,0)<>"")),"You have entered unacceptable specialties.","")) ->  | J66: =IF(A66="","",IF(AND(RIGHT(VLOOKUP(A66,'Trust - Frontsheet'!$A$16:$AC$215,7,0),3)<>RIGHT(VLOOKUP(A66,'Trust - Frontsheet'!$A$16:$AC$215,8,0),3),VLOOKUP(A66,'Trust - Frontsheet'!$A$16:$AC$215,8,0)<>""),"Covid statuses do not match","")) ->  | L66: =IF(SUMPRODUCT(--('Trust - Frontsheet'!$D75:$AC75=""))<>26,"","This is a blank row") -> This is a blank row
A67: =IF('Trust - Frontsheet'!A76="","",'Trust - Frontsheet'!A76) ->  | B67: =IF('Trust - Frontsheet'!A76="","",'Trust - Frontsheet'!D76) ->  | C67: =IF(VLOOKUP(A67,'Trust - Frontsheet'!$A$16:$AC$215,5,0)="","",VLOOKUP(A67,'Trust - Frontsheet'!$A$16:$AC$216,5,0)) ->  | D67: =IF(VLOOKUP(A67,'Trust - Frontsheet'!$A$16:$AC$215,6,0)="","",VLOOKUP(A67,'Trust - Frontsheet'!$A$16:$AC$216,6,0)) ->  | E67: =IF(OR(SUMPRODUCT(--(ISTEXT('Trust - Frontsheet'!I76:AC76)))>0,SUMPRODUCT(--(ISERROR('Trust - Frontsheet'!AD76:AT76)))>0),"There is invalid data on this row",IF(SUMPRODUCT(--('Trust - Frontsheet'!I76:AC76<0))>0,"This row contains negative values",IF(AND(L67="This is a blank Row",COUNTBLANK(INDIRECT("L" & ROW() + 1 & ":L" & 206))>0),"No blank rows in the data",""))) ->  | F67: =IF(A67 = "","",IF('Trust - Frontsheet'!D76="", "Site code not present","")) ->  | G67: =IF('Trust - Frontsheet'!D76="","",IF(VLOOKUP(A67,'Trust - Frontsheet'!$A$16:$AC$215,6,0)="","Ward name not present","")) ->  | H67: =IF(A67="","",IF(VLOOKUP(A67,'Trust - Frontsheet'!$A$16:$AC$215,7,0)="","Specialty 1 has not been selected","")) ->  | I67: =IF(A67="","",IF(OR(COUNTIF(Specialties,VLOOKUP(A67,'Trust - Frontsheet'!$A$16:$AC$215,7,0))=0, AND(COUNTIF(Specialties,VLOOKUP(A67,'Trust - Frontsheet'!$A$16:$AC$215,8,0))=0,VLOOKUP(A67,'Trust - Frontsheet'!$A$16:$AC$215,8,0)<>"")),"You have entered unacceptable specialties.","")) ->  | J67: =IF(A67="","",IF(AND(RIGHT(VLOOKUP(A67,'Trust - Frontsheet'!$A$16:$AC$215,7,0),3)<>RIGHT(VLOOKUP(A67,'Trust - Frontsheet'!$A$16:$AC$215,8,0),3),VLOOKUP(A67,'Trust - Frontsheet'!$A$16:$AC$215,8,0)<>""),"Covid statuses do not match","")) ->  | L67: =IF(SUMPRODUCT(--('Trust - Frontsheet'!$D76:$AC76=""))<>26,"","This is a blank row") -> This is a blank row
A68: =IF('Trust - Frontsheet'!A77="","",'Trust - Frontsheet'!A77) ->  | B68: =IF('Trust - Frontsheet'!A77="","",'Trust - Frontsheet'!D77) ->  | C68: =IF(VLOOKUP(A68,'Trust - Frontsheet'!$A$16:$AC$215,5,0)="","",VLOOKUP(A68,'Trust - Frontsheet'!$A$16:$AC$216,5,0)) ->  | D68: =IF(VLOOKUP(A68,'Trust - Frontsheet'!$A$16:$AC$215,6,0)="","",VLOOKUP(A68,'Trust - Frontsheet'!$A$16:$AC$216,6,0)) ->  | E68: =IF(OR(SUMPRODUCT(--(ISTEXT('Trust - Frontsheet'!I77:AC77)))>0,SUMPRODUCT(--(ISERROR('Trust - Frontsheet'!AD77:AT77)))>0),"There is invalid data on this row",IF(SUMPRODUCT(--('Trust - Frontsheet'!I77:AC77<0))>0,"This row contains negative values",IF(AND(L68="This is a blank Row",COUNTBLANK(INDIRECT("L" & ROW() + 1 & ":L" & 206))>0),"No blank rows in the data",""))) ->  | F68: =IF(A68 = "","",IF('Trust - Frontsheet'!D77="", "Site code not present","")) ->  | G68: =IF('Trust - Frontsheet'!D77="","",IF(VLOOKUP(A68,'Trust - Frontsheet'!$A$16:$AC$215,6,0)="","Ward name not present","")) ->  | H68: =IF(A68="","",IF(VLOOKUP(A68,'Trust - Frontsheet'!$A$16:$AC$215,7,0)="","Specialty 1 has not been selected","")) ->  | I68: =IF(A68="","",IF(OR(COUNTIF(Specialties,VLOOKUP(A68,'Trust - Frontsheet'!$A$16:$AC$215,7,0))=0, AND(COUNTIF(Specialties,VLOOKUP(A68,'Trust - Frontsheet'!$A$16:$AC$215,8,0))=0,VLOOKUP(A68,'Trust - Frontsheet'!$A$16:$AC$215,8,0)<>"")),"You have entered unacceptable specialties.","")) ->  | J68: =IF(A68="","",IF(AND(RIGHT(VLOOKUP(A68,'Trust - Frontsheet'!$A$16:$AC$215,7,0),3)<>RIGHT(VLOOKUP(A68,'Trust - Frontsheet'!$A$16:$AC$215,8,0),3),VLOOKUP(A68,'Trust - Frontsheet'!$A$16:$AC$215,8,0)<>""),"Covid statuses do not match","")) ->  | L68: =IF(SUMPRODUCT(--('Trust - Frontsheet'!$D77:$AC77=""))<>26,"","This is a blank row") -> This is a blank row
A69: =IF('Trust - Frontsheet'!A78="","",'Trust - Frontsheet'!A78) ->  | B69: =IF('Trust - Frontsheet'!A78="","",'Trust - Frontsheet'!D78) ->  | C69: =IF(VLOOKUP(A69,'Trust - Frontsheet'!$A$16:$AC$215,5,0)="","",VLOOKUP(A69,'Trust - Frontsheet'!$A$16:$AC$216,5,0)) ->  | D69: =IF(VLOOKUP(A69,'Trust - Frontsheet'!$A$16:$AC$215,6,0)="","",VLOOKUP(A69,'Trust - Frontsheet'!$A$16:$AC$216,6,0)) ->  | E69: =IF(OR(SUMPRODUCT(--(ISTEXT('Trust - Frontsheet'!I78:AC78)))>0,SUMPRODUCT(--(ISERROR('Trust - Frontsheet'!AD78:AT78)))>0),"There is invalid data on this row",IF(SUMPRODUCT(--('Trust - Frontsheet'!I78:AC78<0))>0,"This row contains negative values",IF(AND(L69="This is a blank Row",COUNTBLANK(INDIRECT("L" & ROW() + 1 & ":L" & 206))>0),"No blank rows in the data",""))) ->  | F69: =IF(A69 = "","",IF('Trust - Frontsheet'!D78="", "Site code not present","")) ->  | G69: =IF('Trust - Frontsheet'!D78="","",IF(VLOOKUP(A69,'Trust - Frontsheet'!$A$16:$AC$215,6,0)="","Ward name not present","")) ->  | H69: =IF(A69="","",IF(VLOOKUP(A69,'Trust - Frontsheet'!$A$16:$AC$215,7,0)="","Specialty 1 has not been selected","")) ->  | I69: =IF(A69="","",IF(OR(COUNTIF(Specialties,VLOOKUP(A69,'Trust - Frontsheet'!$A$16:$AC$215,7,0))=0, AND(COUNTIF(Specialties,VLOOKUP(A69,'Trust - Frontsheet'!$A$16:$AC$215,8,0))=0,VLOOKUP(A69,'Trust - Frontsheet'!$A$16:$AC$215,8,0)<>"")),"You have entered unacceptable specialties.","")) ->  | J69: =IF(A69="","",IF(AND(RIGHT(VLOOKUP(A69,'Trust - Frontsheet'!$A$16:$AC$215,7,0),3)<>RIGHT(VLOOKUP(A69,'Trust - Frontsheet'!$A$16:$AC$215,8,0),3),VLOOKUP(A69,'Trust - Frontsheet'!$A$16:$AC$215,8,0)<>""),"Covid statuses do not match","")) ->  | L69: =IF(SUMPRODUCT(--('Trust - Frontsheet'!$D78:$AC78=""))<>26,"","This is a blank row") -> This is a blank row
A70: =IF('Trust - Frontsheet'!A79="","",'Trust - Frontsheet'!A79) ->  | B70: =IF('Trust - Frontsheet'!A79="","",'Trust - Frontsheet'!D79) ->  | C70: =IF(VLOOKUP(A70,'Trust - Frontsheet'!$A$16:$AC$215,5,0)="","",VLOOKUP(A70,'Trust - Frontsheet'!$A$16:$AC$216,5,0)) ->  | D70: =IF(VLOOKUP(A70,'Trust - Frontsheet'!$A$16:$AC$215,6,0)="","",VLOOKUP(A70,'Trust - Frontsheet'!$A$16:$AC$216,6,0)) ->  | E70: =IF(OR(SUMPRODUCT(--(ISTEXT('Trust - Frontsheet'!I79:AC79)))>0,SUMPRODUCT(--(ISERROR('Trust - Frontsheet'!AD79:AT79)))>0),"There is invalid data on this row",IF(SUMPRODUCT(--('Trust - Frontsheet'!I79:AC79<0))>0,"This row contains negative values",IF(AND(L70="This is a blank Row",COUNTBLANK(INDIRECT("L" & ROW() + 1 & ":L" & 206))>0),"No blank rows in the data",""))) ->  | F70: =IF(A70 = "","",IF('Trust - Frontsheet'!D79="", "Site code not present","")) ->  | G70: =IF('Trust - Frontsheet'!D79="","",IF(VLOOKUP(A70,'Trust - Frontsheet'!$A$16:$AC$215,6,0)="","Ward name not present","")) ->  | H70: =IF(A70="","",IF(VLOOKUP(A70,'Trust - Frontsheet'!$A$16:$AC$215,7,0)="","Specialty 1 has not been selected","")) ->  | I70: =IF(A70="","",IF(OR(COUNTIF(Specialties,VLOOKUP(A70,'Trust - Frontsheet'!$A$16:$AC$215,7,0))=0, AND(COUNTIF(Specialties,VLOOKUP(A70,'Trust - Frontsheet'!$A$16:$AC$215,8,0))=0,VLOOKUP(A70,'Trust - Frontsheet'!$A$16:$AC$215,8,0)<>"")),"You have entered unacceptable specialties.","")) ->  | J70: =IF(A70="","",IF(AND(RIGHT(VLOOKUP(A70,'Trust - Frontsheet'!$A$16:$AC$215,7,0),3)<>RIGHT(VLOOKUP(A70,'Trust - Frontsheet'!$A$16:$AC$215,8,0),3),VLOOKUP(A70,'Trust - Frontsheet'!$A$16:$AC$215,8,0)<>""),"Covid statuses do not match","")) ->  | L70: =IF(SUMPRODUCT(--('Trust - Frontsheet'!$D79:$AC79=""))<>26,"","This is a blank row") -> This is a blank row
A71: =IF('Trust - Frontsheet'!A80="","",'Trust - Frontsheet'!A80) ->  | B71: =IF('Trust - Frontsheet'!A80="","",'Trust - Frontsheet'!D80) ->  | C71: =IF(VLOOKUP(A71,'Trust - Frontsheet'!$A$16:$AC$215,5,0)="","",VLOOKUP(A71,'Trust - Frontsheet'!$A$16:$AC$216,5,0)) ->  | D71: =IF(VLOOKUP(A71,'Trust - Frontsheet'!$A$16:$AC$215,6,0)="","",VLOOKUP(A71,'Trust - Frontsheet'!$A$16:$AC$216,6,0)) ->  | E71: =IF(OR(SUMPRODUCT(--(ISTEXT('Trust - Frontsheet'!I80:AC80)))>0,SUMPRODUCT(--(ISERROR('Trust - Frontsheet'!AD80:AT80)))>0),"There is invalid data on this row",IF(SUMPRODUCT(--('Trust - Frontsheet'!I80:AC80<0))>0,"This row contains negative values",IF(AND(L71="This is a blank Row",COUNTBLANK(INDIRECT("L" & ROW() + 1 & ":L" & 206))>0),"No blank rows in the data",""))) ->  | F71: =IF(A71 = "","",IF('Trust - Frontsheet'!D80="", "Site code not present","")) ->  | G71: =IF('Trust - Frontsheet'!D80="","",IF(VLOOKUP(A71,'Trust - Frontsheet'!$A$16:$AC$215,6,0)="","Ward name not present","")) ->  | H71: =IF(A71="","",IF(VLOOKUP(A71,'Trust - Frontsheet'!$A$16:$AC$215,7,0)="","Specialty 1 has not been selected","")) ->  | I71: =IF(A71="","",IF(OR(COUNTIF(Specialties,VLOOKUP(A71,'Trust - Frontsheet'!$A$16:$AC$215,7,0))=0, AND(COUNTIF(Specialties,VLOOKUP(A71,'Trust - Frontsheet'!$A$16:$AC$215,8,0))=0,VLOOKUP(A71,'Trust - Frontsheet'!$A$16:$AC$215,8,0)<>"")),"You have entered unacceptable specialties.","")) ->  | J71: =IF(A71="","",IF(AND(RIGHT(VLOOKUP(A71,'Trust - Frontsheet'!$A$16:$AC$215,7,0),3)<>RIGHT(VLOOKUP(A71,'Trust - Frontsheet'!$A$16:$AC$215,8,0),3),VLOOKUP(A71,'Trust - Frontsheet'!$A$16:$AC$215,8,0)<>""),"Covid statuses do not match","")) ->  | L71: =IF(SUMPRODUCT(--('Trust - Frontsheet'!$D80:$AC80=""))<>26,"","This is a blank row") -> This is a blank row
A72: =IF('Trust - Frontsheet'!A81="","",'Trust - Frontsheet'!A81) ->  | B72: =IF('Trust - Frontsheet'!A81="","",'Trust - Frontsheet'!D81) ->  | C72: =IF(VLOOKUP(A72,'Trust - Frontsheet'!$A$16:$AC$215,5,0)="","",VLOOKUP(A72,'Trust - Frontsheet'!$A$16:$AC$216,5,0)) ->  | D72: =IF(VLOOKUP(A72,'Trust - Frontsheet'!$A$16:$AC$215,6,0)="","",VLOOKUP(A72,'Trust - Frontsheet'!$A$16:$AC$216,6,0)) ->  | E72: =IF(OR(SUMPRODUCT(--(ISTEXT('Trust - Frontsheet'!I81:AC81)))>0,SUMPRODUCT(--(ISERROR('Trust - Frontsheet'!AD81:AT81)))>0),"There is invalid data on this row",IF(SUMPRODUCT(--('Trust - Frontsheet'!I81:AC81<0))>0,"This row contains negative values",IF(AND(L72="This is a blank Row",COUNTBLANK(INDIRECT("L" & ROW() + 1 & ":L" & 206))>0),"No blank rows in the data",""))) ->  | F72: =IF(A72 = "","",IF('Trust - Frontsheet'!D81="", "Site code not present","")) ->  | G72: =IF('Trust - Frontsheet'!D81="","",IF(VLOOKUP(A72,'Trust - Frontsheet'!$A$16:$AC$215,6,0)="","Ward name not present","")) ->  | H72: =IF(A72="","",IF(VLOOKUP(A72,'Trust - Frontsheet'!$A$16:$AC$215,7,0)="","Specialty 1 has not been selected","")) ->  | I72: =IF(A72="","",IF(OR(COUNTIF(Specialties,VLOOKUP(A72,'Trust - Frontsheet'!$A$16:$AC$215,7,0))=0, AND(COUNTIF(Specialties,VLOOKUP(A72,'Trust - Frontsheet'!$A$16:$AC$215,8,0))=0,VLOOKUP(A72,'Trust - Frontsheet'!$A$16:$AC$215,8,0)<>"")),"You have entered unacceptable specialties.","")) ->  | J72: =IF(A72="","",IF(AND(RIGHT(VLOOKUP(A72,'Trust - Frontsheet'!$A$16:$AC$215,7,0),3)<>RIGHT(VLOOKUP(A72,'Trust - Frontsheet'!$A$16:$AC$215,8,0),3),VLOOKUP(A72,'Trust - Frontsheet'!$A$16:$AC$215,8,0)<>""),"Covid statuses do not match","")) ->  | K72: =IF(A72="","",IF(COUNTIF($A$7:$A$206,A72)>1,"You have entered a duplicate site-ward pair","")) ->  | L72: =IF(SUMPRODUCT(--('Trust - Frontsheet'!$D81:$AC81=""))<>26,"","This is a blank row") -> This is a blank row
A73: =IF('Trust - Frontsheet'!A82="","",'Trust - Frontsheet'!A82) ->  | B73: =IF('Trust - Frontsheet'!A82="","",'Trust - Frontsheet'!D82) ->  | C73: =IF(VLOOKUP(A73,'Trust - Frontsheet'!$A$16:$AC$215,5,0)="","",VLOOKUP(A73,'Trust - Frontsheet'!$A$16:$AC$216,5,0)) ->  | D73: =IF(VLOOKUP(A73,'Trust - Frontsheet'!$A$16:$AC$215,6,0)="","",VLOOKUP(A73,'Trust - Frontsheet'!$A$16:$AC$216,6,0)) ->  | E73: =IF(OR(SUMPRODUCT(--(ISTEXT('Trust - Frontsheet'!I82:AC82)))>0,SUMPRODUCT(--(ISERROR('Trust - Frontsheet'!AD82:AT82)))>0),"There is invalid data on this row",IF(SUMPRODUCT(--('Trust - Frontsheet'!I82:AC82<0))>0,"This row contains negative values",IF(AND(L73="This is a blank Row",COUNTBLANK(INDIRECT("L" & ROW() + 1 & ":L" & 206))>0),"No blank rows in the data",""))) ->  | F73: =IF(A73 = "","",IF('Trust - Frontsheet'!D82="", "Site code not present","")) ->  | G73: =IF('Trust - Frontsheet'!D82="","",IF(VLOOKUP(A73,'Trust - Frontsheet'!$A$16:$AC$215,6,0)="","Ward name not present","")) ->  | H73: =IF(A73="","",IF(VLOOKUP(A73,'Trust - Frontsheet'!$A$16:$AC$215,7,0)="","Specialty 1 has not been selected","")) ->  | I73: =IF(A73="","",IF(OR(COUNTIF(Specialties,VLOOKUP(A73,'Trust - Frontsheet'!$A$16:$AC$215,7,0))=0, AND(COUNTIF(Specialties,VLOOKUP(A73,'Trust - Frontsheet'!$A$16:$AC$215,8,0))=0,VLOOKUP(A73,'Trust - Frontsheet'!$A$16:$AC$215,8,0)<>"")),"You have entered unacceptable specialties.","")) ->  | J73: =IF(A73="","",IF(AND(RIGHT(VLOOKUP(A73,'Trust - Frontsheet'!$A$16:$AC$215,7,0),3)<>RIGHT(VLOOKUP(A73,'Trust - Frontsheet'!$A$16:$AC$215,8,0),3),VLOOKUP(A73,'Trust - Frontsheet'!$A$16:$AC$215,8,0)<>""),"Covid statuses do not match","")) ->  | L73: =IF(SUMPRODUCT(--('Trust - Frontsheet'!$D82:$AC82=""))<>26,"","This is a blank row") -> This is a blank row
A74: =IF('Trust - Frontsheet'!A83="","",'Trust - Frontsheet'!A83) ->  | B74: =IF('Trust - Frontsheet'!A83="","",'Trust - Frontsheet'!D83) ->  | C74: =IF(VLOOKUP(A74,'Trust - Frontsheet'!$A$16:$AC$215,5,0)="","",VLOOKUP(A74,'Trust - Frontsheet'!$A$16:$AC$216,5,0)) ->  | D74: =IF(VLOOKUP(A74,'Trust - Frontsheet'!$A$16:$AC$215,6,0)="","",VLOOKUP(A74,'Trust - Frontsheet'!$A$16:$AC$216,6,0)) ->  | E74: =IF(OR(SUMPRODUCT(--(ISTEXT('Trust - Frontsheet'!I83:AC83)))>0,SUMPRODUCT(--(ISERROR('Trust - Frontsheet'!AD83:AT83)))>0),"There is invalid data on this row",IF(SUMPRODUCT(--('Trust - Frontsheet'!I83:AC83<0))>0,"This row contains negative values",IF(AND(L74="This is a blank Row",COUNTBLANK(INDIRECT("L" & ROW() + 1 & ":L" & 206))>0),"No blank rows in the data",""))) ->  | F74: =IF(A74 = "","",IF('Trust - Frontsheet'!D83="", "Site code not present","")) ->  | G74: =IF('Trust - Frontsheet'!D83="","",IF(VLOOKUP(A74,'Trust - Frontsheet'!$A$16:$AC$215,6,0)="","Ward name not present","")) ->  | H74: =IF(A74="","",IF(VLOOKUP(A74,'Trust - Frontsheet'!$A$16:$AC$215,7,0)="","Specialty 1 has not been selected","")) ->  | I74: =IF(A74="","",IF(OR(COUNTIF(Specialties,VLOOKUP(A74,'Trust - Frontsheet'!$A$16:$AC$215,7,0))=0, AND(COUNTIF(Specialties,VLOOKUP(A74,'Trust - Frontsheet'!$A$16:$AC$215,8,0))=0,VLOOKUP(A74,'Trust - Frontsheet'!$A$16:$AC$215,8,0)<>"")),"You have entered unacceptable specialties.","")) ->  | J74: =IF(A74="","",IF(AND(RIGHT(VLOOKUP(A74,'Trust - Frontsheet'!$A$16:$AC$215,7,0),3)<>RIGHT(VLOOKUP(A74,'Trust - Frontsheet'!$A$16:$AC$215,8,0),3),VLOOKUP(A74,'Trust - Frontsheet'!$A$16:$AC$215,8,0)<>""),"Covid statuses do not match","")) ->  | L74: =IF(SUMPRODUCT(--('Trust - Frontsheet'!$D83:$AC83=""))<>26,"","This is a blank row") -> This is a blank row
A75: =IF('Trust - Frontsheet'!A84="","",'Trust - Frontsheet'!A84) ->  | B75: =IF('Trust - Frontsheet'!A84="","",'Trust - Frontsheet'!D84) ->  | C75: =IF(VLOOKUP(A75,'Trust - Frontsheet'!$A$16:$AC$215,5,0)="","",VLOOKUP(A75,'Trust - Frontsheet'!$A$16:$AC$216,5,0)) ->  | D75: =IF(VLOOKUP(A75,'Trust - Frontsheet'!$A$16:$AC$215,6,0)="","",VLOOKUP(A75,'Trust - Frontsheet'!$A$16:$AC$216,6,0)) ->  | E75: =IF(OR(SUMPRODUCT(--(ISTEXT('Trust - Frontsheet'!I84:AC84)))>0,SUMPRODUCT(--(ISERROR('Trust - Frontsheet'!AD84:AT84)))>0),"There is invalid data on this row",IF(SUMPRODUCT(--('Trust - Frontsheet'!I84:AC84<0))>0,"This row contains negative values",IF(AND(L75="This is a blank Row",COUNTBLANK(INDIRECT("L" & ROW() + 1 & ":L" & 206))>0),"No blank rows in the data",""))) ->  | F75: =IF(A75 = "","",IF('Trust - Frontsheet'!D84="", "Site code not present","")) ->  | G75: =IF('Trust - Frontsheet'!D84="","",IF(VLOOKUP(A75,'Trust - Frontsheet'!$A$16:$AC$215,6,0)="","Ward name not present","")) ->  | H75: =IF(A75="","",IF(VLOOKUP(A75,'Trust - Frontsheet'!$A$16:$AC$215,7,0)="","Specialty 1 has not been selected","")) ->  | I75: =IF(A75="","",IF(OR(COUNTIF(Specialties,VLOOKUP(A75,'Trust - Frontsheet'!$A$16:$AC$215,7,0))=0, AND(COUNTIF(Specialties,VLOOKUP(A75,'Trust - Frontsheet'!$A$16:$AC$215,8,0))=0,VLOOKUP(A75,'Trust - Frontsheet'!$A$16:$AC$215,8,0)<>"")),"You have entered unacceptable specialties.","")) ->  | J75: =IF(A75="","",IF(AND(RIGHT(VLOOKUP(A75,'Trust - Frontsheet'!$A$16:$AC$215,7,0),3)<>RIGHT(VLOOKUP(A75,'Trust - Frontsheet'!$A$16:$AC$215,8,0),3),VLOOKUP(A75,'Trust - Frontsheet'!$A$16:$AC$215,8,0)<>""),"Covid statuses do not match","")) ->  | L75: =IF(SUMPRODUCT(--('Trust - Frontsheet'!$D84:$AC84=""))<>26,"","This is a blank row") -> This is a blank row
A76: =IF('Trust - Frontsheet'!A85="","",'Trust - Frontsheet'!A85) ->  | B76: =IF('Trust - Frontsheet'!A85="","",'Trust - Frontsheet'!D85) ->  | C76: =IF(VLOOKUP(A76,'Trust - Frontsheet'!$A$16:$AC$215,5,0)="","",VLOOKUP(A76,'Trust - Frontsheet'!$A$16:$AC$216,5,0)) ->  | D76: =IF(VLOOKUP(A76,'Trust - Frontsheet'!$A$16:$AC$215,6,0)="","",VLOOKUP(A76,'Trust - Frontsheet'!$A$16:$AC$216,6,0)) ->  | E76: =IF(OR(SUMPRODUCT(--(ISTEXT('Trust - Frontsheet'!I85:AC85)))>0,SUMPRODUCT(--(ISERROR('Trust - Frontsheet'!AD85:AT85)))>0),"There is invalid data on this row",IF(SUMPRODUCT(--('Trust - Frontsheet'!I85:AC85<0))>0,"This row contains negative values",IF(AND(L76="This is a blank Row",COUNTBLANK(INDIRECT("L" & ROW() + 1 & ":L" & 206))>0),"No blank rows in the data",""))) ->  | F76: =IF(A76 = "","",IF('Trust - Frontsheet'!D85="", "Site code not present","")) ->  | G76: =IF('Trust - Frontsheet'!D85="","",IF(VLOOKUP(A76,'Trust - Frontsheet'!$A$16:$AC$215,6,0)="","Ward name not present","")) ->  | H76: =IF(A76="","",IF(VLOOKUP(A76,'Trust - Frontsheet'!$A$16:$AC$215,7,0)="","Specialty 1 has not been selected","")) ->  | I76: =IF(A76="","",IF(OR(COUNTIF(Specialties,VLOOKUP(A76,'Trust - Frontsheet'!$A$16:$AC$215,7,0))=0, AND(COUNTIF(Specialties,VLOOKUP(A76,'Trust - Frontsheet'!$A$16:$AC$215,8,0))=0,VLOOKUP(A76,'Trust - Frontsheet'!$A$16:$AC$215,8,0)<>"")),"You have entered unacceptable specialties.","")) ->  | J76: =IF(A76="","",IF(AND(RIGHT(VLOOKUP(A76,'Trust - Frontsheet'!$A$16:$AC$215,7,0),3)<>RIGHT(VLOOKUP(A76,'Trust - Frontsheet'!$A$16:$AC$215,8,0),3),VLOOKUP(A76,'Trust - Frontsheet'!$A$16:$AC$215,8,0)<>""),"Covid statuses do not match","")) ->  | L76: =IF(SUMPRODUCT(--('Trust - Frontsheet'!$D85:$AC85=""))<>26,"","This is a blank row") -> This is a blank row
A77: =IF('Trust - Frontsheet'!A86="","",'Trust - Frontsheet'!A86) ->  | B77: =IF('Trust - Frontsheet'!A86="","",'Trust - Frontsheet'!D86) ->  | C77: =IF(VLOOKUP(A77,'Trust - Frontsheet'!$A$16:$AC$215,5,0)="","",VLOOKUP(A77,'Trust - Frontsheet'!$A$16:$AC$216,5,0)) ->  | D77: =IF(VLOOKUP(A77,'Trust - Frontsheet'!$A$16:$AC$215,6,0)="","",VLOOKUP(A77,'Trust - Frontsheet'!$A$16:$AC$216,6,0)) ->  | E77: =IF(OR(SUMPRODUCT(--(ISTEXT('Trust - Frontsheet'!I86:AC86)))>0,SUMPRODUCT(--(ISERROR('Trust - Frontsheet'!AD86:AT86)))>0),"There is invalid data on this row",IF(SUMPRODUCT(--('Trust - Frontsheet'!I86:AC86<0))>0,"This row contains negative values",IF(AND(L77="This is a blank Row",COUNTBLANK(INDIRECT("L" & ROW() + 1 & ":L" & 206))>0),"No blank rows in the data",""))) ->  | F77: =IF(A77 = "","",IF('Trust - Frontsheet'!D86="", "Site code not present","")) ->  | G77: =IF('Trust - Frontsheet'!D86="","",IF(VLOOKUP(A77,'Trust - Frontsheet'!$A$16:$AC$215,6,0)="","Ward name not present","")) ->  | H77: =IF(A77="","",IF(VLOOKUP(A77,'Trust - Frontsheet'!$A$16:$AC$215,7,0)="","Specialty 1 has not been selected","")) ->  | I77: =IF(A77="","",IF(OR(COUNTIF(Specialties,VLOOKUP(A77,'Trust - Frontsheet'!$A$16:$AC$215,7,0))=0, AND(COUNTIF(Specialties,VLOOKUP(A77,'Trust - Frontsheet'!$A$16:$AC$215,8,0))=0,VLOOKUP(A77,'Trust - Frontsheet'!$A$16:$AC$215,8,0)<>"")),"You have entered unacceptable specialties.","")) ->  | J77: =IF(A77="","",IF(AND(RIGHT(VLOOKUP(A77,'Trust - Frontsheet'!$A$16:$AC$215,7,0),3)<>RIGHT(VLOOKUP(A77,'Trust - Frontsheet'!$A$16:$AC$215,8,0),3),VLOOKUP(A77,'Trust - Frontsheet'!$A$16:$AC$215,8,0)<>""),"Covid statuses do not match","")) ->  | L77: =IF(SUMPRODUCT(--('Trust - Frontsheet'!$D86:$AC86=""))<>26,"","This is a blank row") -> This is a blank row
A78: =IF('Trust - Frontsheet'!A87="","",'Trust - Frontsheet'!A87) ->  | B78: =IF('Trust - Frontsheet'!A87="","",'Trust - Frontsheet'!D87) ->  | C78: =IF(VLOOKUP(A78,'Trust - Frontsheet'!$A$16:$AC$215,5,0)="","",VLOOKUP(A78,'Trust - Frontsheet'!$A$16:$AC$216,5,0)) ->  | D78: =IF(VLOOKUP(A78,'Trust - Frontsheet'!$A$16:$AC$215,6,0)="","",VLOOKUP(A78,'Trust - Frontsheet'!$A$16:$AC$216,6,0)) ->  | E78: =IF(OR(SUMPRODUCT(--(ISTEXT('Trust - Frontsheet'!I87:AC87)))>0,SUMPRODUCT(--(ISERROR('Trust - Frontsheet'!AD87:AT87)))>0),"There is invalid data on this row",IF(SUMPRODUCT(--('Trust - Frontsheet'!I87:AC87<0))>0,"This row contains negative values",IF(AND(L78="This is a blank Row",COUNTBLANK(INDIRECT("L" & ROW() + 1 & ":L" & 206))>0),"No blank rows in the data",""))) ->  | F78: =IF(A78 = "","",IF('Trust - Frontsheet'!D87="", "Site code not present","")) ->  | G78: =IF('Trust - Frontsheet'!D87="","",IF(VLOOKUP(A78,'Trust - Frontsheet'!$A$16:$AC$215,6,0)="","Ward name not present","")) ->  | H78: =IF(A78="","",IF(VLOOKUP(A78,'Trust - Frontsheet'!$A$16:$AC$215,7,0)="","Specialty 1 has not been selected","")) ->  | I78: =IF(A78="","",IF(OR(COUNTIF(Specialties,VLOOKUP(A78,'Trust - Frontsheet'!$A$16:$AC$215,7,0))=0, AND(COUNTIF(Specialties,VLOOKUP(A78,'Trust - Frontsheet'!$A$16:$AC$215,8,0))=0,VLOOKUP(A78,'Trust - Frontsheet'!$A$16:$AC$215,8,0)<>"")),"You have entered unacceptable specialties.","")) ->  | J78: =IF(A78="","",IF(AND(RIGHT(VLOOKUP(A78,'Trust - Frontsheet'!$A$16:$AC$215,7,0),3)<>RIGHT(VLOOKUP(A78,'Trust - Frontsheet'!$A$16:$AC$215,8,0),3),VLOOKUP(A78,'Trust - Frontsheet'!$A$16:$AC$215,8,0)<>""),"Covid statuses do not match","")) ->  | L78: =IF(SUMPRODUCT(--('Trust - Frontsheet'!$D87:$AC87=""))<>26,"","This is a blank row") -> This is a blank row
A79: =IF('Trust - Frontsheet'!A88="","",'Trust - Frontsheet'!A88) ->  | B79: =IF('Trust - Frontsheet'!A88="","",'Trust - Frontsheet'!D88) ->  | C79: =IF(VLOOKUP(A79,'Trust - Frontsheet'!$A$16:$AC$215,5,0)="","",VLOOKUP(A79,'Trust - Frontsheet'!$A$16:$AC$216,5,0)) ->  | D79: =IF(VLOOKUP(A79,'Trust - Frontsheet'!$A$16:$AC$215,6,0)="","",VLOOKUP(A79,'Trust - Frontsheet'!$A$16:$AC$216,6,0)) ->  | E79: =IF(OR(SUMPRODUCT(--(ISTEXT('Trust - Frontsheet'!I88:AC88)))>0,SUMPRODUCT(--(ISERROR('Trust - Frontsheet'!AD88:AT88)))>0),"There is invalid data on this row",IF(SUMPRODUCT(--('Trust - Frontsheet'!I88:AC88<0))>0,"This row contains negative values",IF(AND(L79="This is a blank Row",COUNTBLANK(INDIRECT("L" & ROW() + 1 & ":L" & 206))>0),"No blank rows in the data",""))) ->  | F79: =IF(A79 = "","",IF('Trust - Frontsheet'!D88="", "Site code not present","")) ->  | G79: =IF('Trust - Frontsheet'!D88="","",IF(VLOOKUP(A79,'Trust - Frontsheet'!$A$16:$AC$215,6,0)="","Ward name not present","")) ->  | H79: =IF(A79="","",IF(VLOOKUP(A79,'Trust - Frontsheet'!$A$16:$AC$215,7,0)="","Specialty 1 has not been selected","")) ->  | I79: =IF(A79="","",IF(OR(COUNTIF(Specialties,VLOOKUP(A79,'Trust - Frontsheet'!$A$16:$AC$215,7,0))=0, AND(COUNTIF(Specialties,VLOOKUP(A79,'Trust - Frontsheet'!$A$16:$AC$215,8,0))=0,VLOOKUP(A79,'Trust - Frontsheet'!$A$16:$AC$215,8,0)<>"")),"You have entered unacceptable specialties.","")) ->  | J79: =IF(A79="","",IF(AND(RIGHT(VLOOKUP(A79,'Trust - Frontsheet'!$A$16:$AC$215,7,0),3)<>RIGHT(VLOOKUP(A79,'Trust - Frontsheet'!$A$16:$AC$215,8,0),3),VLOOKUP(A79,'Trust - Frontsheet'!$A$16:$AC$215,8,0)<>""),"Covid statuses do not match","")) ->  | L79: =IF(SUMPRODUCT(--('Trust - Frontsheet'!$D88:$AC88=""))<>26,"","This is a blank row") -> This is a blank row
A80: =IF('Trust - Frontsheet'!A89="","",'Trust - Frontsheet'!A89) ->  | B80: =IF('Trust - Frontsheet'!A89="","",'Trust - Frontsheet'!D89) ->  | C80: =IF(VLOOKUP(A80,'Trust - Frontsheet'!$A$16:$AC$215,5,0)="","",VLOOKUP(A80,'Trust - Frontsheet'!$A$16:$AC$216,5,0)) ->  | D80: =IF(VLOOKUP(A80,'Trust - Frontsheet'!$A$16:$AC$215,6,0)="","",VLOOKUP(A80,'Trust - Frontsheet'!$A$16:$AC$216,6,0)) ->  | E80: =IF(OR(SUMPRODUCT(--(ISTEXT('Trust - Frontsheet'!I89:AC89)))>0,SUMPRODUCT(--(ISERROR('Trust - Frontsheet'!AD89:AT89)))>0),"There is invalid data on this row",IF(SUMPRODUCT(--('Trust - Frontsheet'!I89:AC89<0))>0,"This row contains negative values",IF(AND(L80="This is a blank Row",COUNTBLANK(INDIRECT("L" & ROW() + 1 & ":L" & 206))>0),"No blank rows in the data",""))) ->  | F80: =IF(A80 = "","",IF('Trust - Frontsheet'!D89="", "Site code not present","")) ->  | G80: =IF('Trust - Frontsheet'!D89="","",IF(VLOOKUP(A80,'Trust - Frontsheet'!$A$16:$AC$215,6,0)="","Ward name not present","")) ->  | H80: =IF(A80="","",IF(VLOOKUP(A80,'Trust - Frontsheet'!$A$16:$AC$215,7,0)="","Specialty 1 has not been selected","")) ->  | I80: =IF(A80="","",IF(OR(COUNTIF(Specialties,VLOOKUP(A80,'Trust - Frontsheet'!$A$16:$AC$215,7,0))=0, AND(COUNTIF(Specialties,VLOOKUP(A80,'Trust - Frontsheet'!$A$16:$AC$215,8,0))=0,VLOOKUP(A80,'Trust - Frontsheet'!$A$16:$AC$215,8,0)<>"")),"You have entered unacceptable specialties.","")) ->  | J80: =IF(A80="","",IF(AND(RIGHT(VLOOKUP(A80,'Trust - Frontsheet'!$A$16:$AC$215,7,0),3)<>RIGHT(VLOOKUP(A80,'Trust - Frontsheet'!$A$16:$AC$215,8,0),3),VLOOKUP(A80,'Trust - Frontsheet'!$A$16:$AC$215,8,0)<>""),"Covid statuses do not match","")) ->  | L80: =IF(SUMPRODUCT(--('Trust - Frontsheet'!$D89:$AC89=""))<>26,"","This is a blank row") -> This is a blank row
A81: =IF('Trust - Frontsheet'!A90="","",'Trust - Frontsheet'!A90) ->  | B81: =IF('Trust - Frontsheet'!A90="","",'Trust - Frontsheet'!D90) ->  | C81: =IF(VLOOKUP(A81,'Trust - Frontsheet'!$A$16:$AC$215,5,0)="","",VLOOKUP(A81,'Trust - Frontsheet'!$A$16:$AC$216,5,0)) ->  | D81: =IF(VLOOKUP(A81,'Trust - Frontsheet'!$A$16:$AC$215,6,0)="","",VLOOKUP(A81,'Trust - Frontsheet'!$A$16:$AC$216,6,0)) ->  | E81: =IF(OR(SUMPRODUCT(--(ISTEXT('Trust - Frontsheet'!I90:AC90)))>0,SUMPRODUCT(--(ISERROR('Trust - Frontsheet'!AD90:AT90)))>0),"There is invalid data on this row",IF(SUMPRODUCT(--('Trust - Frontsheet'!I90:AC90<0))>0,"This row contains negative values",IF(AND(L81="This is a blank Row",COUNTBLANK(INDIRECT("L" & ROW() + 1 & ":L" & 206))>0),"No blank rows in the data",""))) ->  | F81: =IF(A81 = "","",IF('Trust - Frontsheet'!D90="", "Site code not present","")) ->  | G81: =IF('Trust - Frontsheet'!D90="","",IF(VLOOKUP(A81,'Trust - Frontsheet'!$A$16:$AC$215,6,0)="","Ward name not present","")) ->  | H81: =IF(A81="","",IF(VLOOKUP(A81,'Trust - Frontsheet'!$A$16:$AC$215,7,0)="","Specialty 1 has not been selected","")) ->  | I81: =IF(A81="","",IF(OR(COUNTIF(Specialties,VLOOKUP(A81,'Trust - Frontsheet'!$A$16:$AC$215,7,0))=0, AND(COUNTIF(Specialties,VLOOKUP(A81,'Trust - Frontsheet'!$A$16:$AC$215,8,0))=0,VLOOKUP(A81,'Trust - Frontsheet'!$A$16:$AC$215,8,0)<>"")),"You have entered unacceptable specialties.","")) ->  | J81: =IF(A81="","",IF(AND(RIGHT(VLOOKUP(A81,'Trust - Frontsheet'!$A$16:$AC$215,7,0),3)<>RIGHT(VLOOKUP(A81,'Trust - Frontsheet'!$A$16:$AC$215,8,0),3),VLOOKUP(A81,'Trust - Frontsheet'!$A$16:$AC$215,8,0)<>""),"Covid statuses do not match","")) ->  | L81: =IF(SUMPRODUCT(--('Trust - Frontsheet'!$D90:$AC90=""))<>26,"","This is a blank row") -> This is a blank row
A82: =IF('Trust - Frontsheet'!A91="","",'Trust - Frontsheet'!A91) ->  | B82: =IF('Trust - Frontsheet'!A91="","",'Trust - Frontsheet'!D91) ->  | C82: =IF(VLOOKUP(A82,'Trust - Frontsheet'!$A$16:$AC$215,5,0)="","",VLOOKUP(A82,'Trust - Frontsheet'!$A$16:$AC$216,5,0)) ->  | D82: =IF(VLOOKUP(A82,'Trust - Frontsheet'!$A$16:$AC$215,6,0)="","",VLOOKUP(A82,'Trust - Frontsheet'!$A$16:$AC$216,6,0)) ->  | E82: =IF(OR(SUMPRODUCT(--(ISTEXT('Trust - Frontsheet'!I91:AC91)))>0,SUMPRODUCT(--(ISERROR('Trust - Frontsheet'!AD91:AT91)))>0),"There is invalid data on this row",IF(SUMPRODUCT(--('Trust - Frontsheet'!I91:AC91<0))>0,"This row contains negative values",IF(AND(L82="This is a blank Row",COUNTBLANK(INDIRECT("L" & ROW() + 1 & ":L" & 206))>0),"No blank rows in the data",""))) ->  | F82: =IF(A82 = "","",IF('Trust - Frontsheet'!D91="", "Site code not present","")) ->  | G82: =IF('Trust - Frontsheet'!D91="","",IF(VLOOKUP(A82,'Trust - Frontsheet'!$A$16:$AC$215,6,0)="","Ward name not present","")) ->  | H82: =IF(A82="","",IF(VLOOKUP(A82,'Trust - Frontsheet'!$A$16:$AC$215,7,0)="","Specialty 1 has not been selected","")) ->  | I82: =IF(A82="","",IF(OR(COUNTIF(Specialties,VLOOKUP(A82,'Trust - Frontsheet'!$A$16:$AC$215,7,0))=0, AND(COUNTIF(Specialties,VLOOKUP(A82,'Trust - Frontsheet'!$A$16:$AC$215,8,0))=0,VLOOKUP(A82,'Trust - Frontsheet'!$A$16:$AC$215,8,0)<>"")),"You have entered unacceptable specialties.","")) ->  | J82: =IF(A82="","",IF(AND(RIGHT(VLOOKUP(A82,'Trust - Frontsheet'!$A$16:$AC$215,7,0),3)<>RIGHT(VLOOKUP(A82,'Trust - Frontsheet'!$A$16:$AC$215,8,0),3),VLOOKUP(A82,'Trust - Frontsheet'!$A$16:$AC$215,8,0)<>""),"Covid statuses do not match","")) ->  | L82: =IF(SUMPRODUCT(--('Trust - Frontsheet'!$D91:$AC91=""))<>26,"","This is a blank row") -> This is a blank row
A83: =IF('Trust - Frontsheet'!A92="","",'Trust - Frontsheet'!A92) ->  | B83: =IF('Trust - Frontsheet'!A92="","",'Trust - Frontsheet'!D92) ->  | C83: =IF(VLOOKUP(A83,'Trust - Frontsheet'!$A$16:$AC$215,5,0)="","",VLOOKUP(A83,'Trust - Frontsheet'!$A$16:$AC$216,5,0)) ->  | D83: =IF(VLOOKUP(A83,'Trust - Frontsheet'!$A$16:$AC$215,6,0)="","",VLOOKUP(A83,'Trust - Frontsheet'!$A$16:$AC$216,6,0)) ->  | E83: =IF(OR(SUMPRODUCT(--(ISTEXT('Trust - Frontsheet'!I92:AC92)))>0,SUMPRODUCT(--(ISERROR('Trust - Frontsheet'!AD92:AT92)))>0),"There is invalid data on this row",IF(SUMPRODUCT(--('Trust - Frontsheet'!I92:AC92<0))>0,"This row contains negative values",IF(AND(L83="This is a blank Row",COUNTBLANK(INDIRECT("L" & ROW() + 1 & ":L" & 206))>0),"No blank rows in the data",""))) ->  | F83: =IF(A83 = "","",IF('Trust - Frontsheet'!D92="", "Site code not present","")) ->  | G83: =IF('Trust - Frontsheet'!D92="","",IF(VLOOKUP(A83,'Trust - Frontsheet'!$A$16:$AC$215,6,0)="","Ward name not present","")) ->  | H83: =IF(A83="","",IF(VLOOKUP(A83,'Trust - Frontsheet'!$A$16:$AC$215,7,0)="","Specialty 1 has not been selected","")) ->  | I83: =IF(A83="","",IF(OR(COUNTIF(Specialties,VLOOKUP(A83,'Trust - Frontsheet'!$A$16:$AC$215,7,0))=0, AND(COUNTIF(Specialties,VLOOKUP(A83,'Trust - Frontsheet'!$A$16:$AC$215,8,0))=0,VLOOKUP(A83,'Trust - Frontsheet'!$A$16:$AC$215,8,0)<>"")),"You have entered unacceptable specialties.","")) ->  | J83: =IF(A83="","",IF(AND(RIGHT(VLOOKUP(A83,'Trust - Frontsheet'!$A$16:$AC$215,7,0),3)<>RIGHT(VLOOKUP(A83,'Trust - Frontsheet'!$A$16:$AC$215,8,0),3),VLOOKUP(A83,'Trust - Frontsheet'!$A$16:$AC$215,8,0)<>""),"Covid statuses do not match","")) ->  | L83: =IF(SUMPRODUCT(--('Trust - Frontsheet'!$D92:$AC92=""))<>26,"","This is a blank row") -> This is a blank row
A84: =IF('Trust - Frontsheet'!A93="","",'Trust - Frontsheet'!A93) ->  | B84: =IF('Trust - Frontsheet'!A93="","",'Trust - Frontsheet'!D93) ->  | C84: =IF(VLOOKUP(A84,'Trust - Frontsheet'!$A$16:$AC$215,5,0)="","",VLOOKUP(A84,'Trust - Frontsheet'!$A$16:$AC$216,5,0)) ->  | D84: =IF(VLOOKUP(A84,'Trust - Frontsheet'!$A$16:$AC$215,6,0)="","",VLOOKUP(A84,'Trust - Frontsheet'!$A$16:$AC$216,6,0)) ->  | E84: =IF(OR(SUMPRODUCT(--(ISTEXT('Trust - Frontsheet'!I93:AC93)))>0,SUMPRODUCT(--(ISERROR('Trust - Frontsheet'!AD93:AT93)))>0),"There is invalid data on this row",IF(SUMPRODUCT(--('Trust - Frontsheet'!I93:AC93<0))>0,"This row contains negative values",IF(AND(L84="This is a blank Row",COUNTBLANK(INDIRECT("L" & ROW() + 1 & ":L" & 206))>0),"No blank rows in the data",""))) ->  | F84: =IF(A84 = "","",IF('Trust - Frontsheet'!D93="", "Site code not present","")) ->  | G84: =IF('Trust - Frontsheet'!D93="","",IF(VLOOKUP(A84,'Trust - Frontsheet'!$A$16:$AC$215,6,0)="","Ward name not present","")) ->  | H84: =IF(A84="","",IF(VLOOKUP(A84,'Trust - Frontsheet'!$A$16:$AC$215,7,0)="","Specialty 1 has not been selected","")) ->  | I84: =IF(A84="","",IF(OR(COUNTIF(Specialties,VLOOKUP(A84,'Trust - Frontsheet'!$A$16:$AC$215,7,0))=0, AND(COUNTIF(Specialties,VLOOKUP(A84,'Trust - Frontsheet'!$A$16:$AC$215,8,0))=0,VLOOKUP(A84,'Trust - Frontsheet'!$A$16:$AC$215,8,0)<>"")),"You have entered unacceptable specialties.","")) ->  | J84: =IF(A84="","",IF(AND(RIGHT(VLOOKUP(A84,'Trust - Frontsheet'!$A$16:$AC$215,7,0),3)<>RIGHT(VLOOKUP(A84,'Trust - Frontsheet'!$A$16:$AC$215,8,0),3),VLOOKUP(A84,'Trust - Frontsheet'!$A$16:$AC$215,8,0)<>""),"Covid statuses do not match","")) ->  | L84: =IF(SUMPRODUCT(--('Trust - Frontsheet'!$D93:$AC93=""))<>26,"","This is a blank row") -> This is a blank row
A85: =IF('Trust - Frontsheet'!A94="","",'Trust - Frontsheet'!A94) ->  | B85: =IF('Trust - Frontsheet'!A94="","",'Trust - Frontsheet'!D94) ->  | C85: =IF(VLOOKUP(A85,'Trust - Frontsheet'!$A$16:$AC$215,5,0)="","",VLOOKUP(A85,'Trust - Frontsheet'!$A$16:$AC$216,5,0)) ->  | D85: =IF(VLOOKUP(A85,'Trust - Frontsheet'!$A$16:$AC$215,6,0)="","",VLOOKUP(A85,'Trust - Frontsheet'!$A$16:$AC$216,6,0)) ->  | E85: =IF(OR(SUMPRODUCT(--(ISTEXT('Trust - Frontsheet'!I94:AC94)))>0,SUMPRODUCT(--(ISERROR('Trust - Frontsheet'!AD94:AT94)))>0),"There is invalid data on this row",IF(SUMPRODUCT(--('Trust - Frontsheet'!I94:AC94<0))>0,"This row contains negative values",IF(AND(L85="This is a blank Row",COUNTBLANK(INDIRECT("L" & ROW() + 1 & ":L" & 206))>0),"No blank rows in the data",""))) ->  | F85: =IF(A85 = "","",IF('Trust - Frontsheet'!D94="", "Site code not present","")) ->  | G85: =IF('Trust - Frontsheet'!D94="","",IF(VLOOKUP(A85,'Trust - Frontsheet'!$A$16:$AC$215,6,0)="","Ward name not present","")) ->  | H85: =IF(A85="","",IF(VLOOKUP(A85,'Trust - Frontsheet'!$A$16:$AC$215,7,0)="","Specialty 1 has not been selected","")) ->  | I85: =IF(A85="","",IF(OR(COUNTIF(Specialties,VLOOKUP(A85,'Trust - Frontsheet'!$A$16:$AC$215,7,0))=0, AND(COUNTIF(Specialties,VLOOKUP(A85,'Trust - Frontsheet'!$A$16:$AC$215,8,0))=0,VLOOKUP(A85,'Trust - Frontsheet'!$A$16:$AC$215,8,0)<>"")),"You have entered unacceptable specialties.","")) ->  | J85: =IF(A85="","",IF(AND(RIGHT(VLOOKUP(A85,'Trust - Frontsheet'!$A$16:$AC$215,7,0),3)<>RIGHT(VLOOKUP(A85,'Trust - Frontsheet'!$A$16:$AC$215,8,0),3),VLOOKUP(A85,'Trust - Frontsheet'!$A$16:$AC$215,8,0)<>""),"Covid statuses do not match","")) ->  | L85: =IF(SUMPRODUCT(--('Trust - Frontsheet'!$D94:$AC94=""))<>26,"","This is a blank row") -> This is a blank row
A86: =IF('Trust - Frontsheet'!A95="","",'Trust - Frontsheet'!A95) ->  | B86: =IF('Trust - Frontsheet'!A95="","",'Trust - Frontsheet'!D95) ->  | C86: =IF(VLOOKUP(A86,'Trust - Frontsheet'!$A$16:$AC$215,5,0)="","",VLOOKUP(A86,'Trust - Frontsheet'!$A$16:$AC$216,5,0)) ->  | D86: =IF(VLOOKUP(A86,'Trust - Frontsheet'!$A$16:$AC$215,6,0)="","",VLOOKUP(A86,'Trust - Frontsheet'!$A$16:$AC$216,6,0)) ->  | E86: =IF(OR(SUMPRODUCT(--(ISTEXT('Trust - Frontsheet'!I95:AC95)))>0,SUMPRODUCT(--(ISERROR('Trust - Frontsheet'!AD95:AT95)))>0),"There is invalid data on this row",IF(SUMPRODUCT(--('Trust - Frontsheet'!I95:AC95<0))>0,"This row contains negative values",IF(AND(L86="This is a blank Row",COUNTBLANK(INDIRECT("L" & ROW() + 1 & ":L" & 206))>0),"No blank rows in the data",""))) ->  | F86: =IF(A86 = "","",IF('Trust - Frontsheet'!D95="", "Site code not present","")) ->  | G86: =IF('Trust - Frontsheet'!D95="","",IF(VLOOKUP(A86,'Trust - Frontsheet'!$A$16:$AC$215,6,0)="","Ward name not present","")) ->  | H86: =IF(A86="","",IF(VLOOKUP(A86,'Trust - Frontsheet'!$A$16:$AC$215,7,0)="","Specialty 1 has not been selected","")) ->  | I86: =IF(A86="","",IF(OR(COUNTIF(Specialties,VLOOKUP(A86,'Trust - Frontsheet'!$A$16:$AC$215,7,0))=0, AND(COUNTIF(Specialties,VLOOKUP(A86,'Trust - Frontsheet'!$A$16:$AC$215,8,0))=0,VLOOKUP(A86,'Trust - Frontsheet'!$A$16:$AC$215,8,0)<>"")),"You have entered unacceptable specialties.","")) ->  | J86: =IF(A86="","",IF(AND(RIGHT(VLOOKUP(A86,'Trust - Frontsheet'!$A$16:$AC$215,7,0),3)<>RIGHT(VLOOKUP(A86,'Trust - Frontsheet'!$A$16:$AC$215,8,0),3),VLOOKUP(A86,'Trust - Frontsheet'!$A$16:$AC$215,8,0)<>""),"Covid statuses do not match","")) ->  | L86: =IF(SUMPRODUCT(--('Trust - Frontsheet'!$D95:$AC95=""))<>26,"","This is a blank row") -> This is a blank row
A87: =IF('Trust - Frontsheet'!A96="","",'Trust - Frontsheet'!A96) ->  | B87: =IF('Trust - Frontsheet'!A96="","",'Trust - Frontsheet'!D96) ->  | C87: =IF(VLOOKUP(A87,'Trust - Frontsheet'!$A$16:$AC$215,5,0)="","",VLOOKUP(A87,'Trust - Frontsheet'!$A$16:$AC$216,5,0)) ->  | D87: =IF(VLOOKUP(A87,'Trust - Frontsheet'!$A$16:$AC$215,6,0)="","",VLOOKUP(A87,'Trust - Frontsheet'!$A$16:$AC$216,6,0)) ->  | E87: =IF(OR(SUMPRODUCT(--(ISTEXT('Trust - Frontsheet'!I96:AC96)))>0,SUMPRODUCT(--(ISERROR('Trust - Frontsheet'!AD96:AT96)))>0),"There is invalid data on this row",IF(SUMPRODUCT(--('Trust - Frontsheet'!I96:AC96<0))>0,"This row contains negative values",IF(AND(L87="This is a blank Row",COUNTBLANK(INDIRECT("L" & ROW() + 1 & ":L" & 206))>0),"No blank rows in the data",""))) ->  | F87: =IF(A87 = "","",IF('Trust - Frontsheet'!D96="", "Site code not present","")) ->  | G87: =IF('Trust - Frontsheet'!D96="","",IF(VLOOKUP(A87,'Trust - Frontsheet'!$A$16:$AC$215,6,0)="","Ward name not present","")) ->  | H87: =IF(A87="","",IF(VLOOKUP(A87,'Trust - Frontsheet'!$A$16:$AC$215,7,0)="","Specialty 1 has not been selected","")) ->  | I87: =IF(A87="","",IF(OR(COUNTIF(Specialties,VLOOKUP(A87,'Trust - Frontsheet'!$A$16:$AC$215,7,0))=0, AND(COUNTIF(Specialties,VLOOKUP(A87,'Trust - Frontsheet'!$A$16:$AC$215,8,0))=0,VLOOKUP(A87,'Trust - Frontsheet'!$A$16:$AC$215,8,0)<>"")),"You have entered unacceptable specialties.","")) ->  | J87: =IF(A87="","",IF(AND(RIGHT(VLOOKUP(A87,'Trust - Frontsheet'!$A$16:$AC$215,7,0),3)<>RIGHT(VLOOKUP(A87,'Trust - Frontsheet'!$A$16:$AC$215,8,0),3),VLOOKUP(A87,'Trust - Frontsheet'!$A$16:$AC$215,8,0)<>""),"Covid statuses do not match","")) ->  | L87: =IF(SUMPRODUCT(--('Trust - Frontsheet'!$D96:$AC96=""))<>26,"","This is a blank row") -> This is a blank row
A88: =IF('Trust - Frontsheet'!A97="","",'Trust - Frontsheet'!A97) ->  | B88: =IF('Trust - Frontsheet'!A97="","",'Trust - Frontsheet'!D97) ->  | C88: =IF(VLOOKUP(A88,'Trust - Frontsheet'!$A$16:$AC$215,5,0)="","",VLOOKUP(A88,'Trust - Frontsheet'!$A$16:$AC$216,5,0)) ->  | D88: =IF(VLOOKUP(A88,'Trust - Frontsheet'!$A$16:$AC$215,6,0)="","",VLOOKUP(A88,'Trust - Frontsheet'!$A$16:$AC$216,6,0)) ->  | E88: =IF(OR(SUMPRODUCT(--(ISTEXT('Trust - Frontsheet'!I97:AC97)))>0,SUMPRODUCT(--(ISERROR('Trust - Frontsheet'!AD97:AT97)))>0),"There is invalid data on this row",IF(SUMPRODUCT(--('Trust - Frontsheet'!I97:AC97<0))>0,"This row contains negative values",IF(AND(L88="This is a blank Row",COUNTBLANK(INDIRECT("L" & ROW() + 1 & ":L" & 206))>0),"No blank rows in the data",""))) ->  | F88: =IF(A88 = "","",IF('Trust - Frontsheet'!D97="", "Site code not present","")) ->  | G88: =IF('Trust - Frontsheet'!D97="","",IF(VLOOKUP(A88,'Trust - Frontsheet'!$A$16:$AC$215,6,0)="","Ward name not present","")) ->  | H88: =IF(A88="","",IF(VLOOKUP(A88,'Trust - Frontsheet'!$A$16:$AC$215,7,0)="","Specialty 1 has not been selected","")) ->  | I88: =IF(A88="","",IF(OR(COUNTIF(Specialties,VLOOKUP(A88,'Trust - Frontsheet'!$A$16:$AC$215,7,0))=0, AND(COUNTIF(Specialties,VLOOKUP(A88,'Trust - Frontsheet'!$A$16:$AC$215,8,0))=0,VLOOKUP(A88,'Trust - Frontsheet'!$A$16:$AC$215,8,0)<>"")),"You have entered unacceptable specialties.","")) ->  | J88: =IF(A88="","",IF(AND(RIGHT(VLOOKUP(A88,'Trust - Frontsheet'!$A$16:$AC$215,7,0),3)<>RIGHT(VLOOKUP(A88,'Trust - Frontsheet'!$A$16:$AC$215,8,0),3),VLOOKUP(A88,'Trust - Frontsheet'!$A$16:$AC$215,8,0)<>""),"Covid statuses do not match","")) ->  | L88: =IF(SUMPRODUCT(--('Trust - Frontsheet'!$D97:$AC97=""))<>26,"","This is a blank row") -> This is a blank row
A89: =IF('Trust - Frontsheet'!A98="","",'Trust - Frontsheet'!A98) ->  | B89: =IF('Trust - Frontsheet'!A98="","",'Trust - Frontsheet'!D98) ->  | C89: =IF(VLOOKUP(A89,'Trust - Frontsheet'!$A$16:$AC$215,5,0)="","",VLOOKUP(A89,'Trust - Frontsheet'!$A$16:$AC$216,5,0)) ->  | D89: =IF(VLOOKUP(A89,'Trust - Frontsheet'!$A$16:$AC$215,6,0)="","",VLOOKUP(A89,'Trust - Frontsheet'!$A$16:$AC$216,6,0)) ->  | E89: =IF(OR(SUMPRODUCT(--(ISTEXT('Trust - Frontsheet'!I98:AC98)))>0,SUMPRODUCT(--(ISERROR('Trust - Frontsheet'!AD98:AT98)))>0),"There is invalid data on this row",IF(SUMPRODUCT(--('Trust - Frontsheet'!I98:AC98<0))>0,"This row contains negative values",IF(AND(L89="This is a blank Row",COUNTBLANK(INDIRECT("L" & ROW() + 1 & ":L" & 206))>0),"No blank rows in the data",""))) ->  | F89: =IF(A89 = "","",IF('Trust - Frontsheet'!D98="", "Site code not present","")) ->  | G89: =IF('Trust - Frontsheet'!D98="","",IF(VLOOKUP(A89,'Trust - Frontsheet'!$A$16:$AC$215,6,0)="","Ward name not present","")) ->  | H89: =IF(A89="","",IF(VLOOKUP(A89,'Trust - Frontsheet'!$A$16:$AC$215,7,0)="","Specialty 1 has not been selected","")) ->  | I89: =IF(A89="","",IF(OR(COUNTIF(Specialties,VLOOKUP(A89,'Trust - Frontsheet'!$A$16:$AC$215,7,0))=0, AND(COUNTIF(Specialties,VLOOKUP(A89,'Trust - Frontsheet'!$A$16:$AC$215,8,0))=0,VLOOKUP(A89,'Trust - Frontsheet'!$A$16:$AC$215,8,0)<>"")),"You have entered unacceptable specialties.","")) ->  | J89: =IF(A89="","",IF(AND(RIGHT(VLOOKUP(A89,'Trust - Frontsheet'!$A$16:$AC$215,7,0),3)<>RIGHT(VLOOKUP(A89,'Trust - Frontsheet'!$A$16:$AC$215,8,0),3),VLOOKUP(A89,'Trust - Frontsheet'!$A$16:$AC$215,8,0)<>""),"Covid statuses do not match","")) ->  | L89: =IF(SUMPRODUCT(--('Trust - Frontsheet'!$D98:$AC98=""))<>26,"","This is a blank row") -> This is a blank row
A90: =IF('Trust - Frontsheet'!A99="","",'Trust - Frontsheet'!A99) ->  | B90: =IF('Trust - Frontsheet'!A99="","",'Trust - Frontsheet'!D99) ->  | C90: =IF(VLOOKUP(A90,'Trust - Frontsheet'!$A$16:$AC$215,5,0)="","",VLOOKUP(A90,'Trust - Frontsheet'!$A$16:$AC$216,5,0)) ->  | D90: =IF(VLOOKUP(A90,'Trust - Frontsheet'!$A$16:$AC$215,6,0)="","",VLOOKUP(A90,'Trust - Frontsheet'!$A$16:$AC$216,6,0)) ->  | E90: =IF(OR(SUMPRODUCT(--(ISTEXT('Trust - Frontsheet'!I99:AC99)))>0,SUMPRODUCT(--(ISERROR('Trust - Frontsheet'!AD99:AT99)))>0),"There is invalid data on this row",IF(SUMPRODUCT(--('Trust - Frontsheet'!I99:AC99<0))>0,"This row contains negative values",IF(AND(L90="This is a blank Row",COUNTBLANK(INDIRECT("L" & ROW() + 1 & ":L" & 206))>0),"No blank rows in the data",""))) ->  | F90: =IF(A90 = "","",IF('Trust - Frontsheet'!D99="", "Site code not present","")) ->  | G90: =IF('Trust - Frontsheet'!D99="","",IF(VLOOKUP(A90,'Trust - Frontsheet'!$A$16:$AC$215,6,0)="","Ward name not present","")) ->  | H90: =IF(A90="","",IF(VLOOKUP(A90,'Trust - Frontsheet'!$A$16:$AC$215,7,0)="","Specialty 1 has not been selected","")) ->  | I90: =IF(A90="","",IF(OR(COUNTIF(Specialties,VLOOKUP(A90,'Trust - Frontsheet'!$A$16:$AC$215,7,0))=0, AND(COUNTIF(Specialties,VLOOKUP(A90,'Trust - Frontsheet'!$A$16:$AC$215,8,0))=0,VLOOKUP(A90,'Trust - Frontsheet'!$A$16:$AC$215,8,0)<>"")),"You have entered unacceptable specialties.","")) ->  | J90: =IF(A90="","",IF(AND(RIGHT(VLOOKUP(A90,'Trust - Frontsheet'!$A$16:$AC$215,7,0),3)<>RIGHT(VLOOKUP(A90,'Trust - Frontsheet'!$A$16:$AC$215,8,0),3),VLOOKUP(A90,'Trust - Frontsheet'!$A$16:$AC$215,8,0)<>""),"Covid statuses do not match","")) ->  | L90: =IF(SUMPRODUCT(--('Trust - Frontsheet'!$D99:$AC99=""))<>26,"","This is a blank row") -> This is a blank row
A91: =IF('Trust - Frontsheet'!A100="","",'Trust - Frontsheet'!A100) ->  | B91: =IF('Trust - Frontsheet'!A100="","",'Trust - Frontsheet'!D100) ->  | C91: =IF(VLOOKUP(A91,'Trust - Frontsheet'!$A$16:$AC$215,5,0)="","",VLOOKUP(A91,'Trust - Frontsheet'!$A$16:$AC$216,5,0)) ->  | D91: =IF(VLOOKUP(A91,'Trust - Frontsheet'!$A$16:$AC$215,6,0)="","",VLOOKUP(A91,'Trust - Frontsheet'!$A$16:$AC$216,6,0)) ->  | E91: =IF(OR(SUMPRODUCT(--(ISTEXT('Trust - Frontsheet'!I100:AC100)))>0,SUMPRODUCT(--(ISERROR('Trust - Frontsheet'!AD100:AT100)))>0),"There is invalid data on this row",IF(SUMPRODUCT(--('Trust - Frontsheet'!I100:AC100<0))>0,"This row contains negative values",IF(AND(L91="This is a blank Row",COUNTBLANK(INDIRECT("L" & ROW() + 1 & ":L" & 206))>0),"No blank rows in the data",""))) ->  | F91: =IF(A91 = "","",IF('Trust - Frontsheet'!D100="", "Site code not present","")) ->  | G91: =IF('Trust - Frontsheet'!D100="","",IF(VLOOKUP(A91,'Trust - Frontsheet'!$A$16:$AC$215,6,0)="","Ward name not present","")) ->  | H91: =IF(A91="","",IF(VLOOKUP(A91,'Trust - Frontsheet'!$A$16:$AC$215,7,0)="","Specialty 1 has not been selected","")) ->  | I91: =IF(A91="","",IF(OR(COUNTIF(Specialties,VLOOKUP(A91,'Trust - Frontsheet'!$A$16:$AC$215,7,0))=0, AND(COUNTIF(Specialties,VLOOKUP(A91,'Trust - Frontsheet'!$A$16:$AC$215,8,0))=0,VLOOKUP(A91,'Trust - Frontsheet'!$A$16:$AC$215,8,0)<>"")),"You have entered unacceptable specialties.","")) ->  | J91: =IF(A91="","",IF(AND(RIGHT(VLOOKUP(A91,'Trust - Frontsheet'!$A$16:$AC$215,7,0),3)<>RIGHT(VLOOKUP(A91,'Trust - Frontsheet'!$A$16:$AC$215,8,0),3),VLOOKUP(A91,'Trust - Frontsheet'!$A$16:$AC$215,8,0)<>""),"Covid statuses do not match","")) ->  | L91: =IF(SUMPRODUCT(--('Trust - Frontsheet'!$D100:$AC100=""))<>26,"","This is a blank row") -> This is a blank row
A92: =IF('Trust - Frontsheet'!A101="","",'Trust - Frontsheet'!A101) ->  | B92: =IF('Trust - Frontsheet'!A101="","",'Trust - Frontsheet'!D101) ->  | C92: =IF(VLOOKUP(A92,'Trust - Frontsheet'!$A$16:$AC$215,5,0)="","",VLOOKUP(A92,'Trust - Frontsheet'!$A$16:$AC$216,5,0)) ->  | D92: =IF(VLOOKUP(A92,'Trust - Frontsheet'!$A$16:$AC$215,6,0)="","",VLOOKUP(A92,'Trust - Frontsheet'!$A$16:$AC$216,6,0)) ->  | E92: =IF(OR(SUMPRODUCT(--(ISTEXT('Trust - Frontsheet'!I101:AC101)))>0,SUMPRODUCT(--(ISERROR('Trust - Frontsheet'!AD101:AT101)))>0),"There is invalid data on this row",IF(SUMPRODUCT(--('Trust - Frontsheet'!I101:AC101<0))>0,"This row contains negative values",IF(AND(L92="This is a blank Row",COUNTBLANK(INDIRECT("L" & ROW() + 1 & ":L" & 206))>0),"No blank rows in the data",""))) ->  | F92: =IF(A92 = "","",IF('Trust - Frontsheet'!D101="", "Site code not present","")) ->  | G92: =IF('Trust - Frontsheet'!D101="","",IF(VLOOKUP(A92,'Trust - Frontsheet'!$A$16:$AC$215,6,0)="","Ward name not present","")) ->  | H92: =IF(A92="","",IF(VLOOKUP(A92,'Trust - Frontsheet'!$A$16:$AC$215,7,0)="","Specialty 1 has not been selected","")) ->  | I92: =IF(A92="","",IF(OR(COUNTIF(Specialties,VLOOKUP(A92,'Trust - Frontsheet'!$A$16:$AC$215,7,0))=0, AND(COUNTIF(Specialties,VLOOKUP(A92,'Trust - Frontsheet'!$A$16:$AC$215,8,0))=0,VLOOKUP(A92,'Trust - Frontsheet'!$A$16:$AC$215,8,0)<>"")),"You have entered unacceptable specialties.","")) ->  | J92: =IF(A92="","",IF(AND(RIGHT(VLOOKUP(A92,'Trust - Frontsheet'!$A$16:$AC$215,7,0),3)<>RIGHT(VLOOKUP(A92,'Trust - Frontsheet'!$A$16:$AC$215,8,0),3),VLOOKUP(A92,'Trust - Frontsheet'!$A$16:$AC$215,8,0)<>""),"Covid statuses do not match","")) ->  | L92: =IF(SUMPRODUCT(--('Trust - Frontsheet'!$D101:$AC101=""))<>26,"","This is a blank row") -> This is a blank row
A93: =IF('Trust - Frontsheet'!A102="","",'Trust - Frontsheet'!A102) ->  | B93: =IF('Trust - Frontsheet'!A102="","",'Trust - Frontsheet'!D102) ->  | C93: =IF(VLOOKUP(A93,'Trust - Frontsheet'!$A$16:$AC$215,5,0)="","",VLOOKUP(A93,'Trust - Frontsheet'!$A$16:$AC$216,5,0)) ->  | D93: =IF(VLOOKUP(A93,'Trust - Frontsheet'!$A$16:$AC$215,6,0)="","",VLOOKUP(A93,'Trust - Frontsheet'!$A$16:$AC$216,6,0)) ->  | E93: =IF(OR(SUMPRODUCT(--(ISTEXT('Trust - Frontsheet'!I102:AC102)))>0,SUMPRODUCT(--(ISERROR('Trust - Frontsheet'!AD102:AT102)))>0),"There is invalid data on this row",IF(SUMPRODUCT(--('Trust - Frontsheet'!I102:AC102<0))>0,"This row contains negative values",IF(AND(L93="This is a blank Row",COUNTBLANK(INDIRECT("L" & ROW() + 1 & ":L" & 206))>0),"No blank rows in the data",""))) ->  | F93: =IF(A93 = "","",IF('Trust - Frontsheet'!D102="", "Site code not present","")) ->  | G93: =IF('Trust - Frontsheet'!D102="","",IF(VLOOKUP(A93,'Trust - Frontsheet'!$A$16:$AC$215,6,0)="","Ward name not present","")) ->  | H93: =IF(A93="","",IF(VLOOKUP(A93,'Trust - Frontsheet'!$A$16:$AC$215,7,0)="","Specialty 1 has not been selected","")) ->  | I93: =IF(A93="","",IF(OR(COUNTIF(Specialties,VLOOKUP(A93,'Trust - Frontsheet'!$A$16:$AC$215,7,0))=0, AND(COUNTIF(Specialties,VLOOKUP(A93,'Trust - Frontsheet'!$A$16:$AC$215,8,0))=0,VLOOKUP(A93,'Trust - Frontsheet'!$A$16:$AC$215,8,0)<>"")),"You have entered unacceptable specialties.","")) ->  | J93: =IF(A93="","",IF(AND(RIGHT(VLOOKUP(A93,'Trust - Frontsheet'!$A$16:$AC$215,7,0),3)<>RIGHT(VLOOKUP(A93,'Trust - Frontsheet'!$A$16:$AC$215,8,0),3),VLOOKUP(A93,'Trust - Frontsheet'!$A$16:$AC$215,8,0)<>""),"Covid statuses do not match","")) ->  | L93: =IF(SUMPRODUCT(--('Trust - Frontsheet'!$D102:$AC102=""))<>26,"","This is a blank row") -> This is a blank row
A94: =IF('Trust - Frontsheet'!A103="","",'Trust - Frontsheet'!A103) ->  | B94: =IF('Trust - Frontsheet'!A103="","",'Trust - Frontsheet'!D103) ->  | C94: =IF(VLOOKUP(A94,'Trust - Frontsheet'!$A$16:$AC$215,5,0)="","",VLOOKUP(A94,'Trust - Frontsheet'!$A$16:$AC$216,5,0)) ->  | D94: =IF(VLOOKUP(A94,'Trust - Frontsheet'!$A$16:$AC$215,6,0)="","",VLOOKUP(A94,'Trust - Frontsheet'!$A$16:$AC$216,6,0)) ->  | E94: =IF(OR(SUMPRODUCT(--(ISTEXT('Trust - Frontsheet'!I103:AC103)))>0,SUMPRODUCT(--(ISERROR('Trust - Frontsheet'!AD103:AT103)))>0),"There is invalid data on this row",IF(SUMPRODUCT(--('Trust - Frontsheet'!I103:AC103<0))>0,"This row contains negative values",IF(AND(L94="This is a blank Row",COUNTBLANK(INDIRECT("L" & ROW() + 1 & ":L" & 206))>0),"No blank rows in the data",""))) ->  | F94: =IF(A94 = "","",IF('Trust - Frontsheet'!D103="", "Site code not present","")) ->  | G94: =IF('Trust - Frontsheet'!D103="","",IF(VLOOKUP(A94,'Trust - Frontsheet'!$A$16:$AC$215,6,0)="","Ward name not present","")) ->  | H94: =IF(A94="","",IF(VLOOKUP(A94,'Trust - Frontsheet'!$A$16:$AC$215,7,0)="","Specialty 1 has not been selected","")) ->  | I94: =IF(A94="","",IF(OR(COUNTIF(Specialties,VLOOKUP(A94,'Trust - Frontsheet'!$A$16:$AC$215,7,0))=0, AND(COUNTIF(Specialties,VLOOKUP(A94,'Trust - Frontsheet'!$A$16:$AC$215,8,0))=0,VLOOKUP(A94,'Trust - Frontsheet'!$A$16:$AC$215,8,0)<>"")),"You have entered unacceptable specialties.","")) ->  | J94: =IF(A94="","",IF(AND(RIGHT(VLOOKUP(A94,'Trust - Frontsheet'!$A$16:$AC$215,7,0),3)<>RIGHT(VLOOKUP(A94,'Trust - Frontsheet'!$A$16:$AC$215,8,0),3),VLOOKUP(A94,'Trust - Frontsheet'!$A$16:$AC$215,8,0)<>""),"Covid statuses do not match","")) ->  | L94: =IF(SUMPRODUCT(--('Trust - Frontsheet'!$D103:$AC103=""))<>26,"","This is a blank row") -> This is a blank row
A95: =IF('Trust - Frontsheet'!A104="","",'Trust - Frontsheet'!A104) ->  | B95: =IF('Trust - Frontsheet'!A104="","",'Trust - Frontsheet'!D104) ->  | C95: =IF(VLOOKUP(A95,'Trust - Frontsheet'!$A$16:$AC$215,5,0)="","",VLOOKUP(A95,'Trust - Frontsheet'!$A$16:$AC$216,5,0)) ->  | D95: =IF(VLOOKUP(A95,'Trust - Frontsheet'!$A$16:$AC$215,6,0)="","",VLOOKUP(A95,'Trust - Frontsheet'!$A$16:$AC$216,6,0)) ->  | E95: =IF(OR(SUMPRODUCT(--(ISTEXT('Trust - Frontsheet'!I104:AC104)))>0,SUMPRODUCT(--(ISERROR('Trust - Frontsheet'!AD104:AT104)))>0),"There is invalid data on this row",IF(SUMPRODUCT(--('Trust - Frontsheet'!I104:AC104<0))>0,"This row contains negative values",IF(AND(L95="This is a blank Row",COUNTBLANK(INDIRECT("L" & ROW() + 1 & ":L" & 206))>0),"No blank rows in the data",""))) ->  | F95: =IF(A95 = "","",IF('Trust - Frontsheet'!D104="", "Site code not present","")) ->  | G95: =IF('Trust - Frontsheet'!D104="","",IF(VLOOKUP(A95,'Trust - Frontsheet'!$A$16:$AC$215,6,0)="","Ward name not present","")) ->  | H95: =IF(A95="","",IF(VLOOKUP(A95,'Trust - Frontsheet'!$A$16:$AC$215,7,0)="","Specialty 1 has not been selected","")) ->  | I95: =IF(A95="","",IF(OR(COUNTIF(Specialties,VLOOKUP(A95,'Trust - Frontsheet'!$A$16:$AC$215,7,0))=0, AND(COUNTIF(Specialties,VLOOKUP(A95,'Trust - Frontsheet'!$A$16:$AC$215,8,0))=0,VLOOKUP(A95,'Trust - Frontsheet'!$A$16:$AC$215,8,0)<>"")),"You have entered unacceptable specialties.","")) ->  | J95: =IF(A95="","",IF(AND(RIGHT(VLOOKUP(A95,'Trust - Frontsheet'!$A$16:$AC$215,7,0),3)<>RIGHT(VLOOKUP(A95,'Trust - Frontsheet'!$A$16:$AC$215,8,0),3),VLOOKUP(A95,'Trust - Frontsheet'!$A$16:$AC$215,8,0)<>""),"Covid statuses do not match","")) ->  | L95: =IF(SUMPRODUCT(--('Trust - Frontsheet'!$D104:$AC104=""))<>26,"","This is a blank row") -> This is a blank row
A96: =IF('Trust - Frontsheet'!A105="","",'Trust - Frontsheet'!A105) ->  | B96: =IF('Trust - Frontsheet'!A105="","",'Trust - Frontsheet'!D105) ->  | C96: =IF(VLOOKUP(A96,'Trust - Frontsheet'!$A$16:$AC$215,5,0)="","",VLOOKUP(A96,'Trust - Frontsheet'!$A$16:$AC$216,5,0)) ->  | D96: =IF(VLOOKUP(A96,'Trust - Frontsheet'!$A$16:$AC$215,6,0)="","",VLOOKUP(A96,'Trust - Frontsheet'!$A$16:$AC$216,6,0)) ->  | E96: =IF(OR(SUMPRODUCT(--(ISTEXT('Trust - Frontsheet'!I105:AC105)))>0,SUMPRODUCT(--(ISERROR('Trust - Frontsheet'!AD105:AT105)))>0),"There is invalid data on this row",IF(SUMPRODUCT(--('Trust - Frontsheet'!I105:AC105<0))>0,"This row contains negative values",IF(AND(L96="This is a blank Row",COUNTBLANK(INDIRECT("L" & ROW() + 1 & ":L" & 206))>0),"No blank rows in the data",""))) ->  | F96: =IF(A96 = "","",IF('Trust - Frontsheet'!D105="", "Site code not present","")) ->  | G96: =IF('Trust - Frontsheet'!D105="","",IF(VLOOKUP(A96,'Trust - Frontsheet'!$A$16:$AC$215,6,0)="","Ward name not present","")) ->  | H96: =IF(A96="","",IF(VLOOKUP(A96,'Trust - Frontsheet'!$A$16:$AC$215,7,0)="","Specialty 1 has not been selected","")) ->  | I96: =IF(A96="","",IF(OR(COUNTIF(Specialties,VLOOKUP(A96,'Trust - Frontsheet'!$A$16:$AC$215,7,0))=0, AND(COUNTIF(Specialties,VLOOKUP(A96,'Trust - Frontsheet'!$A$16:$AC$215,8,0))=0,VLOOKUP(A96,'Trust - Frontsheet'!$A$16:$AC$215,8,0)<>"")),"You have entered unacceptable specialties.","")) ->  | J96: =IF(A96="","",IF(AND(RIGHT(VLOOKUP(A96,'Trust - Frontsheet'!$A$16:$AC$215,7,0),3)<>RIGHT(VLOOKUP(A96,'Trust - Frontsheet'!$A$16:$AC$215,8,0),3),VLOOKUP(A96,'Trust - Frontsheet'!$A$16:$AC$215,8,0)<>""),"Covid statuses do not match","")) ->  | L96: =IF(SUMPRODUCT(--('Trust - Frontsheet'!$D105:$AC105=""))<>26,"","This is a blank row") -> This is a blank row
A97: =IF('Trust - Frontsheet'!A106="","",'Trust - Frontsheet'!A106) ->  | B97: =IF('Trust - Frontsheet'!A106="","",'Trust - Frontsheet'!D106) ->  | C97: =IF(VLOOKUP(A97,'Trust - Frontsheet'!$A$16:$AC$215,5,0)="","",VLOOKUP(A97,'Trust - Frontsheet'!$A$16:$AC$216,5,0)) ->  | D97: =IF(VLOOKUP(A97,'Trust - Frontsheet'!$A$16:$AC$215,6,0)="","",VLOOKUP(A97,'Trust - Frontsheet'!$A$16:$AC$216,6,0)) ->  | E97: =IF(OR(SUMPRODUCT(--(ISTEXT('Trust - Frontsheet'!I106:AC106)))>0,SUMPRODUCT(--(ISERROR('Trust - Frontsheet'!AD106:AT106)))>0),"There is invalid data on this row",IF(SUMPRODUCT(--('Trust - Frontsheet'!I106:AC106<0))>0,"This row contains negative values",IF(AND(L97="This is a blank Row",COUNTBLANK(INDIRECT("L" & ROW() + 1 & ":L" & 206))>0),"No blank rows in the data",""))) ->  | F97: =IF(A97 = "","",IF('Trust - Frontsheet'!D106="", "Site code not present","")) ->  | G97: =IF('Trust - Frontsheet'!D106="","",IF(VLOOKUP(A97,'Trust - Frontsheet'!$A$16:$AC$215,6,0)="","Ward name not present","")) ->  | H97: =IF(A97="","",IF(VLOOKUP(A97,'Trust - Frontsheet'!$A$16:$AC$215,7,0)="","Specialty 1 has not been selected","")) ->  | I97: =IF(A97="","",IF(OR(COUNTIF(Specialties,VLOOKUP(A97,'Trust - Frontsheet'!$A$16:$AC$215,7,0))=0, AND(COUNTIF(Specialties,VLOOKUP(A97,'Trust - Frontsheet'!$A$16:$AC$215,8,0))=0,VLOOKUP(A97,'Trust - Frontsheet'!$A$16:$AC$215,8,0)<>"")),"You have entered unacceptable specialties.","")) ->  | J97: =IF(A97="","",IF(AND(RIGHT(VLOOKUP(A97,'Trust - Frontsheet'!$A$16:$AC$215,7,0),3)<>RIGHT(VLOOKUP(A97,'Trust - Frontsheet'!$A$16:$AC$215,8,0),3),VLOOKUP(A97,'Trust - Frontsheet'!$A$16:$AC$215,8,0)<>""),"Covid statuses do not match","")) ->  | L97: =IF(SUMPRODUCT(--('Trust - Frontsheet'!$D106:$AC106=""))<>26,"","This is a blank row") -> This is a blank row
A98: =IF('Trust - Frontsheet'!A107="","",'Trust - Frontsheet'!A107) ->  | B98: =IF('Trust - Frontsheet'!A107="","",'Trust - Frontsheet'!D107) ->  | C98: =IF(VLOOKUP(A98,'Trust - Frontsheet'!$A$16:$AC$215,5,0)="","",VLOOKUP(A98,'Trust - Frontsheet'!$A$16:$AC$216,5,0)) ->  | D98: =IF(VLOOKUP(A98,'Trust - Frontsheet'!$A$16:$AC$215,6,0)="","",VLOOKUP(A98,'Trust - Frontsheet'!$A$16:$AC$216,6,0)) ->  | E98: =IF(OR(SUMPRODUCT(--(ISTEXT('Trust - Frontsheet'!I107:AC107)))>0,SUMPRODUCT(--(ISERROR('Trust - Frontsheet'!AD107:AT107)))>0),"There is invalid data on this row",IF(SUMPRODUCT(--('Trust - Frontsheet'!I107:AC107<0))>0,"This row contains negative values",IF(AND(L98="This is a blank Row",COUNTBLANK(INDIRECT("L" & ROW() + 1 & ":L" & 206))>0),"No blank rows in the data",""))) ->  | F98: =IF(A98 = "","",IF('Trust - Frontsheet'!D107="", "Site code not present","")) ->  | G98: =IF('Trust - Frontsheet'!D107="","",IF(VLOOKUP(A98,'Trust - Frontsheet'!$A$16:$AC$215,6,0)="","Ward name not present","")) ->  | H98: =IF(A98="","",IF(VLOOKUP(A98,'Trust - Frontsheet'!$A$16:$AC$215,7,0)="","Specialty 1 has not been selected","")) ->  | I98: =IF(A98="","",IF(OR(COUNTIF(Specialties,VLOOKUP(A98,'Trust - Frontsheet'!$A$16:$AC$215,7,0))=0, AND(COUNTIF(Specialties,VLOOKUP(A98,'Trust - Frontsheet'!$A$16:$AC$215,8,0))=0,VLOOKUP(A98,'Trust - Frontsheet'!$A$16:$AC$215,8,0)<>"")),"You have entered unacceptable specialties.","")) ->  | J98: =IF(A98="","",IF(AND(RIGHT(VLOOKUP(A98,'Trust - Frontsheet'!$A$16:$AC$215,7,0),3)<>RIGHT(VLOOKUP(A98,'Trust - Frontsheet'!$A$16:$AC$215,8,0),3),VLOOKUP(A98,'Trust - Frontsheet'!$A$16:$AC$215,8,0)<>""),"Covid statuses do not match","")) ->  | L98: =IF(SUMPRODUCT(--('Trust - Frontsheet'!$D107:$AC107=""))<>26,"","This is a blank row") -> This is a blank row
A99: =IF('Trust - Frontsheet'!A108="","",'Trust - Frontsheet'!A108) ->  | B99: =IF('Trust - Frontsheet'!A108="","",'Trust - Frontsheet'!D108) ->  | C99: =IF(VLOOKUP(A99,'Trust - Frontsheet'!$A$16:$AC$215,5,0)="","",VLOOKUP(A99,'Trust - Frontsheet'!$A$16:$AC$216,5,0)) ->  | D99: =IF(VLOOKUP(A99,'Trust - Frontsheet'!$A$16:$AC$215,6,0)="","",VLOOKUP(A99,'Trust - Frontsheet'!$A$16:$AC$216,6,0)) ->  | E99: =IF(OR(SUMPRODUCT(--(ISTEXT('Trust - Frontsheet'!I108:AC108)))>0,SUMPRODUCT(--(ISERROR('Trust - Frontsheet'!AD108:AT108)))>0),"There is invalid data on this row",IF(SUMPRODUCT(--('Trust - Frontsheet'!I108:AC108<0))>0,"This row contains negative values",IF(AND(L99="This is a blank Row",COUNTBLANK(INDIRECT("L" & ROW() + 1 & ":L" & 206))>0),"No blank rows in the data",""))) ->  | F99: =IF(A99 = "","",IF('Trust - Frontsheet'!D108="", "Site code not present","")) ->  | G99: =IF('Trust - Frontsheet'!D108="","",IF(VLOOKUP(A99,'Trust - Frontsheet'!$A$16:$AC$215,6,0)="","Ward name not present","")) ->  | H99: =IF(A99="","",IF(VLOOKUP(A99,'Trust - Frontsheet'!$A$16:$AC$215,7,0)="","Specialty 1 has not been selected","")) ->  | I99: =IF(A99="","",IF(OR(COUNTIF(Specialties,VLOOKUP(A99,'Trust - Frontsheet'!$A$16:$AC$215,7,0))=0, AND(COUNTIF(Specialties,VLOOKUP(A99,'Trust - Frontsheet'!$A$16:$AC$215,8,0))=0,VLOOKUP(A99,'Trust - Frontsheet'!$A$16:$AC$215,8,0)<>"")),"You have entered unacceptable specialties.","")) ->  | J99: =IF(A99="","",IF(AND(RIGHT(VLOOKUP(A99,'Trust - Frontsheet'!$A$16:$AC$215,7,0),3)<>RIGHT(VLOOKUP(A99,'Trust - Frontsheet'!$A$16:$AC$215,8,0),3),VLOOKUP(A99,'Trust - Frontsheet'!$A$16:$AC$215,8,0)<>""),"Covid statuses do not match","")) ->  | L99: =IF(SUMPRODUCT(--('Trust - Frontsheet'!$D108:$AC108=""))<>26,"","This is a blank row") -> This is a blank row
A100: =IF('Trust - Frontsheet'!A109="","",'Trust - Frontsheet'!A109) ->  | B100: =IF('Trust - Frontsheet'!A109="","",'Trust - Frontsheet'!D109) ->  | C100: =IF(VLOOKUP(A100,'Trust - Frontsheet'!$A$16:$AC$215,5,0)="","",VLOOKUP(A100,'Trust - Frontsheet'!$A$16:$AC$216,5,0)) ->  | D100: =IF(VLOOKUP(A100,'Trust - Frontsheet'!$A$16:$AC$215,6,0)="","",VLOOKUP(A100,'Trust - Frontsheet'!$A$16:$AC$216,6,0)) ->  | E100: =IF(OR(SUMPRODUCT(--(ISTEXT('Trust - Frontsheet'!I109:AC109)))>0,SUMPRODUCT(--(ISERROR('Trust - Frontsheet'!AD109:AT109)))>0),"There is invalid data on this row",IF(SUMPRODUCT(--('Trust - Frontsheet'!I109:AC109<0))>0,"This row contains negative values",IF(AND(L100="This is a blank Row",COUNTBLANK(INDIRECT("L" & ROW() + 1 & ":L" & 206))>0),"No blank rows in the data",""))) ->  | F100: =IF(A100 = "","",IF('Trust - Frontsheet'!D109="", "Site code not present","")) ->  | G100: =IF('Trust - Frontsheet'!D109="","",IF(VLOOKUP(A100,'Trust - Frontsheet'!$A$16:$AC$215,6,0)="","Ward name not present","")) ->  | H100: =IF(A100="","",IF(VLOOKUP(A100,'Trust - Frontsheet'!$A$16:$AC$215,7,0)="","Specialty 1 has not been selected","")) ->  | I100: =IF(A100="","",IF(OR(COUNTIF(Specialties,VLOOKUP(A100,'Trust - Frontsheet'!$A$16:$AC$215,7,0))=0, AND(COUNTIF(Specialties,VLOOKUP(A100,'Trust - Frontsheet'!$A$16:$AC$215,8,0))=0,VLOOKUP(A100,'Trust - Frontsheet'!$A$16:$AC$215,8,0)<>"")),"You have entered unacceptable specialties.","")) ->  | J100: =IF(A100="","",IF(AND(RIGHT(VLOOKUP(A100,'Trust - Frontsheet'!$A$16:$AC$215,7,0),3)<>RIGHT(VLOOKUP(A100,'Trust - Frontsheet'!$A$16:$AC$215,8,0),3),VLOOKUP(A100,'Trust - Frontsheet'!$A$16:$AC$215,8,0)<>""),"Covid statuses do not match","")) ->  | L100: =IF(SUMPRODUCT(--('Trust - Frontsheet'!$D109:$AC109=""))<>26,"","This is a blank row") -> This is a blank row
A101: =IF('Trust - Frontsheet'!A110="","",'Trust - Frontsheet'!A110) ->  | B101: =IF('Trust - Frontsheet'!A110="","",'Trust - Frontsheet'!D110) ->  | C101: =IF(VLOOKUP(A101,'Trust - Frontsheet'!$A$16:$AC$215,5,0)="","",VLOOKUP(A101,'Trust - Frontsheet'!$A$16:$AC$216,5,0)) ->  | D101: =IF(VLOOKUP(A101,'Trust - Frontsheet'!$A$16:$AC$215,6,0)="","",VLOOKUP(A101,'Trust - Frontsheet'!$A$16:$AC$216,6,0)) ->  | E101: =IF(OR(SUMPRODUCT(--(ISTEXT('Trust - Frontsheet'!I110:AC110)))>0,SUMPRODUCT(--(ISERROR('Trust - Frontsheet'!AD110:AT110)))>0),"There is invalid data on this row",IF(SUMPRODUCT(--('Trust - Frontsheet'!I110:AC110<0))>0,"This row contains negative values",IF(AND(L101="This is a blank Row",COUNTBLANK(INDIRECT("L" & ROW() + 1 & ":L" & 206))>0),"No blank rows in the data",""))) ->  | F101: =IF(A101 = "","",IF('Trust - Frontsheet'!D110="", "Site code not present","")) ->  | G101: =IF('Trust - Frontsheet'!D110="","",IF(VLOOKUP(A101,'Trust - Frontsheet'!$A$16:$AC$215,6,0)="","Ward name not present","")) ->  | H101: =IF(A101="","",IF(VLOOKUP(A101,'Trust - Frontsheet'!$A$16:$AC$215,7,0)="","Specialty 1 has not been selected","")) ->  | I101: =IF(A101="","",IF(OR(COUNTIF(Specialties,VLOOKUP(A101,'Trust - Frontsheet'!$A$16:$AC$215,7,0))=0, AND(COUNTIF(Specialties,VLOOKUP(A101,'Trust - Frontsheet'!$A$16:$AC$215,8,0))=0,VLOOKUP(A101,'Trust - Frontsheet'!$A$16:$AC$215,8,0)<>"")),"You have entered unacceptable specialties.","")) ->  | J101: =IF(A101="","",IF(AND(RIGHT(VLOOKUP(A101,'Trust - Frontsheet'!$A$16:$AC$215,7,0),3)<>RIGHT(VLOOKUP(A101,'Trust - Frontsheet'!$A$16:$AC$215,8,0),3),VLOOKUP(A101,'Trust - Frontsheet'!$A$16:$AC$215,8,0)<>""),"Covid statuses do not match","")) ->  | L101: =IF(SUMPRODUCT(--('Trust - Frontsheet'!$D110:$AC110=""))<>26,"","This is a blank row") -> This is a blank row
A102: =IF('Trust - Frontsheet'!A111="","",'Trust - Frontsheet'!A111) ->  | B102: =IF('Trust - Frontsheet'!A111="","",'Trust - Frontsheet'!D111) ->  | C102: =IF(VLOOKUP(A102,'Trust - Frontsheet'!$A$16:$AC$215,5,0)="","",VLOOKUP(A102,'Trust - Frontsheet'!$A$16:$AC$216,5,0)) ->  | D102: =IF(VLOOKUP(A102,'Trust - Frontsheet'!$A$16:$AC$215,6,0)="","",VLOOKUP(A102,'Trust - Frontsheet'!$A$16:$AC$216,6,0)) ->  | E102: =IF(OR(SUMPRODUCT(--(ISTEXT('Trust - Frontsheet'!I111:AC111)))>0,SUMPRODUCT(--(ISERROR('Trust - Frontsheet'!AD111:AT111)))>0),"There is invalid data on this row",IF(SUMPRODUCT(--('Trust - Frontsheet'!I111:AC111<0))>0,"This row contains negative values",IF(AND(L102="This is a blank Row",COUNTBLANK(INDIRECT("L" & ROW() + 1 & ":L" & 206))>0),"No blank rows in the data",""))) ->  | F102: =IF(A102 = "","",IF('Trust - Frontsheet'!D111="", "Site code not present","")) ->  | G102: =IF('Trust - Frontsheet'!D111="","",IF(VLOOKUP(A102,'Trust - Frontsheet'!$A$16:$AC$215,6,0)="","Ward name not present","")) ->  | H102: =IF(A102="","",IF(VLOOKUP(A102,'Trust - Frontsheet'!$A$16:$AC$215,7,0)="","Specialty 1 has not been selected","")) ->  | I102: =IF(A102="","",IF(OR(COUNTIF(Specialties,VLOOKUP(A102,'Trust - Frontsheet'!$A$16:$AC$215,7,0))=0, AND(COUNTIF(Specialties,VLOOKUP(A102,'Trust - Frontsheet'!$A$16:$AC$215,8,0))=0,VLOOKUP(A102,'Trust - Frontsheet'!$A$16:$AC$215,8,0)<>"")),"You have entered unacceptable specialties.","")) ->  | J102: =IF(A102="","",IF(AND(RIGHT(VLOOKUP(A102,'Trust - Frontsheet'!$A$16:$AC$215,7,0),3)<>RIGHT(VLOOKUP(A102,'Trust - Frontsheet'!$A$16:$AC$215,8,0),3),VLOOKUP(A102,'Trust - Frontsheet'!$A$16:$AC$215,8,0)<>""),"Covid statuses do not match","")) ->  | L102: =IF(SUMPRODUCT(--('Trust - Frontsheet'!$D111:$AC111=""))<>26,"","This is a blank row") -> This is a blank row
A103: =IF('Trust - Frontsheet'!A112="","",'Trust - Frontsheet'!A112) ->  | B103: =IF('Trust - Frontsheet'!A112="","",'Trust - Frontsheet'!D112) ->  | C103: =IF(VLOOKUP(A103,'Trust - Frontsheet'!$A$16:$AC$215,5,0)="","",VLOOKUP(A103,'Trust - Frontsheet'!$A$16:$AC$216,5,0)) ->  | D103: =IF(VLOOKUP(A103,'Trust - Frontsheet'!$A$16:$AC$215,6,0)="","",VLOOKUP(A103,'Trust - Frontsheet'!$A$16:$AC$216,6,0)) ->  | E103: =IF(OR(SUMPRODUCT(--(ISTEXT('Trust - Frontsheet'!I112:AC112)))>0,SUMPRODUCT(--(ISERROR('Trust - Frontsheet'!AD112:AT112)))>0),"There is invalid data on this row",IF(SUMPRODUCT(--('Trust - Frontsheet'!I112:AC112<0))>0,"This row contains negative values",IF(AND(L103="This is a blank Row",COUNTBLANK(INDIRECT("L" & ROW() + 1 & ":L" & 206))>0),"No blank rows in the data",""))) ->  | F103: =IF(A103 = "","",IF('Trust - Frontsheet'!D112="", "Site code not present","")) ->  | G103: =IF('Trust - Frontsheet'!D112="","",IF(VLOOKUP(A103,'Trust - Frontsheet'!$A$16:$AC$215,6,0)="","Ward name not present","")) ->  | H103: =IF(A103="","",IF(VLOOKUP(A103,'Trust - Frontsheet'!$A$16:$AC$215,7,0)="","Specialty 1 has not been selected","")) ->  | I103: =IF(A103="","",IF(OR(COUNTIF(Specialties,VLOOKUP(A103,'Trust - Frontsheet'!$A$16:$AC$215,7,0))=0, AND(COUNTIF(Specialties,VLOOKUP(A103,'Trust - Frontsheet'!$A$16:$AC$215,8,0))=0,VLOOKUP(A103,'Trust - Frontsheet'!$A$16:$AC$215,8,0)<>"")),"You have entered unacceptable specialties.","")) ->  | J103: =IF(A103="","",IF(AND(RIGHT(VLOOKUP(A103,'Trust - Frontsheet'!$A$16:$AC$215,7,0),3)<>RIGHT(VLOOKUP(A103,'Trust - Frontsheet'!$A$16:$AC$215,8,0),3),VLOOKUP(A103,'Trust - Frontsheet'!$A$16:$AC$215,8,0)<>""),"Covid statuses do not match","")) ->  | L103: =IF(SUMPRODUCT(--('Trust - Frontsheet'!$D112:$AC112=""))<>26,"","This is a blank row") -> This is a blank row
A104: =IF('Trust - Frontsheet'!A113="","",'Trust - Frontsheet'!A113) ->  | B104: =IF('Trust - Frontsheet'!A113="","",'Trust - Frontsheet'!D113) ->  | C104: =IF(VLOOKUP(A104,'Trust - Frontsheet'!$A$16:$AC$215,5,0)="","",VLOOKUP(A104,'Trust - Frontsheet'!$A$16:$AC$216,5,0)) ->  | D104: =IF(VLOOKUP(A104,'Trust - Frontsheet'!$A$16:$AC$215,6,0)="","",VLOOKUP(A104,'Trust - Frontsheet'!$A$16:$AC$216,6,0)) ->  | E104: =IF(OR(SUMPRODUCT(--(ISTEXT('Trust - Frontsheet'!I113:AC113)))>0,SUMPRODUCT(--(ISERROR('Trust - Frontsheet'!AD113:AT113)))>0),"There is invalid data on this row",IF(SUMPRODUCT(--('Trust - Frontsheet'!I113:AC113<0))>0,"This row contains negative values",IF(AND(L104="This is a blank Row",COUNTBLANK(INDIRECT("L" & ROW() + 1 & ":L" & 206))>0),"No blank rows in the data",""))) ->  | F104: =IF(A104 = "","",IF('Trust - Frontsheet'!D113="", "Site code not present","")) ->  | G104: =IF('Trust - Frontsheet'!D113="","",IF(VLOOKUP(A104,'Trust - Frontsheet'!$A$16:$AC$215,6,0)="","Ward name not present","")) ->  | H104: =IF(A104="","",IF(VLOOKUP(A104,'Trust - Frontsheet'!$A$16:$AC$215,7,0)="","Specialty 1 has not been selected","")) ->  | I104: =IF(A104="","",IF(OR(COUNTIF(Specialties,VLOOKUP(A104,'Trust - Frontsheet'!$A$16:$AC$215,7,0))=0, AND(COUNTIF(Specialties,VLOOKUP(A104,'Trust - Frontsheet'!$A$16:$AC$215,8,0))=0,VLOOKUP(A104,'Trust - Frontsheet'!$A$16:$AC$215,8,0)<>"")),"You have entered unacceptable specialties.","")) ->  | J104: =IF(A104="","",IF(AND(RIGHT(VLOOKUP(A104,'Trust - Frontsheet'!$A$16:$AC$215,7,0),3)<>RIGHT(VLOOKUP(A104,'Trust - Frontsheet'!$A$16:$AC$215,8,0),3),VLOOKUP(A104,'Trust - Frontsheet'!$A$16:$AC$215,8,0)<>""),"Covid statuses do not match","")) ->  | L104: =IF(SUMPRODUCT(--('Trust - Frontsheet'!$D113:$AC113=""))<>26,"","This is a blank row") -> This is a blank row
A105: =IF('Trust - Frontsheet'!A114="","",'Trust - Frontsheet'!A114) ->  | B105: =IF('Trust - Frontsheet'!A114="","",'Trust - Frontsheet'!D114) ->  | C105: =IF(VLOOKUP(A105,'Trust - Frontsheet'!$A$16:$AC$215,5,0)="","",VLOOKUP(A105,'Trust - Frontsheet'!$A$16:$AC$216,5,0)) ->  | D105: =IF(VLOOKUP(A105,'Trust - Frontsheet'!$A$16:$AC$215,6,0)="","",VLOOKUP(A105,'Trust - Frontsheet'!$A$16:$AC$216,6,0)) ->  | E105: =IF(OR(SUMPRODUCT(--(ISTEXT('Trust - Frontsheet'!I114:AC114)))>0,SUMPRODUCT(--(ISERROR('Trust - Frontsheet'!AD114:AT114)))>0),"There is invalid data on this row",IF(SUMPRODUCT(--('Trust - Frontsheet'!I114:AC114<0))>0,"This row contains negative values",IF(AND(L105="This is a blank Row",COUNTBLANK(INDIRECT("L" & ROW() + 1 & ":L" & 206))>0),"No blank rows in the data",""))) ->  | F105: =IF(A105 = "","",IF('Trust - Frontsheet'!D114="", "Site code not present","")) ->  | G105: =IF('Trust - Frontsheet'!D114="","",IF(VLOOKUP(A105,'Trust - Frontsheet'!$A$16:$AC$215,6,0)="","Ward name not present","")) ->  | H105: =IF(A105="","",IF(VLOOKUP(A105,'Trust - Frontsheet'!$A$16:$AC$215,7,0)="","Specialty 1 has not been selected","")) ->  | I105: =IF(A105="","",IF(OR(COUNTIF(Specialties,VLOOKUP(A105,'Trust - Frontsheet'!$A$16:$AC$215,7,0))=0, AND(COUNTIF(Specialties,VLOOKUP(A105,'Trust - Frontsheet'!$A$16:$AC$215,8,0))=0,VLOOKUP(A105,'Trust - Frontsheet'!$A$16:$AC$215,8,0)<>"")),"You have entered unacceptable specialties.","")) ->  | J105: =IF(A105="","",IF(AND(RIGHT(VLOOKUP(A105,'Trust - Frontsheet'!$A$16:$AC$215,7,0),3)<>RIGHT(VLOOKUP(A105,'Trust - Frontsheet'!$A$16:$AC$215,8,0),3),VLOOKUP(A105,'Trust - Frontsheet'!$A$16:$AC$215,8,0)<>""),"Covid statuses do not match","")) ->  | L105: =IF(SUMPRODUCT(--('Trust - Frontsheet'!$D114:$AC114=""))<>26,"","This is a blank row") -> This is a blank row
A106: =IF('Trust - Frontsheet'!A115="","",'Trust - Frontsheet'!A115) ->  | B106: =IF('Trust - Frontsheet'!A115="","",'Trust - Frontsheet'!D115) ->  | C106: =IF(VLOOKUP(A106,'Trust - Frontsheet'!$A$16:$AC$215,5,0)="","",VLOOKUP(A106,'Trust - Frontsheet'!$A$16:$AC$216,5,0)) ->  | D106: =IF(VLOOKUP(A106,'Trust - Frontsheet'!$A$16:$AC$215,6,0)="","",VLOOKUP(A106,'Trust - Frontsheet'!$A$16:$AC$216,6,0)) ->  | E106: =IF(OR(SUMPRODUCT(--(ISTEXT('Trust - Frontsheet'!I115:AC115)))>0,SUMPRODUCT(--(ISERROR('Trust - Frontsheet'!AD115:AT115)))>0),"There is invalid data on this row",IF(SUMPRODUCT(--('Trust - Frontsheet'!I115:AC115<0))>0,"This row contains negative values",IF(AND(L106="This is a blank Row",COUNTBLANK(INDIRECT("L" & ROW() + 1 & ":L" & 206))>0),"No blank rows in the data",""))) ->  | F106: =IF(A106 = "","",IF('Trust - Frontsheet'!D115="", "Site code not present","")) ->  | G106: =IF('Trust - Frontsheet'!D115="","",IF(VLOOKUP(A106,'Trust - Frontsheet'!$A$16:$AC$215,6,0)="","Ward name not present","")) ->  | H106: =IF(A106="","",IF(VLOOKUP(A106,'Trust - Frontsheet'!$A$16:$AC$215,7,0)="","Specialty 1 has not been selected","")) ->  | I106: =IF(A106="","",IF(OR(COUNTIF(Specialties,VLOOKUP(A106,'Trust - Frontsheet'!$A$16:$AC$215,7,0))=0, AND(COUNTIF(Specialties,VLOOKUP(A106,'Trust - Frontsheet'!$A$16:$AC$215,8,0))=0,VLOOKUP(A106,'Trust - Frontsheet'!$A$16:$AC$215,8,0)<>"")),"You have entered unacceptable specialties.","")) ->  | J106: =IF(A106="","",IF(AND(RIGHT(VLOOKUP(A106,'Trust - Frontsheet'!$A$16:$AC$215,7,0),3)<>RIGHT(VLOOKUP(A106,'Trust - Frontsheet'!$A$16:$AC$215,8,0),3),VLOOKUP(A106,'Trust - Frontsheet'!$A$16:$AC$215,8,0)<>""),"Covid statuses do not match","")) ->  | L106: =IF(SUMPRODUCT(--('Trust - Frontsheet'!$D115:$AC115=""))<>26,"","This is a blank row") -> This is a blank row
A107: =IF('Trust - Frontsheet'!A116="","",'Trust - Frontsheet'!A116) ->  | B107: =IF('Trust - Frontsheet'!A116="","",'Trust - Frontsheet'!D116) ->  | C107: =IF(VLOOKUP(A107,'Trust - Frontsheet'!$A$16:$AC$215,5,0)="","",VLOOKUP(A107,'Trust - Frontsheet'!$A$16:$AC$216,5,0)) ->  | D107: =IF(VLOOKUP(A107,'Trust - Frontsheet'!$A$16:$AC$215,6,0)="","",VLOOKUP(A107,'Trust - Frontsheet'!$A$16:$AC$216,6,0)) ->  | E107: =IF(OR(SUMPRODUCT(--(ISTEXT('Trust - Frontsheet'!I116:AC116)))>0,SUMPRODUCT(--(ISERROR('Trust - Frontsheet'!AD116:AT116)))>0),"There is invalid data on this row",IF(SUMPRODUCT(--('Trust - Frontsheet'!I116:AC116<0))>0,"This row contains negative values",IF(AND(L107="This is a blank Row",COUNTBLANK(INDIRECT("L" & ROW() + 1 & ":L" & 206))>0),"No blank rows in the data",""))) ->  | F107: =IF(A107 = "","",IF('Trust - Frontsheet'!D116="", "Site code not present","")) ->  | G107: =IF('Trust - Frontsheet'!D116="","",IF(VLOOKUP(A107,'Trust - Frontsheet'!$A$16:$AC$215,6,0)="","Ward name not present","")) ->  | H107: =IF(A107="","",IF(VLOOKUP(A107,'Trust - Frontsheet'!$A$16:$AC$215,7,0)="","Specialty 1 has not been selected","")) ->  | I107: =IF(A107="","",IF(OR(COUNTIF(Specialties,VLOOKUP(A107,'Trust - Frontsheet'!$A$16:$AC$215,7,0))=0, AND(COUNTIF(Specialties,VLOOKUP(A107,'Trust - Frontsheet'!$A$16:$AC$215,8,0))=0,VLOOKUP(A107,'Trust - Frontsheet'!$A$16:$AC$215,8,0)<>"")),"You have entered unacceptable specialties.","")) ->  | J107: =IF(A107="","",IF(AND(RIGHT(VLOOKUP(A107,'Trust - Frontsheet'!$A$16:$AC$215,7,0),3)<>RIGHT(VLOOKUP(A107,'Trust - Frontsheet'!$A$16:$AC$215,8,0),3),VLOOKUP(A107,'Trust - Frontsheet'!$A$16:$AC$215,8,0)<>""),"Covid statuses do not match","")) ->  | L107: =IF(SUMPRODUCT(--('Trust - Frontsheet'!$D116:$AC116=""))<>26,"","This is a blank row") -> This is a blank row
A108: =IF('Trust - Frontsheet'!A117="","",'Trust - Frontsheet'!A117) ->  | B108: =IF('Trust - Frontsheet'!A117="","",'Trust - Frontsheet'!D117) ->  | C108: =IF(VLOOKUP(A108,'Trust - Frontsheet'!$A$16:$AC$215,5,0)="","",VLOOKUP(A108,'Trust - Frontsheet'!$A$16:$AC$216,5,0)) ->  | D108: =IF(VLOOKUP(A108,'Trust - Frontsheet'!$A$16:$AC$215,6,0)="","",VLOOKUP(A108,'Trust - Frontsheet'!$A$16:$AC$216,6,0)) ->  | E108: =IF(OR(SUMPRODUCT(--(ISTEXT('Trust - Frontsheet'!I117:AC117)))>0,SUMPRODUCT(--(ISERROR('Trust - Frontsheet'!AD117:AT117)))>0),"There is invalid data on this row",IF(SUMPRODUCT(--('Trust - Frontsheet'!I117:AC117<0))>0,"This row contains negative values",IF(AND(L108="This is a blank Row",COUNTBLANK(INDIRECT("L" & ROW() + 1 & ":L" & 206))>0),"No blank rows in the data",""))) ->  | F108: =IF(A108 = "","",IF('Trust - Frontsheet'!D117="", "Site code not present","")) ->  | G108: =IF('Trust - Frontsheet'!D117="","",IF(VLOOKUP(A108,'Trust - Frontsheet'!$A$16:$AC$215,6,0)="","Ward name not present","")) ->  | H108: =IF(A108="","",IF(VLOOKUP(A108,'Trust - Frontsheet'!$A$16:$AC$215,7,0)="","Specialty 1 has not been selected","")) ->  | I108: =IF(A108="","",IF(OR(COUNTIF(Specialties,VLOOKUP(A108,'Trust - Frontsheet'!$A$16:$AC$215,7,0))=0, AND(COUNTIF(Specialties,VLOOKUP(A108,'Trust - Frontsheet'!$A$16:$AC$215,8,0))=0,VLOOKUP(A108,'Trust - Frontsheet'!$A$16:$AC$215,8,0)<>"")),"You have entered unacceptable specialties.","")) ->  | J108: =IF(A108="","",IF(AND(RIGHT(VLOOKUP(A108,'Trust - Frontsheet'!$A$16:$AC$215,7,0),3)<>RIGHT(VLOOKUP(A108,'Trust - Frontsheet'!$A$16:$AC$215,8,0),3),VLOOKUP(A108,'Trust - Frontsheet'!$A$16:$AC$215,8,0)<>""),"Covid statuses do not match","")) ->  | L108: =IF(SUMPRODUCT(--('Trust - Frontsheet'!$D117:$AC117=""))<>26,"","This is a blank row") -> This is a blank row
A109: =IF('Trust - Frontsheet'!A118="","",'Trust - Frontsheet'!A118) ->  | B109: =IF('Trust - Frontsheet'!A118="","",'Trust - Frontsheet'!D118) ->  | C109: =IF(VLOOKUP(A109,'Trust - Frontsheet'!$A$16:$AC$215,5,0)="","",VLOOKUP(A109,'Trust - Frontsheet'!$A$16:$AC$216,5,0)) ->  | D109: =IF(VLOOKUP(A109,'Trust - Frontsheet'!$A$16:$AC$215,6,0)="","",VLOOKUP(A109,'Trust - Frontsheet'!$A$16:$AC$216,6,0)) ->  | E109: =IF(OR(SUMPRODUCT(--(ISTEXT('Trust - Frontsheet'!I118:AC118)))>0,SUMPRODUCT(--(ISERROR('Trust - Frontsheet'!AD118:AT118)))>0),"There is invalid data on this row",IF(SUMPRODUCT(--('Trust - Frontsheet'!I118:AC118<0))>0,"This row contains negative values",IF(AND(L109="This is a blank Row",COUNTBLANK(INDIRECT("L" & ROW() + 1 & ":L" & 206))>0),"No blank rows in the data",""))) ->  | F109: =IF(A109 = "","",IF('Trust - Frontsheet'!D118="", "Site code not present","")) ->  | G109: =IF('Trust - Frontsheet'!D118="","",IF(VLOOKUP(A109,'Trust - Frontsheet'!$A$16:$AC$215,6,0)="","Ward name not present","")) ->  | H109: =IF(A109="","",IF(VLOOKUP(A109,'Trust - Frontsheet'!$A$16:$AC$215,7,0)="","Specialty 1 has not been selected","")) ->  | I109: =IF(A109="","",IF(OR(COUNTIF(Specialties,VLOOKUP(A109,'Trust - Frontsheet'!$A$16:$AC$215,7,0))=0, AND(COUNTIF(Specialties,VLOOKUP(A109,'Trust - Frontsheet'!$A$16:$AC$215,8,0))=0,VLOOKUP(A109,'Trust - Frontsheet'!$A$16:$AC$215,8,0)<>"")),"You have entered unacceptable specialties.","")) ->  | J109: =IF(A109="","",IF(AND(RIGHT(VLOOKUP(A109,'Trust - Frontsheet'!$A$16:$AC$215,7,0),3)<>RIGHT(VLOOKUP(A109,'Trust - Frontsheet'!$A$16:$AC$215,8,0),3),VLOOKUP(A109,'Trust - Frontsheet'!$A$16:$AC$215,8,0)<>""),"Covid statuses do not match","")) ->  | L109: =IF(SUMPRODUCT(--('Trust - Frontsheet'!$D118:$AC118=""))<>26,"","This is a blank row") -> This is a blank row
A110: =IF('Trust - Frontsheet'!A119="","",'Trust - Frontsheet'!A119) ->  | B110: =IF('Trust - Frontsheet'!A119="","",'Trust - Frontsheet'!D119) ->  | C110: =IF(VLOOKUP(A110,'Trust - Frontsheet'!$A$16:$AC$215,5,0)="","",VLOOKUP(A110,'Trust - Frontsheet'!$A$16:$AC$216,5,0)) ->  | D110: =IF(VLOOKUP(A110,'Trust - Frontsheet'!$A$16:$AC$215,6,0)="","",VLOOKUP(A110,'Trust - Frontsheet'!$A$16:$AC$216,6,0)) ->  | E110: =IF(OR(SUMPRODUCT(--(ISTEXT('Trust - Frontsheet'!I119:AC119)))>0,SUMPRODUCT(--(ISERROR('Trust - Frontsheet'!AD119:AT119)))>0),"There is invalid data on this row",IF(SUMPRODUCT(--('Trust - Frontsheet'!I119:AC119<0))>0,"This row contains negative values",IF(AND(L110="This is a blank Row",COUNTBLANK(INDIRECT("L" & ROW() + 1 & ":L" & 206))>0),"No blank rows in the data",""))) ->  | F110: =IF(A110 = "","",IF('Trust - Frontsheet'!D119="", "Site code not present","")) ->  | G110: =IF('Trust - Frontsheet'!D119="","",IF(VLOOKUP(A110,'Trust - Frontsheet'!$A$16:$AC$215,6,0)="","Ward name not present","")) ->  | H110: =IF(A110="","",IF(VLOOKUP(A110,'Trust - Frontsheet'!$A$16:$AC$215,7,0)="","Specialty 1 has not been selected","")) ->  | I110: =IF(A110="","",IF(OR(COUNTIF(Specialties,VLOOKUP(A110,'Trust - Frontsheet'!$A$16:$AC$215,7,0))=0, AND(COUNTIF(Specialties,VLOOKUP(A110,'Trust - Frontsheet'!$A$16:$AC$215,8,0))=0,VLOOKUP(A110,'Trust - Frontsheet'!$A$16:$AC$215,8,0)<>"")),"You have entered unacceptable specialties.","")) ->  | J110: =IF(A110="","",IF(AND(RIGHT(VLOOKUP(A110,'Trust - Frontsheet'!$A$16:$AC$215,7,0),3)<>RIGHT(VLOOKUP(A110,'Trust - Frontsheet'!$A$16:$AC$215,8,0),3),VLOOKUP(A110,'Trust - Frontsheet'!$A$16:$AC$215,8,0)<>""),"Covid statuses do not match","")) ->  | L110: =IF(SUMPRODUCT(--('Trust - Frontsheet'!$D119:$AC119=""))<>26,"","This is a blank row") -> This is a blank row
A111: =IF('Trust - Frontsheet'!A120="","",'Trust - Frontsheet'!A120) ->  | B111: =IF('Trust - Frontsheet'!A120="","",'Trust - Frontsheet'!D120) ->  | C111: =IF(VLOOKUP(A111,'Trust - Frontsheet'!$A$16:$AC$215,5,0)="","",VLOOKUP(A111,'Trust - Frontsheet'!$A$16:$AC$216,5,0)) ->  | D111: =IF(VLOOKUP(A111,'Trust - Frontsheet'!$A$16:$AC$215,6,0)="","",VLOOKUP(A111,'Trust - Frontsheet'!$A$16:$AC$216,6,0)) ->  | E111: =IF(OR(SUMPRODUCT(--(ISTEXT('Trust - Frontsheet'!I120:AC120)))>0,SUMPRODUCT(--(ISERROR('Trust - Frontsheet'!AD120:AT120)))>0),"There is invalid data on this row",IF(SUMPRODUCT(--('Trust - Frontsheet'!I120:AC120<0))>0,"This row contains negative values",IF(AND(L111="This is a blank Row",COUNTBLANK(INDIRECT("L" & ROW() + 1 & ":L" & 206))>0),"No blank rows in the data",""))) ->  | F111: =IF(A111 = "","",IF('Trust - Frontsheet'!D120="", "Site code not present","")) ->  | G111: =IF('Trust - Frontsheet'!D120="","",IF(VLOOKUP(A111,'Trust - Frontsheet'!$A$16:$AC$215,6,0)="","Ward name not present","")) ->  | H111: =IF(A111="","",IF(VLOOKUP(A111,'Trust - Frontsheet'!$A$16:$AC$215,7,0)="","Specialty 1 has not been selected","")) ->  | I111: =IF(A111="","",IF(OR(COUNTIF(Specialties,VLOOKUP(A111,'Trust - Frontsheet'!$A$16:$AC$215,7,0))=0, AND(COUNTIF(Specialties,VLOOKUP(A111,'Trust - Frontsheet'!$A$16:$AC$215,8,0))=0,VLOOKUP(A111,'Trust - Frontsheet'!$A$16:$AC$215,8,0)<>"")),"You have entered unacceptable specialties.","")) ->  | J111: =IF(A111="","",IF(AND(RIGHT(VLOOKUP(A111,'Trust - Frontsheet'!$A$16:$AC$215,7,0),3)<>RIGHT(VLOOKUP(A111,'Trust - Frontsheet'!$A$16:$AC$215,8,0),3),VLOOKUP(A111,'Trust - Frontsheet'!$A$16:$AC$215,8,0)<>""),"Covid statuses do not match","")) ->  | L111: =IF(SUMPRODUCT(--('Trust - Frontsheet'!$D120:$AC120=""))<>26,"","This is a blank row") -> This is a blank row
A112: =IF('Trust - Frontsheet'!A121="","",'Trust - Frontsheet'!A121) ->  | B112: =IF('Trust - Frontsheet'!A121="","",'Trust - Frontsheet'!D121) ->  | C112: =IF(VLOOKUP(A112,'Trust - Frontsheet'!$A$16:$AC$215,5,0)="","",VLOOKUP(A112,'Trust - Frontsheet'!$A$16:$AC$216,5,0)) ->  | D112: =IF(VLOOKUP(A112,'Trust - Frontsheet'!$A$16:$AC$215,6,0)="","",VLOOKUP(A112,'Trust - Frontsheet'!$A$16:$AC$216,6,0)) ->  | E112: =IF(OR(SUMPRODUCT(--(ISTEXT('Trust - Frontsheet'!I121:AC121)))>0,SUMPRODUCT(--(ISERROR('Trust - Frontsheet'!AD121:AT121)))>0),"There is invalid data on this row",IF(SUMPRODUCT(--('Trust - Frontsheet'!I121:AC121<0))>0,"This row contains negative values",IF(AND(L112="This is a blank Row",COUNTBLANK(INDIRECT("L" & ROW() + 1 & ":L" & 206))>0),"No blank rows in the data",""))) ->  | F112: =IF(A112 = "","",IF('Trust - Frontsheet'!D121="", "Site code not present","")) ->  | G112: =IF('Trust - Frontsheet'!D121="","",IF(VLOOKUP(A112,'Trust - Frontsheet'!$A$16:$AC$215,6,0)="","Ward name not present","")) ->  | H112: =IF(A112="","",IF(VLOOKUP(A112,'Trust - Frontsheet'!$A$16:$AC$215,7,0)="","Specialty 1 has not been selected","")) ->  | I112: =IF(A112="","",IF(OR(COUNTIF(Specialties,VLOOKUP(A112,'Trust - Frontsheet'!$A$16:$AC$215,7,0))=0, AND(COUNTIF(Specialties,VLOOKUP(A112,'Trust - Frontsheet'!$A$16:$AC$215,8,0))=0,VLOOKUP(A112,'Trust - Frontsheet'!$A$16:$AC$215,8,0)<>"")),"You have entered unacceptable specialties.","")) ->  | J112: =IF(A112="","",IF(AND(RIGHT(VLOOKUP(A112,'Trust - Frontsheet'!$A$16:$AC$215,7,0),3)<>RIGHT(VLOOKUP(A112,'Trust - Frontsheet'!$A$16:$AC$215,8,0),3),VLOOKUP(A112,'Trust - Frontsheet'!$A$16:$AC$215,8,0)<>""),"Covid statuses do not match","")) ->  | L112: =IF(SUMPRODUCT(--('Trust - Frontsheet'!$D121:$AC121=""))<>26,"","This is a blank row") -> This is a blank row
A113: =IF('Trust - Frontsheet'!A122="","",'Trust - Frontsheet'!A122) ->  | B113: =IF('Trust - Frontsheet'!A122="","",'Trust - Frontsheet'!D122) ->  | C113: =IF(VLOOKUP(A113,'Trust - Frontsheet'!$A$16:$AC$215,5,0)="","",VLOOKUP(A113,'Trust - Frontsheet'!$A$16:$AC$216,5,0)) ->  | D113: =IF(VLOOKUP(A113,'Trust - Frontsheet'!$A$16:$AC$215,6,0)="","",VLOOKUP(A113,'Trust - Frontsheet'!$A$16:$AC$216,6,0)) ->  | E113: =IF(OR(SUMPRODUCT(--(ISTEXT('Trust - Frontsheet'!I122:AC122)))>0,SUMPRODUCT(--(ISERROR('Trust - Frontsheet'!AD122:AT122)))>0),"There is invalid data on this row",IF(SUMPRODUCT(--('Trust - Frontsheet'!I122:AC122<0))>0,"This row contains negative values",IF(AND(L113="This is a blank Row",COUNTBLANK(INDIRECT("L" & ROW() + 1 & ":L" & 206))>0),"No blank rows in the data",""))) ->  | F113: =IF(A113 = "","",IF('Trust - Frontsheet'!D122="", "Site code not present","")) ->  | G113: =IF('Trust - Frontsheet'!D122="","",IF(VLOOKUP(A113,'Trust - Frontsheet'!$A$16:$AC$215,6,0)="","Ward name not present","")) ->  | H113: =IF(A113="","",IF(VLOOKUP(A113,'Trust - Frontsheet'!$A$16:$AC$215,7,0)="","Specialty 1 has not been selected","")) ->  | I113: =IF(A113="","",IF(OR(COUNTIF(Specialties,VLOOKUP(A113,'Trust - Frontsheet'!$A$16:$AC$215,7,0))=0, AND(COUNTIF(Specialties,VLOOKUP(A113,'Trust - Frontsheet'!$A$16:$AC$215,8,0))=0,VLOOKUP(A113,'Trust - Frontsheet'!$A$16:$AC$215,8,0)<>"")),"You have entered unacceptable specialties.","")) ->  | J113: =IF(A113="","",IF(AND(RIGHT(VLOOKUP(A113,'Trust - Frontsheet'!$A$16:$AC$215,7,0),3)<>RIGHT(VLOOKUP(A113,'Trust - Frontsheet'!$A$16:$AC$215,8,0),3),VLOOKUP(A113,'Trust - Frontsheet'!$A$16:$AC$215,8,0)<>""),"Covid statuses do not match","")) ->  | L113: =IF(SUMPRODUCT(--('Trust - Frontsheet'!$D122:$AC122=""))<>26,"","This is a blank row") -> This is a blank row
A114: =IF('Trust - Frontsheet'!A123="","",'Trust - Frontsheet'!A123) ->  | B114: =IF('Trust - Frontsheet'!A123="","",'Trust - Frontsheet'!D123) ->  | C114: =IF(VLOOKUP(A114,'Trust - Frontsheet'!$A$16:$AC$215,5,0)="","",VLOOKUP(A114,'Trust - Frontsheet'!$A$16:$AC$216,5,0)) ->  | D114: =IF(VLOOKUP(A114,'Trust - Frontsheet'!$A$16:$AC$215,6,0)="","",VLOOKUP(A114,'Trust - Frontsheet'!$A$16:$AC$216,6,0)) ->  | E114: =IF(OR(SUMPRODUCT(--(ISTEXT('Trust - Frontsheet'!I123:AC123)))>0,SUMPRODUCT(--(ISERROR('Trust - Frontsheet'!AD123:AT123)))>0),"There is invalid data on this row",IF(SUMPRODUCT(--('Trust - Frontsheet'!I123:AC123<0))>0,"This row contains negative values",IF(AND(L114="This is a blank Row",COUNTBLANK(INDIRECT("L" & ROW() + 1 & ":L" & 206))>0),"No blank rows in the data",""))) ->  | F114: =IF(A114 = "","",IF('Trust - Frontsheet'!D123="", "Site code not present","")) ->  | G114: =IF('Trust - Frontsheet'!D123="","",IF(VLOOKUP(A114,'Trust - Frontsheet'!$A$16:$AC$215,6,0)="","Ward name not present","")) ->  | H114: =IF(A114="","",IF(VLOOKUP(A114,'Trust - Frontsheet'!$A$16:$AC$215,7,0)="","Specialty 1 has not been selected","")) ->  | I114: =IF(A114="","",IF(OR(COUNTIF(Specialties,VLOOKUP(A114,'Trust - Frontsheet'!$A$16:$AC$215,7,0))=0, AND(COUNTIF(Specialties,VLOOKUP(A114,'Trust - Frontsheet'!$A$16:$AC$215,8,0))=0,VLOOKUP(A114,'Trust - Frontsheet'!$A$16:$AC$215,8,0)<>"")),"You have entered unacceptable specialties.","")) ->  | J114: =IF(A114="","",IF(AND(RIGHT(VLOOKUP(A114,'Trust - Frontsheet'!$A$16:$AC$215,7,0),3)<>RIGHT(VLOOKUP(A114,'Trust - Frontsheet'!$A$16:$AC$215,8,0),3),VLOOKUP(A114,'Trust - Frontsheet'!$A$16:$AC$215,8,0)<>""),"Covid statuses do not match","")) ->  | L114: =IF(SUMPRODUCT(--('Trust - Frontsheet'!$D123:$AC123=""))<>26,"","This is a blank row") -> This is a blank row
A115: =IF('Trust - Frontsheet'!A124="","",'Trust - Frontsheet'!A124) ->  | B115: =IF('Trust - Frontsheet'!A124="","",'Trust - Frontsheet'!D124) ->  | C115: =IF(VLOOKUP(A115,'Trust - Frontsheet'!$A$16:$AC$215,5,0)="","",VLOOKUP(A115,'Trust - Frontsheet'!$A$16:$AC$216,5,0)) ->  | D115: =IF(VLOOKUP(A115,'Trust - Frontsheet'!$A$16:$AC$215,6,0)="","",VLOOKUP(A115,'Trust - Frontsheet'!$A$16:$AC$216,6,0)) ->  | E115: =IF(OR(SUMPRODUCT(--(ISTEXT('Trust - Frontsheet'!I124:AC124)))>0,SUMPRODUCT(--(ISERROR('Trust - Frontsheet'!AD124:AT124)))>0),"There is invalid data on this row",IF(SUMPRODUCT(--('Trust - Frontsheet'!I124:AC124<0))>0,"This row contains negative values",IF(AND(L115="This is a blank Row",COUNTBLANK(INDIRECT("L" & ROW() + 1 & ":L" & 206))>0),"No blank rows in the data",""))) ->  | F115: =IF(A115 = "","",IF('Trust - Frontsheet'!D124="", "Site code not present","")) ->  | G115: =IF('Trust - Frontsheet'!D124="","",IF(VLOOKUP(A115,'Trust - Frontsheet'!$A$16:$AC$215,6,0)="","Ward name not present","")) ->  | H115: =IF(A115="","",IF(VLOOKUP(A115,'Trust - Frontsheet'!$A$16:$AC$215,7,0)="","Specialty 1 has not been selected","")) ->  | I115: =IF(A115="","",IF(OR(COUNTIF(Specialties,VLOOKUP(A115,'Trust - Frontsheet'!$A$16:$AC$215,7,0))=0, AND(COUNTIF(Specialties,VLOOKUP(A115,'Trust - Frontsheet'!$A$16:$AC$215,8,0))=0,VLOOKUP(A115,'Trust - Frontsheet'!$A$16:$AC$215,8,0)<>"")),"You have entered unacceptable specialties.","")) ->  | J115: =IF(A115="","",IF(AND(RIGHT(VLOOKUP(A115,'Trust - Frontsheet'!$A$16:$AC$215,7,0),3)<>RIGHT(VLOOKUP(A115,'Trust - Frontsheet'!$A$16:$AC$215,8,0),3),VLOOKUP(A115,'Trust - Frontsheet'!$A$16:$AC$215,8,0)<>""),"Covid statuses do not match","")) ->  | L115: =IF(SUMPRODUCT(--('Trust - Frontsheet'!$D124:$AC124=""))<>26,"","This is a blank row") -> This is a blank row
A116: =IF('Trust - Frontsheet'!A125="","",'Trust - Frontsheet'!A125) ->  | B116: =IF('Trust - Frontsheet'!A125="","",'Trust - Frontsheet'!D125) ->  | C116: =IF(VLOOKUP(A116,'Trust - Frontsheet'!$A$16:$AC$215,5,0)="","",VLOOKUP(A116,'Trust - Frontsheet'!$A$16:$AC$216,5,0)) ->  | D116: =IF(VLOOKUP(A116,'Trust - Frontsheet'!$A$16:$AC$215,6,0)="","",VLOOKUP(A116,'Trust - Frontsheet'!$A$16:$AC$216,6,0)) ->  | E116: =IF(OR(SUMPRODUCT(--(ISTEXT('Trust - Frontsheet'!I125:AC125)))>0,SUMPRODUCT(--(ISERROR('Trust - Frontsheet'!AD125:AT125)))>0),"There is invalid data on this row",IF(SUMPRODUCT(--('Trust - Frontsheet'!I125:AC125<0))>0,"This row contains negative values",IF(AND(L116="This is a blank Row",COUNTBLANK(INDIRECT("L" & ROW() + 1 & ":L" & 206))>0),"No blank rows in the data",""))) ->  | F116: =IF(A116 = "","",IF('Trust - Frontsheet'!D125="", "Site code not present","")) ->  | G116: =IF('Trust - Frontsheet'!D125="","",IF(VLOOKUP(A116,'Trust - Frontsheet'!$A$16:$AC$215,6,0)="","Ward name not present","")) ->  | H116: =IF(A116="","",IF(VLOOKUP(A116,'Trust - Frontsheet'!$A$16:$AC$215,7,0)="","Specialty 1 has not been selected","")) ->  | I116: =IF(A116="","",IF(OR(COUNTIF(Specialties,VLOOKUP(A116,'Trust - Frontsheet'!$A$16:$AC$215,7,0))=0, AND(COUNTIF(Specialties,VLOOKUP(A116,'Trust - Frontsheet'!$A$16:$AC$215,8,0))=0,VLOOKUP(A116,'Trust - Frontsheet'!$A$16:$AC$215,8,0)<>"")),"You have entered unacceptable specialties.","")) ->  | J116: =IF(A116="","",IF(AND(RIGHT(VLOOKUP(A116,'Trust - Frontsheet'!$A$16:$AC$215,7,0),3)<>RIGHT(VLOOKUP(A116,'Trust - Frontsheet'!$A$16:$AC$215,8,0),3),VLOOKUP(A116,'Trust - Frontsheet'!$A$16:$AC$215,8,0)<>""),"Covid statuses do not match","")) ->  | L116: =IF(SUMPRODUCT(--('Trust - Frontsheet'!$D125:$AC125=""))<>26,"","This is a blank row") -> This is a blank row
A117: =IF('Trust - Frontsheet'!A126="","",'Trust - Frontsheet'!A126) ->  | B117: =IF('Trust - Frontsheet'!A126="","",'Trust - Frontsheet'!D126) ->  | C117: =IF(VLOOKUP(A117,'Trust - Frontsheet'!$A$16:$AC$215,5,0)="","",VLOOKUP(A117,'Trust - Frontsheet'!$A$16:$AC$216,5,0)) ->  | D117: =IF(VLOOKUP(A117,'Trust - Frontsheet'!$A$16:$AC$215,6,0)="","",VLOOKUP(A117,'Trust - Frontsheet'!$A$16:$AC$216,6,0)) ->  | E117: =IF(OR(SUMPRODUCT(--(ISTEXT('Trust - Frontsheet'!I126:AC126)))>0,SUMPRODUCT(--(ISERROR('Trust - Frontsheet'!AD126:AT126)))>0),"There is invalid data on this row",IF(SUMPRODUCT(--('Trust - Frontsheet'!I126:AC126<0))>0,"This row contains negative values",IF(AND(L117="This is a blank Row",COUNTBLANK(INDIRECT("L" & ROW() + 1 & ":L" & 206))>0),"No blank rows in the data",""))) ->  | F117: =IF(A117 = "","",IF('Trust - Frontsheet'!D126="", "Site code not present","")) ->  | G117: =IF('Trust - Frontsheet'!D126="","",IF(VLOOKUP(A117,'Trust - Frontsheet'!$A$16:$AC$215,6,0)="","Ward name not present","")) ->  | H117: =IF(A117="","",IF(VLOOKUP(A117,'Trust - Frontsheet'!$A$16:$AC$215,7,0)="","Specialty 1 has not been selected","")) ->  | I117: =IF(A117="","",IF(OR(COUNTIF(Specialties,VLOOKUP(A117,'Trust - Frontsheet'!$A$16:$AC$215,7,0))=0, AND(COUNTIF(Specialties,VLOOKUP(A117,'Trust - Frontsheet'!$A$16:$AC$215,8,0))=0,VLOOKUP(A117,'Trust - Frontsheet'!$A$16:$AC$215,8,0)<>"")),"You have entered unacceptable specialties.","")) ->  | J117: =IF(A117="","",IF(AND(RIGHT(VLOOKUP(A117,'Trust - Frontsheet'!$A$16:$AC$215,7,0),3)<>RIGHT(VLOOKUP(A117,'Trust - Frontsheet'!$A$16:$AC$215,8,0),3),VLOOKUP(A117,'Trust - Frontsheet'!$A$16:$AC$215,8,0)<>""),"Covid statuses do not match","")) ->  | L117: =IF(SUMPRODUCT(--('Trust - Frontsheet'!$D126:$AC126=""))<>26,"","This is a blank row") -> This is a blank row
A118: =IF('Trust - Frontsheet'!A127="","",'Trust - Frontsheet'!A127) ->  | B118: =IF('Trust - Frontsheet'!A127="","",'Trust - Frontsheet'!D127) ->  | C118: =IF(VLOOKUP(A118,'Trust - Frontsheet'!$A$16:$AC$215,5,0)="","",VLOOKUP(A118,'Trust - Frontsheet'!$A$16:$AC$216,5,0)) ->  | D118: =IF(VLOOKUP(A118,'Trust - Frontsheet'!$A$16:$AC$215,6,0)="","",VLOOKUP(A118,'Trust - Frontsheet'!$A$16:$AC$216,6,0)) ->  | E118: =IF(OR(SUMPRODUCT(--(ISTEXT('Trust - Frontsheet'!I127:AC127)))>0,SUMPRODUCT(--(ISERROR('Trust - Frontsheet'!AD127:AT127)))>0),"There is invalid data on this row",IF(SUMPRODUCT(--('Trust - Frontsheet'!I127:AC127<0))>0,"This row contains negative values",IF(AND(L118="This is a blank Row",COUNTBLANK(INDIRECT("L" & ROW() + 1 & ":L" & 206))>0),"No blank rows in the data",""))) ->  | F118: =IF(A118 = "","",IF('Trust - Frontsheet'!D127="", "Site code not present","")) ->  | G118: =IF('Trust - Frontsheet'!D127="","",IF(VLOOKUP(A118,'Trust - Frontsheet'!$A$16:$AC$215,6,0)="","Ward name not present","")) ->  | H118: =IF(A118="","",IF(VLOOKUP(A118,'Trust - Frontsheet'!$A$16:$AC$215,7,0)="","Specialty 1 has not been selected","")) ->  | I118: =IF(A118="","",IF(OR(COUNTIF(Specialties,VLOOKUP(A118,'Trust - Frontsheet'!$A$16:$AC$215,7,0))=0, AND(COUNTIF(Specialties,VLOOKUP(A118,'Trust - Frontsheet'!$A$16:$AC$215,8,0))=0,VLOOKUP(A118,'Trust - Frontsheet'!$A$16:$AC$215,8,0)<>"")),"You have entered unacceptable specialties.","")) ->  | J118: =IF(A118="","",IF(AND(RIGHT(VLOOKUP(A118,'Trust - Frontsheet'!$A$16:$AC$215,7,0),3)<>RIGHT(VLOOKUP(A118,'Trust - Frontsheet'!$A$16:$AC$215,8,0),3),VLOOKUP(A118,'Trust - Frontsheet'!$A$16:$AC$215,8,0)<>""),"Covid statuses do not match","")) ->  | L118: =IF(SUMPRODUCT(--('Trust - Frontsheet'!$D127:$AC127=""))<>26,"","This is a blank row") -> This is a blank row
A119: =IF('Trust - Frontsheet'!A128="","",'Trust - Frontsheet'!A128) ->  | B119: =IF('Trust - Frontsheet'!A128="","",'Trust - Frontsheet'!D128) ->  | C119: =IF(VLOOKUP(A119,'Trust - Frontsheet'!$A$16:$AC$215,5,0)="","",VLOOKUP(A119,'Trust - Frontsheet'!$A$16:$AC$216,5,0)) ->  | D119: =IF(VLOOKUP(A119,'Trust - Frontsheet'!$A$16:$AC$215,6,0)="","",VLOOKUP(A119,'Trust - Frontsheet'!$A$16:$AC$216,6,0)) ->  | E119: =IF(OR(SUMPRODUCT(--(ISTEXT('Trust - Frontsheet'!I128:AC128)))>0,SUMPRODUCT(--(ISERROR('Trust - Frontsheet'!AD128:AT128)))>0),"There is invalid data on this row",IF(SUMPRODUCT(--('Trust - Frontsheet'!I128:AC128<0))>0,"This row contains negative values",IF(AND(L119="This is a blank Row",COUNTBLANK(INDIRECT("L" & ROW() + 1 & ":L" & 206))>0),"No blank rows in the data",""))) ->  | F119: =IF(A119 = "","",IF('Trust - Frontsheet'!D128="", "Site code not present","")) ->  | G119: =IF('Trust - Frontsheet'!D128="","",IF(VLOOKUP(A119,'Trust - Frontsheet'!$A$16:$AC$215,6,0)="","Ward name not present","")) ->  | H119: =IF(A119="","",IF(VLOOKUP(A119,'Trust - Frontsheet'!$A$16:$AC$215,7,0)="","Specialty 1 has not been selected","")) ->  | I119: =IF(A119="","",IF(OR(COUNTIF(Specialties,VLOOKUP(A119,'Trust - Frontsheet'!$A$16:$AC$215,7,0))=0, AND(COUNTIF(Specialties,VLOOKUP(A119,'Trust - Frontsheet'!$A$16:$AC$215,8,0))=0,VLOOKUP(A119,'Trust - Frontsheet'!$A$16:$AC$215,8,0)<>"")),"You have entered unacceptable specialties.","")) ->  | J119: =IF(A119="","",IF(AND(RIGHT(VLOOKUP(A119,'Trust - Frontsheet'!$A$16:$AC$215,7,0),3)<>RIGHT(VLOOKUP(A119,'Trust - Frontsheet'!$A$16:$AC$215,8,0),3),VLOOKUP(A119,'Trust - Frontsheet'!$A$16:$AC$215,8,0)<>""),"Covid statuses do not match","")) ->  | L119: =IF(SUMPRODUCT(--('Trust - Frontsheet'!$D128:$AC128=""))<>26,"","This is a blank row") -> This is a blank row
A120: =IF('Trust - Frontsheet'!A129="","",'Trust - Frontsheet'!A129) ->  | B120: =IF('Trust - Frontsheet'!A129="","",'Trust - Frontsheet'!D129) ->  | C120: =IF(VLOOKUP(A120,'Trust - Frontsheet'!$A$16:$AC$215,5,0)="","",VLOOKUP(A120,'Trust - Frontsheet'!$A$16:$AC$216,5,0)) ->  | D120: =IF(VLOOKUP(A120,'Trust - Frontsheet'!$A$16:$AC$215,6,0)="","",VLOOKUP(A120,'Trust - Frontsheet'!$A$16:$AC$216,6,0)) ->  | E120: =IF(OR(SUMPRODUCT(--(ISTEXT('Trust - Frontsheet'!I129:AC129)))>0,SUMPRODUCT(--(ISERROR('Trust - Frontsheet'!AD129:AT129)))>0),"There is invalid data on this row",IF(SUMPRODUCT(--('Trust - Frontsheet'!I129:AC129<0))>0,"This row contains negative values",IF(AND(L120="This is a blank Row",COUNTBLANK(INDIRECT("L" & ROW() + 1 & ":L" & 206))>0),"No blank rows in the data",""))) ->  | F120: =IF(A120 = "","",IF('Trust - Frontsheet'!D129="", "Site code not present","")) ->  | G120: =IF('Trust - Frontsheet'!D129="","",IF(VLOOKUP(A120,'Trust - Frontsheet'!$A$16:$AC$215,6,0)="","Ward name not present","")) ->  | H120: =IF(A120="","",IF(VLOOKUP(A120,'Trust - Frontsheet'!$A$16:$AC$215,7,0)="","Specialty 1 has not been selected","")) ->  | I120: =IF(A120="","",IF(OR(COUNTIF(Specialties,VLOOKUP(A120,'Trust - Frontsheet'!$A$16:$AC$215,7,0))=0, AND(COUNTIF(Specialties,VLOOKUP(A120,'Trust - Frontsheet'!$A$16:$AC$215,8,0))=0,VLOOKUP(A120,'Trust - Frontsheet'!$A$16:$AC$215,8,0)<>"")),"You have entered unacceptable specialties.","")) ->  | J120: =IF(A120="","",IF(AND(RIGHT(VLOOKUP(A120,'Trust - Frontsheet'!$A$16:$AC$215,7,0),3)<>RIGHT(VLOOKUP(A120,'Trust - Frontsheet'!$A$16:$AC$215,8,0),3),VLOOKUP(A120,'Trust - Frontsheet'!$A$16:$AC$215,8,0)<>""),"Covid statuses do not match","")) ->  | L120: =IF(SUMPRODUCT(--('Trust - Frontsheet'!$D129:$AC129=""))<>26,"","This is a blank row") -> This is a blank row
A121: =IF('Trust - Frontsheet'!A130="","",'Trust - Frontsheet'!A130) ->  | B121: =IF('Trust - Frontsheet'!A130="","",'Trust - Frontsheet'!D130) ->  | C121: =IF(VLOOKUP(A121,'Trust - Frontsheet'!$A$16:$AC$215,5,0)="","",VLOOKUP(A121,'Trust - Frontsheet'!$A$16:$AC$216,5,0)) ->  | D121: =IF(VLOOKUP(A121,'Trust - Frontsheet'!$A$16:$AC$215,6,0)="","",VLOOKUP(A121,'Trust - Frontsheet'!$A$16:$AC$216,6,0)) ->  | E121: =IF(OR(SUMPRODUCT(--(ISTEXT('Trust - Frontsheet'!I130:AC130)))>0,SUMPRODUCT(--(ISERROR('Trust - Frontsheet'!AD130:AT130)))>0),"There is invalid data on this row",IF(SUMPRODUCT(--('Trust - Frontsheet'!I130:AC130<0))>0,"This row contains negative values",IF(AND(L121="This is a blank Row",COUNTBLANK(INDIRECT("L" & ROW() + 1 & ":L" & 206))>0),"No blank rows in the data",""))) ->  | F121: =IF(A121 = "","",IF('Trust - Frontsheet'!D130="", "Site code not present","")) ->  | G121: =IF('Trust - Frontsheet'!D130="","",IF(VLOOKUP(A121,'Trust - Frontsheet'!$A$16:$AC$215,6,0)="","Ward name not present","")) ->  | H121: =IF(A121="","",IF(VLOOKUP(A121,'Trust - Frontsheet'!$A$16:$AC$215,7,0)="","Specialty 1 has not been selected","")) ->  | I121: =IF(A121="","",IF(OR(COUNTIF(Specialties,VLOOKUP(A121,'Trust - Frontsheet'!$A$16:$AC$215,7,0))=0, AND(COUNTIF(Specialties,VLOOKUP(A121,'Trust - Frontsheet'!$A$16:$AC$215,8,0))=0,VLOOKUP(A121,'Trust - Frontsheet'!$A$16:$AC$215,8,0)<>"")),"You have entered unacceptable specialties.","")) ->  | J121: =IF(A121="","",IF(AND(RIGHT(VLOOKUP(A121,'Trust - Frontsheet'!$A$16:$AC$215,7,0),3)<>RIGHT(VLOOKUP(A121,'Trust - Frontsheet'!$A$16:$AC$215,8,0),3),VLOOKUP(A121,'Trust - Frontsheet'!$A$16:$AC$215,8,0)<>""),"Covid statuses do not match","")) ->  | L121: =IF(SUMPRODUCT(--('Trust - Frontsheet'!$D130:$AC130=""))<>26,"","This is a blank row") -> This is a blank row
A122: =IF('Trust - Frontsheet'!A131="","",'Trust - Frontsheet'!A131) ->  | B122: =IF('Trust - Frontsheet'!A131="","",'Trust - Frontsheet'!D131) ->  | C122: =IF(VLOOKUP(A122,'Trust - Frontsheet'!$A$16:$AC$215,5,0)="","",VLOOKUP(A122,'Trust - Frontsheet'!$A$16:$AC$216,5,0)) ->  | D122: =IF(VLOOKUP(A122,'Trust - Frontsheet'!$A$16:$AC$215,6,0)="","",VLOOKUP(A122,'Trust - Frontsheet'!$A$16:$AC$216,6,0)) ->  | E122: =IF(OR(SUMPRODUCT(--(ISTEXT('Trust - Frontsheet'!I131:AC131)))>0,SUMPRODUCT(--(ISERROR('Trust - Frontsheet'!AD131:AT131)))>0),"There is invalid data on this row",IF(SUMPRODUCT(--('Trust - Frontsheet'!I131:AC131<0))>0,"This row contains negative values",IF(AND(L122="This is a blank Row",COUNTBLANK(INDIRECT("L" & ROW() + 1 & ":L" & 206))>0),"No blank rows in the data",""))) ->  | F122: =IF(A122 = "","",IF('Trust - Frontsheet'!D131="", "Site code not present","")) ->  | G122: =IF('Trust - Frontsheet'!D131="","",IF(VLOOKUP(A122,'Trust - Frontsheet'!$A$16:$AC$215,6,0)="","Ward name not present","")) ->  | H122: =IF(A122="","",IF(VLOOKUP(A122,'Trust - Frontsheet'!$A$16:$AC$215,7,0)="","Specialty 1 has not been selected","")) ->  | I122: =IF(A122="","",IF(OR(COUNTIF(Specialties,VLOOKUP(A122,'Trust - Frontsheet'!$A$16:$AC$215,7,0))=0, AND(COUNTIF(Specialties,VLOOKUP(A122,'Trust - Frontsheet'!$A$16:$AC$215,8,0))=0,VLOOKUP(A122,'Trust - Frontsheet'!$A$16:$AC$215,8,0)<>"")),"You have entered unacceptable specialties.","")) ->  | J122: =IF(A122="","",IF(AND(RIGHT(VLOOKUP(A122,'Trust - Frontsheet'!$A$16:$AC$215,7,0),3)<>RIGHT(VLOOKUP(A122,'Trust - Frontsheet'!$A$16:$AC$215,8,0),3),VLOOKUP(A122,'Trust - Frontsheet'!$A$16:$AC$215,8,0)<>""),"Covid statuses do not match","")) ->  | L122: =IF(SUMPRODUCT(--('Trust - Frontsheet'!$D131:$AC131=""))<>26,"","This is a blank row") -> This is a blank row
A123: =IF('Trust - Frontsheet'!A132="","",'Trust - Frontsheet'!A132) ->  | B123: =IF('Trust - Frontsheet'!A132="","",'Trust - Frontsheet'!D132) ->  | C123: =IF(VLOOKUP(A123,'Trust - Frontsheet'!$A$16:$AC$215,5,0)="","",VLOOKUP(A123,'Trust - Frontsheet'!$A$16:$AC$216,5,0)) ->  | D123: =IF(VLOOKUP(A123,'Trust - Frontsheet'!$A$16:$AC$215,6,0)="","",VLOOKUP(A123,'Trust - Frontsheet'!$A$16:$AC$216,6,0)) ->  | E123: =IF(OR(SUMPRODUCT(--(ISTEXT('Trust - Frontsheet'!I132:AC132)))>0,SUMPRODUCT(--(ISERROR('Trust - Frontsheet'!AD132:AT132)))>0),"There is invalid data on this row",IF(SUMPRODUCT(--('Trust - Frontsheet'!I132:AC132<0))>0,"This row contains negative values",IF(AND(L123="This is a blank Row",COUNTBLANK(INDIRECT("L" & ROW() + 1 & ":L" & 206))>0),"No blank rows in the data",""))) ->  | F123: =IF(A123 = "","",IF('Trust - Frontsheet'!D132="", "Site code not present","")) ->  | G123: =IF('Trust - Frontsheet'!D132="","",IF(VLOOKUP(A123,'Trust - Frontsheet'!$A$16:$AC$215,6,0)="","Ward name not present","")) ->  | H123: =IF(A123="","",IF(VLOOKUP(A123,'Trust - Frontsheet'!$A$16:$AC$215,7,0)="","Specialty 1 has not been selected","")) ->  | I123: =IF(A123="","",IF(OR(COUNTIF(Specialties,VLOOKUP(A123,'Trust - Frontsheet'!$A$16:$AC$215,7,0))=0, AND(COUNTIF(Specialties,VLOOKUP(A123,'Trust - Frontsheet'!$A$16:$AC$215,8,0))=0,VLOOKUP(A123,'Trust - Frontsheet'!$A$16:$AC$215,8,0)<>"")),"You have entered unacceptable specialties.","")) ->  | J123: =IF(A123="","",IF(AND(RIGHT(VLOOKUP(A123,'Trust - Frontsheet'!$A$16:$AC$215,7,0),3)<>RIGHT(VLOOKUP(A123,'Trust - Frontsheet'!$A$16:$AC$215,8,0),3),VLOOKUP(A123,'Trust - Frontsheet'!$A$16:$AC$215,8,0)<>""),"Covid statuses do not match","")) ->  | L123: =IF(SUMPRODUCT(--('Trust - Frontsheet'!$D132:$AC132=""))<>26,"","This is a blank row") -> This is a blank row
A124: =IF('Trust - Frontsheet'!A133="","",'Trust - Frontsheet'!A133) ->  | B124: =IF('Trust - Frontsheet'!A133="","",'Trust - Frontsheet'!D133) ->  | C124: =IF(VLOOKUP(A124,'Trust - Frontsheet'!$A$16:$AC$215,5,0)="","",VLOOKUP(A124,'Trust - Frontsheet'!$A$16:$AC$216,5,0)) ->  | D124: =IF(VLOOKUP(A124,'Trust - Frontsheet'!$A$16:$AC$215,6,0)="","",VLOOKUP(A124,'Trust - Frontsheet'!$A$16:$AC$216,6,0)) ->  | E124: =IF(OR(SUMPRODUCT(--(ISTEXT('Trust - Frontsheet'!I133:AC133)))>0,SUMPRODUCT(--(ISERROR('Trust - Frontsheet'!AD133:AT133)))>0),"There is invalid data on this row",IF(SUMPRODUCT(--('Trust - Frontsheet'!I133:AC133<0))>0,"This row contains negative values",IF(AND(L124="This is a blank Row",COUNTBLANK(INDIRECT("L" & ROW() + 1 & ":L" & 206))>0),"No blank rows in the data",""))) ->  | F124: =IF(A124 = "","",IF('Trust - Frontsheet'!D133="", "Site code not present","")) ->  | G124: =IF('Trust - Frontsheet'!D133="","",IF(VLOOKUP(A124,'Trust - Frontsheet'!$A$16:$AC$215,6,0)="","Ward name not present","")) ->  | H124: =IF(A124="","",IF(VLOOKUP(A124,'Trust - Frontsheet'!$A$16:$AC$215,7,0)="","Specialty 1 has not been selected","")) ->  | I124: =IF(A124="","",IF(OR(COUNTIF(Specialties,VLOOKUP(A124,'Trust - Frontsheet'!$A$16:$AC$215,7,0))=0, AND(COUNTIF(Specialties,VLOOKUP(A124,'Trust - Frontsheet'!$A$16:$AC$215,8,0))=0,VLOOKUP(A124,'Trust - Frontsheet'!$A$16:$AC$215,8,0)<>"")),"You have entered unacceptable specialties.","")) ->  | J124: =IF(A124="","",IF(AND(RIGHT(VLOOKUP(A124,'Trust - Frontsheet'!$A$16:$AC$215,7,0),3)<>RIGHT(VLOOKUP(A124,'Trust - Frontsheet'!$A$16:$AC$215,8,0),3),VLOOKUP(A124,'Trust - Frontsheet'!$A$16:$AC$215,8,0)<>""),"Covid statuses do not match","")) ->  | L124: =IF(SUMPRODUCT(--('Trust - Frontsheet'!$D133:$AC133=""))<>26,"","This is a blank row") -> This is a blank row
A125: =IF('Trust - Frontsheet'!A134="","",'Trust - Frontsheet'!A134) ->  | B125: =IF('Trust - Frontsheet'!A134="","",'Trust - Frontsheet'!D134) ->  | C125: =IF(VLOOKUP(A125,'Trust - Frontsheet'!$A$16:$AC$215,5,0)="","",VLOOKUP(A125,'Trust - Frontsheet'!$A$16:$AC$216,5,0)) ->  | D125: =IF(VLOOKUP(A125,'Trust - Frontsheet'!$A$16:$AC$215,6,0)="","",VLOOKUP(A125,'Trust - Frontsheet'!$A$16:$AC$216,6,0)) ->  | E125: =IF(OR(SUMPRODUCT(--(ISTEXT('Trust - Frontsheet'!I134:AC134)))>0,SUMPRODUCT(--(ISERROR('Trust - Frontsheet'!AD134:AT134)))>0),"There is invalid data on this row",IF(SUMPRODUCT(--('Trust - Frontsheet'!I134:AC134<0))>0,"This row contains negative values",IF(AND(L125="This is a blank Row",COUNTBLANK(INDIRECT("L" & ROW() + 1 & ":L" & 206))>0),"No blank rows in the data",""))) ->  | F125: =IF(A125 = "","",IF('Trust - Frontsheet'!D134="", "Site code not present","")) ->  | G125: =IF('Trust - Frontsheet'!D134="","",IF(VLOOKUP(A125,'Trust - Frontsheet'!$A$16:$AC$215,6,0)="","Ward name not present","")) ->  | H125: =IF(A125="","",IF(VLOOKUP(A125,'Trust - Frontsheet'!$A$16:$AC$215,7,0)="","Specialty 1 has not been selected","")) ->  | I125: =IF(A125="","",IF(OR(COUNTIF(Specialties,VLOOKUP(A125,'Trust - Frontsheet'!$A$16:$AC$215,7,0))=0, AND(COUNTIF(Specialties,VLOOKUP(A125,'Trust - Frontsheet'!$A$16:$AC$215,8,0))=0,VLOOKUP(A125,'Trust - Frontsheet'!$A$16:$AC$215,8,0)<>"")),"You have entered unacceptable specialties.","")) ->  | J125: =IF(A125="","",IF(AND(RIGHT(VLOOKUP(A125,'Trust - Frontsheet'!$A$16:$AC$215,7,0),3)<>RIGHT(VLOOKUP(A125,'Trust - Frontsheet'!$A$16:$AC$215,8,0),3),VLOOKUP(A125,'Trust - Frontsheet'!$A$16:$AC$215,8,0)<>""),"Covid statuses do not match","")) ->  | L125: =IF(SUMPRODUCT(--('Trust - Frontsheet'!$D134:$AC134=""))<>26,"","This is a blank row") -> This is a blank row
A126: =IF('Trust - Frontsheet'!A135="","",'Trust - Frontsheet'!A135) ->  | B126: =IF('Trust - Frontsheet'!A135="","",'Trust - Frontsheet'!D135) ->  | C126: =IF(VLOOKUP(A126,'Trust - Frontsheet'!$A$16:$AC$215,5,0)="","",VLOOKUP(A126,'Trust - Frontsheet'!$A$16:$AC$216,5,0)) ->  | D126: =IF(VLOOKUP(A126,'Trust - Frontsheet'!$A$16:$AC$215,6,0)="","",VLOOKUP(A126,'Trust - Frontsheet'!$A$16:$AC$216,6,0)) ->  | E126: =IF(OR(SUMPRODUCT(--(ISTEXT('Trust - Frontsheet'!I135:AC135)))>0,SUMPRODUCT(--(ISERROR('Trust - Frontsheet'!AD135:AT135)))>0),"There is invalid data on this row",IF(SUMPRODUCT(--('Trust - Frontsheet'!I135:AC135<0))>0,"This row contains negative values",IF(AND(L126="This is a blank Row",COUNTBLANK(INDIRECT("L" & ROW() + 1 & ":L" & 206))>0),"No blank rows in the data",""))) ->  | F126: =IF(A126 = "","",IF('Trust - Frontsheet'!D135="", "Site code not present","")) ->  | G126: =IF('Trust - Frontsheet'!D135="","",IF(VLOOKUP(A126,'Trust - Frontsheet'!$A$16:$AC$215,6,0)="","Ward name not present","")) ->  | H126: =IF(A126="","",IF(VLOOKUP(A126,'Trust - Frontsheet'!$A$16:$AC$215,7,0)="","Specialty 1 has not been selected","")) ->  | I126: =IF(A126="","",IF(OR(COUNTIF(Specialties,VLOOKUP(A126,'Trust - Frontsheet'!$A$16:$AC$215,7,0))=0, AND(COUNTIF(Specialties,VLOOKUP(A126,'Trust - Frontsheet'!$A$16:$AC$215,8,0))=0,VLOOKUP(A126,'Trust - Frontsheet'!$A$16:$AC$215,8,0)<>"")),"You have entered unacceptable specialties.","")) ->  | J126: =IF(A126="","",IF(AND(RIGHT(VLOOKUP(A126,'Trust - Frontsheet'!$A$16:$AC$215,7,0),3)<>RIGHT(VLOOKUP(A126,'Trust - Frontsheet'!$A$16:$AC$215,8,0),3),VLOOKUP(A126,'Trust - Frontsheet'!$A$16:$AC$215,8,0)<>""),"Covid statuses do not match","")) ->  | L126: =IF(SUMPRODUCT(--('Trust - Frontsheet'!$D135:$AC135=""))<>26,"","This is a blank row") -> This is a blank row
A127: =IF('Trust - Frontsheet'!A136="","",'Trust - Frontsheet'!A136) ->  | B127: =IF('Trust - Frontsheet'!A136="","",'Trust - Frontsheet'!D136) ->  | C127: =IF(VLOOKUP(A127,'Trust - Frontsheet'!$A$16:$AC$215,5,0)="","",VLOOKUP(A127,'Trust - Frontsheet'!$A$16:$AC$216,5,0)) ->  | D127: =IF(VLOOKUP(A127,'Trust - Frontsheet'!$A$16:$AC$215,6,0)="","",VLOOKUP(A127,'Trust - Frontsheet'!$A$16:$AC$216,6,0)) ->  | E127: =IF(OR(SUMPRODUCT(--(ISTEXT('Trust - Frontsheet'!I136:AC136)))>0,SUMPRODUCT(--(ISERROR('Trust - Frontsheet'!AD136:AT136)))>0),"There is invalid data on this row",IF(SUMPRODUCT(--('Trust - Frontsheet'!I136:AC136<0))>0,"This row contains negative values",IF(AND(L127="This is a blank Row",COUNTBLANK(INDIRECT("L" & ROW() + 1 & ":L" & 206))>0),"No blank rows in the data",""))) ->  | F127: =IF(A127 = "","",IF('Trust - Frontsheet'!D136="", "Site code not present","")) ->  | G127: =IF('Trust - Frontsheet'!D136="","",IF(VLOOKUP(A127,'Trust - Frontsheet'!$A$16:$AC$215,6,0)="","Ward name not present","")) ->  | H127: =IF(A127="","",IF(VLOOKUP(A127,'Trust - Frontsheet'!$A$16:$AC$215,7,0)="","Specialty 1 has not been selected","")) ->  | I127: =IF(A127="","",IF(OR(COUNTIF(Specialties,VLOOKUP(A127,'Trust - Frontsheet'!$A$16:$AC$215,7,0))=0, AND(COUNTIF(Specialties,VLOOKUP(A127,'Trust - Frontsheet'!$A$16:$AC$215,8,0))=0,VLOOKUP(A127,'Trust - Frontsheet'!$A$16:$AC$215,8,0)<>"")),"You have entered unacceptable specialties.","")) ->  | J127: =IF(A127="","",IF(AND(RIGHT(VLOOKUP(A127,'Trust - Frontsheet'!$A$16:$AC$215,7,0),3)<>RIGHT(VLOOKUP(A127,'Trust - Frontsheet'!$A$16:$AC$215,8,0),3),VLOOKUP(A127,'Trust - Frontsheet'!$A$16:$AC$215,8,0)<>""),"Covid statuses do not match","")) ->  | L127: =IF(SUMPRODUCT(--('Trust - Frontsheet'!$D136:$AC136=""))<>26,"","This is a blank row") -> This is a blank row
A128: =IF('Trust - Frontsheet'!A137="","",'Trust - Frontsheet'!A137) ->  | B128: =IF('Trust - Frontsheet'!A137="","",'Trust - Frontsheet'!D137) ->  | C128: =IF(VLOOKUP(A128,'Trust - Frontsheet'!$A$16:$AC$215,5,0)="","",VLOOKUP(A128,'Trust - Frontsheet'!$A$16:$AC$216,5,0)) ->  | D128: =IF(VLOOKUP(A128,'Trust - Frontsheet'!$A$16:$AC$215,6,0)="","",VLOOKUP(A128,'Trust - Frontsheet'!$A$16:$AC$216,6,0)) ->  | E128: =IF(OR(SUMPRODUCT(--(ISTEXT('Trust - Frontsheet'!I137:AC137)))>0,SUMPRODUCT(--(ISERROR('Trust - Frontsheet'!AD137:AT137)))>0),"There is invalid data on this row",IF(SUMPRODUCT(--('Trust - Frontsheet'!I137:AC137<0))>0,"This row contains negative values",IF(AND(L128="This is a blank Row",COUNTBLANK(INDIRECT("L" & ROW() + 1 & ":L" & 206))>0),"No blank rows in the data",""))) ->  | F128: =IF(A128 = "","",IF('Trust - Frontsheet'!D137="", "Site code not present","")) ->  | G128: =IF('Trust - Frontsheet'!D137="","",IF(VLOOKUP(A128,'Trust - Frontsheet'!$A$16:$AC$215,6,0)="","Ward name not present","")) ->  | H128: =IF(A128="","",IF(VLOOKUP(A128,'Trust - Frontsheet'!$A$16:$AC$215,7,0)="","Specialty 1 has not been selected","")) ->  | I128: =IF(A128="","",IF(OR(COUNTIF(Specialties,VLOOKUP(A128,'Trust - Frontsheet'!$A$16:$AC$215,7,0))=0, AND(COUNTIF(Specialties,VLOOKUP(A128,'Trust - Frontsheet'!$A$16:$AC$215,8,0))=0,VLOOKUP(A128,'Trust - Frontsheet'!$A$16:$AC$215,8,0)<>"")),"You have entered unacceptable specialties.","")) ->  | J128: =IF(A128="","",IF(AND(RIGHT(VLOOKUP(A128,'Trust - Frontsheet'!$A$16:$AC$215,7,0),3)<>RIGHT(VLOOKUP(A128,'Trust - Frontsheet'!$A$16:$AC$215,8,0),3),VLOOKUP(A128,'Trust - Frontsheet'!$A$16:$AC$215,8,0)<>""),"Covid statuses do not match","")) ->  | L128: =IF(SUMPRODUCT(--('Trust - Frontsheet'!$D137:$AC137=""))<>26,"","This is a blank row") -> This is a blank row
A129: =IF('Trust - Frontsheet'!A138="","",'Trust - Frontsheet'!A138) ->  | B129: =IF('Trust - Frontsheet'!A138="","",'Trust - Frontsheet'!D138) ->  | C129: =IF(VLOOKUP(A129,'Trust - Frontsheet'!$A$16:$AC$215,5,0)="","",VLOOKUP(A129,'Trust - Frontsheet'!$A$16:$AC$216,5,0)) ->  | D129: =IF(VLOOKUP(A129,'Trust - Frontsheet'!$A$16:$AC$215,6,0)="","",VLOOKUP(A129,'Trust - Frontsheet'!$A$16:$AC$216,6,0)) ->  | E129: =IF(OR(SUMPRODUCT(--(ISTEXT('Trust - Frontsheet'!I138:AC138)))>0,SUMPRODUCT(--(ISERROR('Trust - Frontsheet'!AD138:AT138)))>0),"There is invalid data on this row",IF(SUMPRODUCT(--('Trust - Frontsheet'!I138:AC138<0))>0,"This row contains negative values",IF(AND(L129="This is a blank Row",COUNTBLANK(INDIRECT("L" & ROW() + 1 & ":L" & 206))>0),"No blank rows in the data",""))) ->  | F129: =IF(A129 = "","",IF('Trust - Frontsheet'!D138="", "Site code not present","")) ->  | G129: =IF('Trust - Frontsheet'!D138="","",IF(VLOOKUP(A129,'Trust - Frontsheet'!$A$16:$AC$215,6,0)="","Ward name not present","")) ->  | H129: =IF(A129="","",IF(VLOOKUP(A129,'Trust - Frontsheet'!$A$16:$AC$215,7,0)="","Specialty 1 has not been selected","")) ->  | I129: =IF(A129="","",IF(OR(COUNTIF(Specialties,VLOOKUP(A129,'Trust - Frontsheet'!$A$16:$AC$215,7,0))=0, AND(COUNTIF(Specialties,VLOOKUP(A129,'Trust - Frontsheet'!$A$16:$AC$215,8,0))=0,VLOOKUP(A129,'Trust - Frontsheet'!$A$16:$AC$215,8,0)<>"")),"You have entered unacceptable specialties.","")) ->  | J129: =IF(A129="","",IF(AND(RIGHT(VLOOKUP(A129,'Trust - Frontsheet'!$A$16:$AC$215,7,0),3)<>RIGHT(VLOOKUP(A129,'Trust - Frontsheet'!$A$16:$AC$215,8,0),3),VLOOKUP(A129,'Trust - Frontsheet'!$A$16:$AC$215,8,0)<>""),"Covid statuses do not match","")) ->  | L129: =IF(SUMPRODUCT(--('Trust - Frontsheet'!$D138:$AC138=""))<>26,"","This is a blank row") -> This is a blank row
A130: =IF('Trust - Frontsheet'!A139="","",'Trust - Frontsheet'!A139) ->  | B130: =IF('Trust - Frontsheet'!A139="","",'Trust - Frontsheet'!D139) ->  | C130: =IF(VLOOKUP(A130,'Trust - Frontsheet'!$A$16:$AC$215,5,0)="","",VLOOKUP(A130,'Trust - Frontsheet'!$A$16:$AC$216,5,0)) ->  | D130: =IF(VLOOKUP(A130,'Trust - Frontsheet'!$A$16:$AC$215,6,0)="","",VLOOKUP(A130,'Trust - Frontsheet'!$A$16:$AC$216,6,0)) ->  | E130: =IF(OR(SUMPRODUCT(--(ISTEXT('Trust - Frontsheet'!I139:AC139)))>0,SUMPRODUCT(--(ISERROR('Trust - Frontsheet'!AD139:AT139)))>0),"There is invalid data on this row",IF(SUMPRODUCT(--('Trust - Frontsheet'!I139:AC139<0))>0,"This row contains negative values",IF(AND(L130="This is a blank Row",COUNTBLANK(INDIRECT("L" & ROW() + 1 & ":L" & 206))>0),"No blank rows in the data",""))) ->  | F130: =IF(A130 = "","",IF('Trust - Frontsheet'!D139="", "Site code not present","")) ->  | G130: =IF('Trust - Frontsheet'!D139="","",IF(VLOOKUP(A130,'Trust - Frontsheet'!$A$16:$AC$215,6,0)="","Ward name not present","")) ->  | H130: =IF(A130="","",IF(VLOOKUP(A130,'Trust - Frontsheet'!$A$16:$AC$215,7,0)="","Specialty 1 has not been selected","")) ->  | I130: =IF(A130="","",IF(OR(COUNTIF(Specialties,VLOOKUP(A130,'Trust - Frontsheet'!$A$16:$AC$215,7,0))=0, AND(COUNTIF(Specialties,VLOOKUP(A130,'Trust - Frontsheet'!$A$16:$AC$215,8,0))=0,VLOOKUP(A130,'Trust - Frontsheet'!$A$16:$AC$215,8,0)<>"")),"You have entered unacceptable specialties.","")) ->  | J130: =IF(A130="","",IF(AND(RIGHT(VLOOKUP(A130,'Trust - Frontsheet'!$A$16:$AC$215,7,0),3)<>RIGHT(VLOOKUP(A130,'Trust - Frontsheet'!$A$16:$AC$215,8,0),3),VLOOKUP(A130,'Trust - Frontsheet'!$A$16:$AC$215,8,0)<>""),"Covid statuses do not match","")) ->  | L130: =IF(SUMPRODUCT(--('Trust - Frontsheet'!$D139:$AC139=""))<>26,"","This is a blank row") -> This is a blank row
A131: =IF('Trust - Frontsheet'!A140="","",'Trust - Frontsheet'!A140) ->  | B131: =IF('Trust - Frontsheet'!A140="","",'Trust - Frontsheet'!D140) ->  | C131: =IF(VLOOKUP(A131,'Trust - Frontsheet'!$A$16:$AC$215,5,0)="","",VLOOKUP(A131,'Trust - Frontsheet'!$A$16:$AC$216,5,0)) ->  | D131: =IF(VLOOKUP(A131,'Trust - Frontsheet'!$A$16:$AC$215,6,0)="","",VLOOKUP(A131,'Trust - Frontsheet'!$A$16:$AC$216,6,0)) ->  | E131: =IF(OR(SUMPRODUCT(--(ISTEXT('Trust - Frontsheet'!I140:AC140)))>0,SUMPRODUCT(--(ISERROR('Trust - Frontsheet'!AD140:AT140)))>0),"There is invalid data on this row",IF(SUMPRODUCT(--('Trust - Frontsheet'!I140:AC140<0))>0,"This row contains negative values",IF(AND(L131="This is a blank Row",COUNTBLANK(INDIRECT("L" & ROW() + 1 & ":L" & 206))>0),"No blank rows in the data",""))) ->  | F131: =IF(A131 = "","",IF('Trust - Frontsheet'!D140="", "Site code not present","")) ->  | G131: =IF('Trust - Frontsheet'!D140="","",IF(VLOOKUP(A131,'Trust - Frontsheet'!$A$16:$AC$215,6,0)="","Ward name not present","")) ->  | H131: =IF(A131="","",IF(VLOOKUP(A131,'Trust - Frontsheet'!$A$16:$AC$215,7,0)="","Specialty 1 has not been selected","")) ->  | I131: =IF(A131="","",IF(OR(COUNTIF(Specialties,VLOOKUP(A131,'Trust - Frontsheet'!$A$16:$AC$215,7,0))=0, AND(COUNTIF(Specialties,VLOOKUP(A131,'Trust - Frontsheet'!$A$16:$AC$215,8,0))=0,VLOOKUP(A131,'Trust - Frontsheet'!$A$16:$AC$215,8,0)<>"")),"You have entered unacceptable specialties.","")) ->  | J131: =IF(A131="","",IF(AND(RIGHT(VLOOKUP(A131,'Trust - Frontsheet'!$A$16:$AC$215,7,0),3)<>RIGHT(VLOOKUP(A131,'Trust - Frontsheet'!$A$16:$AC$215,8,0),3),VLOOKUP(A131,'Trust - Frontsheet'!$A$16:$AC$215,8,0)<>""),"Covid statuses do not match","")) ->  | L131: =IF(SUMPRODUCT(--('Trust - Frontsheet'!$D140:$AC140=""))<>26,"","This is a blank row") -> This is a blank row
A132: =IF('Trust - Frontsheet'!A141="","",'Trust - Frontsheet'!A141) ->  | B132: =IF('Trust - Frontsheet'!A141="","",'Trust - Frontsheet'!D141) ->  | C132: =IF(VLOOKUP(A132,'Trust - Frontsheet'!$A$16:$AC$215,5,0)="","",VLOOKUP(A132,'Trust - Frontsheet'!$A$16:$AC$216,5,0)) ->  | D132: =IF(VLOOKUP(A132,'Trust - Frontsheet'!$A$16:$AC$215,6,0)="","",VLOOKUP(A132,'Trust - Frontsheet'!$A$16:$AC$216,6,0)) ->  | E132: =IF(OR(SUMPRODUCT(--(ISTEXT('Trust - Frontsheet'!I141:AC141)))>0,SUMPRODUCT(--(ISERROR('Trust - Frontsheet'!AD141:AT141)))>0),"There is invalid data on this row",IF(SUMPRODUCT(--('Trust - Frontsheet'!I141:AC141<0))>0,"This row contains negative values",IF(AND(L132="This is a blank Row",COUNTBLANK(INDIRECT("L" & ROW() + 1 & ":L" & 206))>0),"No blank rows in the data",""))) ->  | F132: =IF(A132 = "","",IF('Trust - Frontsheet'!D141="", "Site code not present","")) ->  | G132: =IF('Trust - Frontsheet'!D141="","",IF(VLOOKUP(A132,'Trust - Frontsheet'!$A$16:$AC$215,6,0)="","Ward name not present","")) ->  | H132: =IF(A132="","",IF(VLOOKUP(A132,'Trust - Frontsheet'!$A$16:$AC$215,7,0)="","Specialty 1 has not been selected","")) ->  | I132: =IF(A132="","",IF(OR(COUNTIF(Specialties,VLOOKUP(A132,'Trust - Frontsheet'!$A$16:$AC$215,7,0))=0, AND(COUNTIF(Specialties,VLOOKUP(A132,'Trust - Frontsheet'!$A$16:$AC$215,8,0))=0,VLOOKUP(A132,'Trust - Frontsheet'!$A$16:$AC$215,8,0)<>"")),"You have entered unacceptable specialties.","")) ->  | J132: =IF(A132="","",IF(AND(RIGHT(VLOOKUP(A132,'Trust - Frontsheet'!$A$16:$AC$215,7,0),3)<>RIGHT(VLOOKUP(A132,'Trust - Frontsheet'!$A$16:$AC$215,8,0),3),VLOOKUP(A132,'Trust - Frontsheet'!$A$16:$AC$215,8,0)<>""),"Covid statuses do not match","")) ->  | L132: =IF(SUMPRODUCT(--('Trust - Frontsheet'!$D141:$AC141=""))<>26,"","This is a blank row") -> This is a blank row
A133: =IF('Trust - Frontsheet'!A142="","",'Trust - Frontsheet'!A142) ->  | B133: =IF('Trust - Frontsheet'!A142="","",'Trust - Frontsheet'!D142) ->  | C133: =IF(VLOOKUP(A133,'Trust - Frontsheet'!$A$16:$AC$215,5,0)="","",VLOOKUP(A133,'Trust - Frontsheet'!$A$16:$AC$216,5,0)) ->  | D133: =IF(VLOOKUP(A133,'Trust - Frontsheet'!$A$16:$AC$215,6,0)="","",VLOOKUP(A133,'Trust - Frontsheet'!$A$16:$AC$216,6,0)) ->  | E133: =IF(OR(SUMPRODUCT(--(ISTEXT('Trust - Frontsheet'!I142:AC142)))>0,SUMPRODUCT(--(ISERROR('Trust - Frontsheet'!AD142:AT142)))>0),"There is invalid data on this row",IF(SUMPRODUCT(--('Trust - Frontsheet'!I142:AC142<0))>0,"This row contains negative values",IF(AND(L133="This is a blank Row",COUNTBLANK(INDIRECT("L" & ROW() + 1 & ":L" & 206))>0),"No blank rows in the data",""))) ->  | F133: =IF(A133 = "","",IF('Trust - Frontsheet'!D142="", "Site code not present","")) ->  | G133: =IF('Trust - Frontsheet'!D142="","",IF(VLOOKUP(A133,'Trust - Frontsheet'!$A$16:$AC$215,6,0)="","Ward name not present","")) ->  | H133: =IF(A133="","",IF(VLOOKUP(A133,'Trust - Frontsheet'!$A$16:$AC$215,7,0)="","Specialty 1 has not been selected","")) ->  | I133: =IF(A133="","",IF(OR(COUNTIF(Specialties,VLOOKUP(A133,'Trust - Frontsheet'!$A$16:$AC$215,7,0))=0, AND(COUNTIF(Specialties,VLOOKUP(A133,'Trust - Frontsheet'!$A$16:$AC$215,8,0))=0,VLOOKUP(A133,'Trust - Frontsheet'!$A$16:$AC$215,8,0)<>"")),"You have entered unacceptable specialties.","")) ->  | J133: =IF(A133="","",IF(AND(RIGHT(VLOOKUP(A133,'Trust - Frontsheet'!$A$16:$AC$215,7,0),3)<>RIGHT(VLOOKUP(A133,'Trust - Frontsheet'!$A$16:$AC$215,8,0),3),VLOOKUP(A133,'Trust - Frontsheet'!$A$16:$AC$215,8,0)<>""),"Covid statuses do not match","")) ->  | L133: =IF(SUMPRODUCT(--('Trust - Frontsheet'!$D142:$AC142=""))<>26,"","This is a blank row") -> This is a blank row
